Workbook

Sheet Resi Price Out
A1: Residential Price Out | D1: Constants
A2: LG Calculation % Price Increases | C2: Adjustor | D2: Weekly | E2: 4.333
A3: Garbage | B3: 0.0025 | D3: Every Other Week | E3: =+E2/2 -> 2.1665 | J3: Revenue
A4: Recycling | B4: 0.0025 | D4: Monthly | E4: 1 | I4: Sub-LOB | J4: Current | K4: Proposed | L4: Differenced
A5: Yardwaste | B5: =((65/52.74)-1)+0.25% -> 0.2349611301 | D5: Months / Yr | E5: 12 | G5: =G7-G9 ->  | I5: Garbage Svc | J5: =+SUM(G16:G26,G49:G59,G85:G95,G121:G132) -> 1259820.89 | K5: =+SUM(I16:I26,I49:I59,I85:I95,I121:I132) -> 1262970.442 | L5: =K5-J5 -> 3149.552225
I6: MSW Cont | J6: =SUM(G32:G42,G67:G77,G104:G114,G134:G145) -> 52727.7 | K6: =SUM(I32:I42,I67:I77,I104:I114,I134:I145) -> 52859.51925 | L6: =K6-J6 -> 131.81925
A7: Total Revenue from Proforma | G7: =+#REF! ->  | I7: RCY Service | J7: =SUM(G27:G28,G60:G61,G96:G97) -> 617178.13 | K7: =SUM(I27:I28,I60:I61,I96:I97) -> 618721.0753 | L7: 1542.945325
A8: % Variance | G8: =+G7/G9-1 ->  | I8: YW Service | J8: =SUM(G29:G30,G62:G65,G98:G101) -> 527063.72 | K8: =SUM(I29:I30,I62:I65,I98:I101) -> 650903.2073 | L8: 123839.4873
A9: Total Price Out Revenue | G9: =SUM(G14:G150) -> 2504497.73 | I9: YW Cont | J9: =SUM(G43,G78,G115) -> 47707.29 | K9: =SUM(I43,I78,I115) -> 58916.64877 | L9: 11209.35877 | N9: From Price-out | O9: From Staff Combined LG | P9: Difference | Q9: %
L10: =SUM(L5:L9) -> 139873.1628 | M10: Grand total | N10: =L10+'Comm (+MF) Price Out'!R10+'IND (+MF) Price Out'!Q10 -> 140989.423 | O10: 448078.9658 | P10: =O10-N10 -> 307089.5428 | Q10: =P10/N10 -> 2.178103409
A11: Item # 100 Residential Service
E12: Tariff | F12: Gross | G12: Annual | H12: Proposed | I12: Proposed | J12: Proposed
A13: Type Of Can / Container | B13: Service Type | C13: Service Frequency | D13: Current Rate | E13: Page # | F13: Customers | G13: Revenue | H13: Rates | I13: Ann'l Rev | J13: % Rate Inc.
A15: Appendix A
A16: 20 Gallon Can | B16: Garbage | C16: Weekly | D16: 12.76 | E16: 21 | F16: =SUMIFS('183 Tons'!$T:$T,'183 Tons'!$A:$A,$A16,'183 Tons'!$B:$B,"Regulated",'183 Tons'!$C:$C,$A$15)/12 -> 250.5 | G16: =+F16*D16*$E$5 -> 38356.56 | H16: =+D16*(1+$B$3) -> 12.7919 | I16: =+H16*F16*$E$5 -> 38452.4514 | J16: =IF(OR(D16=0,H16=0),"",H16/D16-1) -> 0.0025 | M16: 10.78 | N16: 21 | O16: =F16 -> 250.5 | P16: =+O16*M16*$E$5 -> 32404.68 | Q16: =G16-P16 -> 5951.88
A17: 1 Can | B17: Garbage | C17: Weekly | D17: 18.46 | E17: 21 | F17: =SUMIFS('183 Tons'!$T:$T,'183 Tons'!$A:$A,$A17,'183 Tons'!$B:$B,"Regulated",'183 Tons'!$C:$C,$A$15)/12 -> 482.4166667 | G17: =+F17*D17*$E$5 -> 106864.94 | H17: =+D17*(1+$B$3) -> 18.50615 | I17: =+H17*F17*$E$5 -> 107132.1024 | J17: =IF(OR(D17=0,H17=0),"",H17/D17-1) -> 0.0025 | M17: 15.54 | N17: 21 | O17: =F17 -> 482.4166667 | P17: =+O17*M17*$E$5 -> 89961.06 | Q17: =G17-P17 -> 16903.88
A18: 2 Can | B18: Garbage | C18: Weekly | D18: 31.02 | E18: 21 | F18: =SUMIFS('183 Tons'!$T:$T,'183 Tons'!$A:$A,$A18,'183 Tons'!$B:$B,"Regulated",'183 Tons'!$C:$C,$A$15)/12 -> 10.08333333 | G18: 3753.42 | H18: 31.09755 | I18: 3762.80355 | J18: 0.0025 | M18: 26.17 | N18: 21 | O18: 10.08333333 | P18: =+O18*M18*$E$5 -> 3166.57 | Q18: 586.85
A19: 3 Can | B19: Garbage | C19: Weekly | D19: 44.8 | E19: 21 | F19: =SUMIFS('183 Tons'!$T:$T,'183 Tons'!$A:$A,$A19,'183 Tons'!$B:$B,"Regulated",'183 Tons'!$C:$C,$A$15)/12 -> 2 | G19: =+F19*D19*$E$5 -> 1075.2 | H19: 44.912 | I19: 1077.888 | J19: 0.0025 | M19: 37.77 | N19: 21 | O19: 2 | P19: =+O19*M19*$E$5 -> 906.48 | Q19: 168.72
A20: 4 Can | B20: Garbage | C20: Weekly | D20: 59.85 | E20: 21 | F20: =SUMIFS('183 Tons'!$T:$T,'183 Tons'!$A:$A,$A20,'183 Tons'!$B:$B,"Regulated",'183 Tons'!$C:$C,$A$15)/12 -> 0 | G20: 0 | H20: 59.999625 | I20: 0 | J20: 0.0025 | M20: 50.51 | N20: 21 | O20: 0 | P20: =IFERROR(+O20*M20*$E$5,0) -> 0 | Q20: 0
A21: 5 Can | B21: Garbage | C21: Weekly | D21: 72.89 | E21: 21 | F21: =SUMIFS('183 Tons'!$T:$T,'183 Tons'!$A:$A,$A21,'183 Tons'!$B:$B,"Regulated",'183 Tons'!$C:$C,$A$15)/12 -> 0 | G21: 0 | H21: 73.072225 | I21: 0 | J21: 0.0025 | M21: 61.53 | N21: 21 | O21: 0 | P21: =IFERROR(+O21*M21*$E$5,0) -> 0 | Q21: 0
A22: 6 Can | B22: Garbage | C22: Weekly | D22: 0 | E22: 21 | F22: =SUMIFS('183 Tons'!$T:$T,'183 Tons'!$A:$A,$A22,'183 Tons'!$B:$B,"Regulated",'183 Tons'!$C:$C,$A$15)/12 -> 0 | G22: 0 | H22: 0 | I22: 0 | M22: 0 | N22: 21 | O22: 0 | P22: =IFERROR(+O22*M22*$E$5,0) -> 0 | Q22: 0
A23: 32 Gal Toter | B23: Garbage | C23: Weekly | D23: 18.46 | E23: 21 | F23: =SUMIFS('183 Tons'!$T:$T,'183 Tons'!$A:$A,$A23,'183 Tons'!$B:$B,"Regulated",'183 Tons'!$C:$C,$A$15)/12 -> 1146.833333 | G23: 254046.52 | H23: 18.50615 | I23: 254681.6363 | J23: 0.0025 | M23: 15.54 | N23: 21 | O23: 1146.833333 | P23: =+O23*M23*$E$5 -> 213861.48 | Q23: 40185.04
A24: 64 Gal Toter | B24: Garbage | C24: Weekly | D24: 27.55 | E24: 21 | F24: =SUMIFS('183 Tons'!$T:$T,'183 Tons'!$A:$A,$A24,'183 Tons'!$B:$B,"Regulated",'183 Tons'!$C:$C,$A$15)/12 -> 855 | G24: =+F24*D24*$E$5 -> 282663 | H24: 27.618875 | I24: 283369.6575 | J24: 0.0025 | M24: 23.23 | N24: 21 | O24: 855 | P24: 238339.8 | Q24: 44323.2
A25: 96 Gal Toter | B25: Garbage | C25: Weekly | D25: 38.85 | E25: 21 | F25: =SUMIFS('183 Tons'!$T:$T,'183 Tons'!$A:$A,$A25,'183 Tons'!$B:$B,"Regulated",'183 Tons'!$C:$C,$A$15)/12 -> 234.75 | G25: 109440.45 | H25: 38.947125 | I25: 109714.0511 | J25: 0.0025 | M25: 32.74 | N25: 21 | O25: 234.75 | P25: 92228.58 | Q25: 17211.87
A26: 1 Can Monthly | B26: Garbage | C26: Monthly | D26: 7.11 | E26: 21 | F26: =SUMIFS('183 Tons'!$T:$T,'183 Tons'!$A:$A,$A26,'183 Tons'!$B:$B,"Regulated",'183 Tons'!$C:$C,$A$15)/12 -> 45.5 | G26: =+F26*D26*$E$5 -> 3882.06 | H26: 7.127775 | I26: 3891.76515 | J26: 0.0025 | M26: 6.03 | N26: 21 | O26: 45.5 | P26: 3292.38 | Q26: 589.68
A27: Recycle 96 Gal Toter | B27: Recycle | C27: Every Other Week | D27: 8.77 | E27: 21 | F27: =SUMIFS('183 Tons'!$T:$T,'183 Tons'!$A:$A,$A27,'183 Tons'!$B:$B,"Regulated",'183 Tons'!$C:$C,$A$15)/12 -> 3946.083333 | G27: =+F27*D27*$E$5 -> 415285.81 | H27: =+D27*(1+$B$4) -> 8.791925 | I27: 416324.0245 | J27: 0.0025 | M27: =7.06-0.53 -> 6.53 | N27: 21 | O27: 3946.083333 | P27: 309215.09 | Q27: 106070.72
A28: Recycle Only | B28: Recycle | C28: Every Other Week | D28: 10.17 | E28: 21 | F28: =SUMIFS('183 Tons'!$T:$T,'183 Tons'!$A:$A,$A28,'183 Tons'!$B:$B,"Regulated",'183 Tons'!$C:$C,$A$15)/12 -> 2.5 | G28: =+F28*D28*$E$5 -> 305.1 | H28: =+D28*(1+$B$4) -> 10.195425 | I28: 305.86275 | J28: 0.0025 | M28: =8.19-0.53 -> 7.66 | N28: 21 | O28: 2.5 | P28: 229.8 | Q28: 75.3
A29: Yardwaste 96 Gal Toter | B29: Yardwaste | C29: Every Other Week | D29: 11.39 | E29: 21 | F29: =SUMIFS('183 Tons'!$T:$T,'183 Tons'!$A:$A,$A29,'183 Tons'!$B:$B,"Regulated",'183 Tons'!$C:$C,$A$15)/12 -> 2154 | G29: =+F29*D29*$E$5 -> 294408.72 | H29: =+D29*(1+$B$5) -> 14.06620727 | I29: 363583.3256 | J29: 0.2349611301 | M29: 9.99 | N29: 21 | O29: 2154 | P29: 258221.52 | Q29: 36187.2
A30: Yardwaste Only | B30: Yardwaste | C30: Every Other Week | D30: 12.55 | E30: 21 | F30: =SUMIFS('183 Tons'!$T:$T,'183 Tons'!$A:$A,$A30,'183 Tons'!$B:$B,"Regulated",'183 Tons'!$C:$C,$A$15)/12 -> 0 | G30: 0 | H30: =+D30*(1+$B$5) -> 15.49876218 | I30: 0 | J30: 0.2349611301 | M30: 11 | N30: 21 | O30: 0 | P30: 0 | Q30: 0
Q31: 0
A32: 20 Gallon Can Rental | B32: Container Rental | C32: Monthly | D32: 0.51 | E32: 21 | F32: =SUM('Revenue Lookup'!E111:F111,'Revenue Lookup'!E118:F118)/E5/D32 -> 281.7124183 | G32: =+F32*D32*$E$5 -> 1724.08 | H32: =+D32*(1+$B$3) -> 0.511275 | I32: =+H32*F32*$E$5 -> 1728.3902 | J32: =IF(OR(D32=0,H32=0),"",H32/D32-1) -> 0.0025 | M32: 0.44 | N32: 21 | O32: 281.7124183 | P32: =IFERROR(+O32*M32*$E$5,0) -> 1487.441569 | Q32: 236.6384314
A33: 1 Can Rental | B33: Container Rental | C33: Monthly | D33: 0.64 | E33: 21 | F33: =SUM('Revenue Lookup'!E119:F119)/$E$5/D33 -> 41.29296875 | G33: 317.13 | H33: =+D33*(1+$B$3) -> 0.6416 | I33: 317.922825 | J33: 0.0025 | M33: 0.55 | N33: 21 | O33: 41.29296875 | P33: =+O33*M33*$E$5 -> 272.5335938 | Q33: 44.59640625
A34: 2 Can Rental | B34: Container Rental | C34: Monthly | D34: 1.28 | E34: 21 | F34: =SUM('Revenue Lookup'!E120:F120)/$E$5/D34 -> 0 | G34: 0 | H34: =+D34*(1+$B$3) -> 1.2832 | I34: 0 | J34: 0.0025 | M34: 1.11 | N34: 21 | O34: 0 | P34: =+O34*M34*$E$5 -> 0 | Q34: =G34-P34 -> 0
A35: 3 Can Rental | B35: Container Rental | C35: Monthly | D35: 1.92 | E35: 21 | F35: =SUM('Revenue Lookup'!E121:F121)/$E$5/D35 -> 0 | G35: 0 | H35: 1.9248 | I35: 0 | J35: 0.0025 | M35: 1.66 | N35: 21 | O35: 0 | P35: =+O35*M35*$E$5 -> 0 | Q35: =G35-P35 -> 0
A36: 4 Can Rental | B36: Container Rental | C36: Monthly | D36: 2.56 | E36: 21 | F36: =SUM('Revenue Lookup'!E122:F122)/$E$5/D36 -> 0 | G36: 0 | H36: 2.5664 | I36: 0 | J36: 0.0025 | M36: 2.22 | N36: 21 | O36: 0 | P36: =+O36*M36*$E$5 -> 0 | Q36: =G36-P36 -> 0
A37: 5 Can Rental | B37: Container Rental | C37: Monthly | D37: 3.2 | E37: 21 | F37: =SUM('Revenue Lookup'!E123:F123)/$E$5/D37 -> 0 | G37: 0 | H37: 3.208 | I37: 0 | J37: 0.0025 | M37: 2.77 | N37: 21 | O37: 0 | P37: 0 | Q37: 0
A38: 6 Can Rental | B38: Container Rental | C38: Monthly | D38: 3.84 | E38: 21 | G38: 0 | H38: 3.8496 | I38: 0 | J38: 0.0025 | M38: 0 | N38: 21 | O38: 0 | P38: 0 | Q38: 0
A39: 32 Gal Toter Rental | B39: Container Rental | C39: Monthly | D39: 1.29 | E39: 21 | F39: =+SUM('Revenue Lookup'!E112:F112)/E5/D39 -> 1398.195736 | G39: 21644.07 | H39: 1.293225 | I39: 21698.18018 | J39: 0.0025 | M39: 1.11 | N39: 21 | O39: 1398.195736 | P39: 18623.96721 | Q39: 3020.102791
A40: 64 Gal Toter Rental | B40: Container Rental | C40: Monthly | D40: 1.93 | E40: 21 | F40: =SUM('Revenue Lookup'!E114:F114)/E5/D40 -> 1005.414076 | G40: 23285.39 | H40: 1.934825 | I40: 23343.60347 | J40: 0.0025 | M40: 1.66 | N40: 21 | O40: 1005.414076 | P40: 20027.84839 | Q40: 3257.541606
A41: 96 Gal Toter Rental | B41: Container Rental | C41: Monthly | D41: 1.93 | E41: 21 | F41: =SUM('Revenue Lookup'!E115:F115)/E5/D41 -> 248.5764249 | G41: 5757.03 | H41: 1.934825 | I41: 5771.422575 | J41: 0.0025 | M41: 1.66 | N41: 21 | O41: 248.5764249 | P41: 4951.642383 | Q41: 805.3876166
A42: 1 Can Rental | B42: Container Rental | C42: Monthly | D42: 0.64 | E42: 21 | G42: 0 | H42: 0.6416 | I42: 0 | J42: 0.0025 | M42: 0.55 | N42: 21 | O42: 0 | P42: 0 | Q42: 0
A43: Yardwaste Only Rental | B43: Container Rental | C43: Monthly | D43: 1.72 | E43: 21 | F43: =SUM('Revenue Lookup'!E155:F159)/E5/D43 -> 2311.399709 | G43: 47707.29 | H43: =+D43*(1+$B$5) -> 2.124133144 | I43: 58916.64877 | J43: 0.2349611301 | M43: 1.51 | N43: 21 | O43: 2311.399709 | P43: 41882.56273 | Q43: 5824.727267
A45: 32 Gal Can | B45: Extra | C45: Per Pickup | D45: 4.55 | E45: 22 | H45: =+D45*(1+$B$3) -> 4.561375 | J45: =IF(OR(D45=0,H45=0),"",H45/D45-1) -> 0.0025 | M45: 3.83 | N45: 22 | O45: 0 | P45: 0 | Q45: 0
A46: Bag | B46: Extra | C46: Per Pickup | D46: 4.55 | E46: 22 | H46: =+D46*(1+$B$3) -> 4.561375 | J46: =IF(OR(D46=0,H46=0),"",H46/D46-1) -> 0.0025 | M46: 3.83 | N46: 22 | O46: 0 | P46: 0 | Q46: 0
A48: Appendix B
A49: 20 Gallon Can | B49: Garbage | C49: Weekly | D49: 12.74 | E49: 25 | F49: =SUMIFS('183 Tons'!$T:$T,'183 Tons'!$A:$A,$A49,'183 Tons'!$B:$B,"Regulated",'183 Tons'!$C:$C,$A$48)/12 -> 240.75 | G49: =+F49*D49*$E$5 -> 36805.86 | H49: =+D49*(1+$B$3) -> 12.77185 | I49: =+H49*F49*$E$5 -> 36897.87465 | J49: =IF(OR(D49=0,H49=0),"",H49/D49-1) -> 0.0025 | K49: =ROUND(H49,2) -> 12.77 | M49: 10.78 | N49: 25 | O49: =F49 -> 240.75 | P49: =+O49*M49*$E$5 -> 31143.42 | Q49: =G49-P49 -> 5662.44
A50: 1 Can | B50: Garbage | C50: Weekly | D50: 18.46 | E50: 25 | F50: =SUMIFS('183 Tons'!$T:$T,'183 Tons'!$A:$A,$A50,'183 Tons'!$B:$B,"Regulated",'183 Tons'!$C:$C,$A$48)/12 -> 653.9166667 | G50: 144855.62 | H50: 18.50615 | I50: 145217.759 | J50: 0.0025 | K50: =ROUND(H50,2) -> 18.51 | M50: 15.54 | N50: 25 | O50: 653.9166667 | P50: 121942.38 | Q50: 22913.24
A51: 2 Can | B51: Garbage | C51: Weekly | D51: 31.02 | E51: 25 | F51: =SUMIFS('183 Tons'!$T:$T,'183 Tons'!$A:$A,$A51,'183 Tons'!$B:$B,"Regulated",'183 Tons'!$C:$C,$A$48)/12 -> 44.25 | G51: 16471.62 | H51: 31.09755 | I51: 16512.79905 | J51: 0.0025 | K51: 31.1 | M51: 26.17 | N51: 25 | O51: 44.25 | P51: 13896.27 | Q51: 2575.35
A52: 3 Can | B52: Garbage | C52: Weekly | D52: 44.8 | E52: 25 | F52: =SUMIFS('183 Tons'!$T:$T,'183 Tons'!$A:$A,$A52,'183 Tons'!$B:$B,"Regulated",'183 Tons'!$C:$C,$A$48)/12 -> 1 | G52: 537.6 | H52: 44.912 | I52: 538.944 | J52: 0.0025 | K52: 44.91 | M52: 37.77 | N52: 25 | O52: 1 | P52: 453.24 | Q52: 84.36
A53: 4 Can | B53: Garbage | C53: Weekly | D53: 59.85 | E53: 25 | F53: =SUMIFS('183 Tons'!$T:$T,'183 Tons'!$A:$A,$A53,'183 Tons'!$B:$B,"Regulated",'183 Tons'!$C:$C,$A$48)/12 -> 0 | G53: 0 | H53: 59.999625 | I53: 0 | J53: 0.0025 | K53: 60 | M53: 50.51 | N53: 25 | O53: 0 | P53: 0 | Q53: 0
A54: 5 Can | B54: Garbage | C54: Weekly | D54: 72.89 | E54: 25 | F54: =SUMIFS('183 Tons'!$T:$T,'183 Tons'!$A:$A,$A54,'183 Tons'!$B:$B,"Regulated",'183 Tons'!$C:$C,$A$48)/12 -> 0 | G54: 0 | H54: 73.072225 | I54: 0 | J54: 0.0025 | K54: 73.07 | M54: 61.53 | N54: 25 | O54: 0 | P54: 0 | Q54: 0
A55: 6 Can | B55: Garbage | C55: Weekly | D55: 0 | E55: 25 | F55: =SUMIFS('183 Tons'!$T:$T,'183 Tons'!$A:$A,$A55,'183 Tons'!$B:$B,"Regulated",'183 Tons'!$C:$C,$A$48)/12 -> 0 | G55: 0 | H55: 0 | I55: 0 | K55: 0 | M55: 0 | N55: 25 | O55: 0 | P55: 0 | Q55: 0
A56: 32 Gal Toter | B56: Garbage | C56: Weekly | D56: 18.46 | E56: 25 | F56: =SUMIFS('183 Tons'!$T:$T,'183 Tons'!$A:$A,$A56,'183 Tons'!$B:$B,"Regulated",'183 Tons'!$C:$C,$A$48)/12 -> 526.5 | G56: 116630.28 | H56: 18.50615 | I56: 116921.8557 | J56: 0.0025 | K56: 18.51 | M56: 15.54 | N56: 25 | O56: 526.5 | P56: 98181.72 | Q56: 18448.56
A57: 64 Gal Toter | B57: Garbage | C57: Weekly | D57: 27.55 | E57: 25 | F57: =SUMIFS('183 Tons'!$T:$T,'183 Tons'!$A:$A,$A57,'183 Tons'!$B:$B,"Regulated",'183 Tons'!$C:$C,$A$48)/12 -> 347 | G57: 114718.2 | H57: 27.618875 | I57: 115004.9955 | J57: 0.0025 | K57: 27.62 | M57: 23.23 | N57: 25 | O57: 347 | P57: 96729.72 | Q57: 17988.48
A58: 96 Gal Toter | B58: Garbage | C58: Weekly | D58: 38.85 | E58: 25 | F58: =SUMIFS('183 Tons'!$T:$T,'183 Tons'!$A:$A,$A58,'183 Tons'!$B:$B,"Regulated",'183 Tons'!$C:$C,$A$48)/12 -> 58.16666667 | G58: 27117.3 | H58: 38.947125 | I58: 27185.09325 | J58: 0.0025 | K58: 38.95 | M58: 32.74 | N58: 25 | O58: 58.16666667 | P58: 22852.52 | Q58: 4264.78
A59: 1 Can Monthly | B59: Garbage | C59: Monthly | D59: 7.11 | E59: 25 | F59: =SUMIFS('183 Tons'!$T:$T,'183 Tons'!$A:$A,$A59,'183 Tons'!$B:$B,"Regulated",'183 Tons'!$C:$C,$A$48)/12 -> 30.5 | G59: 2602.26 | H59: 7.127775 | I59: 2608.76565 | J59: 0.0025 | K59: 7.13 | M59: 6.03 | N59: 25 | O59: 30.5 | P59: 2206.98 | Q59: 395.28
A60: Recycle 96 Gal Toter | B60: Recycle | C60: Every Other Week | D60: 8.77 | E60: 25 | F60: =SUMIFS('183 Tons'!$T:$T,'183 Tons'!$A:$A,$A60,'183 Tons'!$B:$B,"Regulated",'183 Tons'!$C:$C,$A$48)/12 -> 1915.5 | G60: 201587.22 | H60: =+D60*(1+$B$4) -> 8.791925 | I60: =+H60*F60*$E$5 -> 202091.188 | J60: 0.0025 | K60: 8.79 | M60: =7.06-0.53 -> 6.53 | N60: 25 | O60: 1915.5 | P60: 150098.58 | Q60: 51488.64
A61: Recycle Only | B61: Recycle | C61: Every Other Week | D61: 10.17 | E61: 25 | F61: =SUMIFS('183 Tons'!$T:$T,'183 Tons'!$A:$A,$A61,'183 Tons'!$B:$B,"Regulated",'183 Tons'!$C:$C,$A$48)/12 -> 0 | G61: 0 | H61: =+D61*(1+$B$4) -> 10.195425 | I61: 0 | J61: 0.0025 | K61: 10.2 | M61: =8.19-0.53 -> 7.66 | N61: 25 | O61: 0 | P61: 0 | Q61: 0
A62: Yardwaste 64 Gal Toter | B62: Yardwaste | C62: Every Other Week | D62: 14.13 | E62: 25 | F62: =SUMIFS('183 Tons'!$T:$T,'183 Tons'!$A:$A,$A62,'183 Tons'!$B:$B,"Regulated",'183 Tons'!$C:$C,$A$48)/12 -> 0 | G62: 0 | H62: =+D62*(1+$B$5) -> 17.45000077 | I62: 0 | J62: 0.2349611301 | K62: 17.45 | M62: 12.39 | N62: 25 | O62: 0 | P62: 0 | Q62: 0
A63: Yardwaste 96 Gal Toter | B63: Yardwaste | C63: Every Other Week | D63: 15.8 | E63: 25 | F63: =SUMIFS('183 Tons'!$T:$T,'183 Tons'!$A:$A,$A63,'183 Tons'!$B:$B,"Regulated",'183 Tons'!$C:$C,$A$48)/12 -> 1227.083333 | G63: 232655 | H63: =+D63*(1+$B$5) -> 19.51238586 | I63: 287319.8817 | J63: 0.2349611301 | K63: 19.51 | M63: 13.85 | N63: 25 | O63: 1227.083333 | P63: 203941.25 | Q63: 28713.75
A64: Yardwaste Only (64 Gal) | B64: Yardwaste | C64: Every Other Week | D64: 15.28 | E64: 25 | F64: =SUMIFS('183 Tons'!$T:$T,'183 Tons'!$A:$A,$A64,'183 Tons'!$B:$B,"Regulated",'183 Tons'!$C:$C,$A$48)/12 -> 0 | G64: 0 | H64: =+D64*(1+$B$5) -> 18.87020607 | I64: 0 | J64: 0.2349611301 | K64: 18.87 | M64: 13.4 | N64: 25 | O64: 0 | P64: 0 | Q64: 0
A65: Yardwaste Only (96 Gal) | B65: Yardwaste | C65: Every Other Week | D65: 16.95 | E65: 25 | F65: =SUMIFS('183 Tons'!$T:$T,'183 Tons'!$A:$A,$A65,'183 Tons'!$B:$B,"Regulated",'183 Tons'!$C:$C,$A$48)/12 -> 0 | G65: 0 | H65: =+D65*(1+$B$5) -> 20.93259115 | I65: 0 | J65: 0.2349611301 | K65: 20.93 | M65: 14.86 | N65: 25 | O65: 0 | P65: 0 | Q65: 0
A67: 20 Gallon Can Rental | B67: Container Rental | C67: Monthly | D67: 0.51 | E67: 25 | G67: =+F67*D67*$E$5 -> 0 | H67: =+D67*(1+$B$3) -> 0.511275 | I67: =+H67*F67*$E$5 -> 0 | J67: =IF(OR(D67=0,H67=0),"",H67/D67-1) -> 0.0025 | K67: 0.51 | M67: 0.44 | N67: 25 | O67: =F67 -> 0 | P67: 0 | Q67: 0
A68: 1 Can Rental | B68: Container Rental | C68: Monthly | D68: 0.64 | E68: 25 | G68: 0 | H68: 0.6416 | I68: 0 | J68: 0.0025 | K68: 0.64 | M68: 0.55 | N68: 25 | O68: 0 | P68: 0 | Q68: 0
A69: 2 Can Rental | B69: Container Rental | C69: Monthly | D69: 1.29 | E69: 25 | G69: 0 | H69: 1.293225 | I69: 0 | J69: 0.0025 | K69: 1.29 | M69: 1.11 | N69: 25 | O69: 0 | P69: 0 | Q69: 0
A70: 3 Can Rental | B70: Container Rental | C70: Monthly | D70: 1.93 | E70: 25 | G70: 0 | H70: 1.934825 | I70: 0 | J70: 0.0025 | K70: 1.93 | M70: 1.66 | N70: 25 | O70: 0 | P70: 0 | Q70: 0
A71: 4 Can Rental | B71: Container Rental | C71: Monthly | D71: 2.58 | E71: 25 | G71: 0 | H71: 2.58645 | I71: 0 | J71: 0.0025 | K71: 2.59 | M71: 2.22 | N71: 25 | O71: 0 | P71: 0 | Q71: 0
A72: 5 Can Rental | B72: Container Rental | C72: Monthly | D72: 3.22 | E72: 25 | G72: 0 | H72: 3.22805 | I72: 0 | J72: 0.0025 | K72: 3.23 | M72: 2.77 | N72: 25 | O72: 0 | P72: 0 | Q72: 0
A73: 6 Can Rental | B73: Container Rental | C73: Monthly | D73: 0 | E73: 25 | G73: 0 | H73: 0 | I73: 0 | K73: 0 | M73: 0 | N73: 25 | O73: 0 | P73: 0 | Q73: 0
A74: 32 Gal Toter Rental | B74: Container Rental | C74: Monthly | D74: 1.29 | E74: 25 | G74: 0 | H74: 1.293225 | I74: 0 | J74: 0.0025 | K74: 1.29 | M74: 1.11 | N74: 25 | O74: 0 | P74: 0 | Q74: 0
A75: 64 Gal Toter Rental | B75: Container Rental | C75: Monthly | D75: 1.93 | E75: 25 | G75: 0 | H75: 1.934825 | I75: 0 | J75: 0.0025 | K75: 1.93 | M75: 1.66 | N75: 25 | O75: 0 | P75: 0 | Q75: 0
A76: 96 Gal Toter Rental | B76: Container Rental | C76: Monthly | D76: 1.93 | E76: 25 | G76: 0 | H76: 1.934825 | I76: 0 | J76: 0.0025 | K76: 1.93 | M76: 1.66 | N76: 25 | O76: 0 | P76: 0 | Q76: 0
A77: 1 Can Rental | B77: Container Rental | C77: Monthly | D77: 0.64 | E77: 25 | G77: 0 | H77: 0.6416 | I77: 0 | J77: 0.0025 | K77: 0.64 | M77: 0.55 | N77: 25 | O77: 0 | P77: 0 | Q77: 0
A78: Yardwaste Only Rental | B78: Container Rental | C78: Monthly | D78: 1.72 | E78: 25 | G78: 0 | H78: =+D78*(1+$B$5) -> 2.124133144 | I78: 0 | J78: 0.2349611301 | K78: 2.12 | M78: 1.51 | N78: 25 | O78: 0 | P78: 0 | Q78: 0
P79: 0 | Q79: 0
A80: 32 Gal Can | B80: Extra | C80: Per Pickup | D80: 3.63 | E80: 26 | H80: =+D80*(1+$B$3) -> 3.639075 | J80: =IF(OR(D80=0,H80=0),"",H80/D80-1) -> 0.0025 | M80: 3.12 | N80: 26 | P80: 0 | Q80: 0
A81: Bag | B81: Extra | C81: Per Pickup | D81: 3.63 | E81: 26 | H81: =+D81*(1+$B$3) -> 3.639075 | J81: =IF(OR(D81=0,H81=0),"",H81/D81-1) -> 0.0025 | M81: 3.12 | N81: 26 | P81: 0 | Q81: 0
A83: City of Normandy Park | B83: Months | C83: 7
A84: 10 Gallon Can | B84: Garbage | C84: Weekly | D84: 6.550287972 | E84: 23 | G84: =+F84*D84*$E$5 -> 0 | H84: =+D84*(1+$B$3) -> 6.566663692 | I84: =+H84*F84*$E$5 -> 0 | J84: =IF(OR(D84=0,H84=0),"",H84/D84-1) -> 0.0025 | N84: 25 | O84: =F84 -> 0 | P84: =+O84*M84*$E$5 -> 0 | Q84: =G84-P84 -> 0
A85: 20 Gallon Can | B85: Garbage | C85: Weekly | D85: 8.342018607 | E85: 23 | G85: =+F85*D85*$E$5 -> 0 | H85: =+D85*(1+$B$3) -> 8.362873653 | I85: =+H85*F85*$E$5 -> 0 | J85: =IF(OR(D85=0,H85=0),"",H85/D85-1) -> 0.0025 | N85: 25 | O85: =F85 -> 0 | P85: =+O85*M85*$E$5 -> 0 | Q85: =G85-P85 -> 0
A86: 1 Can | B86: Garbage | C86: Weekly | D86: 11.75096066 | E86: 23 | G86: 0 | H86: 11.78033806 | I86: 0 | J86: 0.0025 | N86: 25 | O86: 0 | P86: 0 | Q86: =G86-P86 -> 0
A87: 2 Can | B87: Garbage | C87: Weekly | D87: 19.51124854 | E87: 23 | G87: 0 | H87: 19.56002666 | I87: 0 | J87: 0.0025 | N87: 25 | O87: 0 | P87: 0 | Q87: 0
A88: 3 Can | B88: Garbage | C88: Weekly | D88: 27.95797868 | E88: 23 | G88: 0 | H88: 28.02787363 | I88: 0 | J88: 0.0025 | N88: 25 | O88: 0 | P88: 0 | Q88: 0
A89: 4 Can | B89: Garbage | C89: Weekly | D89: 37.50999719 | E89: 23 | G89: 0 | H89: 37.60377219 | I89: 0 | J89: 0.0025 | N89: 25 | O89: 0 | P89: 0 | Q89: 0
A90: 5 Can | B90: Garbage | C90: Weekly | D90: 45.56115044 | E90: 23 | G90: 0 | H90: 45.67505332 | I90: 0 | J90: 0.0025 | N90: 25 | O90: 0 | P90: 0 | Q90: 0
A91: 6 Can | B91: Garbage | C91: Weekly | D91: 54.29874594 | E91: 23 | G91: 0 | H91: 54.4344928 | I91: 0 | J91: 0.0025 | N91: 25 | O91: 0 | P91: 0 | Q91: 0
A92: 32 Gal Toter | B92: Garbage | C92: Weekly | D92: 11.75096066 | E92: 23 | G92: 0 | H92: 11.78033806 | I92: 0 | J92: 0.0025 | N92: 25 | O92: 0 | P92: 0 | Q92: 0
A93: 64 Gal Toter | B93: Garbage | C93: Weekly | D93: 17.00980642 | E93: 23 | G93: 0 | H93: 17.05233094 | I93: 0 | J93: 0.0025 | N93: 25 | O93: 0 | P93: 0 | Q93: 0
A94: 96 Gal Toter | B94: Garbage | C94: Weekly | D94: 23.71134438 | E94: 23 | G94: 0 | H94: 23.77062274 | I94: 0 | J94: 0.0025 | N94: 25 | O94: 0 | P94: 0 | Q94: 0
A95: 1 Can Monthly | B95: Garbage | C95: Monthly | D95: 4.863268867 | E95: 23 | G95: 0 | H95: 4.875427039 | I95: 0 | J95: 0.0025 | N95: 25 | O95: 0 | P95: 0 | Q95: 0
A96: Recycle 96 Gal Toter | B96: Recycle | C96: Every Other Week | D96: 8.767156726 | E96: 23 | G96: 0 | H96: =+D96*(1+$B$4) -> 8.789074618 | I96: 0 | J96: 0.0025 | N96: 25 | O96: 0 | P96: 0 | Q96: 0
A97: Recycle Only | B97: Recycle | C97: Every Other Week | D97: 10.17039852 | E97: 23 | G97: 0 | H97: =+D97*(1+$B$4) -> 10.19582452 | I97: 0 | J97: 0.0025 | N97: 25 | O97: 0 | P97: 0 | Q97: 0
A98: Yardwaste 64 Gal Toter | B98: Yardwaste | C98: Every Other Week | D98: 14.13194702 | E98: 23 | G98: 0 | H98: =+D98*(1+$B$5) -> 17.45240526 | I98: 0 | J98: 0.2349611301 | N98: 25 | O98: 0 | P98: 0 | Q98: 0
A99: Yardwaste 96 Gal Toter | B99: Yardwaste | C99: Every Other Week | D99: 15.79721277 | E99: 23 | G99: =+F99*D99*$E$5 -> 0 | H99: =+D99*(1+$B$5) -> 19.50894373 | I99: 0 | J99: =IF(OR(D99=0,H99=0),"",H99/D99-1) -> 0.2349611301 | N99: 25 | O99: 0 | P99: 0 | Q99: =G99-P99 -> 0
A100: Yardwaste Only (64 Gal) | B100: Yardwaste | C100: Every Other Week | D100: 15.28394593 | E100: 23 | G100: =+F100*D100*$E$5 -> 0 | H100: =+D100*(1+$B$5) -> 18.87507914 | I100: 0 | J100: =IF(OR(D100=0,H100=0),"",H100/D100-1) -> 0.2349611301 | N100: 25 | O100: 0 | P100: 0 | Q100: 0
A101: Yardwaste Only (96 Gal) | B101: Yardwaste | C101: Every Other Week | D101: 16.94921168 | E101: 23 | G101: 0 | H101: =+D101*(1+$B$5) -> 20.93161761 | I101: 0 | J101: 0.2349611301 | N101: 25 | O101: 0 | P101: 0 | Q101: 0
A103: 10 Gallon Can Rental | B103: Container Rental | C103: Monthly | D103: 0.407211508 | E103: 23 | G103: =+F103*D103*$E$5 -> 0 | H103: =+D103*(1+$B$3) -> 0.4082295368 | I103: =+H103*F103*$E$5 -> 0 | J103: =IF(OR(D103=0,H103=0),"",H103/D103-1) -> 0.0025 | Q103: =SUM(Q16:Q101) -> 433978.2141 | R103: PF Adj
A104: 20 Gallon Can Rental | B104: Container Rental | C104: Monthly | D104: 0.4653845806 | E104: 23 | G104: =+F104*D104*$E$5 -> 0 | H104: =+D104*(1+$B$3) -> 0.466548042 | I104: =+H104*F104*$E$5 -> 0 | J104: 0.0025
A105: 1 Can Rental | B105: Container Rental | C105: Monthly | D105: 0.5817307257 | E105: 23 | G105: 0 | H105: 0.5831850525 | I105: 0 | J105: 0.0025
A106: 2 Can Rental | B106: Container Rental | C106: Monthly | D106: 1.163461451 | E106: 23 | G106: 0 | H106: 1.166370105 | I106: 0 | J106: 0.0025
A107: 3 Can Rental | B107: Container Rental | C107: Monthly | D107: 1.745192177 | E107: 23 | G107: 0 | H107: 1.749555158 | I107: 0 | J107: 0.0025
A108: 4 Can Rental | B108: Container Rental | C108: Monthly | D108: 2.326922903 | E108: 23 | G108: 0 | H108: 2.33274021 | I108: 0 | J108: 0.0025
A109: 5 Can Rental | B109: Container Rental | C109: Monthly | D109: 2.908653629 | E109: 23 | G109: 0 | H109: 2.915925263 | I109: 0 | J109: 0.0025
A110: 6 Can Rental | B110: Container Rental | C110: Monthly | D110: 3.490384354 | E110: 23 | G110: 0 | H110: 3.499110315 | I110: 0 | J110: 0.0025
A111: 32 Gal Toter Rental | B111: Container Rental | C111: Monthly | D111: 1.163461451 | E111: 23 | G111: 0 | H111: 1.166370105 | I111: 0 | J111: 0.0025
A112: 64 Gal Toter Rental | B112: Container Rental | C112: Monthly | D112: 1.745192177 | E112: 23 | G112: 0 | H112: 1.749555158 | I112: 0 | J112: 0.0025
A113: 96 Gal Toter Rental | B113: Container Rental | C113: Monthly | D113: 1.745192177 | E113: 23 | G113: 0 | H113: 1.749555158 | I113: 0 | J113: 0.0025
A114: 1 Can Rental | B114: Container Rental | C114: Monthly | D114: 0.5817307257 | E114: 23 | G114: 0 | H114: 0.5831850525 | I114: 0 | J114: 0.0025
A115: Yardwaste Only Rental | B115: Container Rental | C115: Monthly | D115: 0 | G115: 0 | H115: =+D115*(1+$B$5) -> 0 | I115: 0
A117: 32 Gal Can | B117: Extra | C117: Per Pickup | D117: 3.83942279 | E117: 24 | H117: =+D117*(1+$B$3) -> 3.849021347 | J117: =IF(OR(D117=0,H117=0),"",H117/D117-1) -> 0.0025
A118: Bag | B118: Extra | C118: Per Pickup | D118: 3.83942279 | E118: 24 | H118: =+D118*(1+$B$3) -> 3.849021347 | J118: =IF(OR(D118=0,H118=0),"",H118/D118-1) -> 0.0025
A121: 10 Gal Can | B121: Garbage | C121: Weekly | G121: =+F121*D121*$E$5 -> 0 | H121: =+D121*(1+$B$3) -> 0 | I121: =+H121*F121*$E$5 -> 0 | J121: =IF(OR(D121=0,H121=0),"",H121/D121-1) -> 
A122: 20 Gal Can | B122: Garbage | C122: Weekly | G122: 0 | H122: 0 | I122: 0
A123: 1 Can | B123: Garbage | C123: Weekly | G123: 0 | H123: 0 | I123: 0
A124: 2 Can | B124: Garbage | C124: Weekly | G124: 0 | H124: 0 | I124: 0
A125: 3 Can | B125: Garbage | C125: Weekly | G125: 0 | H125: 0 | I125: 0
A126: 4 Can | B126: Garbage | C126: Weekly | G126: 0 | H126: 0 | I126: 0
A127: 5 Can | B127: Garbage | C127: Weekly | G127: 0 | H127: 0 | I127: 0
A128: 6 Can | B128: Garbage | C128: Weekly | G128: 0 | H128: 0 | I128: 0
A129: 32 Gal Toter | B129: Garbage | C129: Weekly | G129: 0 | H129: 0 | I129: 0
A130: 64 Gal Toter | B130: Garbage | C130: Weekly | G130: 0 | H130: 0 | I130: 0
A131: 96 Gal Toter | B131: Garbage | C131: Weekly | G131: 0 | H131: 0 | I131: 0
A132: 1 Can Monthly | B132: Garbage | C132: Monthly | G132: 0 | H132: 0 | I132: 0
A134: 10 Gal Can Rental | B134: Container Rental | C134: Monthly | G134: =+F134*D134*$E$5 -> 0 | H134: =+D134*(1+$B$3) -> 0 | I134: =+H134*F134*$E$5 -> 0 | J134: =IF(OR(D134=0,H134=0),"",H134/D134-1) -> 
A135: 20 Gal Can Rental | B135: Container Rental | C135: Monthly | G135: 0 | H135: 0 | I135: 0
A136: 1 Can Rental | B136: Container Rental | C136: Monthly | G136: 0 | H136: 0 | I136: 0
A137: 2 Can Rental | B137: Container Rental | C137: Monthly | G137: 0 | H137: 0 | I137: 0
A138: 3 Can Rental | B138: Container Rental | C138: Monthly | G138: 0 | H138: 0 | I138: 0
A139: 4 Can Rental | B139: Container Rental | C139: Monthly | G139: 0 | H139: 0 | I139: 0
A140: 5 Can Rental | B140: Container Rental | C140: Monthly | G140: 0 | H140: 0 | I140: 0
A141: 6 Can Rental | B141: Container Rental | C141: Monthly | G141: 0 | H141: 0 | I141: 0
A142: 32 Gal Toter Rental | B142: Container Rental | C142: Monthly | G142: 0 | H142: 0 | I142: 0
A143: 64 Gal Toter Rental | B143: Container Rental | C143: Monthly | G143: 0 | H143: 0 | I143: 0
A144: 96 Gal Toter Rental | B144: Container Rental | C144: Monthly | G144: 0 | H144: 0 | I144: 0
A145: 1 Can Rental | B145: Container Rental | C145: Monthly | G145: 0 | H145: 0 | I145: 0
A147: 32 Gal Can | B147: Extra | C147: Per Pickup | H147: =+D147*(1+$B$3) -> 0 | J147: =IF(OR(D147=0,H147=0),"",H147/D147-1) -> 
A148: Bag | B148: Extra | C148: Per Pickup | H148: =+D148*(1+$B$3) -> 0 | J148: =IF(OR(D148=0,H148=0),"",H148/D148-1) -> 

Sheet Comm (+MF) Price Out
A1: Commercial & Multi-Family Price Out | H1: =+'Resi Price Out'!D1 -> Constants
H2: =+'Resi Price Out'!D2 -> Weekly | I2: =+'Resi Price Out'!E2 -> 4.333
A3: LG Calculation % Price Increases | H3: =+'Resi Price Out'!D3 -> Every Other Week | I3: =+'Resi Price Out'!E3 -> 2.1665
A4: Garbage | F4: ='Resi Price Out'!B3 -> 0.0025 | H4: =+'Resi Price Out'!D4 -> Monthly | I4: =+'Resi Price Out'!E4 -> 1 | O4: Revenue
A5: Multi-Family Recycling | F5: 0.0025 | H5: =+'Resi Price Out'!D5 -> Months / Yr | I5: =+'Resi Price Out'!E5 -> 12 | N5: Sub-LOB | O5: Current | P5: Proposed | R5: Diiference
A6: Prior MF RCY Rate | F6: 2.842284401 | G6: Per Yard | N6: Garbage Svc | O6: =SUM(L19:L51,L72:L79,L100:L111,L116:L157,L163:L199,L221:L227,L249:L289)-O8 -> 344055.2631 | P6: =SUM(O19:O51,O72:O79,O100:O111,O116:O157,O163:O199,O221:O227,O249:O289)-P8 -> 335981.0204 | R6: =P6-O6 -> -8074.24268
A7: Current MF RCY Rate | F7: 4.318291721 | G7: Per Yard | N7: MSW Cont | O7: =SUM(L52:L62,L64:L71,L80:L95,L200:L219,L229:L245)-O9 -> 13690.74 | P7: =SUM(O52:O62,O64:O71,O80:O95,O200:O219,O229:O245)-P9 -> 13724.96685 | R7: =P7-O7 -> 34.22685
A8: Total Revenue from Proforma | L8: =+#REF! ->  | N8: MF RCY Scv | O8: =SUM(R163:R174,R176:R186,R188:R198,R221:R227,R249:R254,R256:R261,R263:R268,R270:R275,R277:R282,R284:R289) -> 17287.78234 | P8: =SUM(S163:S174,S176:S186,S188:S198,S221:S227,S249:S254,S256:S261,S263:S268,S270:S275,S277:S282,S284:S289) -> 26265.38264 | R8: 8977.600293
A9: % Variance | K9: =L10-L8 ->  | L9: =+L8/L10-1 ->  | N9: MF RCY Cont | O9: =SUM(R200:R210,R229:R235,R237:R243) -> 0 | P9: =SUM(S200:S210,S229:S235,S237:S243) -> 0 | R9: =P9-O9 -> 0
A10: Total Price Out Revenue | L10: =SUM(L14:L290) -> 375033.7855 | R10: =SUM(R6:R9) -> 937.5844637
R11: Multifamily Recycling
H12: Tariff | K12: Monthly | L12: Annual | M12: Annual | N12: Proposed | O12: Proposed | P12: Proposed | R12: Currnet | S12: Proposed
A13: Container Service | B13: Cont Type | C13: Compactor? | D13: On Call | E13: Perm / Temp? | F13: Compaction Rate | G13: Current Rate | H13: Page # | I13: Yards | J13: Containers | K13: Pickups | L13: Revenue | M13: Yards | N13: Rates | O13: Ann'l Rev | P13: % Rate Inc. | R13: Annual Revenue | S13: =+R13 -> Annual Revenue
A15: Item# 240 Container Service
A16: Company Owned Container
A17: Non Compacted Material
A18: Permanent Service
A19: 32 Gallon First Pickup | B19: CA | C19: N | D19: =">0" -> >0 | E19: P | F19: 1 | G19: 5.35 | H19: 45 | I19: =LEFT(A19,2)/100/2 -> 0.16 | K19: =SUMIFS('Com Lifts'!$B:$B,'Com Lifts'!$C:$C,$B19,'Com Lifts'!$D:$D,$I19,'Com Lifts'!$E:$E,$C19,'Com Lifts'!$I:$I,$D19,'Com Lifts'!$L:$L,$E19) -> 4.333 | L19: =G19*K19*$I$5 -> 278.1786 | M19: =F19*SUMIFS('Com Lifts'!$A:$A,'Com Lifts'!$C:$C,$B19,'Com Lifts'!$D:$D,$I19,'Com Lifts'!$E:$E,$C19,'Com Lifts'!$I:$I,$D19,'Com Lifts'!$L:$L,$E19) -> 8.31936 | N19: =G19*(1+$F$4) -> 5.363375 | O19: =+N19*K19*$I$5 -> 278.8740465 | P19: =IF(OR(G19=0,N19=0),"",N19/G19-1) -> 0.0025 | T19: 4.53 | U19: 45 | V19: =I19 -> 0.16 | X19: =K19 -> 4.333 | Y19: =T19*X19*$I$5 -> 235.54188 | Z19: =L19-Y19 -> 42.63672
A20: 64 Gallon First Pickup | B20: CA | C20: N | D20: =">0" -> >0 | E20: P | F20: 1 | G20: 8.84 | H20: 45 | I20: =LEFT(A20,2)/100/2 -> 0.32 | K20: =SUMIFS('Com Lifts'!$B:$B,'Com Lifts'!$C:$C,B20,'Com Lifts'!$D:$D,I20,'Com Lifts'!$E:$E,C20,'Com Lifts'!$I:$I,D20,'Com Lifts'!$L:$L,E20) -> 0 | L20: =G20*K20*$I$5 -> 0 | M20: =F20*SUMIFS('Com Lifts'!$A:$A,'Com Lifts'!$C:$C,$B20,'Com Lifts'!$D:$D,$I20,'Com Lifts'!$E:$E,$C20,'Com Lifts'!$I:$I,$D20,'Com Lifts'!$L:$L,$E20) -> 0 | N20: =G20*(1+$F$4) -> 8.8621 | O20: 0 | P20: 0.0025 | T20: 6.69 | U20: 45 | V20: =I20 -> 0.32 | X20: =K20 -> 0 | Y20: =T20*X20*$I$5 -> 0 | Z20: =L20-Y20 -> 0
A21: 96 Gallon First Pickup | B21: CA | C21: N | D21: >0 | E21: P | F21: 1 | G21: 11.6 | H21: 45 | I21: =LEFT(A21,2)/100/2 -> 0.48 | K21: =SUMIFS('Com Lifts'!$B:$B,'Com Lifts'!$C:$C,B21,'Com Lifts'!$D:$D,I21,'Com Lifts'!$E:$E,C21,'Com Lifts'!$I:$I,D21,'Com Lifts'!$L:$L,E21) -> 0 | L21: 0 | M21: =F21*SUMIFS('Com Lifts'!$A:$A,'Com Lifts'!$C:$C,$B21,'Com Lifts'!$D:$D,$I21,'Com Lifts'!$E:$E,$C21,'Com Lifts'!$I:$I,$D21,'Com Lifts'!$L:$L,$E21) -> 0 | N21: 11.629 | O21: 0 | P21: 0.0025 | T21: 9.18 | U21: 45 | V21: 0.48 | X21: 0 | Y21: =T21*X21*$I$5 -> 0 | Z21: 0
A22: 1 Yard First Pickup | B22: FL | C22: N | D22: >0 | E22: P | F22: 1 | G22: 22.93 | H22: 45 | I22: =VALUE(LEFT(A22,1))*F22 -> 1 | K22: =SUMIFS('Com Lifts'!$B:$B,'Com Lifts'!$C:$C,B22,'Com Lifts'!$D:$D,I22,'Com Lifts'!$E:$E,C22,'Com Lifts'!$I:$I,D22,'Com Lifts'!$L:$L,E22) -> 23.8315 | L22: 6557.47554 | M22: =F22*SUMIFS('Com Lifts'!$A:$A,'Com Lifts'!$C:$C,$B22,'Com Lifts'!$D:$D,$I22,'Com Lifts'!$E:$E,$C22,'Com Lifts'!$I:$I,$D22,'Com Lifts'!$L:$L,$E22) -> 285.978 | N22: 22.987325 | O22: 6573.869229 | P22: 0.0025 | T22: 19.32 | U22: 45 | V22: 1 | X22: 23.8315 | Y22: 5525.09496 | Z22: 1032.38058
A23: 1.5 Yard First Pickup | B23: FL | C23: N | D23: >0 | E23: P | F23: 1 | G23: 30.95 | H23: 45 | I23: =VALUE(LEFT(A23,3))*F23 -> 1.5 | K23: =SUMIFS('Com Lifts'!$B:$B,'Com Lifts'!$C:$C,B23,'Com Lifts'!$D:$D,I23,'Com Lifts'!$E:$E,C23,'Com Lifts'!$I:$I,D23,'Com Lifts'!$L:$L,E23) -> 2.1665 | L23: 804.6381 | M23: =F23*SUMIFS('Com Lifts'!$A:$A,'Com Lifts'!$C:$C,$B23,'Com Lifts'!$D:$D,$I23,'Com Lifts'!$E:$E,$C23,'Com Lifts'!$I:$I,$D23,'Com Lifts'!$L:$L,$E23) -> 38.997 | N23: 31.027375 | O23: 806.6496952 | P23: 0.0025 | T23: 26.05 | U23: 45 | V23: 1.5 | X23: 2.1665 | Y23: 677.2479 | Z23: 127.3902
A24: 2 Yard First Pickup | B24: FL | C24: N | D24: >0 | E24: P | F24: 1 | G24: 40.4 | H24: 45 | I24: =VALUE(LEFT(A24,1))*F24 -> 2 | K24: =SUMIFS('Com Lifts'!$B:$B,'Com Lifts'!$C:$C,B24,'Com Lifts'!$D:$D,I24,'Com Lifts'!$E:$E,C24,'Com Lifts'!$I:$I,D24,'Com Lifts'!$L:$L,E24) -> 31.41425 | L24: 15229.6284 | M24: =F24*SUMIFS('Com Lifts'!$A:$A,'Com Lifts'!$C:$C,$B24,'Com Lifts'!$D:$D,$I24,'Com Lifts'!$E:$E,$C24,'Com Lifts'!$I:$I,$D24,'Com Lifts'!$L:$L,$E24) -> 753.942 | N24: 40.501 | O24: 15267.70247 | P24: 0.0025 | T24: 34.01 | U24: 45 | V24: 2 | X24: 31.41425 | Y24: 12820.78371 | Z24: 2408.84469
A25: 3 Yard First Pickup | B25: FL | C25: N | D25: >0 | E25: P | F25: 1 | G25: 56.72 | H25: 45 | I25: =VALUE(LEFT(A25,1))*F25 -> 3 | K25: =SUMIFS('Com Lifts'!$B:$B,'Com Lifts'!$C:$C,B25,'Com Lifts'!$D:$D,I25,'Com Lifts'!$E:$E,C25,'Com Lifts'!$I:$I,D25,'Com Lifts'!$L:$L,E25) -> 8.666 | L25: 5898.42624 | M25: =F25*SUMIFS('Com Lifts'!$A:$A,'Com Lifts'!$C:$C,$B25,'Com Lifts'!$D:$D,$I25,'Com Lifts'!$E:$E,$C25,'Com Lifts'!$I:$I,$D25,'Com Lifts'!$L:$L,$E25) -> 311.976 | N25: 56.8618 | O25: 5913.172306 | P25: 0.0025 | T25: 47.71 | U25: 45 | V25: 3 | X25: 8.666 | Y25: 4961.45832 | Z25: 936.96792
A26: 4 Yard First Pickup | B26: FL | C26: N | D26: >0 | E26: P | F26: 1 | G26: 81.91 | H26: 45 | I26: =VALUE(LEFT(A26,1))*F26 -> 4 | K26: =SUMIFS('Com Lifts'!$B:$B,'Com Lifts'!$C:$C,B26,'Com Lifts'!$D:$D,I26,'Com Lifts'!$E:$E,C26,'Com Lifts'!$I:$I,D26,'Com Lifts'!$L:$L,E26) -> 67.1615 | L26: 66014.38158 | M26: =F26*SUMIFS('Com Lifts'!$A:$A,'Com Lifts'!$C:$C,$B26,'Com Lifts'!$D:$D,$I26,'Com Lifts'!$E:$E,$C26,'Com Lifts'!$I:$I,$D26,'Com Lifts'!$L:$L,$E26) -> 3223.752 | N26: 82.114775 | O26: 66179.41753 | P26: 0.0025 | T26: 63.76 | U26: 45 | V26: 4 | X26: 67.1615 | Y26: 51386.60688 | Z26: 14627.7747
A27: 6 Yard First Pickup | B27: FL | C27: N | D27: >0 | E27: P | F27: 1 | G27: 109.63 | H27: 45 | I27: =VALUE(LEFT(A27,1))*F27 -> 6 | K27: =SUMIFS('Com Lifts'!$B:$B,'Com Lifts'!$C:$C,B27,'Com Lifts'!$D:$D,I27,'Com Lifts'!$E:$E,C27,'Com Lifts'!$I:$I,D27,'Com Lifts'!$L:$L,E27) -> 38.997 | L27: 51302.89332 | M27: =F27*SUMIFS('Com Lifts'!$A:$A,'Com Lifts'!$C:$C,$B27,'Com Lifts'!$D:$D,$I27,'Com Lifts'!$E:$E,$C27,'Com Lifts'!$I:$I,$D27,'Com Lifts'!$L:$L,$E27) -> 2807.784 | N27: 109.904075 | O27: 51431.15055 | P27: 0.0025 | T27: 92.38 | U27: 45 | V27: 6 | X27: 38.997 | Y27: 43230.51432 | Z27: 8072.379
A28: 8 Yard First Pickup | B28: FL | C28: N | D28: >0 | E28: P | F28: 1 | G28: 147.1 | H28: 45 | I28: =VALUE(LEFT(A28,1))*F28 -> 8 | K28: =SUMIFS('Com Lifts'!$B:$B,'Com Lifts'!$C:$C,B28,'Com Lifts'!$D:$D,I28,'Com Lifts'!$E:$E,C28,'Com Lifts'!$I:$I,D28,'Com Lifts'!$L:$L,E28) -> 30.331 | L28: 53540.2812 | M28: =F28*SUMIFS('Com Lifts'!$A:$A,'Com Lifts'!$C:$C,$B28,'Com Lifts'!$D:$D,$I28,'Com Lifts'!$E:$E,$C28,'Com Lifts'!$I:$I,$D28,'Com Lifts'!$L:$L,$E28) -> 2911.776 | N28: 147.46775 | O28: 53674.1319 | P28: 0.0025 | T28: 124.27 | U28: 45 | V28: 8 | X28: 30.331 | Y28: 45230.80044 | Z28: 8309.48076
A30: 32 Gallon Additional Pickup | F30: 1 | G30: 5.35 | H30: 45 | I30: =LEFT(A30,2)/100/2 -> 0.16 | N30: =G30*(1+$F$4) -> 5.363375 | O30: =+N30*K30*$I$5 -> 0 | P30: =IF(OR(G30=0,N30=0),"",N30/G30-1) -> 0.0025 | T30: 4.53 | U30: 45
A31: 64 Gallon Additional Pickup | F31: 1 | G31: 8.84 | H31: 45 | I31: =LEFT(A31,2)/100/2 -> 0.32 | N31: 8.8621 | O31: 0 | P31: 0.0025 | T31: 6.69 | U31: 45
A32: 96 Gallon Additional Pickup | F32: 1 | G32: 11.6 | H32: 45 | I32: =LEFT(A32,2)/100/2 -> 0.48 | N32: 11.629 | O32: 0 | P32: 0.0025 | T32: 9.18 | U32: 45
A33: 1 Yard Additional Pickup | F33: 1 | G33: 22.93 | H33: 45 | I33: =VALUE(LEFT(A33,1)) -> 1 | N33: 22.987325 | O33: 0 | P33: 0.0025 | T33: 19.32 | U33: 45
A34: 1.5 Yard Additional Pickup | F34: 1 | G34: 30.95 | H34: 45 | I34: =VALUE(LEFT(A34,3))*F34 -> 1.5 | N34: 31.027375 | O34: 0 | P34: 0.0025 | T34: 26.05 | U34: 45
A35: 2 Yard Additional Pickup | F35: 1 | G35: 40.4 | H35: 45 | I35: =VALUE(LEFT(A35,1))*F35 -> 2 | N35: 40.501 | O35: 0 | P35: 0.0025 | T35: 34.01 | U35: 45
A36: 3 Yard Additional Pickup | F36: 1 | G36: 56.72 | H36: 45 | I36: =VALUE(LEFT(A36,1))*F36 -> 3 | N36: 56.8618 | O36: 0 | P36: 0.0025 | T36: 47.71 | U36: 45
A37: 4 Yard Additional Pickup | F37: 1 | G37: 81.91 | H37: 45 | I37: =VALUE(LEFT(A37,1))*F37 -> 4 | N37: 82.114775 | O37: 0 | P37: 0.0025 | T37: 63.76 | U37: 45
A38: 6 Yard Additional Pickup | F38: 1 | G38: 109.63 | H38: 45 | I38: =VALUE(LEFT(A38,1))*F38 -> 6 | N38: 109.904075 | O38: 0 | P38: 0.0025 | T38: 92.38 | U38: 45
A39: 8 Yard Additional Pickup | F39: 1 | G39: 147.1 | H39: 45 | I39: =VALUE(LEFT(A39,1))*F39 -> 8 | N39: 147.46775 | O39: 0 | P39: 0.0025 | T39: 124.27 | U39: 45
A41: 32 Gallon Special Pickup | B41: CA | C41: N | D41: 0 | E41: P | F41: 1 | G41: 6.04 | H41: 45 | I41: =LEFT(A41,2)/100/2 -> 0.16 | K41: =SUMIFS('Com Lifts'!$B:$B,'Com Lifts'!$C:$C,B41,'Com Lifts'!$D:$D,I41,'Com Lifts'!$E:$E,C41,'Com Lifts'!$I:$I,D41,'Com Lifts'!$L:$L,E41) -> 0 | L41: =G41*K41*$I$5 -> 0 | M41: =F41*SUMIFS('Com Lifts'!$A:$A,'Com Lifts'!$C:$C,$B41,'Com Lifts'!$D:$D,$I41,'Com Lifts'!$E:$E,$C41,'Com Lifts'!$I:$I,$D41,'Com Lifts'!$L:$L,$E41) -> 0 | N41: =G41*(1+$F$4) -> 6.0551 | O41: =+N41*K41*$I$5 -> 0 | P41: =IF(OR(G41=0,N41=0),"",N41/G41-1) -> 0.0025 | T41: 5.11 | U41: 45 | V41: =I41 -> 0.16 | X41: =K41 -> 0 | Y41: =T41*X41*$I$5 -> 0 | Z41: =L41-Y41 -> 0
A42: 64 Gallon Special Pickup | B42: CA | C42: N | D42: 0 | E42: P | F42: 1 | G42: 8.54 | H42: 45 | I42: =LEFT(A42,2)/100/2 -> 0.32 | K42: =SUMIFS('Com Lifts'!$B:$B,'Com Lifts'!$C:$C,B42,'Com Lifts'!$D:$D,I42,'Com Lifts'!$E:$E,C42,'Com Lifts'!$I:$I,D42,'Com Lifts'!$L:$L,E42) -> 0 | L42: =G42*K42*$I$5 -> 0 | M42: =F42*SUMIFS('Com Lifts'!$A:$A,'Com Lifts'!$C:$C,$B42,'Com Lifts'!$D:$D,$I42,'Com Lifts'!$E:$E,$C42,'Com Lifts'!$I:$I,$D42,'Com Lifts'!$L:$L,$E42) -> 0 | N42: 8.56135 | O42: =+N42*K42*$I$5 -> 0 | P42: 0.0025 | T42: 7.24 | U42: 45 | V42: =I42 -> 0.32 | X42: =K42 -> 0 | Y42: =T42*X42*$I$5 -> 0 | Z42: 0
A43: 96 Gallon Special Pickup | B43: CA | C43: N | D43: 0 | E43: P | F43: 1 | G43: 11.51 | H43: 45 | I43: =LEFT(A43,2)/100/2 -> 0.48 | K43: =SUMIFS('Com Lifts'!$B:$B,'Com Lifts'!$C:$C,B43,'Com Lifts'!$D:$D,I43,'Com Lifts'!$E:$E,C43,'Com Lifts'!$I:$I,D43,'Com Lifts'!$L:$L,E43) -> 0 | L43: 0 | M43: =F43*SUMIFS('Com Lifts'!$A:$A,'Com Lifts'!$C:$C,$B43,'Com Lifts'!$D:$D,$I43,'Com Lifts'!$E:$E,$C43,'Com Lifts'!$I:$I,$D43,'Com Lifts'!$L:$L,$E43) -> 0 | N43: 11.538775 | O43: 0 | P43: 0.0025 | T43: 9.74 | U43: 45 | V43: 0.48 | X43: 0 | Y43: 0 | Z43: 0
A44: 1 Yard Special Pickup | B44: FL | C44: N | D44: 0 | E44: P | F44: 1 | G44: 25.93 | H44: 45 | I44: =VALUE(LEFT(A44,1)) -> 1 | K44: =SUMIFS('Com Lifts'!$B:$B,'Com Lifts'!$C:$C,B44,'Com Lifts'!$D:$D,I44,'Com Lifts'!$E:$E,C44,'Com Lifts'!$I:$I,D44,'Com Lifts'!$L:$L,E44) -> 0 | L44: 0 | M44: =F44*SUMIFS('Com Lifts'!$A:$A,'Com Lifts'!$C:$C,$B44,'Com Lifts'!$D:$D,$I44,'Com Lifts'!$E:$E,$C44,'Com Lifts'!$I:$I,$D44,'Com Lifts'!$L:$L,$E44) -> 0 | N44: 25.994825 | O44: 0 | P44: 0.0025 | T44: 21.9 | U44: 45 | V44: 1 | X44: 0 | Y44: 0 | Z44: 0
A45: 1.5 Yard Special Pickup | B45: FL | C45: N | D45: 0 | E45: P | F45: 1 | G45: 34.03 | H45: 45 | I45: =VALUE(LEFT(A45,3))*F45 -> 1.5 | K45: =SUMIFS('Com Lifts'!$B:$B,'Com Lifts'!$C:$C,B45,'Com Lifts'!$D:$D,I45,'Com Lifts'!$E:$E,C45,'Com Lifts'!$I:$I,D45,'Com Lifts'!$L:$L,E45) -> 0 | L45: 0 | M45: =F45*SUMIFS('Com Lifts'!$A:$A,'Com Lifts'!$C:$C,$B45,'Com Lifts'!$D:$D,$I45,'Com Lifts'!$E:$E,$C45,'Com Lifts'!$I:$I,$D45,'Com Lifts'!$L:$L,$E45) -> 0 | N45: 34.115075 | O45: 0 | P45: 0.0025 | T45: 28.7 | U45: 45 | V45: 1.5 | X45: 0 | Y45: 0 | Z45: 0
A46: 2 Yard Special Pickup | B46: FL | C46: N | D46: 0 | E46: P | F46: 1 | G46: 45.03 | H46: 45 | I46: =VALUE(LEFT(A46,1))*F46 -> 2 | K46: =SUMIFS('Com Lifts'!$B:$B,'Com Lifts'!$C:$C,B46,'Com Lifts'!$D:$D,I46,'Com Lifts'!$E:$E,C46,'Com Lifts'!$I:$I,D46,'Com Lifts'!$L:$L,E46) -> 0 | L46: 0 | M46: =F46*SUMIFS('Com Lifts'!$A:$A,'Com Lifts'!$C:$C,$B46,'Com Lifts'!$D:$D,$I46,'Com Lifts'!$E:$E,$C46,'Com Lifts'!$I:$I,$D46,'Com Lifts'!$L:$L,$E46) -> 0 | N46: 45.142575 | O46: 0 | P46: 0.0025 | T46: 37.99 | U46: 45 | V46: 2 | X46: 0 | Y46: 0 | Z46: 0
A47: 3 Yard Special Pickup | B47: FL | C47: N | D47: 0 | E47: P | F47: 1 | G47: 62.9 | H47: 45 | I47: =VALUE(LEFT(A47,1))*F47 -> 3 | K47: =SUMIFS('Com Lifts'!$B:$B,'Com Lifts'!$C:$C,B47,'Com Lifts'!$D:$D,I47,'Com Lifts'!$E:$E,C47,'Com Lifts'!$I:$I,D47,'Com Lifts'!$L:$L,E47) -> 0 | L47: 0 | M47: =F47*SUMIFS('Com Lifts'!$A:$A,'Com Lifts'!$C:$C,$B47,'Com Lifts'!$D:$D,$I47,'Com Lifts'!$E:$E,$C47,'Com Lifts'!$I:$I,$D47,'Com Lifts'!$L:$L,$E47) -> 0 | N47: 63.05725 | O47: 0 | P47: 0.0025 | T47: 53.02 | U47: 45 | V47: 3 | X47: 0 | Y47: 0 | Z47: 0
A48: 4 Yard Special Pickup | B48: FL | C48: N | D48: 0 | E48: P | F48: 1 | G48: 81.91 | H48: 45 | I48: =VALUE(LEFT(A48,1))*F48 -> 4 | K48: =SUMIFS('Com Lifts'!$B:$B,'Com Lifts'!$C:$C,B48,'Com Lifts'!$D:$D,I48,'Com Lifts'!$E:$E,C48,'Com Lifts'!$I:$I,D48,'Com Lifts'!$L:$L,E48) -> 0 | L48: 0 | M48: =F48*SUMIFS('Com Lifts'!$A:$A,'Com Lifts'!$C:$C,$B48,'Com Lifts'!$D:$D,$I48,'Com Lifts'!$E:$E,$C48,'Com Lifts'!$I:$I,$D48,'Com Lifts'!$L:$L,$E48) -> 0 | N48: 82.114775 | O48: 0 | P48: 0.0025 | T48: 69.05 | U48: 45 | V48: 4 | X48: 0 | Y48: 0 | Z48: 0
A49: 6 Yard Special Pickup | B49: FL | C49: N | D49: 0 | E49: P | F49: 1 | G49: 118.87 | H49: 45 | I49: =VALUE(LEFT(A49,1))*F49 -> 6 | K49: =SUMIFS('Com Lifts'!$B:$B,'Com Lifts'!$C:$C,B49,'Com Lifts'!$D:$D,I49,'Com Lifts'!$E:$E,C49,'Com Lifts'!$I:$I,D49,'Com Lifts'!$L:$L,E49) -> 0 | L49: 0 | M49: =F49*SUMIFS('Com Lifts'!$A:$A,'Com Lifts'!$C:$C,$B49,'Com Lifts'!$D:$D,$I49,'Com Lifts'!$E:$E,$C49,'Com Lifts'!$I:$I,$D49,'Com Lifts'!$L:$L,$E49) -> 0 | N49: 119.167175 | O49: 0 | P49: 0.0025 | T49: 100.32 | U49: 45 | V49: 6 | X49: 0 | Y49: 0 | Z49: 0
A50: 8 Yard Special Pickup | B50: FL | C50: N | D50: 0 | E50: P | F50: 1 | G50: 159.88 | H50: 45 | I50: =VALUE(LEFT(A50,1))*F50 -> 8 | K50: =SUMIFS('Com Lifts'!$B:$B,'Com Lifts'!$C:$C,B50,'Com Lifts'!$D:$D,I50,'Com Lifts'!$E:$E,C50,'Com Lifts'!$I:$I,D50,'Com Lifts'!$L:$L,E50) -> 1 | L50: 1918.56 | M50: =F50*SUMIFS('Com Lifts'!$A:$A,'Com Lifts'!$C:$C,$B50,'Com Lifts'!$D:$D,$I50,'Com Lifts'!$E:$E,$C50,'Com Lifts'!$I:$I,$D50,'Com Lifts'!$L:$L,$E50) -> 96 | N50: 160.2797 | O50: 1923.3564 | P50: 0.0025 | T50: 135.26 | U50: 45 | V50: 8 | X50: 1 | Y50: 1623.12 | Z50: 295.44
A52: 32 Gallon Monthly Rent | G52: 0.64 | H52: 45 | J52: =+SUM('Revenue Lookup'!I112:L112,'Revenue Lookup'!I119:L119)/I5/G52 -> 0.7682291667 | L52: =G52*J52*$I$5 -> 5.9 | N52: =G52*(1+$F$4) -> 0.6416 | O52: =+N52*J52*$I$5 -> 5.91475 | P52: =IF(OR(G52=0,N52=0),"",N52/G52-1) -> 0.0025 | T52: 0.55 | U52: 45 | W52: =J52 -> 0.7682291667 | Y52: =T52*W52*$I$5 -> 5.0703125 | Z52: 0.8296875
A53: 64 Gallon Monthly Rent | G53: 1.93 | H53: 45 | J53: =+SUM('Revenue Lookup'!I114:L114)/$I$5/G53 -> 143.6636442 | L53: =G53*J53*$I$5 -> 3327.25 | N53: 1.934825 | O53: =+N53*J53*$I$5 -> 3335.568125 | P53: 0.0025 | T53: 1.66 | U53: 45 | W53: =J53 -> 143.6636442 | Y53: =T53*W53*$I$5 -> 2861.779793 | Z53: 465.4702073
A54: 96 Gallon Monthly Rent | G54: 1.93 | H54: 45 | J54: =+SUM('Revenue Lookup'!I115:K116,'Revenue Lookup'!I158:L159)/$I$5/G54 -> 1.337219344 | L54: 30.97 | N54: 1.934825 | O54: 31.047425 | P54: 0.0025 | T54: 1.66 | U54: 45 | W54: 1.337219344 | Y54: 26.63740933 | Z54: 4.332590674
A55: 1 Yard Monthly Rent | G55: 9.04 | H55: 45 | J55: =+SUM('Revenue Lookup'!I121:L121)/$I$5/G55 -> 4.749907817 | L55: 515.27 | N55: 9.0626 | O55: 516.558175 | P55: 0.0025 | T55: 7.77 | U55: 45 | W55: 4.749907817 | Y55: 442.8814049 | Z55: 72.38859513
A56: 1.5 Yard Monthly Rent | G56: 10.97 | H56: 45 | J56: =+SUM('Revenue Lookup'!I122:L122)/$I$5/G56 -> 0.6951534488 | L56: 91.51 | N56: 10.997425 | O56: 91.738775 | P56: 0.0025 | T56: 9.43 | U56: 45 | W56: 0.6951534488 | Y56: 78.66356427 | Z56: 12.84643573
A57: 2 Yard Monthly Rent | G57: 12.26 | H57: 45 | J57: =+SUM('Revenue Lookup'!I123:L123)/$I$5/G57 -> 5.193583469 | L57: 764.08 | N57: 12.29065 | O57: 765.9902 | P57: 0.0025 | T57: 10.54 | U57: 45 | W57: 5.193583469 | Y57: 656.8844372 | Z57: 107.1955628
A58: 3 Yard Monthly Rent | G58: 15.5 | H58: 45 | J58: =+SUM('Revenue Lookup'!I124:L124)/$I$5/G58 -> 4.722204301 | L58: 878.33 | N58: 15.53875 | O58: 880.525825 | P58: 0.0025 | T58: 13.32 | U58: 45 | W58: 4.722204301 | Y58: 754.7971355 | Z58: 123.5328645
A59: 4 Yard Monthly Rent | G59: 17.75 | H59: 45 | J59: =+SUM('Revenue Lookup'!I125:L125)/$I$5/G59 -> 15.27070423 | L59: 3252.66 | N59: 17.794375 | O59: 3260.79165 | P59: 0.0025 | T59: 15.26 | U59: 45 | W59: 15.27070423 | Y59: 2796.371358 | Z59: 456.2886423
A60: 6 Yard Monthly Rent | G60: 25.83 | H60: 45 | J60: =+SUM('Revenue Lookup'!I126:L126)/$I$5/G60 -> 6.206123371 | L60: 1923.65 | N60: 25.894575 | O60: 1928.459125 | P60: 0.0025 | T60: 22.2 | U60: 45 | W60: 6.206123371 | Y60: 1653.311266 | Z60: 270.338734
A61: 8 Yard Monthly Rent | G61: 30.34 | H61: 45 | J61: =+SUM('Revenue Lookup'!I127:L127)/$I$5/G61 -> 7.328279499 | L61: 2668.08 | N61: 30.41585 | O61: 2674.7502 | P61: 0.0025 | T61: 26.08 | U61: 45 | W61: 7.328279499 | Y61: 2293.458352 | Z61: 374.621648
A63: Temporary Service
A64: 1 Yard Delivery | G64: 45.19 | H64: 45 | J64: =SUM('Revenue Lookup'!I176:L176)/G64 -> 0 | L64: =G64*J64 -> 0 | N64: =G64*(1+$F$4) -> 45.302975 | O64: =J64*N64 -> 0 | P64: =IF(OR(G64=0,N64=0),"",N64/G64-1) -> 0.0025 | T64: 38.84 | U64: 45 | W64: =J64 -> 0 | Y64: =T64*W64 -> 0 | Z64: =L64-Y64 -> 0
A65: 1.5 Yard Delivery | G65: 45.19 | H65: 45 | J65: =SUM('Revenue Lookup'!I177:L177)/G65 -> 0 | L65: =G65*J65 -> 0 | N65: 45.302975 | O65: =J65*N65 -> 0 | P65: =IF(OR(G65=0,N65=0),"",N65/G65-1) -> 0.0025 | T65: 38.84 | U65: 45 | W65: =J65 -> 0 | Y65: =T65*W65 -> 0 | Z65: 0
A66: 2 Yard Delivery | G66: 45.19 | H66: 45 | J66: =SUM('Revenue Lookup'!I178:L178)/G66 -> 0 | L66: 0 | N66: 45.302975 | O66: 0 | P66: 0.0025 | T66: 38.84 | U66: 45 | W66: 0 | Y66: 0 | Z66: 0
A67: 3 Yard Delivery | G67: 45.19 | H67: 45 | J67: =SUM('Revenue Lookup'!I179:L179)/G67 -> 0 | L67: 0 | N67: 45.302975 | O67: 0 | P67: 0.0025 | T67: 38.84 | U67: 45 | W67: 0 | Y67: 0 | Z67: 0
A68: 4 Yard Delivery | G68: 45.19 | H68: 45 | J68: =SUM('Revenue Lookup'!I180:L180)/G68 -> 1.718964373 | L68: 77.68 | N68: 45.302975 | O68: 77.8742 | P68: 0.0025 | T68: 38.84 | U68: 45 | W68: 1.718964373 | Y68: 66.76457623 | Z68: 10.91542377
A69: 6 Yard Delivery | G69: 45.19 | H69: 45 | J69: =SUM('Revenue Lookup'!I181:L181)/G69 -> 3.437928745 | L69: 155.36 | N69: 45.302975 | O69: 155.7484 | P69: 0.0025 | T69: 38.84 | U69: 45 | W69: 3.437928745 | Y69: 133.5291525 | Z69: 21.83084753
A70: 8 Yard Delivery | G70: 45.19 | H70: 45 | J70: =SUM('Revenue Lookup'!I182:L182)/G70 -> 0 | L70: 0 | N70: 45.302975 | O70: 0 | P70: 0.0025 | T70: 38.84 | U70: 45 | W70: 0 | Y70: 0 | Z70: 0
A72: 1 Yard Pickup | B72: FL | C72: N | D72: 0 | E72: T | F72: 1 | G72: 25.93 | H72: 45 | I72: =VALUE(LEFT(A72,1)) -> 1 | K72: =SUMIFS('Com Lifts'!$B:$B,'Com Lifts'!$C:$C,B72,'Com Lifts'!$D:$D,I72,'Com Lifts'!$E:$E,C72,'Com Lifts'!$I:$I,D72,'Com Lifts'!$L:$L,E72) -> 0 | L72: =G72*K72*$I$5 -> 0 | M72: =F72*SUMIFS('Com Lifts'!$A:$A,'Com Lifts'!$C:$C,$B72,'Com Lifts'!$D:$D,$I72,'Com Lifts'!$E:$E,$C72,'Com Lifts'!$I:$I,$D72,'Com Lifts'!$L:$L,$E72) -> 0 | N72: =G72*(1+$F$4) -> 25.994825 | O72: =+N72*K72*$I$5 -> 0 | P72: =IF(OR(G72=0,N72=0),"",N72/G72-1) -> 0.0025 | T72: 21.9 | U72: 45 | V72: =I72 -> 1 | X72: =K72 -> 0 | Y72: =T72*X72*$I$5 -> 0 | Z72: 0
A73: 1.5 Yard Pickup | B73: FL | C73: N | D73: 0 | E73: T | F73: 1 | G73: 34.03 | H73: 45 | I73: =VALUE(LEFT(A73,3))*F73 -> 1.5 | K73: =SUMIFS('Com Lifts'!$B:$B,'Com Lifts'!$C:$C,B73,'Com Lifts'!$D:$D,I73,'Com Lifts'!$E:$E,C73,'Com Lifts'!$I:$I,D73,'Com Lifts'!$L:$L,E73) -> 0 | L73: 0 | M73: =F73*SUMIFS('Com Lifts'!$A:$A,'Com Lifts'!$C:$C,$B73,'Com Lifts'!$D:$D,$I73,'Com Lifts'!$E:$E,$C73,'Com Lifts'!$I:$I,$D73,'Com Lifts'!$L:$L,$E73) -> 0 | N73: 34.115075 | O73: 0 | P73: 0.0025 | T73: 28.7 | U73: 45 | V73: =I73 -> 1.5 | X73: =K73 -> 0 | Y73: 0 | Z73: 0
A74: 2 Yard Pickup | B74: FL | C74: N | D74: 0 | E74: T | F74: 1 | G74: 45.03 | H74: 45 | I74: =VALUE(LEFT(A74,1))*F74 -> 2 | K74: =SUMIFS('Com Lifts'!$B:$B,'Com Lifts'!$C:$C,B74,'Com Lifts'!$D:$D,I74,'Com Lifts'!$E:$E,C74,'Com Lifts'!$I:$I,D74,'Com Lifts'!$L:$L,E74) -> 0 | L74: 0 | M74: =F74*SUMIFS('Com Lifts'!$A:$A,'Com Lifts'!$C:$C,$B74,'Com Lifts'!$D:$D,$I74,'Com Lifts'!$E:$E,$C74,'Com Lifts'!$I:$I,$D74,'Com Lifts'!$L:$L,$E74) -> 0 | N74: 45.142575 | O74: 0 | P74: 0.0025 | T74: 37.99 | U74: 45 | V74: 2 | X74: 0 | Y74: 0 | Z74: 0
A75: 3 Yard Pickup | B75: FL | C75: N | D75: 0 | E75: T | F75: 1 | G75: 62.9 | H75: 45 | I75: =VALUE(LEFT(A75,1))*F75 -> 3 | K75: =SUMIFS('Com Lifts'!$B:$B,'Com Lifts'!$C:$C,B75,'Com Lifts'!$D:$D,I75,'Com Lifts'!$E:$E,C75,'Com Lifts'!$I:$I,D75,'Com Lifts'!$L:$L,E75) -> 1 | L75: 754.8 | M75: =F75*SUMIFS('Com Lifts'!$A:$A,'Com Lifts'!$C:$C,$B75,'Com Lifts'!$D:$D,$I75,'Com Lifts'!$E:$E,$C75,'Com Lifts'!$I:$I,$D75,'Com Lifts'!$L:$L,$E75) -> 36 | N75: 63.05725 | O75: 756.687 | P75: 0.0025 | T75: 53.02 | U75: 45 | V75: 3 | X75: 1 | Y75: 636.24 | Z75: 118.56
A76: 4 Yard Pickup | B76: FL | C76: N | D76: 0 | E76: T | F76: 1 | G76: 81.91 | H76: 45 | I76: =VALUE(LEFT(A76,1))*F76 -> 4 | K76: =SUMIFS('Com Lifts'!$B:$B,'Com Lifts'!$C:$C,B76,'Com Lifts'!$D:$D,I76,'Com Lifts'!$E:$E,C76,'Com Lifts'!$I:$I,D76,'Com Lifts'!$L:$L,E76) -> 0 | L76: 0 | M76: =F76*SUMIFS('Com Lifts'!$A:$A,'Com Lifts'!$C:$C,$B76,'Com Lifts'!$D:$D,$I76,'Com Lifts'!$E:$E,$C76,'Com Lifts'!$I:$I,$D76,'Com Lifts'!$L:$L,$E76) -> 0 | N76: 82.114775 | O76: 0 | P76: 0.0025 | T76: 69.05 | U76: 45 | V76: 4 | X76: 0 | Y76: 0 | Z76: 0
A77: 6 Yard Pickup | B77: FL | C77: N | D77: 0 | E77: T | F77: 1 | G77: 118.87 | H77: 45 | I77: =VALUE(LEFT(A77,1))*F77 -> 6 | K77: =SUMIFS('Com Lifts'!$B:$B,'Com Lifts'!$C:$C,B77,'Com Lifts'!$D:$D,I77,'Com Lifts'!$E:$E,C77,'Com Lifts'!$I:$I,D77,'Com Lifts'!$L:$L,E77) -> 0 | L77: 0 | M77: =F77*SUMIFS('Com Lifts'!$A:$A,'Com Lifts'!$C:$C,$B77,'Com Lifts'!$D:$D,$I77,'Com Lifts'!$E:$E,$C77,'Com Lifts'!$I:$I,$D77,'Com Lifts'!$L:$L,$E77) -> 0 | N77: 119.167175 | O77: 0 | P77: 0.0025 | T77: 100.32 | U77: 45 | V77: 6 | X77: 0 | Y77: 0 | Z77: 0
A78: 8 Yard Pickup | B78: FL | C78: N | D78: 0 | E78: T | F78: 1 | G78: 159.88 | H78: 45 | I78: =VALUE(LEFT(A78,1))*F78 -> 8 | K78: =SUMIFS('Com Lifts'!$B:$B,'Com Lifts'!$C:$C,B78,'Com Lifts'!$D:$D,I78,'Com Lifts'!$E:$E,C78,'Com Lifts'!$I:$I,D78,'Com Lifts'!$L:$L,E78) -> 1 | L78: 1918.56 | M78: =F78*SUMIFS('Com Lifts'!$A:$A,'Com Lifts'!$C:$C,$B78,'Com Lifts'!$D:$D,$I78,'Com Lifts'!$E:$E,$C78,'Com Lifts'!$I:$I,$D78,'Com Lifts'!$L:$L,$E78) -> 96 | N78: 160.2797 | O78: 1923.3564 | P78: 0.0025 | T78: 135.26 | U78: 45 | V78: 8 | X78: 1 | Y78: 1623.12 | Z78: 295.44
A80: 1 Yard Rent/Calendar Day | G80: 1.29 | H80: 45 | L80: =G80*K80*$I$5 -> 0 | N80: =G80*(1+$F$4) -> 1.293225 | O80: =+N80*J80*$I$5 -> 0 | P80: =IF(OR(G80=0,N80=0),"",N80/G80-1) -> 0.0025 | T80: 1.11 | U80: 45
A81: 1.5 Yard Rent/Calendar Day | G81: 1.29 | H81: 45 | L81: 0 | N81: =G81*(1+$F$4) -> 1.293225 | O81: 0 | P81: 0.0025 | T81: 1.11 | U81: 45
A82: 2 Yard Rent/Calendar Day | G82: 1.29 | H82: 45 | L82: 0 | N82: 1.293225 | O82: 0 | P82: 0.0025 | T82: 1.11 | U82: 45
A83: 3 Yard Rent/Calendar Day | G83: 1.29 | H83: 45 | L83: 0 | N83: 1.293225 | O83: 0 | P83: 0.0025 | T83: 1.11 | U83: 45
A84: 4 Yard Rent/Calendar Day | G84: 1.29 | H84: 45 | L84: 0 | N84: 1.293225 | O84: 0 | P84: 0.0025 | T84: 1.11 | U84: 45
A85: 6 Yard Rent/Calendar Day | G85: 1.29 | H85: 45 | L85: 0 | N85: 1.293225 | O85: 0 | P85: 0.0025 | T85: 1.11 | U85: 45
A86: 8 Yard Rent/Calendar Day | G86: 1.29 | H86: 45 | L86: 0 | N86: 1.293225 | O86: 0 | P86: 0.0025 | T86: 1.11 | U86: 45
A88: 1 Yard Rent / Month | G88: 9.04 | H88: 39 | L88: =G88*K88*$I$5 -> 0 | N88: =G88*(1+$F$4) -> 9.0626 | O88: =+N88*J88*$I$5 -> 0 | P88: =IF(OR(G88=0,N88=0),"",N88/G88-1) -> 0.0025
A89: 1.5 Yard Rent / Month | G89: 10.97 | H89: 39 | L89: 0 | N89: 10.997425 | O89: 0 | P89: 0.0025
A90: 2 Yard Rent / Month | G90: 12.26 | H90: 39 | L90: 0 | N90: 12.29065 | O90: 0 | P90: 0.0025
A91: 3 Yard Rent / Month | G91: 15.5 | H91: 39 | L91: 0 | N91: 15.53875 | O91: 0 | P91: 0.0025
A92: 4 Yard Rent / Month | G92: 17.75 | H92: 39 | L92: 0 | N92: 17.794375 | O92: 0 | P92: 0.0025
A93: 6 Yard Rent / Month | G93: 25.83 | H93: 39 | L93: 0 | N93: 25.894575 | O93: 0 | P93: 0.0025
A94: 8 Yard Rent / Month | G94: 30.34 | H94: 39 | L94: 0 | N94: 30.41585 | O94: 0 | P94: 0.0025
A96: Item# 245 Container Service
A97: Customer Owned Container
A98: Non Compacted Material
A99: Permanent Accounts
A100: 32 Gallon First Pickup | B100: CN | C100: N | D100: =">0" -> >0 | E100: P | F100: 1 | G100: 5.35 | H100: 46 | I100: =LEFT(A100,2)/100/2 -> 0.16 | K100: =SUMIFS('Com Lifts'!$B:$B,'Com Lifts'!$C:$C,B100,'Com Lifts'!$D:$D,I100,'Com Lifts'!$E:$E,C100,'Com Lifts'!$I:$I,D100,'Com Lifts'!$L:$L,E100) -> 0 | L100: =G100*K100*$I$5 -> 0 | M100: =F100*SUMIFS('Com Lifts'!$A:$A,'Com Lifts'!$C:$C,$B100,'Com Lifts'!$D:$D,$I100,'Com Lifts'!$E:$E,$C100,'Com Lifts'!$I:$I,$D100,'Com Lifts'!$L:$L,$E100) -> 0 | N100: =G100*(1+$F$4) -> 5.363375 | O100: =+N100*K100*$I$5 -> 0 | P100: =IF(OR(G100=0,N100=0),"",N100/G100-1) -> 0.0025 | T100: 4.53 | U100: 46 | V100: =I100 -> 0.16 | X100: =K100 -> 0 | Y100: =T100*X100*$I$5 -> 0 | Z100: =L100-Y100 -> 0
A101: 64 Gallon First Pickup | B101: CN | C101: N | D101: =">0" -> >0 | E101: P | F101: 1 | G101: 8.84 | H101: 46 | I101: =LEFT(A101,2)/100/2 -> 0.32 | K101: =SUMIFS('Com Lifts'!$B:$B,'Com Lifts'!$C:$C,B101,'Com Lifts'!$D:$D,I101,'Com Lifts'!$E:$E,C101,'Com Lifts'!$I:$I,D101,'Com Lifts'!$L:$L,E101) -> 0 | L101: =G101*K101*$I$5 -> 0 | M101: =F101*SUMIFS('Com Lifts'!$A:$A,'Com Lifts'!$C:$C,$B101,'Com Lifts'!$D:$D,$I101,'Com Lifts'!$E:$E,$C101,'Com Lifts'!$I:$I,$D101,'Com Lifts'!$L:$L,$E101) -> 0 | N101: =G101*(1+$F$4) -> 8.8621 | O101: =+N101*K101*$I$5 -> 0 | P101: =IF(OR(G101=0,N101=0),"",N101/G101-1) -> 0.0025 | T101: 6.69 | U101: 46
A102: 96 Gallon First Pickup | B102: CN | C102: N | D102: =">0" -> >0 | E102: P | F102: 1 | G102: 11.6 | H102: 46 | I102: =LEFT(A102,2)/100/2 -> 0.48 | K102: =SUMIFS('Com Lifts'!$B:$B,'Com Lifts'!$C:$C,B102,'Com Lifts'!$D:$D,I102,'Com Lifts'!$E:$E,C102,'Com Lifts'!$I:$I,D102,'Com Lifts'!$L:$L,E102) -> 0 | L102: =G102*K102*$I$5 -> 0 | M102: =F102*SUMIFS('Com Lifts'!$A:$A,'Com Lifts'!$C:$C,$B102,'Com Lifts'!$D:$D,$I102,'Com Lifts'!$E:$E,$C102,'Com Lifts'!$I:$I,$D102,'Com Lifts'!$L:$L,$E102) -> 0 | N102: =G102*(1+$F$4) -> 11.629 | O102: =+N102*K102*$I$5 -> 0 | P102: =IF(OR(G102=0,N102=0),"",N102/G102-1) -> 0.0025 | T102: 9.18 | U102: 46
A104: 32 Gallon Additional Pickup | F104: 1 | G104: 5.35 | H104: 46 | I104: =LEFT(A104,2)/100/2 -> 0.16 | L104: =G104*K104*$I$5 -> 0 | M104: =F104*SUMIFS('Com Lifts'!$A:$A,'Com Lifts'!$C:$C,$B104,'Com Lifts'!$D:$D,$I104,'Com Lifts'!$E:$E,$C104,'Com Lifts'!$I:$I,$D104,'Com Lifts'!$L:$L,$E104) -> 0 | N104: =G104*(1+$F$4) -> 5.363375 | O104: =+N104*K104*$I$5 -> 0 | P104: =IF(OR(G104=0,N104=0),"",N104/G104-1) -> 0.0025 | T104: 4.53 | U104: 46
A105: 64 Gallon Additional Pickup | F105: 1 | G105: 8.84 | H105: 46 | I105: =LEFT(A105,2)/100/2 -> 0.32 | L105: =G105*K105*$I$5 -> 0 | M105: =F105*SUMIFS('Com Lifts'!$A:$A,'Com Lifts'!$C:$C,$B105,'Com Lifts'!$D:$D,$I105,'Com Lifts'!$E:$E,$C105,'Com Lifts'!$I:$I,$D105,'Com Lifts'!$L:$L,$E105) -> 0 | N105: =G105*(1+$F$4) -> 8.8621 | O105: =+N105*K105*$I$5 -> 0 | P105: =IF(OR(G105=0,N105=0),"",N105/G105-1) -> 0.0025 | T105: 6.69 | U105: 46
A106: 96 Gallon Additional Pickup | F106: 1 | G106: 11.6 | H106: 46 | I106: =LEFT(A106,2)/100/2 -> 0.48 | L106: =G106*K106*$I$5 -> 0 | M106: =F106*SUMIFS('Com Lifts'!$A:$A,'Com Lifts'!$C:$C,$B106,'Com Lifts'!$D:$D,$I106,'Com Lifts'!$E:$E,$C106,'Com Lifts'!$I:$I,$D106,'Com Lifts'!$L:$L,$E106) -> 0 | N106: =G106*(1+$F$4) -> 11.629 | O106: =+N106*K106*$I$5 -> 0 | P106: =IF(OR(G106=0,N106=0),"",N106/G106-1) -> 0.0025 | T106: 9.18 | U106: 46
A108: 32 Gallon Special Pickup | B108: CN | C108: N | D108: 0 | E108: P | F108: 1 | G108: 6.48 | H108: 46 | I108: =LEFT(A108,2)/100/2 -> 0.16 | K108: =SUMIFS('Com Lifts'!$B:$B,'Com Lifts'!$C:$C,B108,'Com Lifts'!$D:$D,I108,'Com Lifts'!$E:$E,C108,'Com Lifts'!$I:$I,D108,'Com Lifts'!$L:$L,E108) -> 0 | L108: =G108*K108*$I$5 -> 0 | M108: =F108*SUMIFS('Com Lifts'!$A:$A,'Com Lifts'!$C:$C,$B108,'Com Lifts'!$D:$D,$I108,'Com Lifts'!$E:$E,$C108,'Com Lifts'!$I:$I,$D108,'Com Lifts'!$L:$L,$E108) -> 0 | N108: =G108*(1+$F$4) -> 6.4962 | O108: =+N108*K108*$I$5 -> 0 | P108: =IF(OR(G108=0,N108=0),"",N108/G108-1) -> 0.0025 | T108: 5.09 | U108: 46
A109: 64 Gallon Special Pickup | B109: CN | C109: N | D109: 0 | E109: P | F109: 1 | G109: 9.53 | H109: 46 | I109: =LEFT(A109,2)/100/2 -> 0.32 | K109: =SUMIFS('Com Lifts'!$B:$B,'Com Lifts'!$C:$C,B109,'Com Lifts'!$D:$D,I109,'Com Lifts'!$E:$E,C109,'Com Lifts'!$I:$I,D109,'Com Lifts'!$L:$L,E109) -> 0 | L109: =G109*K109*$I$5 -> 0 | M109: =F109*SUMIFS('Com Lifts'!$A:$A,'Com Lifts'!$C:$C,$B109,'Com Lifts'!$D:$D,$I109,'Com Lifts'!$E:$E,$C109,'Com Lifts'!$I:$I,$D109,'Com Lifts'!$L:$L,$E109) -> 0 | N109: =G109*(1+$F$4) -> 9.553825 | O109: =+N109*K109*$I$5 -> 0 | P109: =IF(OR(G109=0,N109=0),"",N109/G109-1) -> 0.0025 | T109: 7.24 | U109: 46
A110: 96 Gallon Special Pickup | B110: CN | C110: N | D110: 0 | E110: P | F110: 1 | G110: 12.98 | H110: 46 | I110: =LEFT(A110,2)/100/2 -> 0.48 | K110: =SUMIFS('Com Lifts'!$B:$B,'Com Lifts'!$C:$C,B110,'Com Lifts'!$D:$D,I110,'Com Lifts'!$E:$E,C110,'Com Lifts'!$I:$I,D110,'Com Lifts'!$L:$L,E110) -> 0 | L110: =G110*K110*$I$5 -> 0 | M110: =F110*SUMIFS('Com Lifts'!$A:$A,'Com Lifts'!$C:$C,$B110,'Com Lifts'!$D:$D,$I110,'Com Lifts'!$E:$E,$C110,'Com Lifts'!$I:$I,$D110,'Com Lifts'!$L:$L,$E110) -> 0 | N110: =G110*(1+$F$4) -> 13.01245 | O110: =+N110*K110*$I$5 -> 0 | P110: =IF(OR(G110=0,N110=0),"",N110/G110-1) -> 0.0025 | T110: 9.74 | U110: 46
A112: Item# 255 Container Service
A113: Customer Owned Container
A114: Compacted Material
A115: Permanent Service
A116: 1 Yard First Pickup (X 3.5) | B116: FL | C116: C | D116: =">0" -> >0 | E116: P | F116: 3.5 | G116: 0 | I116: =VALUE(LEFT(A116,1))*F116 -> 3.5 | K116: =SUMIFS('Com Lifts'!$B:$B,'Com Lifts'!$C:$C,B116,'Com Lifts'!$D:$D,I116,'Com Lifts'!$E:$E,C116,'Com Lifts'!$I:$I,D116,'Com Lifts'!$L:$L,E116) -> 0 | L116: =G116*K116*$I$5 -> 0 | M116: =F116*SUMIFS('Com Lifts'!$A:$A,'Com Lifts'!$C:$C,$B116,'Com Lifts'!$D:$D,$I116,'Com Lifts'!$E:$E,$C116,'Com Lifts'!$I:$I,$D116,'Com Lifts'!$L:$L,$E116) -> 0 | N116: =G116*(1+$F$4) -> 0 | O116: =+N116*K116*$I$5 -> 0 | P116: =IF(OR(G116=0,N116=0),"",N116/G116-1) -> 
A117: 2 Yard First Pickup (X 3.5) | B117: FL | C117: C | D117: >0 | E117: P | F117: 3.5 | G117: 0 | I117: 7 | K117: =SUMIFS('Com Lifts'!$B:$B,'Com Lifts'!$C:$C,B117,'Com Lifts'!$D:$D,I117,'Com Lifts'!$E:$E,C117,'Com Lifts'!$I:$I,D117,'Com Lifts'!$L:$L,E117) -> 0 | L117: 0 | M117: =F117*SUMIFS('Com Lifts'!$A:$A,'Com Lifts'!$C:$C,$B117,'Com Lifts'!$D:$D,$I117,'Com Lifts'!$E:$E,$C117,'Com Lifts'!$I:$I,$D117,'Com Lifts'!$L:$L,$E117) -> 0 | N117: 0 | O117: 0
A118: 3 Yard First Pickup (X 3.5) | B118: FL | C118: C | D118: >0 | E118: P | F118: 3.5 | G118: 259.38 | H118: 47 | I118: 10.5 | K118: =SUMIFS('Com Lifts'!$B:$B,'Com Lifts'!$C:$C,B118,'Com Lifts'!$D:$D,I118,'Com Lifts'!$E:$E,C118,'Com Lifts'!$I:$I,D118,'Com Lifts'!$L:$L,E118) -> 0 | L118: 0 | M118: =F118*SUMIFS('Com Lifts'!$A:$A,'Com Lifts'!$C:$C,$B118,'Com Lifts'!$D:$D,$I118,'Com Lifts'!$E:$E,$C118,'Com Lifts'!$I:$I,$D118,'Com Lifts'!$L:$L,$E118) -> 0 | N118: 260.02845 | O118: 0 | P118: 0.0025 | T118: 220.07 | U118: 47
A119: 4 Yard First Pickup (X3.5) | B119: FL | C119: C | D119: >0 | E119: P | F119: 3.5 | G119: 318.51 | H119: 47 | I119: 14 | K119: =SUMIFS('Com Lifts'!$B:$B,'Com Lifts'!$C:$C,B119,'Com Lifts'!$D:$D,I119,'Com Lifts'!$E:$E,C119,'Com Lifts'!$I:$I,D119,'Com Lifts'!$L:$L,E119) -> 0 | L119: 0 | M119: =F119*SUMIFS('Com Lifts'!$A:$A,'Com Lifts'!$C:$C,$B119,'Com Lifts'!$D:$D,$I119,'Com Lifts'!$E:$E,$C119,'Com Lifts'!$I:$I,$D119,'Com Lifts'!$L:$L,$E119) -> 0 | N119: 319.306275 | O119: 0 | P119: 0.0025 | T119: 270.04 | U119: 47
A120: 5 Yard First Pickup (X3.5) | B120: FL | C120: C | D120: >0 | E120: P | F120: 3.5 | G120: 360.52 | H120: 47 | I120: 17.5 | K120: =SUMIFS('Com Lifts'!$B:$B,'Com Lifts'!$C:$C,B120,'Com Lifts'!$D:$D,I120,'Com Lifts'!$E:$E,C120,'Com Lifts'!$I:$I,D120,'Com Lifts'!$L:$L,E120) -> 0 | L120: 0 | M120: =F120*SUMIFS('Com Lifts'!$A:$A,'Com Lifts'!$C:$C,$B120,'Com Lifts'!$D:$D,$I120,'Com Lifts'!$E:$E,$C120,'Com Lifts'!$I:$I,$D120,'Com Lifts'!$L:$L,$E120) -> 0 | N120: 361.4213 | O120: 0 | P120: 0.0025 | T120: 305.36 | U120: 47
A121: 6 Yard First Pickup (X 3.5) | B121: FL | C121: C | D121: >0 | E121: P | F121: 3.5 | G121: 426.32 | H121: 47 | I121: 21 | K121: =SUMIFS('Com Lifts'!$B:$B,'Com Lifts'!$C:$C,B121,'Com Lifts'!$D:$D,I121,'Com Lifts'!$E:$E,C121,'Com Lifts'!$I:$I,D121,'Com Lifts'!$L:$L,E121) -> 0 | L121: 0 | M121: =F121*SUMIFS('Com Lifts'!$A:$A,'Com Lifts'!$C:$C,$B121,'Com Lifts'!$D:$D,$I121,'Com Lifts'!$E:$E,$C121,'Com Lifts'!$I:$I,$D121,'Com Lifts'!$L:$L,$E121) -> 0 | N121: 427.3858 | O121: 0 | P121: 0.0025 | T121: 361.32 | U121: 47
A123: 1 Yard Add. Pickup (X3.5) | F123: 3.5 | G123: 0 | I123: =VALUE(LEFT(A123,1))*F123 -> 3.5 | L123: =G123*K123*$I$5 -> 0 | M123: =F123*SUMIFS('Com Lifts'!$A:$A,'Com Lifts'!$C:$C,$B123,'Com Lifts'!$D:$D,$I123,'Com Lifts'!$E:$E,$C123,'Com Lifts'!$I:$I,$D123,'Com Lifts'!$L:$L,$E123) -> 0 | N123: =G123*(1+$F$4) -> 0 | O123: =+N123*K123*$I$5 -> 0 | P123: =IF(OR(G123=0,N123=0),"",N123/G123-1) -> 
A124: 2 Yard Add. Pickup (X3.5) | F124: 3.5 | G124: 0 | I124: 7 | L124: 0 | M124: =F124*SUMIFS('Com Lifts'!$A:$A,'Com Lifts'!$C:$C,$B124,'Com Lifts'!$D:$D,$I124,'Com Lifts'!$E:$E,$C124,'Com Lifts'!$I:$I,$D124,'Com Lifts'!$L:$L,$E124) -> 0 | N124: 0 | O124: 0
A125: 3 Yard Add. Pickup (X3.5) | F125: 3.5 | G125: 259.38 | H125: 47 | I125: 10.5 | L125: 0 | M125: =F125*SUMIFS('Com Lifts'!$A:$A,'Com Lifts'!$C:$C,$B125,'Com Lifts'!$D:$D,$I125,'Com Lifts'!$E:$E,$C125,'Com Lifts'!$I:$I,$D125,'Com Lifts'!$L:$L,$E125) -> 0 | N125: 260.02845 | O125: 0 | P125: 0.0025 | T125: 220.07 | U125: 47
A126: 4 Yard Add. Pickup (X3.5) | F126: 3.5 | G126: 318.51 | H126: 47 | I126: 14 | L126: 0 | M126: =F126*SUMIFS('Com Lifts'!$A:$A,'Com Lifts'!$C:$C,$B126,'Com Lifts'!$D:$D,$I126,'Com Lifts'!$E:$E,$C126,'Com Lifts'!$I:$I,$D126,'Com Lifts'!$L:$L,$E126) -> 0 | N126: 319.306275 | O126: 0 | P126: 0.0025 | T126: 270.04 | U126: 47
A127: 5 Yard Add. Pickup (X3.5) | F127: 3.5 | G127: 360.52 | H127: 47 | I127: 17.5 | L127: 0 | M127: =F127*SUMIFS('Com Lifts'!$A:$A,'Com Lifts'!$C:$C,$B127,'Com Lifts'!$D:$D,$I127,'Com Lifts'!$E:$E,$C127,'Com Lifts'!$I:$I,$D127,'Com Lifts'!$L:$L,$E127) -> 0 | N127: 361.4213 | O127: 0 | P127: 0.0025 | T127: 305.36 | U127: 47
A128: 6 Yard Add. Pickup (X3.5) | F128: 3.5 | G128: 426.32 | H128: 47 | I128: 21 | L128: 0 | M128: =F128*SUMIFS('Com Lifts'!$A:$A,'Com Lifts'!$C:$C,$B128,'Com Lifts'!$D:$D,$I128,'Com Lifts'!$E:$E,$C128,'Com Lifts'!$I:$I,$D128,'Com Lifts'!$L:$L,$E128) -> 0 | N128: 427.3858 | O128: 0 | P128: 0.0025 | T128: 361.32 | U128: 47
A130: 1 Yard Special Pickup (X3.5) | B130: FL | C130: C | D130: 0 | E130: P | F130: 3.5 | G130: 0 | I130: =VALUE(LEFT(A130,1))*F130 -> 3.5 | K130: =SUMIFS('Com Lifts'!$B:$B,'Com Lifts'!$C:$C,B130,'Com Lifts'!$D:$D,I130,'Com Lifts'!$E:$E,C130,'Com Lifts'!$I:$I,D130,'Com Lifts'!$L:$L,E130) -> 0 | L130: =G130*K130*$I$5 -> 0 | M130: =F130*SUMIFS('Com Lifts'!$A:$A,'Com Lifts'!$C:$C,$B130,'Com Lifts'!$D:$D,$I130,'Com Lifts'!$E:$E,$C130,'Com Lifts'!$I:$I,$D130,'Com Lifts'!$L:$L,$E130) -> 0 | N130: =G130*(1+$F$4) -> 0 | O130: =+N130*K130*$I$5 -> 0 | P130: =IF(OR(G130=0,N130=0),"",N130/G130-1) -> 
A131: 2 Yard Special Pickup (X3.5) | B131: FL | C131: C | D131: 0 | E131: P | F131: 3.5 | G131: 0 | I131: 7 | K131: =SUMIFS('Com Lifts'!$B:$B,'Com Lifts'!$C:$C,B131,'Com Lifts'!$D:$D,I131,'Com Lifts'!$E:$E,C131,'Com Lifts'!$I:$I,D131,'Com Lifts'!$L:$L,E131) -> 0 | L131: 0 | M131: =F131*SUMIFS('Com Lifts'!$A:$A,'Com Lifts'!$C:$C,$B131,'Com Lifts'!$D:$D,$I131,'Com Lifts'!$E:$E,$C131,'Com Lifts'!$I:$I,$D131,'Com Lifts'!$L:$L,$E131) -> 0 | N131: 0 | O131: 0
A132: 3 Yard Special Pickup (X3.5) | B132: FL | C132: C | D132: 0 | E132: P | F132: 3.5 | G132: 303.88 | H132: 47 | I132: 10.5 | K132: =SUMIFS('Com Lifts'!$B:$B,'Com Lifts'!$C:$C,B132,'Com Lifts'!$D:$D,I132,'Com Lifts'!$E:$E,C132,'Com Lifts'!$I:$I,D132,'Com Lifts'!$L:$L,E132) -> 0 | L132: 0 | M132: =F132*SUMIFS('Com Lifts'!$A:$A,'Com Lifts'!$C:$C,$B132,'Com Lifts'!$D:$D,$I132,'Com Lifts'!$E:$E,$C132,'Com Lifts'!$I:$I,$D132,'Com Lifts'!$L:$L,$E132) -> 0 | N132: 304.6397 | O132: 0 | P132: 0.0025 | T132: 220.07 | U132: 47
A133: 4 Yard Special Pickup (X3.5) | B133: FL | C133: C | D133: 0 | E133: P | F133: 3.5 | G133: 380.37 | H133: 47 | I133: 14 | K133: =SUMIFS('Com Lifts'!$B:$B,'Com Lifts'!$C:$C,B133,'Com Lifts'!$D:$D,I133,'Com Lifts'!$E:$E,C133,'Com Lifts'!$I:$I,D133,'Com Lifts'!$L:$L,E133) -> 0 | L133: 0 | M133: =F133*SUMIFS('Com Lifts'!$A:$A,'Com Lifts'!$C:$C,$B133,'Com Lifts'!$D:$D,$I133,'Com Lifts'!$E:$E,$C133,'Com Lifts'!$I:$I,$D133,'Com Lifts'!$L:$L,$E133) -> 0 | N133: 381.320925 | O133: 0 | P133: 0.0025 | T133: 270.04 | U133: 47
A134: 5 Yard Special Pickup (X3.5) | B134: FL | C134: C | D134: 0 | E134: P | F134: 3.5 | G134: 429.24 | H134: 47 | I134: 17.5 | K134: =SUMIFS('Com Lifts'!$B:$B,'Com Lifts'!$C:$C,B134,'Com Lifts'!$D:$D,I134,'Com Lifts'!$E:$E,C134,'Com Lifts'!$I:$I,D134,'Com Lifts'!$L:$L,E134) -> 0 | L134: 0 | M134: =F134*SUMIFS('Com Lifts'!$A:$A,'Com Lifts'!$C:$C,$B134,'Com Lifts'!$D:$D,$I134,'Com Lifts'!$E:$E,$C134,'Com Lifts'!$I:$I,$D134,'Com Lifts'!$L:$L,$E134) -> 0 | N134: 430.3131 | O134: 0 | P134: 0.0025 | T134: 305.36 | U134: 47
A135: 6 Yard Special Pickup (X3.5) | B135: FL | C135: C | D135: 0 | E135: P | F135: 3.5 | G135: 490.81 | H135: 47 | I135: 21 | K135: =SUMIFS('Com Lifts'!$B:$B,'Com Lifts'!$C:$C,B135,'Com Lifts'!$D:$D,I135,'Com Lifts'!$E:$E,C135,'Com Lifts'!$I:$I,D135,'Com Lifts'!$L:$L,E135) -> 0 | L135: 0 | M135: =F135*SUMIFS('Com Lifts'!$A:$A,'Com Lifts'!$C:$C,$B135,'Com Lifts'!$D:$D,$I135,'Com Lifts'!$E:$E,$C135,'Com Lifts'!$I:$I,$D135,'Com Lifts'!$L:$L,$E135) -> 0 | N135: 492.037025 | O135: 0 | P135: 0.0025 | T135: 361.32 | U135: 47
A137: 1 Yard First Pickup (X5) | B137: FL | C137: C | D137: =">0" -> >0 | E137: P | F137: 5 | G137: 152.17 | H137: 48 | I137: =VALUE(LEFT(A137,1))*F137 -> 5 | K137: =SUMIFS('Com Lifts'!$B:$B,'Com Lifts'!$C:$C,B137,'Com Lifts'!$D:$D,I137,'Com Lifts'!$E:$E,C137,'Com Lifts'!$I:$I,D137,'Com Lifts'!$L:$L,E137) -> 0 | L137: =G137*K137*$I$5 -> 0 | M137: =F137*SUMIFS('Com Lifts'!$A:$A,'Com Lifts'!$C:$C,$B137,'Com Lifts'!$D:$D,$I137,'Com Lifts'!$E:$E,$C137,'Com Lifts'!$I:$I,$D137,'Com Lifts'!$L:$L,$E137) -> 0 | N137: =G137*(1+$F$4) -> 152.550425 | O137: =+N137*K137*$I$5 -> 0 | P137: =IF(OR(G137=0,N137=0),"",N137/G137-1) -> 0.0025 | T137: 129.73 | U137: 48
A138: 2 Yard First Pickup (X5) | B138: FL | C138: C | D138: >0 | E138: P | F138: 5 | G138: 238.22 | H138: 48 | I138: 10 | K138: =SUMIFS('Com Lifts'!$B:$B,'Com Lifts'!$C:$C,B138,'Com Lifts'!$D:$D,I138,'Com Lifts'!$E:$E,C138,'Com Lifts'!$I:$I,D138,'Com Lifts'!$L:$L,E138) -> 0 | L138: 0 | M138: =F138*SUMIFS('Com Lifts'!$A:$A,'Com Lifts'!$C:$C,$B138,'Com Lifts'!$D:$D,$I138,'Com Lifts'!$E:$E,$C138,'Com Lifts'!$I:$I,$D138,'Com Lifts'!$L:$L,$E138) -> 0 | N138: 238.81555 | O138: 0 | P138: 0.0025 | T138: 202.78 | U138: 48
A139: 3 Yard First Pickup (X5) | B139: FL | C139: C | D139: >0 | E139: P | F139: 5 | G139: 303.88 | H139: 48 | I139: 15 | K139: =SUMIFS('Com Lifts'!$B:$B,'Com Lifts'!$C:$C,B139,'Com Lifts'!$D:$D,I139,'Com Lifts'!$E:$E,C139,'Com Lifts'!$I:$I,D139,'Com Lifts'!$L:$L,E139) -> 0 | L139: 0 | M139: =F139*SUMIFS('Com Lifts'!$A:$A,'Com Lifts'!$C:$C,$B139,'Com Lifts'!$D:$D,$I139,'Com Lifts'!$E:$E,$C139,'Com Lifts'!$I:$I,$D139,'Com Lifts'!$L:$L,$E139) -> 0 | N139: 304.6397 | O139: 0 | P139: 0.0025 | T139: 258.32 | U139: 48
A140: 4 Yard First Pickup (X5) | B140: FL | C140: C | D140: >0 | E140: P | F140: 5 | G140: 380.37 | H140: 48 | I140: 20 | K140: =SUMIFS('Com Lifts'!$B:$B,'Com Lifts'!$C:$C,B140,'Com Lifts'!$D:$D,I140,'Com Lifts'!$E:$E,C140,'Com Lifts'!$I:$I,D140,'Com Lifts'!$L:$L,E140) -> 0 | L140: 0 | M140: =F140*SUMIFS('Com Lifts'!$A:$A,'Com Lifts'!$C:$C,$B140,'Com Lifts'!$D:$D,$I140,'Com Lifts'!$E:$E,$C140,'Com Lifts'!$I:$I,$D140,'Com Lifts'!$L:$L,$E140) -> 0 | N140: 381.320925 | O140: 0 | P140: 0.0025 | T140: 323.21 | U140: 48
A141: 5 Yard First Pickup (X5) | B141: FL | C141: C | D141: >0 | E141: P | F141: 5 | G141: 429.24 | H141: 48 | I141: 25 | K141: =SUMIFS('Com Lifts'!$B:$B,'Com Lifts'!$C:$C,B141,'Com Lifts'!$D:$D,I141,'Com Lifts'!$E:$E,C141,'Com Lifts'!$I:$I,D141,'Com Lifts'!$L:$L,E141) -> 0 | L141: 0 | M141: =F141*SUMIFS('Com Lifts'!$A:$A,'Com Lifts'!$C:$C,$B141,'Com Lifts'!$D:$D,$I141,'Com Lifts'!$E:$E,$C141,'Com Lifts'!$I:$I,$D141,'Com Lifts'!$L:$L,$E141) -> 0 | N141: 430.3131 | O141: 0 | P141: 0.0025 | T141: 364.42 | U141: 48
A142: 6 Yard First Pickup (X5) | B142: FL | C142: C | D142: >0 | E142: P | F142: 5 | G142: 490.81 | H142: 48 | I142: 30 | K142: =SUMIFS('Com Lifts'!$B:$B,'Com Lifts'!$C:$C,B142,'Com Lifts'!$D:$D,I142,'Com Lifts'!$E:$E,C142,'Com Lifts'!$I:$I,D142,'Com Lifts'!$L:$L,E142) -> 0 | L142: 0 | M142: =F142*SUMIFS('Com Lifts'!$A:$A,'Com Lifts'!$C:$C,$B142,'Com Lifts'!$D:$D,$I142,'Com Lifts'!$E:$E,$C142,'Com Lifts'!$I:$I,$D142,'Com Lifts'!$L:$L,$E142) -> 0 | N142: 492.037025 | O142: 0 | P142: 0.0025 | T142: 416.75 | U142: 48
A144: 1 Yard Add. Pickup (X5) | F144: 5 | G144: 152.17 | H144: 48 | I144: =VALUE(LEFT(A144,1))*F144 -> 5 | L144: =G144*K144*$I$5 -> 0 | M144: =F144*SUMIFS('Com Lifts'!$A:$A,'Com Lifts'!$C:$C,$B144,'Com Lifts'!$D:$D,$I144,'Com Lifts'!$E:$E,$C144,'Com Lifts'!$I:$I,$D144,'Com Lifts'!$L:$L,$E144) -> 0 | N144: =G144*(1+$F$4) -> 152.550425 | O144: =+N144*K144*$I$5 -> 0 | P144: =IF(OR(G144=0,N144=0),"",N144/G144-1) -> 0.0025 | T144: 129.73 | U144: 48
A145: 2 Yard Add. Pickup (X5) | F145: 5 | G145: 238.22 | H145: 48 | I145: 10 | L145: 0 | M145: =F145*SUMIFS('Com Lifts'!$A:$A,'Com Lifts'!$C:$C,$B145,'Com Lifts'!$D:$D,$I145,'Com Lifts'!$E:$E,$C145,'Com Lifts'!$I:$I,$D145,'Com Lifts'!$L:$L,$E145) -> 0 | N145: 238.81555 | O145: 0 | P145: 0.0025 | T145: 202.78 | U145: 48
A146: 3 Yard Add. Pickup (X5) | F146: 5 | G146: 303.88 | H146: 48 | I146: 15 | L146: 0 | M146: =F146*SUMIFS('Com Lifts'!$A:$A,'Com Lifts'!$C:$C,$B146,'Com Lifts'!$D:$D,$I146,'Com Lifts'!$E:$E,$C146,'Com Lifts'!$I:$I,$D146,'Com Lifts'!$L:$L,$E146) -> 0 | N146: 304.6397 | O146: 0 | P146: 0.0025 | T146: 258.32 | U146: 48
A147: 4 Yard Add. Pickup (X5) | F147: 5 | G147: 380.37 | H147: 48 | I147: 20 | L147: 0 | M147: =F147*SUMIFS('Com Lifts'!$A:$A,'Com Lifts'!$C:$C,$B147,'Com Lifts'!$D:$D,$I147,'Com Lifts'!$E:$E,$C147,'Com Lifts'!$I:$I,$D147,'Com Lifts'!$L:$L,$E147) -> 0 | N147: 381.320925 | O147: 0 | P147: 0.0025 | T147: 323.21 | U147: 48
A148: 5 Yard Add. Pickup (X5) | F148: 5 | G148: 429.24 | H148: 48 | I148: 25 | L148: 0 | M148: =F148*SUMIFS('Com Lifts'!$A:$A,'Com Lifts'!$C:$C,$B148,'Com Lifts'!$D:$D,$I148,'Com Lifts'!$E:$E,$C148,'Com Lifts'!$I:$I,$D148,'Com Lifts'!$L:$L,$E148) -> 0 | N148: 430.3131 | O148: 0 | P148: 0.0025 | T148: 364.42 | U148: 48
A149: 6 Yard Add. Pickup (X5) | F149: 5 | G149: 490.81 | H149: 48 | I149: 30 | L149: 0 | M149: =F149*SUMIFS('Com Lifts'!$A:$A,'Com Lifts'!$C:$C,$B149,'Com Lifts'!$D:$D,$I149,'Com Lifts'!$E:$E,$C149,'Com Lifts'!$I:$I,$D149,'Com Lifts'!$L:$L,$E149) -> 0 | N149: 492.037025 | O149: 0 | P149: 0.0025 | T149: 416.75 | U149: 48
A151: 1 Yard Special Pickup (X5) | B151: FL | C151: C | D151: 0 | E151: P | F151: 5 | G151: 152.17 | H151: 48 | I151: =VALUE(LEFT(A151,1))*F151 -> 5 | K151: =SUMIFS('Com Lifts'!$B:$B,'Com Lifts'!$C:$C,B151,'Com Lifts'!$D:$D,I151,'Com Lifts'!$E:$E,C151,'Com Lifts'!$I:$I,D151,'Com Lifts'!$L:$L,E151) -> 0 | L151: =G151*K151*$I$5 -> 0 | M151: =F151*SUMIFS('Com Lifts'!$A:$A,'Com Lifts'!$C:$C,$B151,'Com Lifts'!$D:$D,$I151,'Com Lifts'!$E:$E,$C151,'Com Lifts'!$I:$I,$D151,'Com Lifts'!$L:$L,$E151) -> 0 | N151: =G151*(1+$F$4) -> 152.550425 | O151: =+N151*K151*$I$5 -> 0 | P151: =IF(OR(G151=0,N151=0),"",N151/G151-1) -> 0.0025 | T151: 129.73 | U151: 48
A152: 2 Yard Special Pickup (X5) | B152: FL | C152: C | D152: 0 | E152: P | F152: 5 | G152: 238.22 | H152: 48 | I152: 10 | K152: =SUMIFS('Com Lifts'!$B:$B,'Com Lifts'!$C:$C,B152,'Com Lifts'!$D:$D,I152,'Com Lifts'!$E:$E,C152,'Com Lifts'!$I:$I,D152,'Com Lifts'!$L:$L,E152) -> 0 | L152: 0 | M152: =F152*SUMIFS('Com Lifts'!$A:$A,'Com Lifts'!$C:$C,$B152,'Com Lifts'!$D:$D,$I152,'Com Lifts'!$E:$E,$C152,'Com Lifts'!$I:$I,$D152,'Com Lifts'!$L:$L,$E152) -> 0 | N152: 238.81555 | O152: 0 | P152: 0.0025 | T152: 202.78 | U152: 48
A153: 3 Yard Special Pickup (X5) | B153: FL | C153: C | D153: 0 | E153: P | F153: 5 | G153: 303.88 | H153: 48 | I153: 15 | K153: =SUMIFS('Com Lifts'!$B:$B,'Com Lifts'!$C:$C,B153,'Com Lifts'!$D:$D,I153,'Com Lifts'!$E:$E,C153,'Com Lifts'!$I:$I,D153,'Com Lifts'!$L:$L,E153) -> 0 | L153: 0 | M153: =F153*SUMIFS('Com Lifts'!$A:$A,'Com Lifts'!$C:$C,$B153,'Com Lifts'!$D:$D,$I153,'Com Lifts'!$E:$E,$C153,'Com Lifts'!$I:$I,$D153,'Com Lifts'!$L:$L,$E153) -> 0 | N153: 304.6397 | O153: 0 | P153: 0.0025 | T153: 258.32 | U153: 48
A154: 4 Yard Special Pickup (X5) | B154: FL | C154: C | D154: 0 | E154: P | F154: 5 | G154: 380.37 | H154: 48 | I154: 20 | K154: =SUMIFS('Com Lifts'!$B:$B,'Com Lifts'!$C:$C,B154,'Com Lifts'!$D:$D,I154,'Com Lifts'!$E:$E,C154,'Com Lifts'!$I:$I,D154,'Com Lifts'!$L:$L,E154) -> 0 | L154: 0 | M154: =F154*SUMIFS('Com Lifts'!$A:$A,'Com Lifts'!$C:$C,$B154,'Com Lifts'!$D:$D,$I154,'Com Lifts'!$E:$E,$C154,'Com Lifts'!$I:$I,$D154,'Com Lifts'!$L:$L,$E154) -> 0 | N154: 381.320925 | O154: 0 | P154: 0.0025 | T154: 323.21 | U154: 48
A155: 5 Yard Special Pickup (X5) | B155: FL | C155: C | D155: 0 | E155: P | F155: 5 | G155: 429.24 | H155: 48 | I155: 25 | K155: =SUMIFS('Com Lifts'!$B:$B,'Com Lifts'!$C:$C,B155,'Com Lifts'!$D:$D,I155,'Com Lifts'!$E:$E,C155,'Com Lifts'!$I:$I,D155,'Com Lifts'!$L:$L,E155) -> 0 | L155: 0 | M155: =F155*SUMIFS('Com Lifts'!$A:$A,'Com Lifts'!$C:$C,$B155,'Com Lifts'!$D:$D,$I155,'Com Lifts'!$E:$E,$C155,'Com Lifts'!$I:$I,$D155,'Com Lifts'!$L:$L,$E155) -> 0 | N155: 430.3131 | O155: 0 | P155: 0.0025 | T155: 364.42 | U155: 48
A156: 6 Yard Special Pickup (X5) | B156: FL | C156: C | D156: 0 | E156: P | F156: 5 | G156: 490.81 | H156: 48 | I156: 30 | K156: =SUMIFS('Com Lifts'!$B:$B,'Com Lifts'!$C:$C,B156,'Com Lifts'!$D:$D,I156,'Com Lifts'!$E:$E,C156,'Com Lifts'!$I:$I,D156,'Com Lifts'!$L:$L,E156) -> 0 | L156: 0 | M156: =F156*SUMIFS('Com Lifts'!$A:$A,'Com Lifts'!$C:$C,$B156,'Com Lifts'!$D:$D,$I156,'Com Lifts'!$E:$E,$C156,'Com Lifts'!$I:$I,$D156,'Com Lifts'!$L:$L,$E156) -> 0 | N156: 492.037025 | O156: 0 | P156: 0.0025 | T156: 416.75 | U156: 48
A158: Multi-Family
A160: Item # 105 - Multi Family Svc
A161: Non Compacted Material
A162: Permanent Accounts
A163: 20 Gallon First Pickup | C163: N | D163: =">0" -> >0 | E163: P | F163: 1 | G163: 6.04 | H163: 31 | I163: =LEFT(A163,2)/100/2 -> 0.1 | K163: =SUMIFS('Com Lifts'!$B:$B,'Com Lifts'!$D:$D,I163,'Com Lifts'!$E:$E,C163,'Com Lifts'!$I:$I,D163,'Com Lifts'!$L:$L,E163,'Com Lifts'!$F:$F,"U") -> 0 | L163: =G163*$K163*$I$5 -> 0 | M163: =F163*SUMIFS('Com Lifts'!$A:$A,'Com Lifts'!$C:$C,$B163,'Com Lifts'!$D:$D,$I163,'Com Lifts'!$E:$E,$C163,'Com Lifts'!$I:$I,$D163,'Com Lifts'!$L:$L,$E163,'Com Lifts'!$F:$F,"U") -> 0 | N163: =G163*(1+$F$5) -> 6.0551 | O163: =N163*$K163*$I$5 -> 0 | P163: =IF(OR(G163=0,N163=0),"",N163/G163-1) -> 0.0025 | R163: =+$F$6*$I163*$K163*$I$5 -> 0 | S163: =+$F$7*$I163*$K163*$I$5 -> 0 | T163: 3.25 | U163: 31 | V163: =I163 -> 0.1 | X163: =K163 -> 0 | Y163: =T163*$K163*$I$5 -> 0 | Z163: =L163-Y163 -> 0
A164: Alternative to 32 Gal. - Blue Bag | C164: N | D164: >0 | E164: P | F164: 1 | G164: 6.04 | H164: 31 | I164: 0.17 | K164: =SUMIFS('Com Lifts'!$B:$B,'Com Lifts'!$D:$D,I164,'Com Lifts'!$E:$E,C164,'Com Lifts'!$I:$I,D164,'Com Lifts'!$L:$L,E164,'Com Lifts'!$F:$F,"U") -> 184.1525 | L164: =G164*$K164*$I$5 -> 13347.3732 | M164: =F164*SUMIFS('Com Lifts'!$A:$A,'Com Lifts'!$C:$C,$B164,'Com Lifts'!$D:$D,$I164,'Com Lifts'!$E:$E,$C164,'Com Lifts'!$I:$I,$D164,'Com Lifts'!$L:$L,$E164,'Com Lifts'!$F:$F,"U") -> 0 | N164: =G164*(1+$F$5) -> 6.0551 | O164: =N164*$K164*$I$5 -> 13380.74163 | P164: =IF(OR(G164=0,N164=0),"",N164/G164-1) -> 0.0025 | R164: =+$F$6*$I164*$K164*$I$5 -> 1067.764108 | S164: =+$F$7*$I164*$K164*$I$5 -> 1622.257401 | T164: 0 | U164: 31 | V164: =I164 -> 0.17 | X164: =K164 -> 184.1525 | Y164: =T164*$K164*$I$5 -> 0 | Z164: =L164-Y164 -> 13347.3732
A165: 32 Gallon First Pickup | C165: N | D165: >0 | E165: P | F165: 1 | G165: 6.04 | H165: 31 | I165: =LEFT(A165,2)/100/2 -> 0.16 | K165: =SUMIFS('Com Lifts'!$B:$B,'Com Lifts'!$D:$D,I165,'Com Lifts'!$E:$E,C165,'Com Lifts'!$I:$I,D165,'Com Lifts'!$L:$L,E165,'Com Lifts'!$F:$F,"U") -> 4.333 | L165: =G165*$K165*$I$5 -> 314.05584 | M165: =F165*SUMIFS('Com Lifts'!$A:$A,'Com Lifts'!$C:$C,$B165,'Com Lifts'!$D:$D,$I165,'Com Lifts'!$E:$E,$C165,'Com Lifts'!$I:$I,$D165,'Com Lifts'!$L:$L,$E165,'Com Lifts'!$F:$F,"U") -> 0 | N165: 6.0551 | O165: 314.8409796 | P165: =IF(OR(G165=0,N165=0),"",N165/G165-1) -> 0.0025 | R165: =+$F$6*$I165*$K165*$I$5 -> 23.64598716 | S165: 35.92542341 | T165: 4.98 | U165: 31 | V165: 0.16 | X165: 4.333 | Y165: =T165*$K165*$I$5 -> 258.94008 | Z165: 55.11576
A166: 64 Gallon First Pickup | C166: N | D166: >0 | E166: P | F166: 1 | G166: 10.22 | H166: 31 | I166: =LEFT(A166,2)/100/2 -> 0.32 | K166: =SUMIFS('Com Lifts'!$B:$B,'Com Lifts'!$D:$D,I166,'Com Lifts'!$E:$E,C166,'Com Lifts'!$I:$I,D166,'Com Lifts'!$L:$L,E166,'Com Lifts'!$F:$F,"U") -> 0 | L166: 0 | M166: =F166*SUMIFS('Com Lifts'!$A:$A,'Com Lifts'!$C:$C,$B166,'Com Lifts'!$D:$D,$I166,'Com Lifts'!$E:$E,$C166,'Com Lifts'!$I:$I,$D166,'Com Lifts'!$L:$L,$E166,'Com Lifts'!$F:$F,"U") -> 0 | N166: 10.24555 | O166: 0 | P166: 0.0025 | R166: =+$F$6*$I166*$K166*$I$5 -> 0 | S166: 0 | T166: 7.53 | U166: 31 | V166: 0.32 | X166: 0 | Y166: 0 | Z166: 0
A167: 96 Gallon First Pickup | C167: N | D167: >0 | E167: P | F167: 1 | G167: 13.53 | H167: 31 | I167: 0.45 | K167: =SUMIFS('Com Lifts'!$B:$B,'Com Lifts'!$D:$D,I167,'Com Lifts'!$E:$E,C167,'Com Lifts'!$I:$I,D167,'Com Lifts'!$L:$L,E167,'Com Lifts'!$F:$F,"U") -> 181.986 | L167: 29547.24696 | M167: =F167*SUMIFS('Com Lifts'!$A:$A,'Com Lifts'!$C:$C,$B167,'Com Lifts'!$D:$D,$I167,'Com Lifts'!$E:$E,$C167,'Com Lifts'!$I:$I,$D167,'Com Lifts'!$L:$L,$E167,'Com Lifts'!$F:$F,"U") -> 0 | N167: 13.563825 | O167: 29621.11508 | P167: 0.0025 | R167: 2793.182233 | S167: 4243.69064 | T167: 10.45 | U167: 31 | V167: 0.45 | X167: 181.986 | Y167: 22821.0444 | Z167: 6726.20256
A168: 1 Yard First Pickup | C168: N | D168: >0 | E168: P | F168: 1 | G168: 27.23 | H168: 31 | I168: =VALUE(LEFT(A168,1)) -> 1 | K168: =SUMIFS('Com Lifts'!$B:$B,'Com Lifts'!$D:$D,I168,'Com Lifts'!$E:$E,C168,'Com Lifts'!$I:$I,D168,'Com Lifts'!$L:$L,E168,'Com Lifts'!$F:$F,"U") -> 0 | L168: 0 | M168: =F168*SUMIFS('Com Lifts'!$A:$A,'Com Lifts'!$C:$C,$B168,'Com Lifts'!$D:$D,$I168,'Com Lifts'!$E:$E,$C168,'Com Lifts'!$I:$I,$D168,'Com Lifts'!$L:$L,$E168,'Com Lifts'!$F:$F,"U") -> 0 | N168: 27.298075 | O168: 0 | P168: 0.0025 | R168: 0 | S168: 0 | T168: 21.97 | U168: 31 | V168: 1 | X168: 0 | Y168: 0 | Z168: 0
A169: 1.5 Yard First Pickup | C169: N | D169: >0 | E169: P | F169: 1 | G169: 37.4 | H169: 31 | I169: =VALUE(LEFT(A169,3))*F169 -> 1.5 | K169: =SUMIFS('Com Lifts'!$B:$B,'Com Lifts'!$D:$D,I169,'Com Lifts'!$E:$E,C169,'Com Lifts'!$I:$I,D169,'Com Lifts'!$L:$L,E169,'Com Lifts'!$F:$F,"U") -> 0 | L169: 0 | M169: =F169*SUMIFS('Com Lifts'!$A:$A,'Com Lifts'!$C:$C,$B169,'Com Lifts'!$D:$D,$I169,'Com Lifts'!$E:$E,$C169,'Com Lifts'!$I:$I,$D169,'Com Lifts'!$L:$L,$E169,'Com Lifts'!$F:$F,"U") -> 0 | N169: 37.4935 | O169: 0 | P169: 0.0025 | R169: 0 | S169: 0 | T169: 30.01 | U169: 31 | V169: 1.5 | X169: 0 | Y169: 0 | Z169: 0
A170: 2 Yard First Pickup | C170: N | D170: >0 | E170: P | F170: 1 | G170: 48.99 | H170: 31 | I170: =VALUE(LEFT(A170,1))*F170 -> 2 | K170: =SUMIFS('Com Lifts'!$B:$B,'Com Lifts'!$D:$D,I170,'Com Lifts'!$E:$E,C170,'Com Lifts'!$I:$I,D170,'Com Lifts'!$L:$L,E170,'Com Lifts'!$F:$F,"U") -> 0 | L170: 0 | M170: =F170*SUMIFS('Com Lifts'!$A:$A,'Com Lifts'!$C:$C,$B170,'Com Lifts'!$D:$D,$I170,'Com Lifts'!$E:$E,$C170,'Com Lifts'!$I:$I,$D170,'Com Lifts'!$L:$L,$E170,'Com Lifts'!$F:$F,"U") -> 0 | N170: 49.112475 | O170: 0 | P170: 0.0025 | R170: 0 | S170: 0 | T170: 39.29 | U170: 31 | V170: 2 | X170: 0 | Y170: 0 | Z170: 0
A171: 3 Yard First Pickup | C171: N | D171: >0 | E171: P | F171: 1 | G171: 69.62 | H171: 31 | I171: =VALUE(LEFT(A171,1))*F171 -> 3 | K171: =SUMIFS('Com Lifts'!$B:$B,'Com Lifts'!$D:$D,I171,'Com Lifts'!$E:$E,C171,'Com Lifts'!$I:$I,D171,'Com Lifts'!$L:$L,E171,'Com Lifts'!$F:$F,"U") -> 0 | L171: 0 | M171: =F171*SUMIFS('Com Lifts'!$A:$A,'Com Lifts'!$C:$C,$B171,'Com Lifts'!$D:$D,$I171,'Com Lifts'!$E:$E,$C171,'Com Lifts'!$I:$I,$D171,'Com Lifts'!$L:$L,$E171,'Com Lifts'!$F:$F,"U") -> 0 | N171: 69.79405 | O171: 0 | P171: 0.0025 | R171: 0 | S171: 0 | T171: 55.63 | U171: 31 | V171: 3 | X171: 0 | Y171: 0 | Z171: =L171-Y171 -> 0
A172: 4 Yard First Pickup | C172: N | D172: >0 | E172: P | F172: 1 | G172: 99.1 | H172: 31 | I172: =VALUE(LEFT(A172,1))*F172 -> 4 | K172: =SUMIFS('Com Lifts'!$B:$B,'Com Lifts'!$D:$D,I172,'Com Lifts'!$E:$E,C172,'Com Lifts'!$I:$I,D172,'Com Lifts'!$L:$L,E172,'Com Lifts'!$F:$F,"U") -> 69.328 | L172: 82444.8576 | M172: =F172*SUMIFS('Com Lifts'!$A:$A,'Com Lifts'!$C:$C,$B172,'Com Lifts'!$D:$D,$I172,'Com Lifts'!$E:$E,$C172,'Com Lifts'!$I:$I,$D172,'Com Lifts'!$L:$L,$E172,'Com Lifts'!$F:$F,"U") -> 0 | N172: 99.34775 | O172: 82650.96974 | P172: 0.0025 | R172: 9458.394863 | S172: 14370.16936 | T172: 74.32 | U172: 31 | V172: 4 | X172: 69.328 | Y172: 61829.48352 | Z172: 20615.37408
A173: 6 Yard First Pickup | C173: N | D173: >0 | E173: P | F173: 1 | G173: 135.43 | H173: 31 | I173: =VALUE(LEFT(A173,1))*F173 -> 6 | K173: =SUMIFS('Com Lifts'!$B:$B,'Com Lifts'!$D:$D,I173,'Com Lifts'!$E:$E,C173,'Com Lifts'!$I:$I,D173,'Com Lifts'!$L:$L,E173,'Com Lifts'!$F:$F,"U") -> 12.999 | L173: 21125.45484 | M173: =F173*SUMIFS('Com Lifts'!$A:$A,'Com Lifts'!$C:$C,$B173,'Com Lifts'!$D:$D,$I173,'Com Lifts'!$E:$E,$C173,'Com Lifts'!$I:$I,$D173,'Com Lifts'!$L:$L,$E173,'Com Lifts'!$F:$F,"U") -> 0 | N173: 135.768575 | O173: 21178.26848 | P173: 0.0025 | R173: 2660.173555 | S173: 4041.610134 | T173: 108.22 | U173: 31 | V173: 6 | X173: 12.999 | Y173: 16881.02136 | Z173: 4244.43348
A174: 8 Yard First Pickup | C174: N | D174: >0 | E174: P | F174: 1 | G174: 181.49 | H174: 31 | I174: =VALUE(LEFT(A174,1))*F174 -> 8 | K174: =SUMIFS('Com Lifts'!$B:$B,'Com Lifts'!$D:$D,I174,'Com Lifts'!$E:$E,C174,'Com Lifts'!$I:$I,D174,'Com Lifts'!$L:$L,E174,'Com Lifts'!$F:$F,"U") -> 4.333 | L174: 9436.75404 | M174: =F174*SUMIFS('Com Lifts'!$A:$A,'Com Lifts'!$C:$C,$B174,'Com Lifts'!$D:$D,$I174,'Com Lifts'!$E:$E,$C174,'Com Lifts'!$I:$I,$D174,'Com Lifts'!$L:$L,$E174,'Com Lifts'!$F:$F,"U") -> 0 | N174: 181.943725 | O174: 9460.345925 | P174: 0.0025 | R174: 1182.299358 | S174: 1796.271171 | T174: 145.4 | U174: 31 | V174: 8 | X174: 4.333 | Y174: 7560.2184 | Z174: 1876.53564
A176: 20 Gallon Additional Pickup | F176: 1 | G176: 6.04 | H176: 31 | I176: =LEFT(A176,2)/100/2 -> 0.1 | L176: 0 | M176: =F176*SUMIFS('Com Lifts'!$A:$A,'Com Lifts'!$C:$C,$B176,'Com Lifts'!$D:$D,$I176,'Com Lifts'!$E:$E,$C176,'Com Lifts'!$I:$I,$D176,'Com Lifts'!$L:$L,$E176,'Com Lifts'!$F:$F,"U") -> 0 | N176: =G176*(1+$F$5) -> 6.0551 | O176: =N176*$K176*$I$5 -> 0 | P176: =IF(OR(G176=0,N176=0),"",N176/G176-1) -> 0.0025 | R176: =+$F$6*$I176*$K176*$I$5 -> 0 | S176: =+$F$7*$I176*$K176*$I$5 -> 0 | T176: 3.25 | U176: 31 | Z176: =SUM(Z16:Z175) -> 85052.92053 | AA176: PF Adj
A177: 32 Gallon Additional Pickup | F177: 1 | G177: 6.04 | H177: 31 | I177: =LEFT(A177,2)/100/2 -> 0.16 | L177: 0 | M177: =F177*SUMIFS('Com Lifts'!$A:$A,'Com Lifts'!$C:$C,$B177,'Com Lifts'!$D:$D,$I177,'Com Lifts'!$E:$E,$C177,'Com Lifts'!$I:$I,$D177,'Com Lifts'!$L:$L,$E177,'Com Lifts'!$F:$F,"U") -> 0 | N177: 6.0551 | O177: 0 | P177: 0.0025 | R177: 0 | S177: 0 | T177: 4.98 | U177: 31
A178: 64 Gallon Additional Pickup | F178: 1 | G178: 10.22 | H178: 31 | I178: =LEFT(A178,2)/100/2 -> 0.32 | L178: 0 | M178: =F178*SUMIFS('Com Lifts'!$A:$A,'Com Lifts'!$C:$C,$B178,'Com Lifts'!$D:$D,$I178,'Com Lifts'!$E:$E,$C178,'Com Lifts'!$I:$I,$D178,'Com Lifts'!$L:$L,$E178,'Com Lifts'!$F:$F,"U") -> 0 | N178: 10.24555 | O178: 0 | P178: 0.0025 | R178: 0 | S178: 0 | T178: 7.53 | U178: 31
A179: 96 Gallon Additional Pickup | F179: 1 | G179: 13.53 | H179: 31 | I179: =LEFT(A179,2)/100/2 -> 0.48 | L179: 0 | M179: =F179*SUMIFS('Com Lifts'!$A:$A,'Com Lifts'!$C:$C,$B179,'Com Lifts'!$D:$D,$I179,'Com Lifts'!$E:$E,$C179,'Com Lifts'!$I:$I,$D179,'Com Lifts'!$L:$L,$E179,'Com Lifts'!$F:$F,"U") -> 0 | N179: 13.563825 | O179: 0 | P179: 0.0025 | R179: 0 | S179: 0 | T179: 10.45 | U179: 31
A180: 1 Yard Additional Pickup | F180: 1 | G180: 27.23 | H180: 31 | I180: =VALUE(LEFT(A180,1)) -> 1 | L180: 0 | M180: =F180*SUMIFS('Com Lifts'!$A:$A,'Com Lifts'!$C:$C,$B180,'Com Lifts'!$D:$D,$I180,'Com Lifts'!$E:$E,$C180,'Com Lifts'!$I:$I,$D180,'Com Lifts'!$L:$L,$E180,'Com Lifts'!$F:$F,"U") -> 0 | N180: 27.298075 | O180: 0 | P180: 0.0025 | R180: 0 | S180: 0 | T180: 21.97 | U180: 31
A181: 1.5 Yard Additional Pickup | F181: 1 | G181: 37.4 | H181: 31 | I181: =VALUE(LEFT(A181,3))*F181 -> 1.5 | L181: 0 | M181: =F181*SUMIFS('Com Lifts'!$A:$A,'Com Lifts'!$C:$C,$B181,'Com Lifts'!$D:$D,$I181,'Com Lifts'!$E:$E,$C181,'Com Lifts'!$I:$I,$D181,'Com Lifts'!$L:$L,$E181,'Com Lifts'!$F:$F,"U") -> 0 | N181: 37.4935 | O181: 0 | P181: 0.0025 | R181: 0 | S181: 0 | T181: 30.01 | U181: 31
A182: 2 Yard Additional Pickup | F182: 1 | G182: 48.99 | H182: 31 | I182: =VALUE(LEFT(A182,1))*F182 -> 2 | L182: 0 | M182: =F182*SUMIFS('Com Lifts'!$A:$A,'Com Lifts'!$C:$C,$B182,'Com Lifts'!$D:$D,$I182,'Com Lifts'!$E:$E,$C182,'Com Lifts'!$I:$I,$D182,'Com Lifts'!$L:$L,$E182,'Com Lifts'!$F:$F,"U") -> 0 | N182: 49.112475 | O182: 0 | P182: 0.0025 | R182: 0 | S182: 0 | T182: 39.29 | U182: 31
A183: 3 Yard Additional Pickup | F183: 1 | G183: 69.62 | H183: 31 | I183: =VALUE(LEFT(A183,1))*F183 -> 3 | L183: 0 | M183: =F183*SUMIFS('Com Lifts'!$A:$A,'Com Lifts'!$C:$C,$B183,'Com Lifts'!$D:$D,$I183,'Com Lifts'!$E:$E,$C183,'Com Lifts'!$I:$I,$D183,'Com Lifts'!$L:$L,$E183,'Com Lifts'!$F:$F,"U") -> 0 | N183: 69.79405 | O183: 0 | P183: 0.0025 | R183: 0 | S183: 0 | T183: 55.63 | U183: 31
A184: 4 Yard Additional Pickup | F184: 1 | G184: 99.1 | H184: 31 | I184: =VALUE(LEFT(A184,1))*F184 -> 4 | L184: 0 | M184: =F184*SUMIFS('Com Lifts'!$A:$A,'Com Lifts'!$C:$C,$B184,'Com Lifts'!$D:$D,$I184,'Com Lifts'!$E:$E,$C184,'Com Lifts'!$I:$I,$D184,'Com Lifts'!$L:$L,$E184,'Com Lifts'!$F:$F,"U") -> 0 | N184: 99.34775 | O184: 0 | P184: 0.0025 | R184: 0 | S184: 0 | T184: 74.32 | U184: 31
A185: 6 Yard Additional Pickup | F185: 1 | G185: 135.43 | H185: 31 | I185: =VALUE(LEFT(A185,1))*F185 -> 6 | L185: 0 | M185: =F185*SUMIFS('Com Lifts'!$A:$A,'Com Lifts'!$C:$C,$B185,'Com Lifts'!$D:$D,$I185,'Com Lifts'!$E:$E,$C185,'Com Lifts'!$I:$I,$D185,'Com Lifts'!$L:$L,$E185,'Com Lifts'!$F:$F,"U") -> 0 | N185: 135.768575 | O185: 0 | P185: 0.0025 | R185: 0 | S185: 0 | T185: 108.22 | U185: 31
A186: 8 Yard Additional Pickup | F186: 1 | G186: 181.49 | H186: 31 | I186: =VALUE(LEFT(A186,1))*F186 -> 8 | L186: 0 | M186: =F186*SUMIFS('Com Lifts'!$A:$A,'Com Lifts'!$C:$C,$B186,'Com Lifts'!$D:$D,$I186,'Com Lifts'!$E:$E,$C186,'Com Lifts'!$I:$I,$D186,'Com Lifts'!$L:$L,$E186,'Com Lifts'!$F:$F,"U") -> 0 | N186: 181.943725 | O186: 0 | P186: =IF(OR(G186=0,N186=0),"",N186/G186-1) -> 0.0025 | R186: 0 | S186: 0 | T186: 145.4 | U186: 31
A188: 20 Gallon Special Pickup | C188: N | D188: 0 | E188: P | F188: 1 | G188: 6.73 | H188: 31 | I188: =LEFT(A188,2)/100/2 -> 0.1 | K188: =SUMIFS('Com Lifts'!$B:$B,'Com Lifts'!$D:$D,I188,'Com Lifts'!$E:$E,C188,'Com Lifts'!$I:$I,D188,'Com Lifts'!$L:$L,E188,'Com Lifts'!$F:$F,"U") -> 0 | L188: 0 | M188: =F188*SUMIFS('Com Lifts'!$A:$A,'Com Lifts'!$C:$C,$B188,'Com Lifts'!$D:$D,$I188,'Com Lifts'!$E:$E,$C188,'Com Lifts'!$I:$I,$D188,'Com Lifts'!$L:$L,$E188,'Com Lifts'!$F:$F,"U") -> 0 | N188: =G188*(1+$F$5) -> 6.746825 | O188: =N188*$K188*$I$5 -> 0 | P188: =IF(OR(G188=0,N188=0),"",N188/G188-1) -> 0.0025 | R188: =+$F$6*$I188*$K188*$I$5 -> 0 | S188: =+$F$7*$I188*$K188*$I$5 -> 0 | T188: 5.46 | U188: 31
A189: 32 Gallon Special Pickup | C189: N | D189: 0 | E189: P | F189: 1 | G189: 6.73 | H189: 31 | I189: =LEFT(A189,2)/100/2 -> 0.16 | K189: =SUMIFS('Com Lifts'!$B:$B,'Com Lifts'!$D:$D,I189,'Com Lifts'!$E:$E,C189,'Com Lifts'!$I:$I,D189,'Com Lifts'!$L:$L,E189,'Com Lifts'!$F:$F,"U") -> 0 | L189: 0 | M189: =F189*SUMIFS('Com Lifts'!$A:$A,'Com Lifts'!$C:$C,$B189,'Com Lifts'!$D:$D,$I189,'Com Lifts'!$E:$E,$C189,'Com Lifts'!$I:$I,$D189,'Com Lifts'!$L:$L,$E189,'Com Lifts'!$F:$F,"U") -> 0 | N189: 6.746825 | O189: 0 | P189: 0.0025 | R189: 0 | S189: 0 | T189: 5.51 | U189: 31
A190: 64 Gallon Special Pickup | C190: N | D190: 0 | E190: P | F190: 1 | G190: 9.92 | H190: 31 | I190: =LEFT(A190,2)/100/2 -> 0.32 | K190: =SUMIFS('Com Lifts'!$B:$B,'Com Lifts'!$D:$D,I190,'Com Lifts'!$E:$E,C190,'Com Lifts'!$I:$I,D190,'Com Lifts'!$L:$L,E190,'Com Lifts'!$F:$F,"U") -> 0 | L190: 0 | M190: =F190*SUMIFS('Com Lifts'!$A:$A,'Com Lifts'!$C:$C,$B190,'Com Lifts'!$D:$D,$I190,'Com Lifts'!$E:$E,$C190,'Com Lifts'!$I:$I,$D190,'Com Lifts'!$L:$L,$E190,'Com Lifts'!$F:$F,"U") -> 0 | N190: 9.9448 | O190: 0 | P190: 0.0025 | R190: 0 | S190: 0 | T190: 8.09 | U190: 31
A191: 96 Gallon Special Pickup | C191: N | D191: 0 | E191: P | F191: 1 | G191: 13.57 | H191: 31 | I191: =LEFT(A191,2)/100/2 -> 0.48 | K191: =SUMIFS('Com Lifts'!$B:$B,'Com Lifts'!$D:$D,I191,'Com Lifts'!$E:$E,C191,'Com Lifts'!$I:$I,D191,'Com Lifts'!$L:$L,E191,'Com Lifts'!$F:$F,"U") -> 0 | L191: 0 | M191: =F191*SUMIFS('Com Lifts'!$A:$A,'Com Lifts'!$C:$C,$B191,'Com Lifts'!$D:$D,$I191,'Com Lifts'!$E:$E,$C191,'Com Lifts'!$I:$I,$D191,'Com Lifts'!$L:$L,$E191,'Com Lifts'!$F:$F,"U") -> 0 | N191: 13.603925 | O191: 0 | P191: 0.0025 | R191: 0 | S191: 0 | T191: 11.01 | U191: 31
A192: 1 Yard Special Pickup | C192: N | D192: 0 | E192: P | F192: 1 | G192: 30.23 | H192: 31 | I192: =VALUE(LEFT(A192,1)) -> 1 | K192: =SUMIFS('Com Lifts'!$B:$B,'Com Lifts'!$D:$D,I192,'Com Lifts'!$E:$E,C192,'Com Lifts'!$I:$I,D192,'Com Lifts'!$L:$L,E192,'Com Lifts'!$F:$F,"U") -> 0 | L192: 0 | M192: =F192*SUMIFS('Com Lifts'!$A:$A,'Com Lifts'!$C:$C,$B192,'Com Lifts'!$D:$D,$I192,'Com Lifts'!$E:$E,$C192,'Com Lifts'!$I:$I,$D192,'Com Lifts'!$L:$L,$E192,'Com Lifts'!$F:$F,"U") -> 0 | N192: 30.305575 | O192: 0 | P192: 0.0025 | R192: 0 | S192: 0 | T192: 24.54 | U192: 31
A193: 1.5 Yard Special Pickup | C193: N | D193: 0 | E193: P | F193: 1 | G193: 40.48 | H193: 31 | I193: =VALUE(LEFT(A193,3))*F193 -> 1.5 | K193: =SUMIFS('Com Lifts'!$B:$B,'Com Lifts'!$D:$D,I193,'Com Lifts'!$E:$E,C193,'Com Lifts'!$I:$I,D193,'Com Lifts'!$L:$L,E193,'Com Lifts'!$F:$F,"U") -> 0 | L193: 0 | M193: =F193*SUMIFS('Com Lifts'!$A:$A,'Com Lifts'!$C:$C,$B193,'Com Lifts'!$D:$D,$I193,'Com Lifts'!$E:$E,$C193,'Com Lifts'!$I:$I,$D193,'Com Lifts'!$L:$L,$E193,'Com Lifts'!$F:$F,"U") -> 0 | N193: 40.5812 | O193: 0 | P193: 0.0025 | R193: 0 | S193: 0 | T193: 32.66 | U193: 31
A194: 2 Yard Special Pickup | C194: N | D194: 0 | E194: P | F194: 1 | G194: 53.62 | H194: 31 | I194: =VALUE(LEFT(A194,1))*F194 -> 2 | K194: =SUMIFS('Com Lifts'!$B:$B,'Com Lifts'!$D:$D,I194,'Com Lifts'!$E:$E,C194,'Com Lifts'!$I:$I,D194,'Com Lifts'!$L:$L,E194,'Com Lifts'!$F:$F,"U") -> 0 | L194: 0 | M194: =F194*SUMIFS('Com Lifts'!$A:$A,'Com Lifts'!$C:$C,$B194,'Com Lifts'!$D:$D,$I194,'Com Lifts'!$E:$E,$C194,'Com Lifts'!$I:$I,$D194,'Com Lifts'!$L:$L,$E194,'Com Lifts'!$F:$F,"U") -> 0 | N194: 53.75405 | O194: 0 | P194: 0.0025 | R194: 0 | S194: 0 | T194: 43.27 | U194: 31
A195: 3 Yard Special Pickup | C195: N | D195: 0 | E195: P | F195: 1 | G195: 75.79 | H195: 31 | I195: =VALUE(LEFT(A195,1))*F195 -> 3 | K195: =SUMIFS('Com Lifts'!$B:$B,'Com Lifts'!$D:$D,I195,'Com Lifts'!$E:$E,C195,'Com Lifts'!$I:$I,D195,'Com Lifts'!$L:$L,E195,'Com Lifts'!$F:$F,"U") -> 0 | L195: 0 | M195: =F195*SUMIFS('Com Lifts'!$A:$A,'Com Lifts'!$C:$C,$B195,'Com Lifts'!$D:$D,$I195,'Com Lifts'!$E:$E,$C195,'Com Lifts'!$I:$I,$D195,'Com Lifts'!$L:$L,$E195,'Com Lifts'!$F:$F,"U") -> 0 | N195: 75.979475 | O195: 0 | P195: 0.0025 | R195: 0 | S195: 0 | T195: 60.94 | U195: 31
A196: 4 Yard Special Pickup | C196: N | D196: 0 | E196: P | F196: 1 | G196: 99.1 | H196: 31 | I196: =VALUE(LEFT(A196,1))*F196 -> 4 | K196: =SUMIFS('Com Lifts'!$B:$B,'Com Lifts'!$D:$D,I196,'Com Lifts'!$E:$E,C196,'Com Lifts'!$I:$I,D196,'Com Lifts'!$L:$L,E196,'Com Lifts'!$F:$F,"U") -> 0 | L196: 0 | M196: =F196*SUMIFS('Com Lifts'!$A:$A,'Com Lifts'!$C:$C,$B196,'Com Lifts'!$D:$D,$I196,'Com Lifts'!$E:$E,$C196,'Com Lifts'!$I:$I,$D196,'Com Lifts'!$L:$L,$E196,'Com Lifts'!$F:$F,"U") -> 0 | N196: 99.34775 | O196: 0 | P196: 0.0025 | R196: 0 | S196: 0 | T196: 79.62 | U196: 31
A197: 6 Yard Special Pickup | C197: N | D197: 0 | E197: P | F197: 1 | G197: 144.67 | H197: 31 | I197: =VALUE(LEFT(A197,1))*F197 -> 6 | K197: =SUMIFS('Com Lifts'!$B:$B,'Com Lifts'!$D:$D,I197,'Com Lifts'!$E:$E,C197,'Com Lifts'!$I:$I,D197,'Com Lifts'!$L:$L,E197,'Com Lifts'!$F:$F,"U") -> 0 | L197: 0 | M197: =F197*SUMIFS('Com Lifts'!$A:$A,'Com Lifts'!$C:$C,$B197,'Com Lifts'!$D:$D,$I197,'Com Lifts'!$E:$E,$C197,'Com Lifts'!$I:$I,$D197,'Com Lifts'!$L:$L,$E197,'Com Lifts'!$F:$F,"U") -> 0 | N197: 145.031675 | O197: 0 | P197: 0.0025 | R197: 0 | S197: 0 | T197: 116.17 | U197: 31
A198: 8 Yard Special Pickup | C198: N | D198: 0 | E198: P | F198: 1 | G198: 194.28 | H198: 31 | I198: =VALUE(LEFT(A198,1))*F198 -> 8 | K198: =SUMIFS('Com Lifts'!$B:$B,'Com Lifts'!$D:$D,I198,'Com Lifts'!$E:$E,C198,'Com Lifts'!$I:$I,D198,'Com Lifts'!$L:$L,E198,'Com Lifts'!$F:$F,"U") -> 0 | L198: 0 | M198: =F198*SUMIFS('Com Lifts'!$A:$A,'Com Lifts'!$C:$C,$B198,'Com Lifts'!$D:$D,$I198,'Com Lifts'!$E:$E,$C198,'Com Lifts'!$I:$I,$D198,'Com Lifts'!$L:$L,$E198,'Com Lifts'!$F:$F,"U") -> 0 | N198: 194.7657 | O198: 0 | P198: 0.0025 | R198: 0 | S198: 0 | T198: 156.38 | U198: 31
A200: 20 Gallon Rental | G200: 0.64 | H200: 31 | J200: =+SUM('Revenue Lookup'!I141:L141)/$I$5/G200 -> 0 | L200: 0 | N200: =G200*(1+$F$5) -> 0.6416 | O200: =N200*$K200*$I$5 -> 0 | P200: =IF(OR(G200=0,N200=0),"",N200/G200-1) -> 0.0025 | R200: =+$F$6*$I200*$K200*$I$5 -> 0 | S200: =+$F$7*$I200*$K200*$I$5 -> 0 | T200: 0.55 | U200: 31
A201: 32 Gallon Rental | G201: 0.64 | H201: 31 | J201: =+SUM('Revenue Lookup'!I142:L142)/$I$5/G201 -> 0 | L201: 0 | N201: 0.6416 | O201: 0 | P201: 0.0025 | R201: 0 | S201: 0 | T201: 0.55 | U201: 31
A202: 64 Gallon Rental | G202: 1.93 | H202: 31 | J202: =+SUM('Revenue Lookup'!I143:L143)/$I$5/G202 -> 0 | L202: 0 | N202: 1.934825 | O202: 0 | P202: 0.0025 | R202: 0 | S202: 0 | T202: 1.66 | U202: 31
A203: 96 Gallon Rental | G203: 1.93 | H203: 31 | J203: =+SUM('Revenue Lookup'!I144:L145)/$I$5/G203 -> 0 | L203: 0 | N203: 1.934825 | O203: 0 | P203: 0.0025 | R203: 0 | S203: 0 | T203: 1.66 | U203: 31
A204: 1 Yard Rental | G204: 9.04 | H204: 31 | J204: =+SUM('Revenue Lookup'!I128:L128)/$I$5/G204 -> 0 | L204: 0 | N204: 9.0626 | O204: 0 | P204: 0.0025 | R204: 0 | S204: 0 | T204: 7.77 | U204: 31
A205: 1.5 Yard Rental | G205: 10.97 | H205: 31 | J205: =+SUM('Revenue Lookup'!I129:L129)/$I$5/G205 -> 0 | L205: 0 | N205: 10.997425 | O205: 0 | P205: 0.0025 | R205: 0 | S205: 0 | T205: 9.43 | U205: 31
A206: 2 Yard Rental | G206: 12.26 | H206: 31 | J206: =+SUM('Revenue Lookup'!I130:L130)/$I$5/G206 -> 0 | L206: 0 | N206: 12.29065 | O206: 0 | P206: 0.0025 | R206: 0 | S206: 0 | T206: 10.54 | U206: 31
A207: 3 Yard Rental | G207: 15.5 | H207: 31 | J207: =+SUM('Revenue Lookup'!I131:L131)/$I$5/G207 -> 0 | L207: 0 | N207: 15.53875 | O207: 0 | P207: 0.0025 | R207: 0 | S207: 0 | T207: 13.32 | U207: 31
A208: 4 Yard Rental | G208: 17.75 | H208: 31 | J208: =+SUM('Revenue Lookup'!I132:L132)/$I$5/G208 -> 0 | L208: 0 | N208: 17.794375 | O208: 0 | P208: 0.0025 | R208: 0 | S208: 0 | T208: 15.26 | U208: 31
A209: 6 Yard Rental | G209: 25.83 | H209: 31 | J209: =+SUM('Revenue Lookup'!I133:L133)/$I$5/G209 -> 0 | L209: 0 | N209: 25.894575 | O209: 0 | P209: 0.0025 | R209: 0 | S209: 0 | T209: 22.2 | U209: 31
A210: 8 Yard Rental | G210: 30.34 | H210: 31 | J210: =+SUM('Revenue Lookup'!I134:L134)/$I$5/G210 -> 0 | L210: 0 | N210: 30.41585 | O210: 0 | P210: 0.0025 | R210: 0 | S210: 0 | T210: 26.08 | U210: 31
A212: Temporary Accounts
A213: 1 Yard Initial Delivery | G213: 45.19 | H213: 31 | J213: =+SUM('Revenue Lookup'!I183:L183)/$I$5/G213 -> 0 | L213: =G213*$K213*$I$5 -> 0 | N213: =G213*(1+$F$5) -> 45.302975 | O213: =N213*$K213*$I$5 -> 0 | P213: =IF(OR(G213=0,N213=0),"",N213/G213-1) -> 0.0025 | R213: =+$F$6*$I213*$K213*$I$5 -> 0 | S213: =+$F$7*$I213*$K213*$I$5 -> 0 | T213: 38.84 | U213: 31
A214: 1.5 Yard Initial Delivery | G214: 45.19 | H214: 31 | J214: =+SUM('Revenue Lookup'!I184:L184)/$I$5/G214 -> 0 | L214: 0 | N214: 45.302975 | O214: 0 | P214: 0.0025 | R214: 0 | S214: 0 | T214: 38.84 | U214: 31
A215: 2 Yard Initial Delivery | G215: 45.19 | H215: 31 | J215: =+SUM('Revenue Lookup'!I185:L185)/$I$5/G215 -> 0 | L215: 0 | N215: 45.302975 | O215: 0 | P215: 0.0025 | R215: 0 | S215: 0 | T215: 38.84 | U215: 31
A216: 3 Yard Initial Delivery | G216: 45.19 | H216: 31 | J216: =+SUM('Revenue Lookup'!I186:L186)/$I$5/G216 -> 0 | L216: 0 | N216: 45.302975 | O216: 0 | P216: 0.0025 | R216: 0 | S216: 0 | T216: 38.84 | U216: 31
A217: 4 Yard Initial Delivery | G217: 45.19 | H217: 31 | J217: =+SUM('Revenue Lookup'!I187:L187)/$I$5/G217 -> 0 | L217: 0 | N217: 45.302975 | O217: 0 | P217: 0.0025 | R217: 0 | S217: 0 | T217: 38.84 | U217: 31
A218: 6 Yard Initial Delivery | G218: 45.19 | H218: 31 | J218: =+SUM('Revenue Lookup'!I188:L188)/$I$5/G218 -> 0 | L218: 0 | N218: 45.302975 | O218: 0 | P218: 0.0025 | R218: 0 | S218: 0 | T218: 38.84 | U218: 31
A219: 8 Yard Initial Delivery | G219: 45.19 | H219: 31 | J219: =+SUM('Revenue Lookup'!I189:L189)/$I$5/G219 -> 0 | L219: 0 | N219: 45.302975 | O219: 0 | P219: 0.0025 | R219: 0 | S219: 0 | T219: 38.84 | U219: 31
A221: 1 Yard Pickup | C221: N | D221: 0 | E221: T | F221: 1 | G221: 30.23 | H221: 31 | I221: =VALUE(LEFT(A221,1)) -> 1 | K221: =SUMIFS('Com Lifts'!$B:$B,'Com Lifts'!$D:$D,I221,'Com Lifts'!$E:$E,C221,'Com Lifts'!$I:$I,D221,'Com Lifts'!$L:$L,E221,'Com Lifts'!$F:$F,"U") -> 0 | L221: =G221*$K221*$I$5 -> 0 | M221: =F221*SUMIFS('Com Lifts'!$A:$A,'Com Lifts'!$C:$C,$B221,'Com Lifts'!$D:$D,$I221,'Com Lifts'!$E:$E,$C221,'Com Lifts'!$I:$I,$D221,'Com Lifts'!$L:$L,$E221,'Com Lifts'!$F:$F,"U") -> 0 | N221: 30.305575 | O221: =N221*$K221*$I$5 -> 0 | P221: =IF(OR(G221=0,N221=0),"",N221/G221-1) -> 0.0025 | R221: =+$F$6*$I221*$K221*$I$5 -> 0 | S221: =+$F$7*$I221*$K221*$I$5 -> 0 | T221: 24.54 | U221: 31
A222: 1.5 Yard Pickup | C222: N | D222: 0 | E222: T | F222: 1 | G222: 40.48 | H222: 31 | I222: =VALUE(LEFT(A222,3)) -> 1.5 | K222: =SUMIFS('Com Lifts'!$B:$B,'Com Lifts'!$D:$D,I222,'Com Lifts'!$E:$E,C222,'Com Lifts'!$I:$I,D222,'Com Lifts'!$L:$L,E222,'Com Lifts'!$F:$F,"U") -> 0 | L222: 0 | M222: =F222*SUMIFS('Com Lifts'!$A:$A,'Com Lifts'!$C:$C,$B222,'Com Lifts'!$D:$D,$I222,'Com Lifts'!$E:$E,$C222,'Com Lifts'!$I:$I,$D222,'Com Lifts'!$L:$L,$E222,'Com Lifts'!$F:$F,"U") -> 0 | N222: 40.5812 | O222: 0 | P222: =IF(OR(G222=0,N222=0),"",N222/G222-1) -> 0.0025 | R222: 0 | S222: 0 | T222: 32.66 | U222: 31
A223: 2 Yard Pickup | C223: N | D223: 0 | E223: T | F223: 1 | G223: 53.62 | H223: 31 | I223: =VALUE(LEFT(A223,1)) -> 2 | K223: =SUMIFS('Com Lifts'!$B:$B,'Com Lifts'!$D:$D,I223,'Com Lifts'!$E:$E,C223,'Com Lifts'!$I:$I,D223,'Com Lifts'!$L:$L,E223,'Com Lifts'!$F:$F,"U") -> 0 | L223: 0 | M223: =F223*SUMIFS('Com Lifts'!$A:$A,'Com Lifts'!$C:$C,$B223,'Com Lifts'!$D:$D,$I223,'Com Lifts'!$E:$E,$C223,'Com Lifts'!$I:$I,$D223,'Com Lifts'!$L:$L,$E223,'Com Lifts'!$F:$F,"U") -> 0 | N223: 53.75405 | O223: 0 | P223: =IF(OR(G223=0,N223=0),"",N223/G223-1) -> 0.0025 | R223: 0 | S223: 0 | T223: 43.27 | U223: 31
A224: 3 Yard Pickup | C224: N | D224: 0 | E224: T | F224: 1 | G224: 75.79 | H224: 31 | I224: =VALUE(LEFT(A224,1)) -> 3 | K224: =SUMIFS('Com Lifts'!$B:$B,'Com Lifts'!$D:$D,I224,'Com Lifts'!$E:$E,C224,'Com Lifts'!$I:$I,D224,'Com Lifts'!$L:$L,E224,'Com Lifts'!$F:$F,"U") -> 1 | L224: 909.48 | M224: =F224*SUMIFS('Com Lifts'!$A:$A,'Com Lifts'!$C:$C,$B224,'Com Lifts'!$D:$D,$I224,'Com Lifts'!$E:$E,$C224,'Com Lifts'!$I:$I,$D224,'Com Lifts'!$L:$L,$E224,'Com Lifts'!$F:$F,"U") -> 0 | N224: 75.979475 | O224: =N224*$K224*$I$5 -> 911.7537 | P224: 0.0025 | R224: 102.3222384 | S224: 155.458502 | T224: 60.94 | U224: 31
... 57 more rows

Sheet IND (+MF) Price Out
A1: Roll-off / Industrial & Multi-Family Price Out | H1: =+'Resi Price Out'!D1 -> Constants
H2: =+'Resi Price Out'!D2 -> Weekly | I2: =+'Resi Price Out'!E2 -> 4.333
A3: LG Calculation % Price Increases | H3: =+'Resi Price Out'!D3 -> Every Other Week | I3: =+'Resi Price Out'!E3 -> 2.1665
A4: Garbage | F4: ='Comm (+MF) Price Out'!F4 -> 0.0025 | H4: =+'Resi Price Out'!D4 -> Monthly | I4: =+'Resi Price Out'!E4 -> 1 | N4: Revenue
A5: Multi-Family Recycling | F5: ='Comm (+MF) Price Out'!F5 -> 0.0025 | H5: =+'Resi Price Out'!D5 -> Months / Yr | I5: =+'Resi Price Out'!E5 -> 12 | M5: Sub-LOB | N5: Current | O5: Proposed | Q5: Difference
M6: Garbage Svc | N6: =SUM(K18:K41,K59:K66,K79:K96) -> 36979.74 | O6: =SUM(N18:N41,N59:N66,N79:N96) -> 37072.18935 | Q6: =O6-N6 -> 92.44935 | S6: =N6*0.25% -> 92.44935
A7: Total Revenue from Proforma | K7: =+#REF! ->  | M7: MSW Cont | N7: =SUM(K42:K58,K67:K74) -> 4204.99 | O7: =SUM(N42:N58,N67:N74) -> 4215.502475 | Q7: =O7-N7 -> 10.512475 | S7: =N7*0.25% -> 10.512475
A8: % Variance | K8: =+K7/K9-1 ->  | M8: MF RCY Scv | N8: =SUM(K103:K126,K145:K152,K165:K180) -> 30285.53 | O8: =SUM(N103:N126,N145:N152,N165:N180) -> 30361.24383 | Q8: 75.713825 | S8: 75.713825
A9: Total Price Out Revenue | K9: =SUM(K13:K180) -> 71470.26 | M9: MF RCY Cont | N9: =SUM(K127:K134,K137:K144,K153:K160) -> 0 | O9: =SUM(N127:N134,N137:N144,N153:N160) -> 0 | Q9: 0
Q10: =SUM(Q6:Q9) -> 178.67565 | S10: =SUM(S6:S9) -> 178.67565
H11: Tariff | J11: Annual | K11: Annual | L11: Annual | M11: Proposed | N11: Proposed | O11: Proposed
A12: Container Service | B12: Service Parameters | F12: Compaction Rate | G12: Current Rate | H12: Page # | I12: Yards | J12: Hauls | K12: Revenue | L12: Yards | M12: Rates | N12: Ann'l Rev | O12: % Rate Inc.
A14: Item# 260 Drop Box Service
A15: Compact Material
A16: Company Owned Cont. | D16: Haul | E16: Cont/Mat
A17: Permanent Service | B17: Perm | C17: Compctr | D17: Wght | E17: Type
A18: 10 Yard First Pickup | B18: P | C18: ="" ->  | D18: =">0" -> >0 | E18: RO | F18: 1 | G18: 172.51 | H18: 49 | I18: =VALUE(LEFT(A18,3))*F18 -> 10 | J18: =SUMIFS('IND Data'!$U:$U,'IND Data'!$X:$X,B18,'IND Data'!$H:$H,'Revenue Lookup'!$B$74,'IND Data'!$M:$M,C18,'IND Data'!$K:$K,E18,'IND Data'!$L:$L,LEFT(A18,2),'IND Data'!$W:$W,D18,'IND Data'!$N:$N,"<>U")+SUMIFS('IND Data'!$U:$U,'IND Data'!$X:$X,B18,'IND Data'!$H:$H,'Revenue Lookup'!$B$75,'IND Data'!$M:$M,C18,'IND Data'!$K:$K,E18,'IND Data'!$L:$L,LEFT(A18,2),'IND Data'!$W:$W,D18,'IND Data'!$N:$N,"<>U") -> 0 | K18: =+G18*J18 -> 0 | L18: =+I18*J18 -> 0 | M18: =G18*(1+$F$4) -> 172.941275 | N18: =+M18*J18 -> 0 | O18: =IF(OR(G18=0,M18=0),"",M18/G18-1) -> 0.0025 | R18: 133.6 | S18: 49 | T18: =I18 -> 10 | U18: =J18 -> 0 | V18: =+R18*U18 -> 0 | W18: =K18-V18 -> 0
A19: 15 Yard First Pickup | B19: P | C19: ="" ->  | D19: =">0" -> >0 | E19: RO | F19: 1 | G19: 172.51 | H19: 49 | I19: 15 | J19: =SUMIFS('IND Data'!$U:$U,'IND Data'!$X:$X,B19,'IND Data'!$H:$H,'Revenue Lookup'!$B$74,'IND Data'!$M:$M,C19,'IND Data'!$K:$K,E19,'IND Data'!$L:$L,LEFT(A19,2),'IND Data'!$W:$W,D19,'IND Data'!$N:$N,"<>U")+SUMIFS('IND Data'!$U:$U,'IND Data'!$X:$X,B19,'IND Data'!$H:$H,'Revenue Lookup'!$B$75,'IND Data'!$M:$M,C19,'IND Data'!$K:$K,E19,'IND Data'!$L:$L,LEFT(A19,2),'IND Data'!$W:$W,D19,'IND Data'!$N:$N,"<>U") -> 0 | K19: 0 | L19: 0 | M19: =G19*(1+$F$4) -> 172.941275 | N19: =+M19*J19 -> 0 | O19: 0.0025 | R19: 133.6 | S19: 49 | T19: =I19 -> 15 | U19: =J19 -> 0 | V19: 0 | W19: =K19-V19 -> 0
A20: 20 Yard First Pickup | B20: P | C20: ="" ->  | D20: >0 | E20: RO | F20: 1 | G20: 172.51 | H20: 49 | I20: 20 | J20: =SUMIFS('IND Data'!$U:$U,'IND Data'!$X:$X,B20,'IND Data'!$H:$H,'Revenue Lookup'!$B$74,'IND Data'!$M:$M,C20,'IND Data'!$K:$K,E20,'IND Data'!$L:$L,LEFT(A20,2),'IND Data'!$W:$W,D20,'IND Data'!$N:$N,"<>U")+SUMIFS('IND Data'!$U:$U,'IND Data'!$X:$X,B20,'IND Data'!$H:$H,'Revenue Lookup'!$B$75,'IND Data'!$M:$M,C20,'IND Data'!$K:$K,E20,'IND Data'!$L:$L,LEFT(A20,2),'IND Data'!$W:$W,D20,'IND Data'!$N:$N,"<>U") -> 0 | K20: 0 | L20: 0 | M20: =G20*(1+$F$4) -> 172.941275 | N20: 0 | O20: 0.0025 | R20: 133.6 | S20: 49 | T20: 20 | U20: 0 | V20: 0 | W20: 0
A21: 25 Yard First Pickup | B21: P | C21: ="" ->  | D21: >0 | E21: RO | F21: 1 | G21: 172.51 | H21: 49 | I21: 25 | J21: =SUMIFS('IND Data'!$U:$U,'IND Data'!$X:$X,B21,'IND Data'!$H:$H,'Revenue Lookup'!$B$74,'IND Data'!$M:$M,C21,'IND Data'!$K:$K,E21,'IND Data'!$L:$L,LEFT(A21,2),'IND Data'!$W:$W,D21,'IND Data'!$N:$N,"<>U")+SUMIFS('IND Data'!$U:$U,'IND Data'!$X:$X,B21,'IND Data'!$H:$H,'Revenue Lookup'!$B$75,'IND Data'!$M:$M,C21,'IND Data'!$K:$K,E21,'IND Data'!$L:$L,LEFT(A21,2),'IND Data'!$W:$W,D21,'IND Data'!$N:$N,"<>U") -> 66 | K21: 11385.66 | L21: 1650 | M21: 172.941275 | N21: 11414.12415 | O21: 0.0025 | R21: 133.6 | S21: 49 | T21: 25 | U21: 66 | V21: 8817.6 | W21: 2568.06
A22: 30 Yard First Pickup | B22: P | C22: ="" ->  | D22: >0 | E22: RO | F22: 1 | G22: 172.51 | H22: 49 | I22: 30 | J22: =SUMIFS('IND Data'!$U:$U,'IND Data'!$X:$X,B22,'IND Data'!$H:$H,'Revenue Lookup'!$B$74,'IND Data'!$M:$M,C22,'IND Data'!$K:$K,E22,'IND Data'!$L:$L,LEFT(A22,2),'IND Data'!$W:$W,D22,'IND Data'!$N:$N,"<>U")+SUMIFS('IND Data'!$U:$U,'IND Data'!$X:$X,B22,'IND Data'!$H:$H,'Revenue Lookup'!$B$75,'IND Data'!$M:$M,C22,'IND Data'!$K:$K,E22,'IND Data'!$L:$L,LEFT(A22,2),'IND Data'!$W:$W,D22,'IND Data'!$N:$N,"<>U") -> 32 | K22: 5520.32 | L22: 960 | M22: 172.941275 | N22: 5534.1208 | O22: 0.0025 | R22: 133.6 | S22: 49 | T22: 30 | U22: 32 | V22: 4275.2 | W22: 1245.12
A23: 35 Yard First Pickup | B23: P | C23: ="" ->  | D23: >0 | E23: RO | F23: 1 | G23: 172.51 | H23: 49 | I23: 35 | J23: =SUMIFS('IND Data'!$U:$U,'IND Data'!$X:$X,B23,'IND Data'!$H:$H,'Revenue Lookup'!$B$74,'IND Data'!$M:$M,C23,'IND Data'!$K:$K,E23,'IND Data'!$L:$L,LEFT(A23,2),'IND Data'!$W:$W,D23,'IND Data'!$N:$N,"<>U")+SUMIFS('IND Data'!$U:$U,'IND Data'!$X:$X,B23,'IND Data'!$H:$H,'Revenue Lookup'!$B$75,'IND Data'!$M:$M,C23,'IND Data'!$K:$K,E23,'IND Data'!$L:$L,LEFT(A23,2),'IND Data'!$W:$W,D23,'IND Data'!$N:$N,"<>U") -> 0 | K23: 0 | L23: 0 | M23: 172.941275 | N23: 0 | O23: 0.0025 | T23: 35 | U23: 0 | V23: 0 | W23: 0
A24: 40 Yard First Pickup | B24: P | C24: ="" ->  | D24: >0 | E24: RO | F24: 1 | G24: 172.51 | H24: 49 | I24: 40 | J24: =SUMIFS('IND Data'!$U:$U,'IND Data'!$X:$X,B24,'IND Data'!$H:$H,'Revenue Lookup'!$B$74,'IND Data'!$M:$M,C24,'IND Data'!$K:$K,E24,'IND Data'!$L:$L,LEFT(A24,2),'IND Data'!$W:$W,D24,'IND Data'!$N:$N,"<>U")+SUMIFS('IND Data'!$U:$U,'IND Data'!$X:$X,B24,'IND Data'!$H:$H,'Revenue Lookup'!$B$75,'IND Data'!$M:$M,C24,'IND Data'!$K:$K,E24,'IND Data'!$L:$L,LEFT(A24,2),'IND Data'!$W:$W,D24,'IND Data'!$N:$N,"<>U") -> 11 | K24: 1897.61 | L24: 440 | M24: 172.941275 | N24: 1902.354025 | O24: 0.0025 | R24: 133.6 | S24: 49 | T24: 40 | U24: 11 | V24: 1469.6 | W24: 428.01
A26: 10 Yard Additional Pickup | B26: P | C26: ="" ->  | D26: =">0" -> >0 | E26: RO | F26: 1 | G26: 172.51 | H26: 49 | I26: =VALUE(LEFT(A26,3))*F26 -> 10 | K26: =+G26*J26 -> 0 | L26: =+I26*J26 -> 0 | M26: =G26*(1+$F$4) -> 172.941275 | N26: =+M26*J26 -> 0 | O26: =IF(OR(G26=0,M26=0),"",M26/G26-1) -> 0.0025 | R26: 133.6 | S26: 49 | T26: =I26 -> 10 | U26: =J26 -> 0 | V26: =+R26*U26 -> 0 | W26: =K26-V26 -> 0
A27: 15 Yard Additional Pickup | B27: P | C27: ="" ->  | D27: =">0" -> >0 | E27: RO | F27: 1 | G27: 172.51 | H27: 49 | I27: 15 | K27: 0 | L27: 0 | M27: 172.941275 | N27: 0 | O27: 0.0025 | R27: 133.6 | S27: 49 | T27: 15 | U27: 0 | V27: 0 | W27: 0
A28: 20 Yard Additional Pickup | B28: P | C28: ="" ->  | D28: >0 | E28: RO | F28: 1 | G28: 172.51 | H28: 49 | I28: 20 | K28: 0 | L28: 0 | M28: 172.941275 | N28: 0 | O28: 0.0025 | R28: 133.6 | S28: 49 | T28: 20 | U28: 0 | V28: 0 | W28: 0
A29: 25 Yard Additional Pickup | B29: P | C29: ="" ->  | D29: >0 | E29: RO | F29: 1 | G29: 172.51 | H29: 49 | I29: 25 | K29: 0 | L29: 0 | M29: =G29*(1+$F$4) -> 172.941275 | N29: 0 | O29: 0.0025 | R29: 133.6 | S29: 49 | T29: 25 | U29: 0 | V29: 0 | W29: 0
A30: 30 Yard Additional Pickup | B30: P | C30: ="" ->  | D30: >0 | E30: RO | F30: 1 | G30: 172.51 | H30: 49 | I30: 30 | K30: 0 | L30: 0 | M30: 172.941275 | N30: 0 | O30: 0.0025 | R30: 133.6 | S30: 49 | T30: 30 | U30: 0 | V30: 0 | W30: 0
A31: 35 Yard Additional Pickup | B31: P | C31: ="" ->  | D31: >0 | E31: RO | F31: 1 | G31: 172.51 | H31: 49 | I31: 35 | K31: 0 | L31: 0 | M31: 172.941275 | N31: 0 | O31: 0.0025 | T31: 35 | U31: 0 | V31: 0 | W31: 0
A32: 40 Yard Additional Pickup | B32: P | C32: ="" ->  | D32: >0 | E32: RO | F32: 1 | G32: 172.51 | H32: 49 | I32: 40 | K32: 0 | L32: 0 | M32: 172.941275 | N32: 0 | O32: 0.0025 | R32: 133.6 | S32: 49 | T32: 40 | U32: 0 | V32: 0 | W32: 0
T33: 0 | U33: 0 | V33: 0 | W33: 0
A34: 10 Yard Special Pickup | B34: P | C34: ="" ->  | D34: =">0" -> >0 | E34: RO | F34: 1 | G34: 180.26 | H34: 49 | I34: =VALUE(LEFT(A34,3))*F34 -> 10 | K34: =+G34*J34 -> 0 | L34: =+I34*J34 -> 0 | M34: =G34*(1+$F$4) -> 180.71065 | N34: =+M34*J34 -> 0 | O34: =IF(OR(G34=0,M34=0),"",M34/G34-1) -> 0.0025 | R34: 139.6 | S34: 49 | T34: 10 | U34: 0 | V34: 0 | W34: 0
A35: 15 Yard Special Pickup | B35: P | C35: ="" ->  | D35: =">0" -> >0 | E35: RO | F35: 1 | G35: 180.26 | H35: 49 | I35: 15 | K35: 0 | L35: 0 | M35: 180.71065 | N35: 0 | O35: 0.0025 | R35: 139.6 | S35: 49 | T35: 15 | U35: 0 | V35: 0 | W35: 0
A36: 20 Yard Special Pickup | B36: P | C36: ="" ->  | D36: >0 | E36: RO | F36: 1 | G36: 180.26 | H36: 49 | I36: 20 | K36: 0 | L36: 0 | M36: 180.71065 | N36: 0 | O36: 0.0025 | R36: 139.6 | S36: 49 | T36: 20 | U36: 0 | V36: 0 | W36: 0
A37: 25 Yard Special Pickup | B37: P | C37: ="" ->  | D37: >0 | E37: RO | F37: 1 | G37: 180.26 | H37: 49 | I37: 25 | K37: 0 | L37: 0 | M37: 180.71065 | N37: 0 | O37: 0.0025 | R37: 139.6 | S37: 49 | T37: 25 | U37: 0 | V37: 0 | W37: 0
A38: 30 Yard Special Pickup | B38: P | C38: ="" ->  | D38: >0 | E38: RO | F38: 1 | G38: 180.26 | H38: 49 | I38: 30 | K38: 0 | L38: 0 | M38: 180.71065 | N38: 0 | O38: 0.0025 | R38: 139.6 | S38: 49 | T38: 30 | U38: 0 | V38: 0 | W38: 0
A39: 35 Yard Special Pickup | B39: P | C39: ="" ->  | D39: >0 | E39: RO | F39: 1 | G39: 180.26 | H39: 49 | I39: 35 | K39: 0 | L39: 0 | M39: 180.71065 | N39: 0 | O39: 0.0025 | T39: 35 | U39: 0 | V39: 0 | W39: 0
A40: 40 Yard Special Pickup | B40: P | C40: ="" ->  | D40: >0 | E40: RO | F40: 1 | G40: 180.26 | H40: 49 | I40: 40 | K40: 0 | L40: 0 | M40: 180.71065 | N40: 0 | O40: 0.0025 | R40: 139.6 | S40: 49 | T40: 40 | U40: 0 | V40: 0 | W40: 0
T41: 0 | U41: 0 | V41: 0 | W41: 0
A42: 10 Yard Monthly Rent | G42: 46.48 | H42: 49 | J42: =SUM('Revenue Lookup'!I147:O147)/G42 -> 0 | K42: =+G42*J42 -> 0 | L42: =+I42*J42 -> 0 | M42: =G42*(1+$F$4) -> 46.5962 | N42: =+M42*J42 -> 0 | O42: =IF(OR(G42=0,M42=0),"",M42/G42-1) -> 0.0025 | R42: 36 | S42: 49 | T42: 0 | U42: 0 | V42: 0 | W42: 0
A43: 15 Yard Monthly Rent | G43: 56.81 | H43: 49 | J43: =SUM('Revenue Lookup'!I148:O148)/G43 -> 0 | K43: =+G43*J43 -> 0 | L43: 0 | M43: 56.952025 | N43: 0 | O43: 0.0025 | R43: 44 | S43: 49 | T43: 0 | U43: 0 | V43: 0 | W43: 0
A44: 20 Yard Monthly Rent | G44: 67.14 | H44: 49 | J44: =SUM('Revenue Lookup'!I149:O149)/G44 -> 1.533363122 | K44: 102.95 | L44: 0 | M44: 67.30785 | N44: 103.207375 | O44: 0.0025 | R44: 52 | S44: 49 | T44: 0 | U44: 1.533363122 | V44: 79.73488234 | W44: 23.21511766
A45: 25 Yard Monthly Rent | G45: 80.06 | H45: 49 | J45: =SUM('Revenue Lookup'!I150:O150)/G45 -> 16.40182363 | K45: 1313.13 | L45: 0 | M45: 80.26015 | N45: 1316.412825 | O45: 0.0025 | R45: 62 | S45: 49 | T45: 0 | U45: 16.40182363 | V45: 1016.913065 | W45: 296.2169348
A46: 30 Yard Monthly Rent | G46: 90.39 | H46: 49 | J46: =SUM('Revenue Lookup'!I151:O151)/G46 -> 7.503042372 | K46: 678.2 | L46: 0 | M46: 90.615975 | N46: 679.8955 | O46: 0.0025 | R46: 70 | S46: 49 | T46: 0 | U46: 7.503042372 | V46: 525.212966 | W46: 152.987034
A47: 35 Yard Monthly Rent | G47: 109.75 | H47: N/A | J47: =SUM('Revenue Lookup'!I152:O152)/G47 -> 0 | K47: 0 | L47: 0 | M47: 110.024375 | N47: 0 | O47: 0.0025 | T47: 0 | U47: 0 | V47: 0 | W47: 0
A48: 40 Yard Monthly Rent | G48: 109.75 | H48: 49 | J48: =SUM('Revenue Lookup'!I153:O153)/G48 -> 9.231981777 | K48: 1013.21 | L48: 0 | M48: 110.024375 | N48: =+M48*J48 -> 1015.743025 | O48: 0.0025 | R48: 85 | S48: 49 | T48: 0 | U48: 9.231981777 | V48: 784.718451 | W48: 228.491549
D49: =+D16 -> Haul | E49: =+E16 -> Cont/Mat
A50: Temporary Service | B50: Temp | C50: =+C17 -> Compctr | D50: =+D17 -> Wght | E50: =+E17 -> Type
A51: 10 Yard Delivery | B51: T | C51: ="" ->  | D51: 0 | E51: RO | G51: 109.75 | H51: 49 | J51: =SUMIFS('IND Data'!$U:$U,'IND Data'!$X:$X,B51,'IND Data'!$H:$H,'Revenue Lookup'!$B$74,'IND Data'!$M:$M,C51,'IND Data'!$K:$K,E51,'IND Data'!$L:$L,LEFT(A51,2),'IND Data'!$W:$W,D51,'IND Data'!$N:$N,"<>U")+SUMIFS('IND Data'!$U:$U,'IND Data'!$X:$X,B51,'IND Data'!$H:$H,'Revenue Lookup'!$B$75,'IND Data'!$M:$M,C51,'IND Data'!$K:$K,E51,'IND Data'!$L:$L,LEFT(A51,2),'IND Data'!$W:$W,D51,'IND Data'!$N:$N,"<>U") -> 0 | K51: =+G51*J51 -> 0 | M51: =G51*(1+$F$4) -> 110.024375 | N51: =+M51*J51 -> 0 | O51: =IF(OR(G51=0,M51=0),"",M51/G51-1) -> 0.0025 | R51: 85 | S51: 49 | T51: =I51 -> 0 | U51: =J51 -> 0 | V51: =+R51*U51 -> 0 | W51: =K51-V51 -> 0
A52: 15 Yard Delivery | B52: T | C52: ="" ->  | D52: 0 | E52: RO | G52: 109.75 | H52: 49 | J52: =SUMIFS('IND Data'!$U:$U,'IND Data'!$X:$X,B52,'IND Data'!$H:$H,'Revenue Lookup'!$B$74,'IND Data'!$M:$M,C52,'IND Data'!$K:$K,E52,'IND Data'!$L:$L,LEFT(A52,2),'IND Data'!$W:$W,D52,'IND Data'!$N:$N,"<>U")+SUMIFS('IND Data'!$U:$U,'IND Data'!$X:$X,B52,'IND Data'!$H:$H,'Revenue Lookup'!$B$75,'IND Data'!$M:$M,C52,'IND Data'!$K:$K,E52,'IND Data'!$L:$L,LEFT(A52,2),'IND Data'!$W:$W,D52,'IND Data'!$N:$N,"<>U") -> 0 | K52: 0 | M52: 110.024375 | N52: 0 | O52: 0.0025 | R52: 85 | S52: 49 | T52: 0 | U52: 0 | V52: 0 | W52: 0
A53: 20 Yard Delivery | B53: T | C53: ="" ->  | D53: 0 | E53: RO | G53: 109.75 | H53: 49 | J53: =SUMIFS('IND Data'!$U:$U,'IND Data'!$X:$X,B53,'IND Data'!$H:$H,'Revenue Lookup'!$B$74,'IND Data'!$M:$M,C53,'IND Data'!$K:$K,E53,'IND Data'!$L:$L,LEFT(A53,2),'IND Data'!$W:$W,D53,'IND Data'!$N:$N,"<>U")+SUMIFS('IND Data'!$U:$U,'IND Data'!$X:$X,B53,'IND Data'!$H:$H,'Revenue Lookup'!$B$75,'IND Data'!$M:$M,C53,'IND Data'!$K:$K,E53,'IND Data'!$L:$L,LEFT(A53,2),'IND Data'!$W:$W,D53,'IND Data'!$N:$N,"<>U") -> 5 | K53: 548.75 | M53: 110.024375 | N53: 550.121875 | O53: 0.0025 | R53: 85 | S53: 49 | T53: 0 | U53: 5 | V53: 425 | W53: 123.75
A54: 25 Yard Delivery | B54: T | C54: ="" ->  | D54: 0 | E54: RO | G54: 109.75 | H54: 49 | J54: =SUMIFS('IND Data'!$U:$U,'IND Data'!$X:$X,B54,'IND Data'!$H:$H,'Revenue Lookup'!$B$74,'IND Data'!$M:$M,C54,'IND Data'!$K:$K,E54,'IND Data'!$L:$L,LEFT(A54,2),'IND Data'!$W:$W,D54,'IND Data'!$N:$N,"<>U")+SUMIFS('IND Data'!$U:$U,'IND Data'!$X:$X,B54,'IND Data'!$H:$H,'Revenue Lookup'!$B$75,'IND Data'!$M:$M,C54,'IND Data'!$K:$K,E54,'IND Data'!$L:$L,LEFT(A54,2),'IND Data'!$W:$W,D54,'IND Data'!$N:$N,"<>U") -> 1 | K54: 109.75 | M54: 110.024375 | N54: 110.024375 | O54: 0.0025 | R54: 85 | S54: 49 | T54: 0 | U54: 1 | V54: 85 | W54: 24.75
A55: 30 Yard Delivery | B55: T | C55: ="" ->  | D55: 0 | E55: RO | G55: 109.75 | H55: 49 | J55: =SUMIFS('IND Data'!$U:$U,'IND Data'!$X:$X,B55,'IND Data'!$H:$H,'Revenue Lookup'!$B$74,'IND Data'!$M:$M,C55,'IND Data'!$K:$K,E55,'IND Data'!$L:$L,LEFT(A55,2),'IND Data'!$W:$W,D55,'IND Data'!$N:$N,"<>U")+SUMIFS('IND Data'!$U:$U,'IND Data'!$X:$X,B55,'IND Data'!$H:$H,'Revenue Lookup'!$B$75,'IND Data'!$M:$M,C55,'IND Data'!$K:$K,E55,'IND Data'!$L:$L,LEFT(A55,2),'IND Data'!$W:$W,D55,'IND Data'!$N:$N,"<>U") -> 1 | K55: 109.75 | M55: 110.024375 | N55: 110.024375 | O55: 0.0025 | R55: 85 | S55: 49 | T55: 0 | U55: 1 | V55: 85 | W55: 24.75
A56: 35 Yard Delivery | B56: T | C56: ="" ->  | D56: 0 | E56: RO | G56: 109.75 | H56: 49 | J56: =SUMIFS('IND Data'!$U:$U,'IND Data'!$X:$X,B56,'IND Data'!$H:$H,'Revenue Lookup'!$B$74,'IND Data'!$M:$M,C56,'IND Data'!$K:$K,E56,'IND Data'!$L:$L,LEFT(A56,2),'IND Data'!$W:$W,D56,'IND Data'!$N:$N,"<>U")+SUMIFS('IND Data'!$U:$U,'IND Data'!$X:$X,B56,'IND Data'!$H:$H,'Revenue Lookup'!$B$75,'IND Data'!$M:$M,C56,'IND Data'!$K:$K,E56,'IND Data'!$L:$L,LEFT(A56,2),'IND Data'!$W:$W,D56,'IND Data'!$N:$N,"<>U") -> 0 | K56: 0 | M56: 110.024375 | N56: 0 | O56: 0.0025 | T56: 0 | U56: 0 | V56: 0 | W56: 0
A57: 40 Yard Delivery | B57: T | C57: ="" ->  | D57: 0 | E57: RO | G57: 109.75 | H57: 49 | J57: =SUMIFS('IND Data'!$U:$U,'IND Data'!$X:$X,B57,'IND Data'!$H:$H,'Revenue Lookup'!$B$74,'IND Data'!$M:$M,C57,'IND Data'!$K:$K,E57,'IND Data'!$L:$L,LEFT(A57,2),'IND Data'!$W:$W,D57,'IND Data'!$N:$N,"<>U")+SUMIFS('IND Data'!$U:$U,'IND Data'!$X:$X,B57,'IND Data'!$H:$H,'Revenue Lookup'!$B$75,'IND Data'!$M:$M,C57,'IND Data'!$K:$K,E57,'IND Data'!$L:$L,LEFT(A57,2),'IND Data'!$W:$W,D57,'IND Data'!$N:$N,"<>U") -> 3 | K57: 329.25 | M57: 110.024375 | N57: 330.073125 | O57: 0.0025 | R57: 85 | S57: 49 | T57: 0 | U57: 3 | V57: 255 | W57: 74.25
A59: 10 Yard Pickup | B59: T | C59: ="" ->  | D59: =">0" -> >0 | E59: RO | F59: 1 | G59: 180.26 | H59: 49 | I59: =VALUE(LEFT(A59,3))*F59 -> 10 | J59: =SUMIFS('IND Data'!$U:$U,'IND Data'!$X:$X,"T",'IND Data'!$H:$H,'Revenue Lookup'!$B$74,'IND Data'!$M:$M,"",'IND Data'!$K:$K,"RO",'IND Data'!$L:$L,LEFT(A59,2),'IND Data'!$W:$W,"<>U")+SUMIFS('IND Data'!$U:$U,'IND Data'!$X:$X,"T",'IND Data'!$H:$H,'Revenue Lookup'!$B$75,'IND Data'!$M:$M,"",'IND Data'!$K:$K,"RO",'IND Data'!$L:$L,LEFT(A59,2),'IND Data'!$W:$W,"<>U") -> 0 | K59: =+G59*J59 -> 0 | L59: =+I59*J59 -> 0 | M59: =G59*(1+$F$4) -> 180.71065 | N59: =+M59*J59 -> 0 | O59: =IF(OR(G59=0,M59=0),"",M59/G59-1) -> 0.0025 | R59: 139.6 | S59: 49 | T59: =I59 -> 10 | U59: =J59 -> 0 | V59: =+R59*U59 -> 0 | W59: =K59-V59 -> 0
A60: 15 Yard Pickup | B60: T | C60: ="" ->  | D60: =">0" -> >0 | E60: RO | F60: 1 | G60: 180.26 | H60: 49 | I60: 15 | J60: =SUMIFS('IND Data'!$U:$U,'IND Data'!$X:$X,"T",'IND Data'!$H:$H,'Revenue Lookup'!$B$74,'IND Data'!$M:$M,"",'IND Data'!$K:$K,"RO",'IND Data'!$L:$L,LEFT(A60,2),'IND Data'!$W:$W,"<>U")+SUMIFS('IND Data'!$U:$U,'IND Data'!$X:$X,"T",'IND Data'!$H:$H,'Revenue Lookup'!$B$75,'IND Data'!$M:$M,"",'IND Data'!$K:$K,"RO",'IND Data'!$L:$L,LEFT(A60,2),'IND Data'!$W:$W,"<>U") -> 0 | K60: =+G60*J60 -> 0 | L60: 0 | M60: 180.71065 | N60: 0 | O60: 0.0025 | R60: 139.6 | S60: 49 | T60: 15 | U60: 0 | V60: 0 | W60: 0
A61: 20 Yard Pickup | B61: T | C61: ="" ->  | D61: >0 | E61: RO | F61: 1 | G61: 180.26 | H61: 49 | I61: 20 | J61: =SUMIFS('IND Data'!$U:$U,'IND Data'!$X:$X,"T",'IND Data'!$H:$H,'Revenue Lookup'!$B$74,'IND Data'!$M:$M,"",'IND Data'!$K:$K,"RO",'IND Data'!$L:$L,LEFT(A61,2),'IND Data'!$W:$W,"<>U")+SUMIFS('IND Data'!$U:$U,'IND Data'!$X:$X,"T",'IND Data'!$H:$H,'Revenue Lookup'!$B$75,'IND Data'!$M:$M,"",'IND Data'!$K:$K,"RO",'IND Data'!$L:$L,LEFT(A61,2),'IND Data'!$W:$W,"<>U") -> 10 | K61: =+G61*J61 -> 1802.6 | L61: 200 | M61: 180.71065 | N61: 1807.1065 | O61: 0.0025 | R61: 139.6 | S61: 49 | T61: 20 | U61: 10 | V61: 1396 | W61: 406.6
A62: 25 Yard Pickup | B62: T | C62: ="" ->  | D62: >0 | E62: RO | F62: 1 | G62: 180.26 | H62: 49 | I62: 25 | J62: =SUMIFS('IND Data'!$U:$U,'IND Data'!$X:$X,"T",'IND Data'!$H:$H,'Revenue Lookup'!$B$74,'IND Data'!$M:$M,"",'IND Data'!$K:$K,"RO",'IND Data'!$L:$L,LEFT(A62,2),'IND Data'!$W:$W,"<>U")+SUMIFS('IND Data'!$U:$U,'IND Data'!$X:$X,"T",'IND Data'!$H:$H,'Revenue Lookup'!$B$75,'IND Data'!$M:$M,"",'IND Data'!$K:$K,"RO",'IND Data'!$L:$L,LEFT(A62,2),'IND Data'!$W:$W,"<>U") -> 2 | K62: 360.52 | L62: 50 | M62: 180.71065 | N62: 361.4213 | O62: 0.0025 | R62: 139.6 | S62: 49 | T62: 25 | U62: 2 | V62: 279.2 | W62: 81.32
A63: 30 Yard Pickup | B63: T | C63: ="" ->  | D63: >0 | E63: RO | F63: 1 | G63: 180.26 | H63: 49 | I63: 30 | J63: =SUMIFS('IND Data'!$U:$U,'IND Data'!$X:$X,"T",'IND Data'!$H:$H,'Revenue Lookup'!$B$74,'IND Data'!$M:$M,"",'IND Data'!$K:$K,"RO",'IND Data'!$L:$L,LEFT(A63,2),'IND Data'!$W:$W,"<>U")+SUMIFS('IND Data'!$U:$U,'IND Data'!$X:$X,"T",'IND Data'!$H:$H,'Revenue Lookup'!$B$75,'IND Data'!$M:$M,"",'IND Data'!$K:$K,"RO",'IND Data'!$L:$L,LEFT(A63,2),'IND Data'!$W:$W,"<>U") -> 3 | K63: 540.78 | L63: 90 | M63: 180.71065 | N63: 542.13195 | O63: 0.0025 | R63: 139.6 | S63: 49 | T63: 30 | U63: 3 | V63: 418.8 | W63: 121.98
A64: 35 Yard Pickup | B64: T | C64: ="" ->  | D64: >0 | E64: RO | F64: 1 | G64: 180.26 | H64: 49 | I64: 35 | J64: =SUMIFS('IND Data'!$U:$U,'IND Data'!$X:$X,"T",'IND Data'!$H:$H,'Revenue Lookup'!$B$74,'IND Data'!$M:$M,"",'IND Data'!$K:$K,"RO",'IND Data'!$L:$L,LEFT(A64,2),'IND Data'!$W:$W,"<>U")+SUMIFS('IND Data'!$U:$U,'IND Data'!$X:$X,"T",'IND Data'!$H:$H,'Revenue Lookup'!$B$75,'IND Data'!$M:$M,"",'IND Data'!$K:$K,"RO",'IND Data'!$L:$L,LEFT(A64,2),'IND Data'!$W:$W,"<>U") -> 0 | K64: 0 | L64: 0 | M64: 180.71065 | N64: 0 | O64: 0.0025 | T64: 35 | U64: 0 | V64: 0 | W64: 0
A65: 40 Yard Pickup | B65: T | C65: ="" ->  | D65: >0 | E65: RO | F65: 1 | G65: 180.26 | H65: 49 | I65: 40 | J65: =SUMIFS('IND Data'!$U:$U,'IND Data'!$X:$X,"T",'IND Data'!$H:$H,'Revenue Lookup'!$B$74,'IND Data'!$M:$M,"",'IND Data'!$K:$K,"RO",'IND Data'!$L:$L,LEFT(A65,2),'IND Data'!$W:$W,"<>U")+SUMIFS('IND Data'!$U:$U,'IND Data'!$X:$X,"T",'IND Data'!$H:$H,'Revenue Lookup'!$B$75,'IND Data'!$M:$M,"",'IND Data'!$K:$K,"RO",'IND Data'!$L:$L,LEFT(A65,2),'IND Data'!$W:$W,"<>U") -> 8 | K65: 1442.08 | L65: 320 | M65: 180.71065 | N65: 1445.6852 | O65: 0.0025 | R65: 139.6 | S65: 49 | T65: 40 | U65: 8 | V65: 1116.8 | W65: 325.28
A67: 10 Yard Rent/Calendar Day | G67: 4.13 | H67: 49 | K67: =+G67*J67 -> 0 | M67: =G67*(1+$F$4) -> 4.140325 | N67: =+M67*J67 -> 0 | O67: =IF(OR(G67=0,M67=0),"",M67/G67-1) -> 0.0025 | R67: 3.2 | S67: 49 | T67: =I67 -> 0 | U67: =J67 -> 0 | V67: =+R67*U67 -> 0 | W67: =K67-V67 -> 0
A68: 15 Yard Rent/Calendar Day | G68: 4.13 | H68: 49 | K68: 0 | M68: 4.140325 | N68: 0 | O68: 0.0025 | R68: 3.2 | S68: 49 | T68: 0 | U68: 0 | V68: 0 | W68: 0
A69: 20 Yard Rent/Calendar Day | G69: 4.13 | H69: 49 | K69: 0 | M69: 4.140325 | N69: 0 | O69: 0.0025 | R69: 3.2 | S69: 49 | T69: 0 | U69: 0 | V69: 0 | W69: 0
A70: 25 Yard Rent/Calendar Day | G70: 4.13 | H70: 49 | K70: 0 | M70: 4.140325 | N70: 0 | O70: 0.0025 | R70: 3.2 | S70: 49 | T70: 0 | U70: 0 | V70: 0 | W70: 0
A71: 30 Yard Rent/Calendar Day | G71: 4.51 | H71: 49 | K71: 0 | M71: 4.521275 | N71: 0 | O71: 0.0025 | R71: 3.5 | S71: 49 | T71: 0 | U71: 0 | V71: 0 | W71: 0
A72: 35 Yard Rent/Calendar Day | G72: 4.84 | H72: N/A | K72: 0 | M72: 4.8521 | N72: 0 | O72: 0.0025 | T72: 0 | U72: 0 | V72: 0 | W72: 0
A73: 40 Yard Rent/Calendar Day | G73: 4.84 | H73: 49 | K73: 0 | M73: 4.8521 | N73: 0 | O73: 0.0025 | R73: 3.75 | S73: 49 | T73: 0 | U73: 0 | V73: 0 | W73: 0
A75: Item# 275 Drop Box Service
A76: Compact Material
A77: Customer Owned Cont. | D77: =+D49 -> Haul | E77: =+E49 -> Cont/Mat
A78: Permanent Service | B78: Perm | C78: =+C50 -> Compctr | D78: =+D50 -> Wght | E78: =+E50 -> Type
A79: 10 Yard First Pickup (3.5x) | B79: P | C79: C | D79: =">0" -> >0 | E79: RO | F79: 3.5 | G79: 207.95 | H79: 50 | I79: =VALUE(LEFT(A79,1))*F79 -> 3.5 | J79: =SUMIFS('IND Data'!$U:$U,'IND Data'!$H:$H,'Revenue Lookup'!$B$74,'IND Data'!$M:$M,"C",'IND Data'!$K:$K,"RO",'IND Data'!$L:$L,LEFT(A79,2),'IND Data'!$W:$W,"<>U")+SUMIFS('IND Data'!$U:$U,'IND Data'!$H:$H,'Revenue Lookup'!$B$75,'IND Data'!$M:$M,"C",'IND Data'!$K:$K,"RO",'IND Data'!$L:$L,LEFT(A79,2),'IND Data'!$W:$W,"<>U") -> 0 | K79: =+G79*J79 -> 0 | L79: =+I79*J79 -> 0 | M79: =G79*(1+$F$4) -> 208.469875 | N79: =+M79*J79 -> 0 | O79: =IF(OR(G79=0,M79=0),"",M79/G79-1) -> 0.0025 | R79: 161.05 | S79: 50 | T79: =I79 -> 3.5 | U79: =J79 -> 0 | V79: =+R79*U79 -> 0 | W79: =K79-V79 -> 0
A80: 15 Yard First Pickup (3.5x) | B80: P | C80: C | D80: =">0" -> >0 | E80: RO | F80: 3.5 | G80: 207.95 | H80: 50 | I80: 3.5 | J80: =SUMIFS('IND Data'!$U:$U,'IND Data'!$H:$H,'Revenue Lookup'!$B$74,'IND Data'!$M:$M,"C",'IND Data'!$K:$K,"RO",'IND Data'!$L:$L,LEFT(A80,2),'IND Data'!$W:$W,"<>U")+SUMIFS('IND Data'!$U:$U,'IND Data'!$H:$H,'Revenue Lookup'!$B$75,'IND Data'!$M:$M,"C",'IND Data'!$K:$K,"RO",'IND Data'!$L:$L,LEFT(A80,2),'IND Data'!$W:$W,"<>U") -> 0 | K80: 0 | L80: 0 | M80: 208.469875 | N80: 0 | O80: 0.0025 | R80: 161.05 | S80: 50 | T80: 3.5 | U80: 0 | V80: 0 | W80: 0
A81: 20 Yard First Pickup (3.5x) | B81: P | C81: C | D81: >0 | E81: RO | F81: 3.5 | G81: 207.95 | H81: 50 | I81: 7 | J81: =SUMIFS('IND Data'!$U:$U,'IND Data'!$H:$H,'Revenue Lookup'!$B$74,'IND Data'!$M:$M,"C",'IND Data'!$K:$K,"RO",'IND Data'!$L:$L,LEFT(A81,2),'IND Data'!$W:$W,"<>U")+SUMIFS('IND Data'!$U:$U,'IND Data'!$H:$H,'Revenue Lookup'!$B$75,'IND Data'!$M:$M,"C",'IND Data'!$K:$K,"RO",'IND Data'!$L:$L,LEFT(A81,2),'IND Data'!$W:$W,"<>U") -> 0 | K81: 0 | L81: 0 | M81: 208.469875 | N81: 0 | O81: 0.0025 | R81: 161.05 | S81: 50 | T81: 7 | U81: 0 | V81: 0 | W81: 0
A82: 25 Yard First Pickup (3.5x) | B82: P | C82: C | D82: >0 | E82: RO | F82: 3.5 | G82: 207.95 | H82: 50 | I82: 7 | J82: =SUMIFS('IND Data'!$U:$U,'IND Data'!$H:$H,'Revenue Lookup'!$B$74,'IND Data'!$M:$M,"C",'IND Data'!$K:$K,"RO",'IND Data'!$L:$L,LEFT(A82,2),'IND Data'!$W:$W,"<>U")+SUMIFS('IND Data'!$U:$U,'IND Data'!$H:$H,'Revenue Lookup'!$B$75,'IND Data'!$M:$M,"C",'IND Data'!$K:$K,"RO",'IND Data'!$L:$L,LEFT(A82,2),'IND Data'!$W:$W,"<>U") -> 0 | K82: 0 | L82: 0 | M82: 208.469875 | N82: 0 | O82: 0.0025 | R82: 161.05 | S82: 50 | T82: 7 | U82: 0 | V82: 0 | W82: 0
A83: 30 Yard First Pickup (3.5x) | B83: P | C83: C | D83: >0 | E83: RO | F83: 3.5 | G83: 207.95 | H83: 50 | I83: 10.5 | J83: =SUMIFS('IND Data'!$U:$U,'IND Data'!$H:$H,'Revenue Lookup'!$B$74,'IND Data'!$M:$M,"C",'IND Data'!$K:$K,"RO",'IND Data'!$L:$L,LEFT(A83,2),'IND Data'!$W:$W,"<>U")+SUMIFS('IND Data'!$U:$U,'IND Data'!$H:$H,'Revenue Lookup'!$B$75,'IND Data'!$M:$M,"C",'IND Data'!$K:$K,"RO",'IND Data'!$L:$L,LEFT(A83,2),'IND Data'!$W:$W,"<>U") -> 56 | K83: =+G83*J83 -> 11645.2 | L83: 588 | M83: 208.469875 | N83: 11674.313 | O83: 0.0025 | R83: 161.05 | S83: 50 | T83: 10.5 | U83: 56 | V83: 9018.8 | W83: 2626.4
A84: 35 Yard First Pickup (3.5x) | B84: P | C84: C | D84: >0 | E84: RO | F84: 3.5 | G84: 207.95 | H84: 50 | I84: 10.5 | J84: =SUMIFS('IND Data'!$U:$U,'IND Data'!$H:$H,'Revenue Lookup'!$B$74,'IND Data'!$M:$M,"C",'IND Data'!$K:$K,"RO",'IND Data'!$L:$L,LEFT(A84,2),'IND Data'!$W:$W,"<>U")+SUMIFS('IND Data'!$U:$U,'IND Data'!$H:$H,'Revenue Lookup'!$B$75,'IND Data'!$M:$M,"C",'IND Data'!$K:$K,"RO",'IND Data'!$L:$L,LEFT(A84,2),'IND Data'!$W:$W,"<>U") -> 0 | K84: 0 | L84: 0 | M84: 208.469875 | N84: 0 | O84: 0.0025 | R84: 161.05 | S84: 50 | T84: 10.5 | U84: 0 | V84: 0 | W84: 0
A85: 40 Yard First Pickup (3.5x) | B85: P | C85: C | D85: >0 | E85: RO | F85: 3.5 | G85: 207.95 | H85: 50 | I85: 14 | J85: =SUMIFS('IND Data'!$U:$U,'IND Data'!$H:$H,'Revenue Lookup'!$B$74,'IND Data'!$M:$M,"C",'IND Data'!$K:$K,"RO",'IND Data'!$L:$L,LEFT(A85,2),'IND Data'!$W:$W,"<>U")+SUMIFS('IND Data'!$U:$U,'IND Data'!$H:$H,'Revenue Lookup'!$B$75,'IND Data'!$M:$M,"C",'IND Data'!$K:$K,"RO",'IND Data'!$L:$L,LEFT(A85,2),'IND Data'!$W:$W,"<>U") -> 0 | K85: 0 | L85: 0 | M85: 208.469875 | N85: 0 | O85: 0.0025 | R85: 161.05 | S85: 50 | T85: 14 | U85: 0 | V85: 0 | W85: 0
A87: 10 Yard Additional Pickup (3.5x) | B87: P | C87: C | D87: =">0" -> >0 | E87: RO | F87: 3.5 | G87: 207.95 | H87: 50 | I87: =VALUE(LEFT(A87,1))*F87 -> 3.5 | K87: =+G87*J87 -> 0 | L87: =+I87*J87 -> 0 | M87: =G87*(1+$F$4) -> 208.469875 | N87: =+M87*J87 -> 0 | O87: =IF(OR(G87=0,M87=0),"",M87/G87-1) -> 0.0025 | R87: 161.05 | S87: 50 | T87: =I87 -> 3.5 | U87: =J87 -> 0 | V87: =+R87*U87 -> 0 | W87: =K87-V87 -> 0
A88: 15 Yard Additional Pickup (3.5x) | B88: P | C88: C | D88: =">0" -> >0 | E88: RO | F88: 3.5 | G88: 207.95 | H88: 50 | I88: 3.5 | K88: 0 | L88: 0 | M88: 208.469875 | N88: 0 | O88: 0.0025 | R88: 161.05 | S88: 50 | T88: 3.5 | U88: 0 | V88: 0 | W88: 0
A89: 20 Yard Additional Pickup (3.5x) | B89: P | C89: C | D89: >0 | E89: RO | F89: 3.5 | G89: 207.95 | H89: 50 | I89: 7 | K89: 0 | L89: 0 | M89: 208.469875 | N89: 0 | O89: 0.0025 | R89: 161.05 | S89: 50 | T89: 7 | U89: 0 | V89: 0 | W89: 0
A90: 25 Yard Additional Pickup (3.5x) | B90: P | C90: C | D90: >0 | E90: RO | F90: 3.5 | G90: 207.95 | H90: 50 | I90: 7 | K90: 0 | L90: 0 | M90: 208.469875 | N90: 0 | O90: 0.0025 | R90: 161.05 | S90: 50 | T90: 7 | U90: 0 | V90: 0 | W90: 0
A91: 30 Yard Additional Pickup (3.5x) | B91: P | C91: C | D91: >0 | E91: RO | F91: 3.5 | G91: 207.95 | H91: 50 | I91: 10.5 | K91: 0 | L91: 0 | M91: 208.469875 | N91: 0 | O91: 0.0025 | R91: 161.05 | S91: 50 | T91: 10.5 | U91: 0 | V91: 0 | W91: 0
A92: 35 Yard Additional Pickup (3.5x) | B92: P | C92: C | D92: >0 | E92: RO | F92: 3.5 | G92: 207.95 | H92: 50 | I92: 10.5 | K92: 0 | L92: 0 | M92: 208.469875 | N92: 0 | O92: 0.0025 | R92: 161.05 | S92: 50 | T92: 10.5 | U92: 0 | V92: 0 | W92: 0
A93: 40 Yard Additional Pickup (3.5x) | B93: P | C93: C | D93: >0 | E93: RO | F93: 3.5 | G93: 207.95 | H93: 50 | I93: 14 | K93: 0 | L93: 0 | M93: 208.469875 | N93: 0 | O93: 0.0025 | R93: 161.05 | S93: 50 | T93: 14 | U93: 0 | V93: 0 | W93: 0
A95: Miles | G95: 3.22 | H95: 50 | J95: =+K95/G95 -> 740.673913 | K95: =SUMIFS('SQL Revenue Analysis'!$E:$E,'SQL Revenue Analysis'!$D:$D,"DTC",'SQL Revenue Analysis'!$J:$J,'Revenue Lookup'!B74,'SQL Revenue Analysis'!$F:$F,"RO")+SUMIFS('SQL Revenue Analysis'!$E:$E,'SQL Revenue Analysis'!$D:$D,"DTC",'SQL Revenue Analysis'!$J:$J,'Revenue Lookup'!B75,'SQL Revenue Analysis'!$F:$F,"RO") -> 2384.97 | M95: =G95*(1+$F$4) -> 3.22805 | N95: =+M95*J95 -> 2390.932425 | O95: =IF(OR(G95=0,M95=0),"",M95/G95-1) -> 0.0025 | R95: 2.5 | S95: 49 & 50 | T95: =I95 -> 0 | U95: =J95 -> 740.673913 | V95: =+R95*U95 -> 1851.684783 | W95: =K95-V95 -> 533.2852174
A97: Multi-Family | B97: ** In regulated areas, MF Recycling is 'free' and the cost to the customer (property management) is added to the cost of garbage service, therefore…
C98: below is the garbage service for which the per yard MF recycling rate is added to…NOT…the MF recycling service levels
A99: Item # 107 - MF Drop Box Service
A100: Company Owned Container
A101: Non Compacted Material | D101: =+D77 -> Haul | E101: Cont/Mat
A102: Permanent Service | B102: =+B78 -> Perm | C102: Compctr | D102: Wght | E102: Type
A103: 10 Yard First Pickup | B103: P | C103: ="" ->  | D103: =">0" -> >0 | E103: RO | F103: 1 | G103: 203.15 | H103: 36 | I103: =VALUE(LEFT(A103,3))*F103 -> 10 | J103: =SUMIFS('IND Data'!$U:$U,'IND Data'!$X:$X,B103,'IND Data'!$H:$H,'Revenue Lookup'!$B$74,'IND Data'!$M:$M,"",'IND Data'!$K:$K,E103,'IND Data'!$L:$L,LEFT(A103,2),'IND Data'!$N:$N,"U",'IND Data'!$W:$W,">0")+SUMIFS('IND Data'!$U:$U,'IND Data'!$X:$X,"P",'IND Data'!$H:$H,'Revenue Lookup'!$B$75,'IND Data'!$M:$M,"",'IND Data'!$K:$K,"RO",'IND Data'!$L:$L,LEFT(A103,2),'IND Data'!$N:$N,"U",'IND Data'!$W:$W,">0") -> 0 | K103: =+G103*J103 -> 0 | L103: =+I103*J103 -> 0 | M103: =+G103*(1+$F$5) -> 203.657875 | N103: =+M103*J103 -> 0 | O103: =IF(OR(G103=0,M103=0),"",M103/G103-1) -> 0.0025 | R103: 150.25 | S103: 36 | T103: =I103 -> 10 | U103: =J103 -> 0 | V103: =+R103*U103 -> 0 | W103: =K103-V103 -> 0
A104: 15 Yard First Pickup | B104: P | C104: ="" ->  | D104: =">0" -> >0 | E104: RO | F104: 1 | G104: 218.5 | H104: 36 | I104: =VALUE(LEFT(A104,3))*F104 -> 15 | J104: =SUMIFS('IND Data'!$U:$U,'IND Data'!$X:$X,B104,'IND Data'!$H:$H,'Revenue Lookup'!$B$74,'IND Data'!$M:$M,"",'IND Data'!$K:$K,E104,'IND Data'!$L:$L,LEFT(A104,2),'IND Data'!$N:$N,"U",'IND Data'!$W:$W,">0")+SUMIFS('IND Data'!$U:$U,'IND Data'!$X:$X,"P",'IND Data'!$H:$H,'Revenue Lookup'!$B$75,'IND Data'!$M:$M,"",'IND Data'!$K:$K,"RO",'IND Data'!$L:$L,LEFT(A104,2),'IND Data'!$N:$N,"U",'IND Data'!$W:$W,">0") -> 0 | K104: 0 | L104: 0 | M104: =+G104*(1+$F$5) -> 219.04625 | N104: =+M104*J104 -> 0 | O104: 0.0025 | R104: 158.57 | S104: 36 | T104: 15 | U104: 0 | V104: 0 | W104: 0
A105: 20 Yard First Pickup | B105: P | C105: ="" ->  | D105: >0 | E105: RO | F105: 1 | G105: 233.86 | H105: 36 | I105: 20 | J105: =SUMIFS('IND Data'!$U:$U,'IND Data'!$X:$X,B105,'IND Data'!$H:$H,'Revenue Lookup'!$B$74,'IND Data'!$M:$M,"",'IND Data'!$K:$K,E105,'IND Data'!$L:$L,LEFT(A105,2),'IND Data'!$N:$N,"U",'IND Data'!$W:$W,">0")+SUMIFS('IND Data'!$U:$U,'IND Data'!$X:$X,"P",'IND Data'!$H:$H,'Revenue Lookup'!$B$75,'IND Data'!$M:$M,"",'IND Data'!$K:$K,"RO",'IND Data'!$L:$L,LEFT(A105,2),'IND Data'!$N:$N,"U",'IND Data'!$W:$W,">0") -> 0 | K105: 0 | L105: 0 | M105: 234.44465 | N105: 0 | O105: 0.0025 | R105: 166.89 | S105: 36 | T105: 20 | U105: 0 | V105: 0 | W105: 0
A106: 25 Yard First Pickup | B106: P | C106: ="" ->  | D106: >0 | E106: RO | F106: 1 | G106: 249.22 | H106: 36 | I106: 25 | J106: =SUMIFS('IND Data'!$U:$U,'IND Data'!$X:$X,B106,'IND Data'!$H:$H,'Revenue Lookup'!$B$74,'IND Data'!$M:$M,"",'IND Data'!$K:$K,E106,'IND Data'!$L:$L,LEFT(A106,2),'IND Data'!$N:$N,"U",'IND Data'!$W:$W,">0")+SUMIFS('IND Data'!$U:$U,'IND Data'!$X:$X,"P",'IND Data'!$H:$H,'Revenue Lookup'!$B$75,'IND Data'!$M:$M,"",'IND Data'!$K:$K,"RO",'IND Data'!$L:$L,LEFT(A106,2),'IND Data'!$N:$N,"U",'IND Data'!$W:$W,">0") -> 4 | K106: 996.88 | L106: 100 | M106: 249.84305 | N106: 999.3722 | O106: 0.0025 | R106: 175.22 | S106: 36 | T106: 25 | U106: 4 | V106: 700.88 | W106: 296
A107: 30 Yard First Pickup | B107: P | C107: ="" ->  | D107: >0 | E107: RO | F107: 1 | G107: 264.57 | H107: 36 | I107: 30 | J107: =SUMIFS('IND Data'!$U:$U,'IND Data'!$X:$X,B107,'IND Data'!$H:$H,'Revenue Lookup'!$B$74,'IND Data'!$M:$M,"",'IND Data'!$K:$K,E107,'IND Data'!$L:$L,LEFT(A107,2),'IND Data'!$N:$N,"U",'IND Data'!$W:$W,">0")+SUMIFS('IND Data'!$U:$U,'IND Data'!$X:$X,"P",'IND Data'!$H:$H,'Revenue Lookup'!$B$75,'IND Data'!$M:$M,"",'IND Data'!$K:$K,"RO",'IND Data'!$L:$L,LEFT(A107,2),'IND Data'!$N:$N,"U",'IND Data'!$W:$W,">0") -> 0 | K107: 0 | L107: 0 | M107: =+G107*(1+$F$5) -> 265.231425 | N107: 0 | O107: 0.0025 | R107: 183.54 | S107: 36 | T107: 30 | U107: 0 | V107: 0 | W107: 0
A108: 35 Yard First Pickup | B108: P | C108: ="" ->  | D108: >0 | E108: RO | F108: 1 | G108: 295.29 | H108: N/A | I108: 35 | J108: =SUMIFS('IND Data'!$U:$U,'IND Data'!$X:$X,B108,'IND Data'!$H:$H,'Revenue Lookup'!$B$74,'IND Data'!$M:$M,"",'IND Data'!$K:$K,E108,'IND Data'!$L:$L,LEFT(A108,2),'IND Data'!$N:$N,"U",'IND Data'!$W:$W,">0")+SUMIFS('IND Data'!$U:$U,'IND Data'!$X:$X,"P",'IND Data'!$H:$H,'Revenue Lookup'!$B$75,'IND Data'!$M:$M,"",'IND Data'!$K:$K,"RO",'IND Data'!$L:$L,LEFT(A108,2),'IND Data'!$N:$N,"U",'IND Data'!$W:$W,">0") -> 0 | K108: 0 | L108: 0 | M108: 296.028225 | N108: 0 | O108: 0.0025 | T108: 35 | U108: 0 | V108: 0 | W108: 0
A109: 40 Yard First Pickup | B109: P | C109: ="" ->  | D109: >0 | E109: RO | F109: 1 | G109: 295.29 | H109: 36 | I109: 40 | J109: =SUMIFS('IND Data'!$U:$U,'IND Data'!$X:$X,B109,'IND Data'!$H:$H,'Revenue Lookup'!$B$74,'IND Data'!$M:$M,"",'IND Data'!$K:$K,E109,'IND Data'!$L:$L,LEFT(A109,2),'IND Data'!$N:$N,"U",'IND Data'!$W:$W,">0")+SUMIFS('IND Data'!$U:$U,'IND Data'!$X:$X,"P",'IND Data'!$H:$H,'Revenue Lookup'!$B$75,'IND Data'!$M:$M,"",'IND Data'!$K:$K,"RO",'IND Data'!$L:$L,LEFT(A109,2),'IND Data'!$N:$N,"U",'IND Data'!$W:$W,">0") -> 4 | K109: 1181.16 | L109: 160 | M109: 296.028225 | N109: 1184.1129 | O109: 0.0025 | R109: 200.19 | S109: 36 | T109: 40 | U109: 4 | V109: 800.76 | W109: 380.4
A111: 10 Yard Additional Pickup | F111: 1 | G111: 203.15 | H111: 36 | I111: =VALUE(LEFT(A111,3))*F111 -> 10 | K111: =+G111*J111 -> 0 | L111: =+I111*J111 -> 0 | M111: =+G111*(1+$F$5) -> 203.657875 | N111: =+M111*J111 -> 0 | O111: =IF(OR(G111=0,M111=0),"",M111/G111-1) -> 0.0025 | R111: 150.25 | S111: 36 | T111: 10 | U111: 0 | V111: 0 | W111: 0
A112: 15 Yard Additional Pickup | F112: 1 | G112: 218.5 | H112: 36 | I112: =VALUE(LEFT(A112,3))*F112 -> 15 | K112: 0 | L112: 0 | M112: 219.04625 | N112: 0 | O112: 0.0025 | R112: 158.57 | S112: 36 | T112: 15 | U112: 0 | V112: 0 | W112: 0
A113: 20 Yard Additional Pickup | F113: 1 | G113: 233.86 | H113: 36 | I113: 20 | K113: 0 | L113: 0 | M113: 234.44465 | N113: 0 | O113: 0.0025 | R113: 166.89 | S113: 36 | T113: 20 | U113: 0 | V113: 0 | W113: 0
A114: 25 Yard Additional Pickup | F114: 1 | G114: 249.22 | H114: 36 | I114: 25 | K114: 0 | L114: 0 | M114: 249.84305 | N114: 0 | O114: 0.0025 | R114: 175.22 | S114: 36 | T114: 25 | U114: 0 | V114: 0 | W114: 0
A115: 30 Yard Additional Pickup | F115: 1 | G115: 264.57 | H115: 36 | I115: 30 | K115: 0 | L115: 0 | M115: 265.231425 | N115: 0 | O115: 0.0025 | R115: 183.54 | S115: 36 | T115: 30 | U115: 0 | V115: 0 | W115: 0
A116: 35 Yard Additional Pickup | F116: 1 | G116: 295.29 | H116: N/A | I116: 35 | K116: 0 | L116: 0 | M116: 296.028225 | N116: 0 | O116: 0.0025 | T116: 35 | U116: 0 | V116: 0 | W116: 0
A117: 40 Yard Additional Pickup | F117: 1 | G117: 295.29 | H117: 36 | I117: 40 | K117: 0 | L117: 0 | M117: 296.028225 | N117: 0 | O117: 0.0025 | R117: 200.19 | S117: 36 | T117: 40 | U117: 0 | V117: 0 | W117: 0
A119: 10 Yard Special Pickup | B119: P | C119: ="" ->  | D119: =">0" -> >0 | E119: RO | F119: 1 | G119: 203.15 | H119: 36 | I119: =VALUE(LEFT(A119,3))*F119 -> 10 | K119: =+G119*J119 -> 0 | L119: =+I119*J119 -> 0 | M119: =+G119*(1+$F$5) -> 203.657875 | N119: =+M119*J119 -> 0 | O119: =IF(OR(G119=0,M119=0),"",M119/G119-1) -> 0.0025 | R119: 155.25 | S119: 36 | T119: 10 | U119: 0 | V119: 0 | W119: 0
A120: 15 Yard Special Pickup | B120: P | C120: ="" ->  | D120: =">0" -> >0 | E120: RO | F120: 1 | G120: 218.5 | H120: 36 | I120: =VALUE(LEFT(A120,3))*F120 -> 15 | K120: 0 | L120: 0 | M120: 219.04625 | N120: 0 | O120: 0.0025 | R120: 163.57 | S120: 36 | T120: 15 | U120: 0 | V120: 0 | W120: 0
A121: 20 Yard Special Pickup | B121: P | C121: ="" ->  | D121: >0 | E121: RO | F121: 1 | G121: 233.86 | H121: 36 | I121: 20 | K121: 0 | L121: 0 | M121: 234.44465 | N121: 0 | O121: 0.0025 | R121: 171.89 | S121: 36 | T121: 20 | U121: 0 | V121: 0 | W121: 0
A122: 25 Yard Special Pickup | B122: P | C122: ="" ->  | D122: >0 | E122: RO | F122: 1 | G122: 249.22 | H122: 36 | I122: 25 | K122: 0 | L122: 0 | M122: 249.84305 | N122: 0 | O122: 0.0025 | R122: 180.22 | S122: 36 | T122: 25 | U122: 0 | V122: 0 | W122: 0
A123: 30 Yard Special Pickup | B123: P | C123: ="" ->  | D123: >0 | E123: RO | F123: 1 | G123: 264.57 | H123: 36 | I123: 30 | K123: 0 | L123: 0 | M123: 265.231425 | N123: 0 | O123: 0.0025 | R123: 183.54 | S123: 36 | T123: 30 | U123: 0 | V123: 0 | W123: 0
A124: 35 Yard Special Pickup | B124: P | C124: ="" ->  | D124: >0 | E124: RO | F124: 1 | G124: 295.29 | H124: N/A | I124: 35 | K124: 0 | L124: 0 | M124: 296.028225 | N124: 0 | O124: 0.0025 | T124: 35 | U124: 0 | V124: 0 | W124: 0
A125: 40 Yard Special Pickup | B125: P | C125: ="" ->  | D125: >0 | E125: RO | F125: 1 | G125: 295.29 | H125: 36 | I125: 40 | K125: 0 | L125: 0 | M125: 296.028225 | N125: 0 | O125: 0.0025 | R125: 205.19 | S125: 36 | T125: 40 | U125: 0 | V125: 0 | W125: 0
A127: 10 Yard Monthly Rent | G127: 46.48 | H127: 36 | K127: =+G127*J127 -> 0 | L127: =+I127*J127 -> 0 | M127: =+G127*(1+$F$5) -> 46.5962 | N127: =+M127*J127 -> 0 | O127: =IF(OR(G127=0,M127=0),"",M127/G127-1) -> 0.0025 | R127: 36 | S127: 36 | T127: 0 | U127: 0 | V127: 0 | W127: 0
A128: 15 Yard Monthly Rent | G128: 56.81 | H128: 36 | K128: 0 | L128: 0 | M128: 56.952025 | N128: 0 | O128: 0.0025 | R128: 44 | S128: 36 | T128: 0 | U128: 0 | V128: 0 | W128: 0
A129: 20 Yard Monthly Rent | G129: 67.14 | H129: 36 | K129: 0 | L129: 0 | M129: 67.30785 | N129: 0 | O129: 0.0025 | R129: 52 | S129: 36 | T129: 0 | U129: 0 | V129: 0 | W129: 0
A130: 25 Yard Monthly Rent | G130: 80.06 | H130: 36 | K130: 0 | L130: 0 | M130: 80.26015 | N130: 0 | O130: 0.0025 | R130: 62 | S130: 36 | T130: 0 | U130: 0 | V130: 0 | W130: 0
A131: 30 Yard Monthly Rent | G131: 90.39 | H131: 36 | K131: 0 | L131: 0 | M131: 90.615975 | N131: 0 | O131: 0.0025 | R131: 70 | S131: 36 | T131: 0 | U131: 0 | V131: 0 | W131: 0
A132: 35 Yard Monthly Rent | G132: 109.75 | H132: N/A | K132: 0 | L132: 0 | M132: 110.024375 | N132: 0 | O132: 0.0025 | T132: 0 | U132: 0 | V132: 0 | W132: 0
A133: 40 Yard Monthly Rent | G133: 109.75 | H133: 36 | K133: 0 | L133: 0 | M133: 110.024375 | N133: 0 | O133: 0.0025 | R133: 85 | S133: 36 | T133: 0 | U133: 0 | V133: 0 | W133: 0
D135: =+D101 -> Haul | E135: =+E101 -> Cont/Mat
A136: Temporary Service | B136: Temp | C136: =+C102 -> Compctr | D136: =+D102 -> Wght | E136: =+E102 -> Type
A137: 10 Yard Delivery | B137: T | C137: ="" ->  | D137: 0 | E137: RO | G137: 109.75 | H137: 36 | J137: =SUMIFS('IND Data'!$U:$U,'IND Data'!$X:$X,"T",'IND Data'!$A:$A,"DEL",'IND Data'!$H:$H,'Revenue Lookup'!$B$74,'IND Data'!$L:$L,LEFT(A137,2),'IND Data'!$K:$K,"RO",'IND Data'!$N:$N,"U")+SUMIFS('IND Data'!$U:$U,'IND Data'!$X:$X,"T",'IND Data'!$A:$A,"DEL",'IND Data'!$H:$H,'Revenue Lookup'!$B$75,'IND Data'!$L:$L,LEFT(A137,2),'IND Data'!$K:$K,"RO",'IND Data'!$N:$N,"U") -> 0 | K137: =+G137*J137 -> 0 | L137: =+I137*J137 -> 0 | M137: =M51 -> 110.024375 | N137: =+M137*J137 -> 0 | O137: =IF(OR(G137=0,M137=0),"",M137/G137-1) -> 0.0025 | R137: 85 | S137: 36 | T137: 0 | U137: 0 | V137: 0 | W137: 0
A138: 15 Yard Delivery | B138: T | C138: ="" ->  | D138: 0 | E138: RO | G138: 109.75 | H138: 36 | J138: =SUMIFS('IND Data'!$U:$U,'IND Data'!$X:$X,"T",'IND Data'!$A:$A,"DEL",'IND Data'!$H:$H,'Revenue Lookup'!$B$74,'IND Data'!$L:$L,LEFT(A138,2),'IND Data'!$K:$K,"RO",'IND Data'!$N:$N,"U")+SUMIFS('IND Data'!$U:$U,'IND Data'!$X:$X,"T",'IND Data'!$A:$A,"DEL",'IND Data'!$H:$H,'Revenue Lookup'!$B$75,'IND Data'!$L:$L,LEFT(A138,2),'IND Data'!$K:$K,"RO",'IND Data'!$N:$N,"U") -> 0 | K138: 0 | L138: 0 | M138: =M52 -> 110.024375 | N138: 0 | O138: 0.0025 | R138: 85 | S138: 36 | T138: 0 | U138: 0 | V138: 0 | W138: 0
A139: 20 Yard Delivery | B139: T | C139: ="" ->  | D139: 0 | E139: RO | G139: 109.75 | H139: 36 | J139: =SUMIFS('IND Data'!$U:$U,'IND Data'!$X:$X,"T",'IND Data'!$A:$A,"DEL",'IND Data'!$H:$H,'Revenue Lookup'!$B$74,'IND Data'!$L:$L,LEFT(A139,2),'IND Data'!$K:$K,"RO",'IND Data'!$N:$N,"U")+SUMIFS('IND Data'!$U:$U,'IND Data'!$X:$X,"T",'IND Data'!$A:$A,"DEL",'IND Data'!$H:$H,'Revenue Lookup'!$B$75,'IND Data'!$L:$L,LEFT(A139,2),'IND Data'!$K:$K,"RO",'IND Data'!$N:$N,"U") -> 0 | K139: 0 | L139: 0 | M139: 110.024375 | N139: 0 | O139: 0.0025 | R139: 85 | S139: 36 | T139: 0 | U139: 0 | V139: 0 | W139: 0
A140: 25 Yard Delivery | B140: T | C140: ="" ->  | D140: 0 | E140: RO | G140: 109.75 | H140: 36 | J140: =SUMIFS('IND Data'!$U:$U,'IND Data'!$X:$X,"T",'IND Data'!$A:$A,"DEL",'IND Data'!$H:$H,'Revenue Lookup'!$B$74,'IND Data'!$L:$L,LEFT(A140,2),'IND Data'!$K:$K,"RO",'IND Data'!$N:$N,"U")+SUMIFS('IND Data'!$U:$U,'IND Data'!$X:$X,"T",'IND Data'!$A:$A,"DEL",'IND Data'!$H:$H,'Revenue Lookup'!$B$75,'IND Data'!$L:$L,LEFT(A140,2),'IND Data'!$K:$K,"RO",'IND Data'!$N:$N,"U") -> 0 | K140: 0 | L140: 0 | M140: 110.024375 | N140: 0 | O140: 0.0025 | R140: 85 | S140: 36 | T140: 0 | U140: 0 | V140: 0 | W140: 0
A141: 30 Yard Delivery | B141: T | C141: ="" ->  | D141: 0 | E141: RO | G141: 109.75 | H141: 36 | J141: =SUMIFS('IND Data'!$U:$U,'IND Data'!$X:$X,"T",'IND Data'!$A:$A,"DEL",'IND Data'!$H:$H,'Revenue Lookup'!$B$74,'IND Data'!$L:$L,LEFT(A141,2),'IND Data'!$K:$K,"RO",'IND Data'!$N:$N,"U")+SUMIFS('IND Data'!$U:$U,'IND Data'!$X:$X,"T",'IND Data'!$A:$A,"DEL",'IND Data'!$H:$H,'Revenue Lookup'!$B$75,'IND Data'!$L:$L,LEFT(A141,2),'IND Data'!$K:$K,"RO",'IND Data'!$N:$N,"U") -> 0 | K141: 0 | L141: 0 | M141: 110.024375 | N141: 0 | O141: 0.0025 | R141: 85 | S141: 36 | T141: 0 | U141: 0 | V141: 0 | W141: 0
A142: 35 Yard Delivery | B142: T | C142: ="" ->  | D142: 0 | E142: RO | G142: 109.75 | H142: N/A | J142: =SUMIFS('IND Data'!$U:$U,'IND Data'!$X:$X,"T",'IND Data'!$A:$A,"DEL",'IND Data'!$H:$H,'Revenue Lookup'!$B$74,'IND Data'!$L:$L,LEFT(A142,2),'IND Data'!$K:$K,"RO",'IND Data'!$N:$N,"U")+SUMIFS('IND Data'!$U:$U,'IND Data'!$X:$X,"T",'IND Data'!$A:$A,"DEL",'IND Data'!$H:$H,'Revenue Lookup'!$B$75,'IND Data'!$L:$L,LEFT(A142,2),'IND Data'!$K:$K,"RO",'IND Data'!$N:$N,"U") -> 0 | K142: 0 | L142: 0 | M142: 110.024375 | N142: 0 | O142: 0.0025 | T142: 0 | U142: 0 | V142: 0 | W142: 0
A143: 40 Yard Delivery | B143: T | C143: ="" ->  | D143: 0 | E143: RO | G143: 109.75 | H143: 36 | J143: =SUMIFS('IND Data'!$U:$U,'IND Data'!$X:$X,"T",'IND Data'!$A:$A,"DEL",'IND Data'!$H:$H,'Revenue Lookup'!$B$74,'IND Data'!$L:$L,LEFT(A143,2),'IND Data'!$K:$K,"RO",'IND Data'!$N:$N,"U")+SUMIFS('IND Data'!$U:$U,'IND Data'!$X:$X,"T",'IND Data'!$A:$A,"DEL",'IND Data'!$H:$H,'Revenue Lookup'!$B$75,'IND Data'!$L:$L,LEFT(A143,2),'IND Data'!$K:$K,"RO",'IND Data'!$N:$N,"U") -> 0 | K143: 0 | L143: 0 | M143: 110.024375 | N143: 0 | O143: 0.0025 | R143: 85 | S143: 36 | T143: 0 | U143: 0 | V143: 0 | W143: 0
A145: 10 Yard Pickup | B145: T | C145: ="" ->  | D145: =">0" -> >0 | E145: RO | F145: 1 | G145: 210.9 | H145: 36 | I145: =VALUE(LEFT(A145,3))*F145 -> 10 | J145: =SUMIFS('IND Data'!$U:$U,'IND Data'!$X:$X,"T",'IND Data'!$H:$H,'Revenue Lookup'!$B$74,'IND Data'!$M:$M,"",'IND Data'!$K:$K,"RO",'IND Data'!$L:$L,LEFT(A145,2),'IND Data'!$K:$K,"RO",'IND Data'!$N:$N,"U",'IND Data'!$W:$W,">0")+SUMIFS('IND Data'!$U:$U,'IND Data'!$X:$X,"T",'IND Data'!$H:$H,'Revenue Lookup'!$B$75,'IND Data'!$M:$M,"",'IND Data'!$K:$K,"RO",'IND Data'!$L:$L,LEFT(A145,2),'IND Data'!$K:$K,"RO",'IND Data'!$N:$N,"U",'IND Data'!$W:$W,">0") -> 0 | K145: =+G145*J145 -> 0 | L145: =+I145*J145 -> 0 | M145: =+G145*(1+$F$5) -> 211.42725 | N145: =+M145*J145 -> 0 | O145: =IF(OR(G145=0,M145=0),"",M145/G145-1) -> 0.0025 | R145: 155.25 | S145: 36 | T145: 10 | U145: 0 | V145: 0 | W145: 0
A146: 15 Yard Pickup | B146: T | C146: ="" ->  | D146: =">0" -> >0 | E146: RO | F146: 1 | G146: 226.25 | H146: 36 | I146: =VALUE(LEFT(A146,3))*F146 -> 15 | J146: =SUMIFS('IND Data'!$U:$U,'IND Data'!$X:$X,"T",'IND Data'!$H:$H,'Revenue Lookup'!$B$74,'IND Data'!$M:$M,"",'IND Data'!$K:$K,"RO",'IND Data'!$L:$L,LEFT(A146,2),'IND Data'!$K:$K,"RO",'IND Data'!$N:$N,"U",'IND Data'!$W:$W,">0")+SUMIFS('IND Data'!$U:$U,'IND Data'!$X:$X,"T",'IND Data'!$H:$H,'Revenue Lookup'!$B$75,'IND Data'!$M:$M,"",'IND Data'!$K:$K,"RO",'IND Data'!$L:$L,LEFT(A146,2),'IND Data'!$K:$K,"RO",'IND Data'!$N:$N,"U",'IND Data'!$W:$W,">0") -> 0 | K146: 0 | L146: 0 | M146: 226.815625 | N146: 0 | O146: 0.0025 | R146: 163.57 | S146: 36 | T146: 15 | U146: 0 | V146: 0 | W146: 0
A147: 20 Yard Pickup | B147: T | C147: ="" ->  | D147: >0 | E147: RO | F147: 1 | G147: 241.6 | H147: 36 | I147: 20 | J147: =SUMIFS('IND Data'!$U:$U,'IND Data'!$X:$X,"T",'IND Data'!$H:$H,'Revenue Lookup'!$B$74,'IND Data'!$M:$M,"",'IND Data'!$K:$K,"RO",'IND Data'!$L:$L,LEFT(A147,2),'IND Data'!$K:$K,"RO",'IND Data'!$N:$N,"U",'IND Data'!$W:$W,">0")+SUMIFS('IND Data'!$U:$U,'IND Data'!$X:$X,"T",'IND Data'!$H:$H,'Revenue Lookup'!$B$75,'IND Data'!$M:$M,"",'IND Data'!$K:$K,"RO",'IND Data'!$L:$L,LEFT(A147,2),'IND Data'!$K:$K,"RO",'IND Data'!$N:$N,"U",'IND Data'!$W:$W,">0") -> 0 | K147: 0 | L147: 0 | M147: 242.204 | N147: 0 | O147: 0.0025 | R147: 171.89 | S147: 36 | T147: 20 | U147: 0 | V147: 0 | W147: 0
A148: 25 Yard Pickup | B148: T | C148: ="" ->  | D148: >0 | E148: RO | F148: 1 | G148: 256.96 | H148: 36 | I148: 25 | J148: =SUMIFS('IND Data'!$U:$U,'IND Data'!$X:$X,"T",'IND Data'!$H:$H,'Revenue Lookup'!$B$74,'IND Data'!$M:$M,"",'IND Data'!$K:$K,"RO",'IND Data'!$L:$L,LEFT(A148,2),'IND Data'!$K:$K,"RO",'IND Data'!$N:$N,"U",'IND Data'!$W:$W,">0")+SUMIFS('IND Data'!$U:$U,'IND Data'!$X:$X,"T",'IND Data'!$H:$H,'Revenue Lookup'!$B$75,'IND Data'!$M:$M,"",'IND Data'!$K:$K,"RO",'IND Data'!$L:$L,LEFT(A148,2),'IND Data'!$K:$K,"RO",'IND Data'!$N:$N,"U",'IND Data'!$W:$W,">0") -> 0 | K148: 0 | L148: 0 | M148: 257.6024 | N148: 0 | O148: 0.0025 | R148: 180.22 | S148: 36 | T148: 25 | U148: 0 | V148: 0 | W148: 0
A149: 30 Yard Pickup | B149: T | C149: ="" ->  | D149: >0 | E149: RO | F149: 1 | G149: 272.32 | H149: 36 | I149: 30 | J149: =SUMIFS('IND Data'!$U:$U,'IND Data'!$X:$X,"T",'IND Data'!$H:$H,'Revenue Lookup'!$B$74,'IND Data'!$M:$M,"",'IND Data'!$K:$K,"RO",'IND Data'!$L:$L,LEFT(A149,2),'IND Data'!$K:$K,"RO",'IND Data'!$N:$N,"U",'IND Data'!$W:$W,">0")+SUMIFS('IND Data'!$U:$U,'IND Data'!$X:$X,"T",'IND Data'!$H:$H,'Revenue Lookup'!$B$75,'IND Data'!$M:$M,"",'IND Data'!$K:$K,"RO",'IND Data'!$L:$L,LEFT(A149,2),'IND Data'!$K:$K,"RO",'IND Data'!$N:$N,"U",'IND Data'!$W:$W,">0") -> 0 | K149: 0 | L149: 0 | M149: 273.0008 | N149: 0 | O149: 0.0025 | R149: 188.54 | S149: 36 | T149: 30 | U149: 0 | V149: 0 | W149: 0
A150: 35 Yard Pickup | B150: T | C150: ="" ->  | D150: >0 | E150: RO | F150: 1 | G150: 303.03 | H150: N/A | I150: 35 | J150: =SUMIFS('IND Data'!$U:$U,'IND Data'!$X:$X,"T",'IND Data'!$H:$H,'Revenue Lookup'!$B$74,'IND Data'!$M:$M,"",'IND Data'!$K:$K,"RO",'IND Data'!$L:$L,LEFT(A150,2),'IND Data'!$K:$K,"RO",'IND Data'!$N:$N,"U",'IND Data'!$W:$W,">0")+SUMIFS('IND Data'!$U:$U,'IND Data'!$X:$X,"T",'IND Data'!$H:$H,'Revenue Lookup'!$B$75,'IND Data'!$M:$M,"",'IND Data'!$K:$K,"RO",'IND Data'!$L:$L,LEFT(A150,2),'IND Data'!$K:$K,"RO",'IND Data'!$N:$N,"U",'IND Data'!$W:$W,">0") -> 0 | K150: 0 | L150: 0 | M150: 303.787575 | N150: 0 | O150: 0.0025 | T150: 35 | U150: 0 | V150: 0 | W150: 0
A151: 40 Yard Pickup | B151: T | C151: ="" ->  | D151: >0 | E151: RO | F151: 1 | G151: 303.03 | H151: 36 | I151: 40 | J151: =SUMIFS('IND Data'!$U:$U,'IND Data'!$X:$X,"T",'IND Data'!$H:$H,'Revenue Lookup'!$B$74,'IND Data'!$M:$M,"",'IND Data'!$K:$K,"RO",'IND Data'!$L:$L,LEFT(A151,2),'IND Data'!$K:$K,"RO",'IND Data'!$N:$N,"U",'IND Data'!$W:$W,">0")+SUMIFS('IND Data'!$U:$U,'IND Data'!$X:$X,"T",'IND Data'!$H:$H,'Revenue Lookup'!$B$75,'IND Data'!$M:$M,"",'IND Data'!$K:$K,"RO",'IND Data'!$L:$L,LEFT(A151,2),'IND Data'!$K:$K,"RO",'IND Data'!$N:$N,"U",'IND Data'!$W:$W,">0") -> 0 | K151: 0 | L151: 0 | M151: 303.787575 | N151: 0 | O151: 0.0025 | R151: 205.19 | S151: 36 | T151: 40 | U151: 0 | V151: 0 | W151: 0
A153: 10 Yard Rent/Calendar Day | G153: 4.13 | H153: 36 | K153: =+G153*J153 -> 0 | L153: =+I153*J153 -> 0 | M153: =M67 -> 4.140325 | N153: =+M153*J153 -> 0 | O153: =IF(OR(G153=0,M153=0),"",M153/G153-1) -> 0.0025 | R153: 3.2 | S153: 36 | T153: 0 | U153: 0 | V153: 0 | W153: 0
A154: 15 Yard Rent/Calendar Day | G154: 4.13 | H154: 36 | K154: 0 | L154: 0 | M154: =M68 -> 4.140325 | N154: 0 | O154: 0.0025 | R154: 3.2 | S154: 36 | T154: 0 | U154: 0 | V154: 0 | W154: 0
A155: 20 Yard Rent/Calendar Day | G155: 4.13 | H155: 36 | K155: 0 | L155: 0 | M155: 4.140325 | N155: 0 | O155: 0.0025 | R155: 3.2 | S155: 36 | T155: 0 | U155: 0 | V155: 0 | W155: 0
A156: 25 Yard Rent/Calendar Day | G156: 4.13 | H156: 36 | K156: 0 | L156: 0 | M156: 4.140325 | N156: 0 | O156: 0.0025 | R156: 3.2 | S156: 36 | T156: 0 | U156: 0 | V156: 0 | W156: 0
A157: 30 Yard Rent/Calendar Day | G157: 4.51 | H157: 36 | K157: 0 | L157: 0 | M157: 4.521275 | N157: 0 | O157: 0.0025 | R157: 3.5 | S157: 36 | T157: 0 | U157: 0 | V157: 0 | W157: 0
A158: 35 Yard Rent/Calendar Day | G158: 4.84 | H158: N/A | K158: 0 | L158: 0 | M158: 4.8521 | N158: 0 | O158: 0.0025 | T158: 0 | U158: 0 | V158: 0 | W158: 0
A159: 40 Yard Rent/Calendar Day | G159: 4.84 | H159: 36 | K159: 0 | L159: 0 | M159: 4.8521 | N159: 0 | O159: 0.0025 | R159: 3.75 | S159: 36 | T159: 0 | U159: 0 | V159: 0 | W159: 0
A161: Item # 110 - MF Drop Box Service
A162: Customer Owned Containers
A163: Compacted Material
A164: Permanent Service
A165: 10 Yard First Pickup (3.5x) | B165: P | C165: C | D165: =">0" -> >0 | E165: RO | F165: 3.5 | G165: 315.36 | H165: 37 | I165: =VALUE(LEFT(A165,3))*F165 -> 35 | J165: =SUMIFS('IND Data'!$U:$U,'IND Data'!$X:$X,"P",'IND Data'!$H:$H,'Revenue Lookup'!$B$74,'IND Data'!$M:$M,"C",'IND Data'!$K:$K,"RO",'IND Data'!$L:$L,LEFT(A165,2),'IND Data'!$N:$N,"U",'IND Data'!$W:$W,">0")+SUMIFS('IND Data'!$U:$U,'IND Data'!$X:$X,"P",'IND Data'!$H:$H,'Revenue Lookup'!$B$75,'IND Data'!$M:$M,"C",'IND Data'!$K:$K,"RO",'IND Data'!$L:$L,LEFT(A165,2),'IND Data'!$N:$N,"U",'IND Data'!$W:$W,">0") -> 0 | K165: =+G165*J165 -> 0 | L165: =+I165*J165 -> 0 | M165: =+G165*(1+$F$5) -> 316.1484 | N165: =+M165*J165 -> 0 | O165: =IF(OR(G165=0,M165=0),"",M165/G165-1) -> 0.0025 | R165: 219.31 | S165: 37 | T165: 35 | U165: 0 | V165: 0 | W165: 0
A166: 15 Yard First Pickup (3.5x) | B166: P | C166: C | D166: =">0" -> >0 | E166: RO | F166: 3.5 | G166: 369.1 | H166: 37 | I166: =VALUE(LEFT(A166,3))*F166 -> 52.5 | J166: =SUMIFS('IND Data'!$U:$U,'IND Data'!$X:$X,"P",'IND Data'!$H:$H,'Revenue Lookup'!$B$74,'IND Data'!$M:$M,"C",'IND Data'!$K:$K,"RO",'IND Data'!$L:$L,LEFT(A166,2),'IND Data'!$N:$N,"U",'IND Data'!$W:$W,">0")+SUMIFS('IND Data'!$U:$U,'IND Data'!$X:$X,"P",'IND Data'!$H:$H,'Revenue Lookup'!$B$75,'IND Data'!$M:$M,"C",'IND Data'!$K:$K,"RO",'IND Data'!$L:$L,LEFT(A166,2),'IND Data'!$N:$N,"U",'IND Data'!$W:$W,">0") -> 0 | K166: 0 | L166: 0 | M166: 370.02275 | N166: 0 | O166: 0.0025 | R166: 248.44 | S166: 37 | T166: 52.5 | U166: 0 | V166: 0 | W166: 0
A167: 20 Yard First Pickup (3.5x) | B167: P | C167: C | D167: >0 | E167: RO | F167: 3.5 | G167: 422.84 | H167: 37 | I167: 70 | J167: =SUMIFS('IND Data'!$U:$U,'IND Data'!$X:$X,"P",'IND Data'!$H:$H,'Revenue Lookup'!$B$74,'IND Data'!$M:$M,"C",'IND Data'!$K:$K,"RO",'IND Data'!$L:$L,LEFT(A167,2),'IND Data'!$N:$N,"U",'IND Data'!$W:$W,">0")+SUMIFS('IND Data'!$U:$U,'IND Data'!$X:$X,"P",'IND Data'!$H:$H,'Revenue Lookup'!$B$75,'IND Data'!$M:$M,"C",'IND Data'!$K:$K,"RO",'IND Data'!$L:$L,LEFT(A167,2),'IND Data'!$N:$N,"U",'IND Data'!$W:$W,">0") -> 0 | K167: 0 | L167: 0 | M167: 423.8971 | N167: 0 | O167: 0.0025 | R167: 277.58 | S167: 37 | T167: =I167 -> 70 | U167: =J167 -> 0 | V167: =+R167*U167 -> 0 | W167: =K167-V167 -> 0
A168: 25 Yard First Pickup (3.5x) | B168: P | C168: C | D168: >0 | E168: RO | F168: 3.5 | G168: 476.59 | H168: 37 | I168: 87.5 | J168: =SUMIFS('IND Data'!$U:$U,'IND Data'!$X:$X,"P",'IND Data'!$H:$H,'Revenue Lookup'!$B$74,'IND Data'!$M:$M,"C",'IND Data'!$K:$K,"RO",'IND Data'!$L:$L,LEFT(A168,2),'IND Data'!$N:$N,"U",'IND Data'!$W:$W,">0")+SUMIFS('IND Data'!$U:$U,'IND Data'!$X:$X,"P",'IND Data'!$H:$H,'Revenue Lookup'!$B$75,'IND Data'!$M:$M,"C",'IND Data'!$K:$K,"RO",'IND Data'!$L:$L,LEFT(A168,2),'IND Data'!$N:$N,"U",'IND Data'!$W:$W,">0") -> 0 | K168: 0 | L168: 0 | M168: 477.781475 | N168: 0 | O168: 0.0025 | R168: 285.66 | S168: 37 | T168: 87.5 | U168: 0 | V168: 0 | W168: 0
A169: 30 Yard First Pickup (3.5x) | B169: P | C169: C | D169: >0 | E169: RO | F169: 3.5 | G169: 530.33 | H169: 37 | I169: 105 | J169: =SUMIFS('IND Data'!$U:$U,'IND Data'!$X:$X,"P",'IND Data'!$H:$H,'Revenue Lookup'!$B$74,'IND Data'!$M:$M,"C",'IND Data'!$K:$K,"RO",'IND Data'!$L:$L,LEFT(A169,2),'IND Data'!$N:$N,"U",'IND Data'!$W:$W,">0")+SUMIFS('IND Data'!$U:$U,'IND Data'!$X:$X,"P",'IND Data'!$H:$H,'Revenue Lookup'!$B$75,'IND Data'!$M:$M,"C",'IND Data'!$K:$K,"RO",'IND Data'!$L:$L,LEFT(A169,2),'IND Data'!$N:$N,"U",'IND Data'!$W:$W,">0") -> 53 | K169: 28107.49 | L169: 5565 | M169: 531.655825 | N169: 28177.75873 | O169: 0.0025 | R169: 314.79 | S169: 37 | T169: 105 | U169: 53 | V169: 16683.87 | W169: 11423.62
A170: 35 Yard First Pickup (3.5x) | B170: P | C170: C | D170: >0 | E170: RO | F170: 3.5 | G170: 584.08 | H170: 37 | I170: 122.5 | J170: =SUMIFS('IND Data'!$U:$U,'IND Data'!$X:$X,"P",'IND Data'!$H:$H,'Revenue Lookup'!$B$74,'IND Data'!$M:$M,"C",'IND Data'!$K:$K,"RO",'IND Data'!$L:$L,LEFT(A170,2),'IND Data'!$N:$N,"U",'IND Data'!$W:$W,">0")+SUMIFS('IND Data'!$U:$U,'IND Data'!$X:$X,"P",'IND Data'!$H:$H,'Revenue Lookup'!$B$75,'IND Data'!$M:$M,"C",'IND Data'!$K:$K,"RO",'IND Data'!$L:$L,LEFT(A170,2),'IND Data'!$N:$N,"U",'IND Data'!$W:$W,">0") -> 0 | K170: 0 | L170: 0 | M170: 585.5402 | N170: 0 | O170: 0.0025 | R170: 343.92 | S170: 37 | T170: 122.5 | U170: 0 | V170: 0 | W170: 0
A171: 40 Yard First Pickup (3.5x) | B171: P | C171: C | D171: >0 | E171: RO | F171: 3.5 | G171: 637.82 | H171: 37 | I171: 140 | J171: =SUMIFS('IND Data'!$U:$U,'IND Data'!$X:$X,"P",'IND Data'!$H:$H,'Revenue Lookup'!$B$74,'IND Data'!$M:$M,"C",'IND Data'!$K:$K,"RO",'IND Data'!$L:$L,LEFT(A171,2),'IND Data'!$N:$N,"U",'IND Data'!$W:$W,">0")+SUMIFS('IND Data'!$U:$U,'IND Data'!$X:$X,"P",'IND Data'!$H:$H,'Revenue Lookup'!$B$75,'IND Data'!$M:$M,"C",'IND Data'!$K:$K,"RO",'IND Data'!$L:$L,LEFT(A171,2),'IND Data'!$N:$N,"U",'IND Data'!$W:$W,">0") -> 0 | K171: 0 | L171: 0 | M171: 639.41455 | N171: 0 | O171: 0.0025 | R171: 373.05 | S171: 37 | T171: 140 | U171: 0 | V171: 0 | W171: 0
A173: 10 Yard Additional Pickup (3.5x) | B173: P | C173: C | D173: =">0" -> >0 | E173: RO | F173: 3.5 | G173: 315.36 | H173: 37 | I173: =VALUE(LEFT(A173,3))*F173 -> 35 | K173: =+G173*J173 -> 0 | L173: =+I173*J173 -> 0 | M173: =+G173*(1+$F$5) -> 316.1484 | N173: =+M173*J173 -> 0 | O173: =IF(OR(G173=0,M173=0),"",M173/G173-1) -> 0.0025 | R173: 219.31 | S173: 37 | T173: 35 | U173: 0 | V173: 0 | W173: 0
A174: 15 Yard Additional Pickup (3.5x) | B174: P | C174: C | D174: =">0" -> >0 | E174: RO | F174: 3.5 | G174: 369.1 | H174: 37 | I174: =VALUE(LEFT(A174,3))*F174 -> 52.5 | K174: 0 | L174: 0 | M174: 370.02275 | N174: 0 | O174: 0.0025 | R174: 248.44 | S174: 37 | T174: 52.5 | U174: 0 | V174: 0 | W174: 0
A175: 20 Yard Additional Pickup (3.5x) | B175: P | C175: C | D175: >0 | E175: RO | F175: 3.5 | G175: 422.84 | H175: 37 | I175: 70 | K175: 0 | L175: 0 | M175: 423.8971 | N175: 0 | O175: 0.0025 | R175: 277.58 | S175: 37 | T175: 70 | U175: 0 | V175: 0 | W175: 0
A176: 25 Yard Additional Pickup (3.5x) | B176: P | C176: C | D176: >0 | E176: RO | F176: 3.5 | G176: 476.59 | H176: 37 | I176: 87.5 | K176: 0 | L176: 0 | M176: 477.781475 | N176: 0 | O176: 0.0025 | R176: 285.66 | S176: 37 | T176: 87.5 | U176: 0 | V176: 0 | W176: 0
A177: 30 Yard Additional Pickup (3.5x) | B177: P | C177: C | D177: >0 | E177: RO | F177: 3.5 | G177: 530.33 | H177: 37 | I177: 105 | K177: 0 | L177: 0 | M177: 531.655825 | N177: 0 | O177: 0.0025 | R177: 314.79 | S177: 37 | T177: 105 | U177: 0 | V177: 0 | W177: 0
A178: 35 Yard Additional Pickup (3.5x) | B178: P | C178: C | D178: >0 | E178: RO | F178: 3.5 | G178: 584.08 | H178: 37 | I178: 122.5 | K178: 0 | L178: 0 | M178: 585.5402 | N178: 0 | O178: 0.0025 | R178: 343.92 | S178: 37 | T178: 122.5 | U178: 0 | V178: 0 | W178: 0
A179: 40 Yard Additional Pickup (3.5x) | B179: P | C179: C | D179: >0 | E179: RO | F179: 3.5 | G179: 637.82 | H179: 37 | I179: 140 | K179: 0 | L179: 0 | M179: 639.41455 | N179: 0 | O179: 0.0025 | R179: 373.05 | S179: 37 | T179: 140 | U179: 0 | V179: 0 | W179: 0
W181: =SUM(W18:W179) -> 21384.48585 | X181: pf Adj

Sheet 183 Tons
D1: 183 Tons | F1: Workdays/month | G1: 23 | H1: 20 | I1: 22 | J1: 21 | K1: 23 | L1: 21 | M1: 22 | N1: 23 | O1: 20 | P1: 23 | Q1: 22 | R1: 21
A2: Container Lookup | B2: Area | G2: 2018-01-01 | H2: 2018-02-01 | I2: 2018-03-01 | J2: 2018-04-01 | K2: 2018-05-01 | L2: 2018-06-01 | M2: 2018-07-01 | N2: 2018-08-01 | O2: 2018-09-01 | P2: 2018-10-01 | Q2: 2018-11-01 | R2: 2018-12-01 | T2: Total | V2: Drive Bys/Week | W2: Total Drive Bys | X2: Non-Reg'd | Y2: Reg'd
D3: Total Commercial MSW Tons | G3: ='MSW Tons'!D24 -> 1694.422076 | H3: ='MSW Tons'!E24 -> 1450.44 | I3: ='MSW Tons'!F24 -> 1621.232132 | J3: ='MSW Tons'!G24 -> 1625.691854 | K3: ='MSW Tons'!H24 -> 1700.774665 | L3: ='MSW Tons'!I24 -> 1579.778481 | M3: ='MSW Tons'!J24 -> 1611.258345 | N3: ='MSW Tons'!K24 -> 1635.054966 | O3: ='MSW Tons'!L24 -> 1392.834028 | P3: ='MSW Tons'!M24 -> 1688.980086 | Q3: ='MSW Tons'!N24 -> 1586.387616 | R3: ='MSW Tons'!O24 -> 1521.456474 | T3: =SUM(G3:R3) -> 19108.31072
D4: Total MF MSW Tons | G4: ='MSW Tons'!D35 -> 441.5705727 | H4: ='MSW Tons'!E35 -> 369.49 | I4: ='MSW Tons'!F35 -> 404.9496015 | J4: ='MSW Tons'!G35 -> 412.3140226 | K4: ='MSW Tons'!H35 -> 448.8794858 | L4: ='MSW Tons'!I35 -> 395.2047272 | M4: ='MSW Tons'!J35 -> 441.6464691 | N4: ='MSW Tons'!K35 -> 441.6464691 | O4: ='MSW Tons'!L35 -> 386.6373666 | P4: ='MSW Tons'!M35 -> 442.1152115 | Q4: ='MSW Tons'!N35 -> 414.4991834 | R4: ='MSW Tons'!O35 -> 403.4907776 | T4: =SUM(G4:R4) -> 5002.443887
D5: Total Residential MSW Tons | G5: ='MSW Tons'!D46 -> 1411.861276 | H5: ='MSW Tons'!E46 -> 1082.57 | I5: ='MSW Tons'!F46 -> 1276.977819 | J5: ='MSW Tons'!G46 -> 1220.208622 | K5: ='MSW Tons'!H46 -> 1404.770007 | L5: ='MSW Tons'!I46 -> 1262.908181 | M5: ='MSW Tons'!J46 -> 1364.189173 | N5: ='MSW Tons'!K46 -> 1308.873058 | O5: ='MSW Tons'!L46 -> 1275.006358 | P5: ='MSW Tons'!M46 -> 1275.006358 | Q5: ='MSW Tons'!N46 -> 1249.792661 | R5: ='MSW Tons'!O46 -> 1166.065581 | T5: =SUM(G5:R5) -> 15298.22909
D6: Total MSW Tons | G6: =SUM(G3:G5) -> 3547.853925 | H6: 2902.5 | I6: 3303.159553 | J6: 3258.214499 | K6: 3554.424158 | L6: 3237.89139 | M6: 3417.093987 | N6: 3385.574494 | O6: 3054.477753 | P6: 3406.101655 | Q6: 3250.679461 | R6: 3091.012832 | T6: =SUM(T3:T5) -> 39408.98371
D8: Total Commercial Recycle Tons | G8: ='Recycle Tons'!D24 -> 558.855931 | H8: ='Recycle Tons'!E24 -> 406.49 | I8: ='Recycle Tons'!F24 -> 459.639902 | J8: ='Recycle Tons'!G24 -> 474.2789104 | K8: ='Recycle Tons'!H24 -> 437.4783972 | L8: ='Recycle Tons'!I24 -> 442.1992014 | M8: ='Recycle Tons'!J24 -> 417.7242054 | N8: ='Recycle Tons'!K24 -> 440.8974558 | O8: ='Recycle Tons'!L24 -> 387.0291543 | P8: ='Recycle Tons'!M24 -> 478.0755847 | Q8: ='Recycle Tons'!N24 -> 472.3794536 | R8: ='Recycle Tons'!O24 -> 477.4491725 | T8: =SUM(G8:R8) -> 5452.497368
D9: Total MF Recycle Tons | G9: ='Recycle Tons'!D35 -> 132.2945947 | H9: ='Recycle Tons'!E35 -> 98.04 | I9: ='Recycle Tons'!F35 -> 108.8313746 | J9: ='Recycle Tons'!G35 -> 101.7576408 | K9: ='Recycle Tons'!H35 -> 113.9553719 | L9: ='Recycle Tons'!I35 -> 98.46444561 | M9: ='Recycle Tons'!J35 -> 96.77540742 | N9: ='Recycle Tons'!K35 -> 108.2451272 | O9: ='Recycle Tons'!L35 -> 97.15697366 | P9: ='Recycle Tons'!M35 -> 110.0955845 | Q9: ='Recycle Tons'!N35 -> 116.4629222 | R9: ='Recycle Tons'!O35 -> 111.7649037 | T9: =SUM(G9:R9) -> 1293.844346
D10: Total Residential Recycle Tons | G10: ='Recycle Tons'!D46 -> 1017.502703 | H10: ='Recycle Tons'!E46 -> 740.56 | I10: ='Recycle Tons'!F46 -> 842.161246 | J10: ='Recycle Tons'!G46 -> 833.9903005 | K10: ='Recycle Tons'!H46 -> 947.3644394 | L10: ='Recycle Tons'!I46 -> 889.1636894 | M10: ='Recycle Tons'!J46 -> 825.8834567 | N10: ='Recycle Tons'!K46 -> 783.8067048 | O10: ='Recycle Tons'!L46 -> 716.8999722 | P10: ='Recycle Tons'!M46 -> 830.1240515 | Q10: ='Recycle Tons'!N46 -> 860.5697829 | R10: ='Recycle Tons'!O46 -> 824.9603978 | T10: =SUM(G10:R10) -> 10112.98674
D11: Total Recycle Tons | G11: =SUM(G8:G10) -> 1708.653228 | H11: 1245.09 | I11: 1410.632523 | J11: 1410.026852 | K11: 1498.798209 | L11: 1429.827336 | M11: 1340.38307 | N11: 1332.949288 | O11: 1201.0861 | P11: 1418.295221 | Q11: 1449.412159 | R11: 1414.174474 | T11: =SUM(T8:T10) -> 16859.32846
D13: Total Commercial Yardwaste Tons | G13: ='YW Tons'!D24 -> 1.565354956 | H13: ='YW Tons'!E24 -> 1.34 | I13: ='YW Tons'!F24 -> 2.00065396 | J13: ='YW Tons'!G24 -> 1.925911862 | K13: ='YW Tons'!H24 -> 2.782520871 | L13: ='YW Tons'!I24 -> 2.320475667 | M13: ='YW Tons'!J24 -> 2.185846222 | N13: ='YW Tons'!K24 -> 2.521478231 | O13: ='YW Tons'!L24 -> 1.358565411 | P13: ='YW Tons'!M24 -> 3.28645338 | Q13: ='YW Tons'!N24 -> 6.761010561 | R13: ='YW Tons'!O24 -> 3.57485269 | T13: =SUM(G13:R13) -> 31.62312381
D14: Total MF Yardwaste Tons | G14: ='YW Tons'!D35 -> 0.8675372313 | H14: ='YW Tons'!E35 -> 0.85 | I14: ='YW Tons'!F35 -> 1.22778551 | J14: ='YW Tons'!G35 -> 1.251101255 | K14: ='YW Tons'!H35 -> 1.506442358 | L14: ='YW Tons'!I35 -> 1.163412361 | M14: ='YW Tons'!J35 -> 0.9144082415 | N14: ='YW Tons'!K35 -> 1.056717952 | O14: ='YW Tons'!L35 -> 0.6651597205 | P14: ='YW Tons'!M35 -> 0.9006679896 | Q14: ='YW Tons'!N35 -> 1.161235619 | R14: ='YW Tons'!O35 -> 0.6720232742 | T14: =SUM(G14:R14) -> 12.23649151
D15: Total Residential Yardwaste Tons | G15: ='YW Tons'!D46 -> 920.1376288 | H15: ='YW Tons'!E46 -> 786.52 | I15: ='YW Tons'!F46 -> 1296.62297 | J15: ='YW Tons'!G46 -> 1644.683675 | K15: ='YW Tons'!H46 -> 2428.42867 | L15: ='YW Tons'!I46 -> 1651.490694 | M15: ='YW Tons'!J46 -> 1374.288646 | N15: ='YW Tons'!K46 -> 1134.938022 | O15: ='YW Tons'!L46 -> 1049.89863 | P15: ='YW Tons'!M46 -> 1316.646003 | Q15: ='YW Tons'!N46 -> 1553.066135 | R15: ='YW Tons'!O46 -> 826.035818 | T15: =SUM(G15:R15) -> 15982.75689
D16: Total Yardwaste Tons | G16: =SUM(G13:G15) -> 922.570521 | H16: 788.71 | I16: 1299.85141 | J16: 1647.860688 | K16: 2432.717634 | L16: 1654.974582 | M16: 1377.388901 | N16: 1138.516219 | O16: 1051.922355 | P16: 1320.833124 | Q16: 1560.988381 | R16: 830.282694 | T16: =SUM(T13:T15) -> 16026.61651
D18: Total Resi MSW Customers | G18: =G203 -> 31068 | H18: 31058 | I18: 31131 | J18: 31136 | K18: 31256 | L18: 31412 | M18: 31718 | N18: 29640 | O18: 29719 | P18: 29694 | Q18: 29694 | R18: 29785 | T18: =SUM(G18:R18) -> 367311
D19: Total Resi Recycle Customers | G19: =G239 -> 31105 | H19: 31095 | I19: 31166 | J19: 31171 | K19: 31284 | L19: 31437 | M19: 31747 | N19: 29662 | O19: 29739 | P19: 29714 | Q19: 29714 | R19: 29803 | T19: =SUM(G19:R19) -> 367637
D20: Total Resi Yardwaste Customers | G20: =G215 -> 27714 | H20: 27689 | I20: 27758 | J20: 27824 | K20: 27993 | L20: 28144 | M20: 28459 | N20: 27031 | O20: 27067 | P20: 27041 | Q20: 27041 | R20: 26997 | T20: =SUM(G20:R20) -> 330758
D21: Total Resi Customers | G21: =SUM(G18:G20) -> 89887 | H21: 89842 | I21: 90055 | J21: 90131 | K21: 90533 | L21: 90993 | M21: 91924 | N21: 86333 | O21: =SUM(O18:O20) -> 86525 | P21: =SUM(P18:P20) -> 86449 | Q21: =SUM(Q18:Q20) -> 86449 | R21: =SUM(R18:R20) -> 86585 | T21: =SUM(G21:R21) -> 1065706
D23: pick-up days | G23: 23 | H23: 20 | I23: 22 | J23: 21 | K23: 23 | L23: 21 | M23: 22 | N23: 23 | O23: 20 | P23: 23 | Q23: 22 | R23: 21 | T23: =SUM(G23:R23) -> 261
G25: =+G$2 -> 2018-01-01 | H25: 2018-02-01 | I25: 2018-03-01 | J25: 2018-04-01 | K25: 2018-05-01 | L25: 2018-06-01 | M25: 2018-07-01 | N25: 2018-08-01 | O25: 2018-09-01 | P25: 2018-10-01 | Q25: 2018-11-01 | R25: 2018-12-01 | T25: =+T$2 -> Total
D26: ALL LOCATIONS RESIDENTIAL TOTALS
D27: 1 Can Once-a-Month | G27: =+G51+G75+G99+G124+G148+G172 -> 113 | H27: 112 | I27: 110 | J27: 111 | K27: 112 | L27: 111 | M27: 110 | N27: 85 | O27: 86 | P27: 86 | Q27: 86 | R27: 88 | T27: =SUM(G27:R27) -> 1210
D28: 13 Gallon Can | G28: =+G52+G76+G100+G125+G149+G173 -> 775 | H28: 745 | I28: 868 | J28: 837 | K28: 899 | L28: 520 | M28: 730 | N28: 722 | O28: 491 | P28: 1167 | Q28: 1167 | R28: 910 | T28: 9831
D29: 20 Gallon Can | G29: =+G53+G77+G101+G126+G150+G174 -> 3838 | H29: 3842 | I29: 3833 | J29: 3840 | K29: 3909 | L29: 4012 | M29: 4261 | N29: 4076 | O29: 4109 | P29: 3889 | Q29: 3889 | R29: 3942 | T29: 47440
D30: 1 Can | G30: =+G54+G78+G102+G127+G151+G175 -> 1745 | H30: 1730 | I30: 1734 | J30: 1725 | K30: 1715 | L30: 1700 | M30: 1690 | N30: 1263 | O30: 1264 | P30: 1254 | Q30: 1254 | R30: 1251 | T30: 18325
D31: 2 Can | G31: =+G55+G79+G103+G128+G152+G176 -> 78 | H31: 75 | I31: 74 | J31: 73 | K31: 70 | L31: 70 | M31: 70 | N31: 58 | O31: 59 | P31: 59 | Q31: 59 | R31: 59 | T31: 804
D32: 3 Can | G32: =+G56+G80+G104+G129+G153+G177 -> 3 | H32: 3 | I32: 3 | J32: 3 | K32: 3 | L32: 3 | M32: 3 | N32: 3 | O32: 3 | P32: 3 | Q32: 3 | R32: 3 | T32: 36
D33: 4 Can | G33: =+G57+G81+G105+G130+G154+G178 -> 0 | H33: 0 | I33: 0 | J33: 0 | K33: 0 | L33: 0 | M33: 0 | N33: 0 | O33: 0 | P33: 0 | Q33: 0 | R33: 0 | T33: 0
D34: 5 Can | G34: =+G58+G82+G106+G131+G155+G179 -> 0 | H34: 0 | I34: 0 | J34: 0 | K34: 0 | L34: 0 | M34: 0 | N34: 0 | O34: 0 | P34: 0 | Q34: 0 | R34: 0 | T34: 0
D35: 6 Can | G35: =+G59+G83+G107+G132+G156+G180 -> 0 | H35: 0 | I35: 0 | J35: 0 | K35: 0 | L35: 0 | M35: 0 | N35: 0 | O35: 0 | P35: 0 | Q35: 0 | R35: 0 | T35: 0
D36: 32 Gallon Toter | G36: =+G60+G84+G108+G133+G157+G181 -> 13927 | H36: 13955 | I36: 13877 | J36: 13858 | K36: 13813 | L36: 14015 | M36: 13946 | N36: 13145 | O36: 13252 | P36: 13012 | Q36: 13012 | R36: 13129 | T36: 162941
D37: 48 Gallon Toter | G37: =+G61+G85+G109+G134+G158+G182 -> 2318 | H37: 2351 | I37: 2366 | J37: 2394 | K37: 2426 | L37: 2506 | M37: 2490 | N37: 2498 | O37: 2549 | P37: 2507 | Q37: 2507 | R37: 2566 | T37: 29478
D38: 64 Gallon Toter | G38: =+G62+G86+G110+G135+G159+G183 -> 6585 | H38: 6555 | I38: 6573 | J38: 6587 | K38: 6602 | L38: 6710 | M38: 6665 | N38: 6207 | O38: 6288 | P38: 6160 | Q38: 6160 | R38: 6235 | T38: 77327
D39: 96 Gallon Toter | G39: =+G63+G87+G111+G136+G160+G184 -> 1686 | H39: 1690 | I39: 1693 | J39: 1708 | K39: 1707 | L39: 1765 | M39: 1753 | N39: 1583 | O39: 1618 | P39: 1557 | Q39: 1557 | R39: 1602 | T39: 19919
D40: Total Resi MSW Customers | G40: =SUM(G27:G39) -> 31068 | H40: 31058 | I40: 31131 | J40: 31136 | K40: 31256 | L40: 31412 | M40: 31718 | N40: 29640 | O40: 29719 | P40: 29694 | Q40: 29694 | R40: 29785 | T40: =SUM(T27:T39) -> 367311
D42: Total Resi Recycle Customers | G42: =+G66+G90+G114+G139+G163+G187 -> 31105 | H42: =+H66+H90+H114+H139+H163+H187 -> 31095 | I42: 31166 | J42: 31171 | K42: 31284 | L42: 31437 | M42: 31747 | N42: 29662 | O42: 29739 | P42: 29714 | Q42: 29714 | R42: 29803 | T42: =SUM(G42:R42) -> 367637
D43: Total Resi Yardwaste Customers | G43: =+G67+G91+G115+G140+G164+G188 -> 27892 | H43: 27689 | I43: 27758 | J43: 27824 | K43: 27993 | L43: 28144 | M43: 28459 | N43: 27031 | O43: 27067 | P43: 27041 | Q43: 27041 | R43: 26997 | T43: =SUM(G43:R43) -> 330936
D45: Total Resi Recycle Tonnage | G45: =+G69+G93+G117+G142+G166+G190 -> 1017.502703 | H45: =+H69+H93+H117+H142+H166+H190 -> 740.56 | I45: 842.161246 | J45: 833.9903005 | K45: 947.3644394 | L45: 889.1636894 | M45: 825.8834567 | N45: 783.8067048 | O45: 716.8999722 | P45: 830.1240515 | Q45: 860.5697829 | R45: 824.9603978 | T45: =SUM(G45:R45) -> 10112.98674
D46: Total Resi Yardwaste Tonnage | G46: =+G70+G94+G118+G143+G167+G191 -> 920.1376288 | H46: 786.52 | I46: 1296.62297 | J46: 1644.683675 | K46: 2428.42867 | L46: 1651.490694 | M46: 1374.288646 | N46: 1134.938022 | O46: 1049.89863 | P46: 1316.646003 | Q46: 1553.066135 | R46: 860.171807 | T46: =SUM(G46:R46) -> 16016.89288
D47: Total Resi MSW Tonnage | G47: 1411.861276 | H47: 1082.57 | I47: 1276.977819 | J47: 1220.208622 | K47: 1404.770007 | L47: 1262.908181 | M47: 1364.189173 | N47: 1308.873058 | O47: 1275.006358 | P47: 1275.006358 | Q47: 1249.792661 | R47: 1166.065581 | T47: =SUM(G47:R47) -> 15298.22909
E49: District | F49: Code | G49: =+G$2 -> 2018-01-01 | H49: 2018-02-01 | I49: 2018-03-01 | J49: 2018-04-01 | K49: 2018-05-01 | L49: 2018-06-01 | M49: 2018-07-01 | N49: 2018-08-01 | O49: 2018-09-01 | P49: 2018-10-01 | Q49: 2018-11-01 | R49: 2018-12-01 | T49: =+T$2 -> Total
D50: Auburn Resi Counts/Tons | E50: 8
A51: 1 Can Monthly | C51: Appendix A | D51: 1 Can Once-a-Month | G51: =+'RESI COUNTS'!$C$15 -> 11 | H51: =+'RESI COUNTS'!$C$32 -> 11 | I51: =+'RESI COUNTS'!$C$49 -> 11 | J51: =+'RESI COUNTS'!$C$66 -> 11 | K51: =+'RESI COUNTS'!$C$83 -> 11 | L51: =+'RESI COUNTS'!$C$100 -> 11 | M51: =+'RESI COUNTS'!$C$117 -> 11 | N51: =+'RESI COUNTS'!$C$134 -> 11 | O51: =+'RESI COUNTS'!$C$151 -> 11 | P51: =+'RESI COUNTS'!$C$168 -> 12 | Q51: =+'RESI COUNTS'!$C$185 -> 12 | R51: =+'RESI COUNTS'!$C$202 -> 12 | T51: =SUM(G51:R51) -> 135
A52: N/A | C52: Appendix A | D52: 13 Gallon Can | G52: 0 | H52: 0 | I52: 0 | J52: 0 | K52: 0 | L52: 0 | M52: 0 | N52: 0 | O52: 0 | P52: 0 | Q52: 0 | R52: 0 | T52: 0
A53: 20 Gallon Can | C53: Appendix A | D53: 20 Gallon Can | G53: =+'RESI COUNTS'!$C$10 -> 67 | H53: =+'RESI COUNTS'!$C$27 -> 67 | I53: =+'RESI COUNTS'!$C$44 -> 65 | J53: =+'RESI COUNTS'!$C$61 -> 65 | K53: =+'RESI COUNTS'!$C$78 -> 65 | L53: =+'RESI COUNTS'!$C$95 -> 64 | M53: =+'RESI COUNTS'!$C$112 -> 63 | N53: =+'RESI COUNTS'!$C$129 -> 64 | O53: =+'RESI COUNTS'!$C$146 -> 64 | P53: =+'RESI COUNTS'!$C$163 -> 63 | Q53: =+'RESI COUNTS'!$C$180 -> 63 | R53: =+'RESI COUNTS'!$C$197 -> 64 | T53: 774
A54: 1 Can | C54: Appendix A | D54: 1 Can | G54: =+'RESI COUNTS'!$C$4 -> 154 | H54: =+'RESI COUNTS'!$C$21 -> 153 | I54: =+'RESI COUNTS'!$C$38 -> 151 | J54: =+'RESI COUNTS'!$C$55 -> 150 | K54: =+'RESI COUNTS'!$C$72 -> 148 | L54: =+'RESI COUNTS'!$C$89 -> 146 | M54: =+'RESI COUNTS'!$C$106 -> 146 | N54: =+'RESI COUNTS'!$C$123 -> 146 | O54: =+'RESI COUNTS'!$C$140 -> 148 | P54: =+'RESI COUNTS'!$C$157 -> 145 | Q54: =+'RESI COUNTS'!$C$174 -> 145 | R54: =+'RESI COUNTS'!$C$191 -> 145 | T54: 1777
A55: 2 Can | C55: Appendix A | D55: 2 Can | G55: =+'RESI COUNTS'!$C$5 -> 5 | H55: =+'RESI COUNTS'!$C$22 -> 5 | I55: =+'RESI COUNTS'!$C$39 -> 5 | J55: =+'RESI COUNTS'!$C$56 -> 5 | K55: =+'RESI COUNTS'!$C$73 -> 5 | L55: =+'RESI COUNTS'!$C$90 -> 5 | M55: =+'RESI COUNTS'!$C$107 -> 5 | N55: =+'RESI COUNTS'!$C$124 -> 5 | O55: =+'RESI COUNTS'!$C$141 -> 5 | P55: =+'RESI COUNTS'!$C$158 -> 5 | Q55: =+'RESI COUNTS'!$C$175 -> 5 | R55: =+'RESI COUNTS'!$C$192 -> 6 | T55: 61
A56: 3 Can | C56: Appendix A | D56: 3 Can | G56: 0 | H56: 0 | I56: 0 | J56: 0 | K56: 0 | L56: 0 | M56: 0 | N56: 0 | O56: 0 | P56: 0 | Q56: 0 | R56: 0 | T56: 0
A57: 4 Can | C57: Appendix A | D57: 4 Can | G57: 0 | H57: 0 | I57: 0 | J57: 0 | K57: 0 | L57: 0 | M57: 0 | N57: 0 | O57: 0 | P57: 0 | Q57: 0 | R57: 0 | T57: 0
A58: 5 Can | C58: Appendix A | D58: 5 Can | G58: 0 | H58: 0 | I58: 0 | J58: 0 | K58: 0 | L58: 0 | M58: 0 | N58: 0 | O58: 0 | P58: 0 | Q58: 0 | R58: 0 | T58: 0
A59: 6 Can | C59: Appendix A | D59: 6 Can | T59: 0
A60: 32 Gal Toter | C60: Appendix A | D60: 32 Gallon Toter | G60: =+'RESI COUNTS'!$C$11 -> 333 | H60: =+'RESI COUNTS'!$C$28 -> 334 | I60: =+'RESI COUNTS'!$C$45 -> 337 | J60: =+'RESI COUNTS'!$C$62 -> 338 | K60: =+'RESI COUNTS'!$C$79 -> 337 | L60: =+'RESI COUNTS'!$C$96 -> 336 | M60: =+'RESI COUNTS'!$C$113 -> 338 | N60: =+'RESI COUNTS'!$C$130 -> 336 | O60: =+'RESI COUNTS'!$C$147 -> 336 | P60: =+'RESI COUNTS'!$C$164 -> 339 | Q60: =+'RESI COUNTS'!$C$181 -> 339 | R60: =+'RESI COUNTS'!$C$198 -> 340 | T60: 4043
A61: N/A | C61: Appendix A | D61: 48 Gallon Toter | G61: 0 | H61: 0 | I61: 0 | J61: 0 | K61: 0 | L61: 0 | M61: 0 | N61: 0 | O61: 0 | P61: 0 | Q61: 0 | R61: 0 | T61: 0
A62: 64 Gal Toter | C62: Appendix A | D62: 64 Gallon Toter | G62: =+'RESI COUNTS'!$C$13 -> 266 | H62: =+'RESI COUNTS'!$C$30 -> 264 | I62: =+'RESI COUNTS'!$C$47 -> 269 | J62: =+'RESI COUNTS'!$C$64 -> 269 | K62: =+'RESI COUNTS'!$C$81 -> 269 | L62: =+'RESI COUNTS'!$C$98 -> 270 | M62: =+'RESI COUNTS'!$C$115 -> 271 | N62: =+'RESI COUNTS'!$C$132 -> 269 | O62: =+'RESI COUNTS'!$C$149 -> 270 | P62: =+'RESI COUNTS'!$C$166 -> 269 | Q62: =+'RESI COUNTS'!$C$183 -> 269 | R62: =+'RESI COUNTS'!$C$200 -> 268 | T62: 3223
A63: 96 Gal Toter | C63: Appendix A | D63: 96 Gallon Toter | G63: =+'RESI COUNTS'!$C$14 -> 79 | H63: =+'RESI COUNTS'!$C$31 -> 79 | I63: =+'RESI COUNTS'!$C$48 -> 80 | J63: =+'RESI COUNTS'!$C$65 -> 81 | K63: =+'RESI COUNTS'!$C$82 -> 80 | L63: =+'RESI COUNTS'!$C$99 -> 81 | M63: =+'RESI COUNTS'!$C$116 -> 81 | N63: =+'RESI COUNTS'!$C$133 -> 82 | O63: =+'RESI COUNTS'!$C$150 -> 81 | P63: =+'RESI COUNTS'!$C$167 -> 80 | Q63: =+'RESI COUNTS'!$C$184 -> 80 | R63: =+'RESI COUNTS'!$C$201 -> 85 | T63: 969
D64: Total MSW Customers | G64: =SUM(G51:G63) -> 915 | H64: 913 | I64: 918 | J64: 919 | K64: 915 | L64: 913 | M64: 915 | N64: 913 | O64: 915 | P64: 913 | Q64: 913 | R64: 920 | T64: 10982 | V64: =T64 -> 10982
D66: Total Recycle Customers | G66: =G231 -> 918 | H66: =H231 -> 915 | I66: 920 | J66: 921 | K66: 916 | L66: 914 | M66: 916 | N66: 914 | O66: 916 | P66: 915 | Q66: 915 | R66: 922 | T66: =SUM(G66:R66) -> 11002
D67: Total Yardwaste Customers | G67: =G207 -> 551 | H67: 545 | I67: 553 | J67: 560 | K67: 566 | L67: 568 | M67: 572 | N67: 568 | O67: 565 | P67: 560 | Q67: 560 | R67: 547 | T67: =SUM(G67:R67) -> 6715
D69: Total Recycle Tonnage | G69: ='Recycle Tons'!D39 -> 35.18643056 | H69: ='Recycle Tons'!E39 -> 11.65 | I69: ='Recycle Tons'!F39 -> 33.40403014 | J69: ='Recycle Tons'!G39 -> 24.15268397 | K69: ='Recycle Tons'!H39 -> 29.62074606 | L69: ='Recycle Tons'!I39 -> 22.34590711 | M69: ='Recycle Tons'!J39 -> 13.08477224 | N69: ='Recycle Tons'!K39 -> 20.5490442 | O69: ='Recycle Tons'!L39 -> 22.5475658 | P69: ='Recycle Tons'!M39 -> 24.08988927 | Q69: ='Recycle Tons'!N39 -> 24.05772682 | R69: ='Recycle Tons'!O39 -> 22.09971532 | T69: =SUM(G69:R69) -> 282.7885115
D70: Total Yardwaste Tonnage | G70: ='YW Tons'!D39 -> 16.40855087 | H70: ='YW Tons'!E39 -> 13.82 | I70: ='YW Tons'!F39 -> 29.77486739 | J70: ='YW Tons'!G39 -> 26.44839267 | K70: ='YW Tons'!H39 -> 52.62095233 | L70: ='YW Tons'!I39 -> 34.20214099 | M70: ='YW Tons'!J39 -> 26.51035896 | N70: ='YW Tons'!K39 -> 31.01176585 | O70: ='YW Tons'!L39 -> 22.41544615 | P70: ='YW Tons'!M39 -> 18.56627689 | Q70: ='YW Tons'!N39 -> 30.46296176 | R70: 56.42 | T70: =SUM(G70:R70) -> 358.6617139
D71: Total Residential MSW Tonnage | G71: ='MSW Tons'!D39 -> 50.30181239 | H71: ='MSW Tons'!E39 -> 33.91 | I71: ='MSW Tons'!F39 -> 73.75341807 | J71: ='MSW Tons'!G39 -> 49.39375877 | K71: ='MSW Tons'!H39 -> 69.96591039 | L71: ='MSW Tons'!I39 -> 46.55028748 | M71: ='MSW Tons'!J39 -> 55.212572 | N71: ='MSW Tons'!K39 -> 69.47969636 | O71: ='MSW Tons'!L39 -> 67.36807597 | P71: ='MSW Tons'!M39 -> 67.36807597 | Q71: ='MSW Tons'!N39 -> 55.93930868 | R71: ='MSW Tons'!O39 -> 67.13561428 | T71: =SUM(G71:R71) -> 706.3785304
E73: =+E$49 -> District | F73: =+F$49 -> Code | G73: 2018-01-01 | H73: =+H$2 -> 2018-02-01 | I73: 2018-03-01 | J73: 2018-04-01 | K73: 2018-05-01 | L73: 2018-06-01 | M73: 2018-07-01 | N73: 2018-08-01 | O73: 2018-09-01 | P73: 2018-10-01 | Q73: 2018-11-01 | R73: 2018-12-01 | T73: =+T$2 -> Total
D74: County Resi Counts/Tons (WUTC) | E74: 1
A75: 1 Can Monthly | B75: Regulated | C75: Appendix A | D75: 1 Can Once-a-Month | G75: =+'RESI COUNTS'!$D$15 -> 49 | H75: =+'RESI COUNTS'!$D$32 -> 48 | I75: =+'RESI COUNTS'!$D$49 -> 46 | J75: =+'RESI COUNTS'!$D$66 -> 46 | K75: =+'RESI COUNTS'!$D$83 -> 46 | L75: =+'RESI COUNTS'!$D$100 -> 46 | M75: =+'RESI COUNTS'!$D$117 -> 45 | N75: =+'RESI COUNTS'!$D$134 -> 43 | O75: =+'RESI COUNTS'!$D$151 -> 44 | P75: =+'RESI COUNTS'!$D$168 -> 44 | Q75: =+'RESI COUNTS'!$D$185 -> 44 | R75: =+'RESI COUNTS'!$D$202 -> 45 | T75: =SUM(G75:R75) -> 546
A76: N/A | B76: N/A | C76: Appendix A | D76: 13 Gallon Can | G76: 0 | H76: 0 | I76: 0 | J76: 0 | K76: 0 | L76: 0 | M76: 0 | N76: 0 | O76: 0 | P76: 0 | Q76: 0 | R76: 0 | T76: 0
A77: 20 Gallon Can | B77: Regulated | C77: Appendix A | D77: 20 Gallon Can | G77: =+'RESI COUNTS'!$D$10 -> 241 | H77: =+'RESI COUNTS'!$D$27 -> 247 | I77: =+'RESI COUNTS'!$D$44 -> 246 | J77: =+'RESI COUNTS'!$D$61 -> 243 | K77: =+'RESI COUNTS'!$D$78 -> 249 | L77: =+'RESI COUNTS'!$D$95 -> 253 | M77: =+'RESI COUNTS'!$D$112 -> 249 | N77: =+'RESI COUNTS'!$D$129 -> 251 | O77: =+'RESI COUNTS'!$D$146 -> 254 | P77: =+'RESI COUNTS'!$D$163 -> 255 | Q77: =+'RESI COUNTS'!$D$180 -> 255 | R77: =+'RESI COUNTS'!$D$197 -> 263 | T77: 3006
A78: 1 Can | B78: Regulated | C78: Appendix A | D78: 1 Can | G78: =+'RESI COUNTS'!$D$4 -> 498 | H78: =+'RESI COUNTS'!$D$21 -> 492 | I78: =+'RESI COUNTS'!$D$38 -> 495 | J78: =+'RESI COUNTS'!$D$55 -> 491 | K78: =+'RESI COUNTS'!$D$72 -> 488 | L78: =+'RESI COUNTS'!$D$89 -> 484 | M78: =+'RESI COUNTS'!$D$106 -> 482 | N78: =+'RESI COUNTS'!$D$123 -> 474 | O78: =+'RESI COUNTS'!$D$140 -> 476 | P78: =+'RESI COUNTS'!$D$157 -> 470 | Q78: =+'RESI COUNTS'!$D$174 -> 470 | R78: =+'RESI COUNTS'!$D$191 -> 469 | T78: 5789
A79: 2 Can | B79: Regulated | C79: Appendix A | D79: 2 Can | G79: =+'RESI COUNTS'!$D$5 -> 11 | H79: =+'RESI COUNTS'!$D$22 -> 10 | I79: =+'RESI COUNTS'!$D$39 -> 10 | J79: =+'RESI COUNTS'!$D$56 -> 10 | K79: =+'RESI COUNTS'!$D$73 -> 10 | L79: =+'RESI COUNTS'!$D$90 -> 10 | M79: =+'RESI COUNTS'!$D$107 -> 10 | N79: =+'RESI COUNTS'!$D$124 -> 10 | O79: =+'RESI COUNTS'!$D$141 -> 10 | P79: =+'RESI COUNTS'!$D$158 -> 10 | Q79: =+'RESI COUNTS'!$D$175 -> 10 | R79: =+'RESI COUNTS'!$D$192 -> 10 | T79: 121
A80: 3 Can | B80: Regulated | C80: Appendix A | D80: 3 Can | G80: =+'RESI COUNTS'!$D$6 -> 2 | H80: =+'RESI COUNTS'!$D$23 -> 2 | I80: =+'RESI COUNTS'!$D$40 -> 2 | J80: =+'RESI COUNTS'!$D$57 -> 2 | K80: =+'RESI COUNTS'!$D$74 -> 2 | L80: =+'RESI COUNTS'!$D$91 -> 2 | M80: =+'RESI COUNTS'!$D$108 -> 2 | N80: =+'RESI COUNTS'!$D$125 -> 2 | O80: =+'RESI COUNTS'!$D$142 -> 2 | P80: =+'RESI COUNTS'!$D$159 -> 2 | Q80: =+'RESI COUNTS'!$D$176 -> 2 | R80: =+'RESI COUNTS'!$D$193 -> 2 | T80: 24
A81: 4 Can | B81: Regulated | C81: Appendix A | D81: 4 Can | G81: 0 | H81: 0 | I81: 0 | J81: 0 | K81: 0 | L81: 0 | M81: 0 | N81: 0 | O81: 0 | P81: 0 | Q81: 0 | R81: 0 | T81: 0
A82: 5 Can | B82: Regulated | C82: Appendix A | D82: 5 Can | G82: 0 | H82: 0 | I82: 0 | J82: 0 | K82: 0 | L82: 0 | M82: 0 | N82: 0 | O82: 0 | P82: 0 | Q82: 0 | R82: 0 | T82: 0
A83: 6 Can | B83: Regulated | C83: Appendix A | D83: 6 Can | T83: 0
A84: 32 Gal Toter | B84: Regulated | C84: Appendix A | D84: 32 Gallon Toter | G84: =+'RESI COUNTS'!$D$11 -> 1124 | H84: =+'RESI COUNTS'!$D$28 -> 1122 | I84: =+'RESI COUNTS'!$D$45 -> 1139 | J84: =+'RESI COUNTS'!$D$62 -> 1137 | K84: =+'RESI COUNTS'!$D$79 -> 1138 | L84: =+'RESI COUNTS'!$D$96 -> 1159 | M84: =+'RESI COUNTS'!$D$113 -> 1163 | N84: =+'RESI COUNTS'!$D$130 -> 1137 | O84: =+'RESI COUNTS'!$D$147 -> 1162 | P84: =+'RESI COUNTS'!$D$164 -> 1155 | Q84: =+'RESI COUNTS'!$D$181 -> 1155 | R84: =+'RESI COUNTS'!$D$198 -> 1171 | T84: 13762
A85: N/A | B85: N/A | C85: Appendix A | D85: 48 Gallon Toter | G85: 0 | H85: 0 | I85: 0 | J85: 0 | K85: 0 | L85: 0 | M85: 0 | N85: 0 | O85: 0 | P85: 0 | Q85: 0 | R85: 0 | T85: 0
A86: 64 Gal Toter | B86: Regulated | C86: Appendix A | D86: 64 Gallon Toter | G86: =+'RESI COUNTS'!$D$13 -> 852 | H86: =+'RESI COUNTS'!$D$30 -> 838 | I86: =+'RESI COUNTS'!$D$47 -> 859 | J86: =+'RESI COUNTS'!$D$64 -> 855 | K86: =+'RESI COUNTS'!$D$81 -> 858 | L86: =+'RESI COUNTS'!$D$98 -> 863 | M86: =+'RESI COUNTS'!$D$115 -> 869 | N86: =+'RESI COUNTS'!$D$132 -> 849 | O86: =+'RESI COUNTS'!$D$149 -> 857 | P86: =+'RESI COUNTS'!$D$166 -> 851 | Q86: =+'RESI COUNTS'!$D$183 -> 851 | R86: =+'RESI COUNTS'!$D$200 -> 858 | T86: 10260
A87: 96 Gal Toter | B87: Regulated | C87: Appendix A | D87: 96 Gallon Toter | G87: =+'RESI COUNTS'!$D$14 -> 227 | H87: =+'RESI COUNTS'!$D$31 -> 222 | I87: =+'RESI COUNTS'!$D$48 -> 228 | J87: =+'RESI COUNTS'!$D$65 -> 231 | K87: =+'RESI COUNTS'!$D$82 -> 231 | L87: =+'RESI COUNTS'!$D$99 -> 239 | M87: =+'RESI COUNTS'!$D$116 -> 241 | N87: =+'RESI COUNTS'!$D$133 -> 236 | O87: =+'RESI COUNTS'!$D$150 -> 247 | P87: =+'RESI COUNTS'!$D$167 -> 237 | Q87: =+'RESI COUNTS'!$D$184 -> 237 | R87: =+'RESI COUNTS'!$D$201 -> 241 | T87: 2817
D88: Total MSW Customers | G88: =SUM(G75:G87) -> 3004 | H88: 2981 | I88: 3025 | J88: 3015 | K88: 3022 | L88: 3056 | M88: 3061 | N88: 3002 | O88: 3052 | P88: 3024 | Q88: 3024 | R88: 3059 | T88: 36325 | V88: =T88 -> 36325 | W88: =+T88+T137 -> 59150
D90: Total Recycle Customers | G90: =G232 -> 3003 | H90: =H232 -> 2983 | I90: 3027 | J90: 3017 | K90: 3024 | L90: 3058 | M90: 3063 | N90: 3004 | O90: 3055 | P90: 3027 | Q90: 3027 | R90: 3063 | T90: =SUM(G90:R90) -> 36351
D91: Total Yardwaste Customers | G91: =G208 -> 1528 | H91: =H208 -> 1511 | I91: 1545 | J91: 1563 | K91: 1606 | L91: 1640 | M91: 1647 | N91: 1622 | O91: 1648 | P91: 1618 | Q91: 1618 | R91: 1587 | T91: =SUM(G91:R91) -> 19133
D93: Total Recycle Tonnage | G93: ='Recycle Tons'!D40 -> 84.8314152 | H93: ='Recycle Tons'!E40 -> 59.35 | I93: ='Recycle Tons'!F40 -> 82.61767972 | J93: ='Recycle Tons'!G40 -> 70.05711456 | K93: ='Recycle Tons'!H40 -> 100.7312422 | L93: ='Recycle Tons'!I40 -> 77.29319517 | M93: ='Recycle Tons'!J40 -> 65.89804846 | N93: ='Recycle Tons'!K40 -> 76.6756215 | O93: ='Recycle Tons'!L40 -> 77.13907885 | P93: ='Recycle Tons'!M40 -> 89.50187735 | Q93: ='Recycle Tons'!N40 -> 101.8034143 | R93: ='Recycle Tons'!O40 -> 86.27817472 | T93: =SUM(G93:R93) -> 972.1768621
D94: Total Yardwaste Tonnage | G94: ='YW Tons'!D40 -> 69.00867396 | H94: ='YW Tons'!E40 -> 54.53 | I94: ='YW Tons'!F40 -> 90.69549384 | J94: ='YW Tons'!G40 -> 100.6330274 | K94: ='YW Tons'!H40 -> 144.5835058 | L94: ='YW Tons'!I40 -> 91.61282378 | M94: ='YW Tons'!J40 -> 91.57757796 | N94: ='YW Tons'!K40 -> 95.51696861 | O94: ='YW Tons'!L40 -> 59.97645647 | P94: ='YW Tons'!M40 -> 75.15080348 | Q94: ='YW Tons'!N40 -> 81.76668886 | R94: ='YW Tons'!O40 -> 48.65868323 | T94: =SUM(G94:R94) -> 1003.710703
D95: Total Residential MSW Tonnage | G95: ='MSW Tons'!D40 -> 206.7415564 | H95: ='MSW Tons'!E40 -> 157.51 | I95: ='MSW Tons'!F40 -> 217.6681409 | J95: ='MSW Tons'!G40 -> 186.6330787 | K95: ='MSW Tons'!H40 -> 241.6532932 | L95: ='MSW Tons'!I40 -> 210.9540555 | M95: ='MSW Tons'!J40 -> 215.0213791 | N95: ='MSW Tons'!K40 -> 241.109768 | O95: ='MSW Tons'!L40 -> 199.2847601 | P95: ='MSW Tons'!M40 -> 199.2847601 | Q95: ='MSW Tons'!N40 -> 235.4112993 | R95: ='MSW Tons'!O40 -> 181.4757794 | T95: =SUM(G95:R95) -> 2492.747871
E97: District | F97: Code | G97: 2018-01-14 | H97: 2018-02-01 | I97: 2018-03-01 | J97: 2018-04-01 | K97: 2018-05-01 | L97: 2018-06-01 | M97: 2018-07-01 | N97: 2018-08-01 | O97: 2018-09-01 | P97: 2018-10-01 | Q97: 2018-11-01 | R97: 2018-12-01 | T97: Total
D98: Normandy Park Resi Counts/Tons | E98: 13 & 90
D99: 1 Can Once-a-Month | G99: =+'RESI COUNTS'!$E$15 -> 23 | H99: =+'RESI COUNTS'!$E$32 -> 23 | I99: =+'RESI COUNTS'!$E$49 -> 23 | J99: =+'RESI COUNTS'!$E$66 -> 24 | K99: =+'RESI COUNTS'!$E$83 -> 24 | L99: =+'RESI COUNTS'!$E$100 -> 23 | M99: =+'RESI COUNTS'!$E$117 -> 23 | N99: =+'RESI COUNTS'!$E$134 -> 0 | O99: =+'RESI COUNTS'!$E$151 -> 0 | P99: =+'RESI COUNTS'!$E$168 -> 0 | Q99: =+'RESI COUNTS'!$E$185 -> 0 | R99: =+'RESI COUNTS'!$E$202 -> 0 | T99: =SUM(G99:R99) -> 163
D100: 10 Gallon Can | G100: =+'RESI COUNTS'!$E$9 -> 17 | H100: =+'RESI COUNTS'!$E$26 -> 16 | I100: =+'RESI COUNTS'!$E$43 -> 16 | J100: =+'RESI COUNTS'!$E$60 -> 16 | K100: =+'RESI COUNTS'!$E$77 -> 16 | L100: =+'RESI COUNTS'!$E$94 -> 18 | M100: =+'RESI COUNTS'!$E$111 -> 20 | N100: 0 | O100: 0 | P100: 0 | Q100: 0 | R100: 0 | T100: 119
D101: 20 Gallon Can | G101: =+'RESI COUNTS'!$E$10 -> 231 | H101: =+'RESI COUNTS'!$E$27 -> 229 | I101: =+'RESI COUNTS'!$E$44 -> 231 | J101: =+'RESI COUNTS'!$E$61 -> 229 | K101: =+'RESI COUNTS'!$E$78 -> 227 | L101: =+'RESI COUNTS'!$E$95 -> 229 | M101: =+'RESI COUNTS'!$E$112 -> 228 | N101: =+'RESI COUNTS'!$E$129 -> 0 | O101: =+'RESI COUNTS'!$E$146 -> 0 | P101: =+'RESI COUNTS'!$E$163 -> 0 | Q101: =+'RESI COUNTS'!$E$180 -> 0 | R101: =+'RESI COUNTS'!$E$197 -> 0 | T101: 1604
D102: 1 Can | G102: =+'RESI COUNTS'!$E$4 -> 419 | H102: =+'RESI COUNTS'!$E$21 -> 416 | I102: =+'RESI COUNTS'!$E$38 -> 418 | J102: =+'RESI COUNTS'!$E$55 -> 417 | K102: =+'RESI COUNTS'!$E$72 -> 418 | L102: =+'RESI COUNTS'!$E$89 -> 414 | M102: =+'RESI COUNTS'!$E$106 -> 410 | N102: =+'RESI COUNTS'!$E$123 -> 0 | O102: =+'RESI COUNTS'!$E$140 -> 0 | P102: =+'RESI COUNTS'!$E$157 -> 0 | Q102: =+'RESI COUNTS'!$E$174 -> 0 | R102: =+'RESI COUNTS'!$E$191 -> 0 | T102: 2912
D103: 2 Can | G103: =+'RESI COUNTS'!$E$5 -> 14 | H103: =+'RESI COUNTS'!$E$22 -> 14 | I103: =+'RESI COUNTS'!$E$39 -> 13 | J103: =+'RESI COUNTS'!$E$56 -> 13 | K103: =+'RESI COUNTS'!$E$73 -> 13 | L103: =+'RESI COUNTS'!$E$90 -> 12 | M103: =+'RESI COUNTS'!$E$107 -> 12 | N103: =+'RESI COUNTS'!$E$124 -> 0 | O103: =+'RESI COUNTS'!$E$141 -> 0 | P103: =+'RESI COUNTS'!$E$158 -> 0 | Q103: =+'RESI COUNTS'!$E$175 -> 0 | R103: =+'RESI COUNTS'!$E$192 -> 0 | T103: 91
D104: 3 Can | G104: =+'RESI COUNTS'!$E$6 -> 0 | H104: =+'RESI COUNTS'!$E$23 -> 0 | I104: =+'RESI COUNTS'!$E$40 -> 0 | J104: =+'RESI COUNTS'!$E$57 -> 0 | K104: =+'RESI COUNTS'!$E$74 -> 0 | L104: =+'RESI COUNTS'!$E$91 -> 0 | M104: =+'RESI COUNTS'!$E$108 -> 0 | N104: =+'RESI COUNTS'!$E$125 -> 0 | O104: =+'RESI COUNTS'!$E$142 -> 0 | P104: =+'RESI COUNTS'!$E$159 -> 0 | Q104: =+'RESI COUNTS'!$E$176 -> 0 | R104: =+'RESI COUNTS'!$E$193 -> 0 | T104: 0
D105: 4 Can | G105: 0 | H105: 0 | I105: 0 | J105: 0 | K105: 0 | L105: 0 | M105: 0 | N105: 0 | O105: 0 | P105: 0 | Q105: 0 | R105: 0 | T105: 0
D106: 5 Can | G106: 0 | H106: 0 | I106: 0 | J106: 0 | K106: 0 | L106: 0 | M106: 0 | N106: 0 | O106: 0 | P106: 0 | Q106: 0 | R106: 0 | T106: 0
D107: 6 Can | T107: 0
D108: 32 Gallon Toter | G108: =+'RESI COUNTS'!$E$11 -> 708 | H108: =+'RESI COUNTS'!$E$28 -> 718 | I108: =+'RESI COUNTS'!$E$45 -> 721 | J108: =+'RESI COUNTS'!$E$62 -> 720 | K108: =+'RESI COUNTS'!$E$79 -> 721 | L108: =+'RESI COUNTS'!$E$96 -> 738 | M108: =+'RESI COUNTS'!$E$113 -> 737 | N108: =+'RESI COUNTS'!$E$130 -> 0 | O108: =+'RESI COUNTS'!$E$147 -> 0 | P108: =+'RESI COUNTS'!$E$164 -> 0 | Q108: =+'RESI COUNTS'!$E$181 -> 0 | R108: =+'RESI COUNTS'!$E$198 -> 0 | T108: 5063
D109: 45 Gallon Toter | G109: 0 | H109: 0 | I109: 0 | J109: 0 | K109: 0 | L109: 0 | M109: 0 | N109: 0 | O109: 0 | P109: 0 | Q109: 0 | R109: 0 | T109: 0
D110: 60 Gallon Toter | G110: =+'RESI COUNTS'!$E$13 -> 451 | H110: =+'RESI COUNTS'!$E$30 -> 447 | I110: =+'RESI COUNTS'!$E$47 -> 453 | J110: =+'RESI COUNTS'!$E$64 -> 453 | K110: =+'RESI COUNTS'!$E$81 -> 457 | L110: =+'RESI COUNTS'!$E$98 -> 454 | M110: =+'RESI COUNTS'!$E$115 -> 451 | N110: =+'RESI COUNTS'!$E$132 -> 0 | O110: =+'RESI COUNTS'!$E$149 -> 0 | P110: =+'RESI COUNTS'!$E$166 -> 0 | Q110: =+'RESI COUNTS'!$E$183 -> 0 | R110: =+'RESI COUNTS'!$E$200 -> 0 | T110: 3166
D111: 90 Gallon Toter | G111: =+'RESI COUNTS'!$E$14 -> 161 | H111: =+'RESI COUNTS'!$E$31 -> 159 | I111: =+'RESI COUNTS'!$E$48 -> 159 | J111: =+'RESI COUNTS'!$E$65 -> 162 | K111: =+'RESI COUNTS'!$E$82 -> 162 | L111: =+'RESI COUNTS'!$E$99 -> 166 | M111: =+'RESI COUNTS'!$E$116 -> 166 | N111: =+'RESI COUNTS'!$E$133 -> 0 | O111: =+'RESI COUNTS'!$E$150 -> 0 | P111: =+'RESI COUNTS'!$E$167 -> 0 | Q111: =+'RESI COUNTS'!$E$184 -> 0 | R111: =+'RESI COUNTS'!$E$201 -> 0 | T111: 1135
D112: Total MSW Customers | G112: =SUM(G99:G111) -> 2024 | H112: =SUM(H99:H111) -> 2022 | I112: 2034 | J112: 2034 | K112: 2038 | L112: 2054 | M112: 2047 | N112: 0 | O112: 0 | P112: 0 | Q112: 0 | R112: 0 | T112: 14253
D114: Total Recycle Customers | G114: =+G234+G235 -> 2042 | H114: =+H234+H235 -> 2038 | I114: =+I234+I235 -> 2050 | J114: 2049 | K114: 2053 | L114: 2069 | M114: 2061 | N114: 0 | O114: 0 | P114: 0 | Q114: 0 | R114: 0 | T114: =SUM(G114:R114) -> 14362
D115: Total Yardwaste Customers | G115: =+G210+G211 -> 1392 | H115: =+H210+H211 -> 1394 | I115: 1407 | J115: 1412 | K115: 1421 | L115: 1441 | M115: =+M210+M211 -> 1437 | N115: 0 | O115: 0 | P115: 0 | Q115: 0 | R115: 0 | T115: =SUM(G115:R115) -> 9904
D117: Total Recycle Tonnage | G117: ='Recycle Tons'!D41 -> 63.13761058 | H117: ='Recycle Tons'!E41 -> 59.87 | I117: ='Recycle Tons'!F41 -> 49.43416346 | J117: ='Recycle Tons'!G41 -> 49.2540369 | K117: ='Recycle Tons'!H41 -> 74.42539567 | L117: ='Recycle Tons'!I41 -> 58.22347507 | M117: ='Recycle Tons'!J41 -> 49.48442524 | N117: ='Recycle Tons'!K41 -> 0.4547552795 | O117: ='Recycle Tons'!L41 -> 0 | P117: ='Recycle Tons'!M41 -> 0 | Q117: ='Recycle Tons'!N41 -> 0 | R117: ='Recycle Tons'!O41 -> 0 | T117: =SUM(G117:R117) -> 404.2838622
D118: Total Yardwaste Tonnage | G118: ='YW Tons'!D41 -> 79.66411623 | H118: ='YW Tons'!E41 -> 50.23 | I118: ='YW Tons'!F41 -> 80.61531662 | J118: ='YW Tons'!G41 -> 101.91205 | K118: ='YW Tons'!H41 -> 129.1809519 | L118: ='YW Tons'!I41 -> 96.00266343 | M118: ='YW Tons'!J41 -> 76.54971367 | N118: ='YW Tons'!K41 -> 0.5595640453 | O118: ='YW Tons'!L41 -> 0 | P118: ='YW Tons'!M41 -> 0 | Q118: ='YW Tons'!N41 -> 0 | R118: ='YW Tons'!O41 -> 0 | T118: =SUM(G118:R118) -> 614.7143759
D119: Total Residential MSW Tonnage | G119: ='MSW Tons'!D41 -> 121.4348137 | H119: ='MSW Tons'!E41 -> 90.97 | I119: ='MSW Tons'!F41 -> 92.51957079 | J119: ='MSW Tons'!G41 -> 93.9284083 | K119: ='MSW Tons'!H41 -> 125.2421032 | L119: ='MSW Tons'!I41 -> 100.147187 | M119: ='MSW Tons'!J41 -> 141.2962501 | N119: ='MSW Tons'!K41 -> 2.076677469 | O119: ='MSW Tons'!L41 -> 0 | P119: ='MSW Tons'!M41 -> 0 | Q119: ='MSW Tons'!N41 -> 0 | R119: ='MSW Tons'!O41 -> 0 | T119: =SUM(G119:R119) -> 767.6150105
E122: =+E$49 -> District | F122: =+F$49 -> Code | G122: 2018-01-01 | H122: =+H$2 -> 2018-02-01 | I122: 2018-03-01 | J122: 2018-04-01 | K122: 2018-05-01 | L122: 2018-06-01 | M122: 2018-07-01 | N122: 2018-08-01 | O122: 2018-09-01 | P122: 2018-10-01 | Q122: 2018-11-01 | R122: 2018-12-01 | T122: =+T$2 -> Total
D123: Petrovitsky Resi Counts/Tons (WUTC) | E123: 20
A124: 1 Can Monthly | B124: Regulated | C124: Appendix B | D124: 1 Can Once-a-Month | G124: =+'RESI COUNTS'!$F$15 -> 30 | H124: =+'RESI COUNTS'!$F$32 -> 30 | I124: =+'RESI COUNTS'!$F$49 -> 30 | J124: =+'RESI COUNTS'!$F$66 -> 30 | K124: =+'RESI COUNTS'!$F$83 -> 31 | L124: =+'RESI COUNTS'!$F$100 -> 31 | M124: =+'RESI COUNTS'!$F$117 -> 31 | N124: =+'RESI COUNTS'!$F$134 -> 31 | O124: =+'RESI COUNTS'!$F$151 -> 31 | P124: =+'RESI COUNTS'!$F$168 -> 30 | Q124: =+'RESI COUNTS'!$F$185 -> 30 | R124: =+'RESI COUNTS'!$F$202 -> 31 | T124: =SUM(G124:R124) -> 366 | V124: =T124/12 -> 30.5
A125: N/A | B125: N/A | C125: Appendix B | D125: 13 Gallon Can | G125: =+'RESI COUNTS'!$F$9 -> 0 | H125: =+'RESI COUNTS'!$F$26 -> 0 | I125: =+'RESI COUNTS'!$F$43 -> 0 | J125: =+'RESI COUNTS'!$F$60 -> 0 | K125: =+'RESI COUNTS'!$F$77 -> 0 | L125: =+'RESI COUNTS'!$F$94 -> 0 | M125: =+'RESI COUNTS'!$F$111 -> 0 | N125: =+'RESI COUNTS'!$F$128 -> 0 | O125: =+'RESI COUNTS'!$F$145 -> 0 | P125: =+'RESI COUNTS'!$F$162 -> 0 | Q125: =+'RESI COUNTS'!$F$179 -> 0 | R125: =+'RESI COUNTS'!$F$196 -> 0 | T125: =SUM(G125:R125) -> 0
A126: 20 Gallon Can | B126: Regulated | C126: Appendix B | D126: 20 Gallon Can | G126: =+'RESI COUNTS'!$F$10 -> 238 | H126: =+'RESI COUNTS'!$F$27 -> 237 | I126: =+'RESI COUNTS'!$F$44 -> 237 | J126: =+'RESI COUNTS'!$F$61 -> 236 | K126: =+'RESI COUNTS'!$F$78 -> 241 | L126: =+'RESI COUNTS'!$F$95 -> 243 | M126: =+'RESI COUNTS'!$F$112 -> 245 | N126: =+'RESI COUNTS'!$F$129 -> 240 | O126: =+'RESI COUNTS'!$F$146 -> 242 | P126: =+'RESI COUNTS'!$F$163 -> 244 | Q126: =+'RESI COUNTS'!$F$180 -> 244 | R126: =+'RESI COUNTS'!$F$197 -> 242 | T126: 2889 | V126: =T126/12 -> 240.75
A127: 1 Can | B127: Regulated | C127: Appendix B | D127: 1 Can | G127: =+'RESI COUNTS'!$F$4 -> 674 | H127: =+'RESI COUNTS'!$F$21 -> 669 | I127: =+'RESI COUNTS'!$F$38 -> 670 | J127: =+'RESI COUNTS'!$F$55 -> 667 | K127: =+'RESI COUNTS'!$F$72 -> 661 | L127: =+'RESI COUNTS'!$F$89 -> 656 | M127: =+'RESI COUNTS'!$F$106 -> 652 | N127: =+'RESI COUNTS'!$F$123 -> 643 | O127: =+'RESI COUNTS'!$F$140 -> 640 | P127: =+'RESI COUNTS'!$F$157 -> 639 | Q127: =+'RESI COUNTS'!$F$174 -> 639 | R127: =+'RESI COUNTS'!$F$191 -> 637 | T127: 7847 | V127: =T127/12 -> 653.9166667
A128: 2 Can | B128: Regulated | C128: Appendix B | D128: 2 Can | G128: =+'RESI COUNTS'!$F$5 -> 48 | H128: =+'RESI COUNTS'!$F$22 -> 46 | I128: =+'RESI COUNTS'!$F$39 -> 46 | J128: =+'RESI COUNTS'!$F$56 -> 45 | K128: =+'RESI COUNTS'!$F$73 -> 42 | L128: =+'RESI COUNTS'!$F$90 -> 43 | M128: =+'RESI COUNTS'!$F$107 -> 43 | N128: =+'RESI COUNTS'!$F$124 -> 43 | O128: =+'RESI COUNTS'!$F$141 -> 44 | P128: =+'RESI COUNTS'!$F$158 -> 44 | Q128: =+'RESI COUNTS'!$F$175 -> 44 | R128: =+'RESI COUNTS'!$F$192 -> 43 | T128: 531 | V128: 44.25
A129: 3 Can | B129: Regulated | C129: Appendix B | D129: 3 Can | G129: =+'RESI COUNTS'!$F$6 -> 1 | H129: =+'RESI COUNTS'!$F$23 -> 1 | I129: =+'RESI COUNTS'!$F$40 -> 1 | J129: =+'RESI COUNTS'!$F$57 -> 1 | K129: =+'RESI COUNTS'!$F$74 -> 1 | L129: =+'RESI COUNTS'!$F$91 -> 1 | M129: =+'RESI COUNTS'!$F$108 -> 1 | N129: =+'RESI COUNTS'!$F$125 -> 1 | O129: =+'RESI COUNTS'!$F$142 -> 1 | P129: =+'RESI COUNTS'!$F$159 -> 1 | Q129: =+'RESI COUNTS'!$F$176 -> 1 | R129: =+'RESI COUNTS'!$F$193 -> 1 | T129: 12 | V129: 1
A130: 4 Can | B130: Regulated | C130: Appendix B | D130: 4 Can | G130: 0 | H130: 0 | I130: 0 | J130: 0 | K130: 0 | L130: 0 | M130: 0 | N130: 0 | O130: 0 | P130: 0 | Q130: 0 | R130: 0 | T130: 0 | V130: 0
A131: 5 Can | B131: Regulated | C131: Appendix B | D131: 5 Can | G131: 0 | H131: 0 | I131: 0 | J131: 0 | K131: 0 | L131: 0 | M131: 0 | N131: 0 | O131: 0 | P131: 0 | Q131: 0 | R131: 0 | T131: 0 | V131: 0
A132: 6 Can | B132: Regulated | C132: Appendix B | D132: 6 Can | T132: 0 | V132: 0
A133: 32 Gal Toter | B133: Regulated | C133: Appendix B | D133: 32 Gallon Toter | G133: =+'RESI COUNTS'!$F$11 -> 510 | H133: =+'RESI COUNTS'!$F$28 -> 519 | I133: =+'RESI COUNTS'!$F$45 -> 519 | J133: =+'RESI COUNTS'!$F$62 -> 513 | K133: =+'RESI COUNTS'!$F$79 -> 519 | L133: =+'RESI COUNTS'!$F$96 -> 528 | M133: =+'RESI COUNTS'!$F$113 -> 530 | N133: =+'RESI COUNTS'!$F$130 -> 524 | O133: =+'RESI COUNTS'!$F$147 -> 537 | P133: =+'RESI COUNTS'!$F$164 -> 534 | Q133: =+'RESI COUNTS'!$F$181 -> 534 | R133: =+'RESI COUNTS'!$F$198 -> 551 | T133: 6318 | V133: 526.5
A134: N/A | B134: N/A | C134: Appendix B | D134: 48 Gallon Toter | G134: 0 | H134: 0 | I134: 0 | J134: 0 | K134: 0 | L134: 0 | M134: 0 | N134: 0 | O134: 0 | P134: 0 | Q134: 0 | R134: 0 | T134: 0 | V134: 0
A135: 64 Gal Toter | B135: Regulated | C135: Appendix B | D135: 64 Gallon Toter | G135: =+'RESI COUNTS'!$F$13 -> 337 | H135: =+'RESI COUNTS'!$F$30 -> 336 | I135: =+'RESI COUNTS'!$F$47 -> 339 | J135: =+'RESI COUNTS'!$F$64 -> 338 | K135: =+'RESI COUNTS'!$F$81 -> 339 | L135: =+'RESI COUNTS'!$F$98 -> 342 | M135: =+'RESI COUNTS'!$F$115 -> 344 | N135: =+'RESI COUNTS'!$F$132 -> 352 | O135: =+'RESI COUNTS'!$F$149 -> 358 | P135: =+'RESI COUNTS'!$F$166 -> 354 | Q135: =+'RESI COUNTS'!$F$183 -> 354 | R135: =+'RESI COUNTS'!$F$200 -> 371 | T135: 4164 | V135: 347
A136: 96 Gal Toter | B136: Regulated | C136: Appendix B | D136: 96 Gallon Toter | G136: =+'RESI COUNTS'!$F$14 -> 54 | H136: =+'RESI COUNTS'!$F$31 -> 59 | I136: =+'RESI COUNTS'!$F$48 -> 57 | J136: =+'RESI COUNTS'!$F$65 -> 58 | K136: =+'RESI COUNTS'!$F$82 -> 57 | L136: =+'RESI COUNTS'!$F$99 -> 60 | M136: =+'RESI COUNTS'!$F$116 -> 59 | N136: =+'RESI COUNTS'!$F$133 -> 58 | O136: =+'RESI COUNTS'!$F$150 -> 60 | P136: =+'RESI COUNTS'!$F$167 -> 57 | Q136: =+'RESI COUNTS'!$F$184 -> 57 | R136: =+'RESI COUNTS'!$F$201 -> 62 | T136: 698 | V136: 58.16666667
D137: Total MSW Customers | G137: =SUM(G124:G136) -> 1892 | H137: 1897 | I137: 1899 | J137: 1888 | K137: 1891 | L137: 1904 | M137: 1905 | N137: 1892 | O137: 1913 | P137: 1903 | Q137: 1903 | R137: 1938 | T137: 22825 | V137: =T137 -> 22825
D139: Total Recycle Customers | G139: =G233 -> 1907 | H139: =H233 -> 1912 | I139: =I233 -> 1915 | J139: 1903 | K139: 1905 | L139: 1916 | M139: 1917 | N139: 1906 | O139: 1926 | P139: 1915 | Q139: 1915 | R139: 1949 | T139: =SUM(G139:R139) -> 22986
D140: Total Yardwaste Customers | G140: =G210 -> 1392 | H140: =H209 -> 1202 | I140: =I209 -> 1208 | J140: 1219 | K140: 1228 | L140: 1236 | M140: 1238 | N140: 1230 | O140: 1242 | P140: 1238 | Q140: 1238 | R140: 1232 | T140: =SUM(G140:R140) -> 14903
D142: Total Recycle Tonnage | G142: ='Recycle Tons'!D43 -> 60.69246038 | H142: ='Recycle Tons'!E43 -> 41.97 | I142: ='Recycle Tons'!F43 -> 52.03942016 | J142: ='Recycle Tons'!G43 -> 80.23982716 | K142: ='Recycle Tons'!H43 -> 44.94775917 | L142: ='Recycle Tons'!I43 -> 67.1946451 | M142: ='Recycle Tons'!J43 -> 50.10869857 | N142: ='Recycle Tons'!K43 -> 41.88975891 | O142: ='Recycle Tons'!L43 -> 44.2401432 | P142: ='Recycle Tons'!M43 -> 67.4960108 | Q142: ='Recycle Tons'!N43 -> 52.29910485 | R142: ='Recycle Tons'!O43 -> 59.39384373 | T142: =SUM(G142:R142) -> 662.511672
D143: Total Yardwaste Tonnage | G143: ='YW Tons'!D43 -> 45.08685054 | H143: ='YW Tons'!E43 -> 54 | I143: ='YW Tons'!F43 -> 72.61525148 | J143: ='YW Tons'!G43 -> 93.01080224 | K143: ='YW Tons'!H43 -> 142.8587821 | L143: ='YW Tons'!I43 -> 90.4499563 | M143: ='YW Tons'!J43 -> 87.18824372 | N143: ='YW Tons'!K43 -> 55.99762088 | O143: ='YW Tons'!L43 -> 53.94145916 | P143: ='YW Tons'!M43 -> 87.26258486 | Q143: ='YW Tons'!N43 -> 96.89725807 | R143: ='YW Tons'!O43 -> 47.70991079 | T143: =SUM(G143:R143) -> 927.0187202
D144: Total Residential MSW Tonnage | G144: ='MSW Tons'!D43 -> 127.0114736 | H144: ='MSW Tons'!E43 -> 84.38 | I144: ='MSW Tons'!F43 -> 101.0255756 | J144: ='MSW Tons'!G43 -> 114.0214705 | K144: ='MSW Tons'!H43 -> 85.4569585 | L144: ='MSW Tons'!I43 -> 92.96269142 | M144: ='MSW Tons'!J43 -> 130.9098169 | N144: ='MSW Tons'!K43 -> 100.1659342 | O144: ='MSW Tons'!L43 -> 118.3179206 | P144: ='MSW Tons'!M43 -> 118.3179206 | Q144: ='MSW Tons'!N43 -> 96.67980352 | R144: ='MSW Tons'!O43 -> 104.0863714 | T144: =SUM(G144:R144) -> 1273.335937
E146: =+E$49 -> District | F146: =+F$49 -> Code | G146: 2018-01-01 | H146: =+H$2 -> 2018-02-01 | I146: 2018-03-01 | J146: 2018-04-01 | K146: 2018-05-01 | L146: 2018-06-01 | M146: 2018-07-01 | N146: 2018-08-01 | O146: 2018-09-01 | P146: 2018-10-01 | Q146: 2018-11-01 | R146: 2018-12-01 | T146: =+T$2 -> Total
D147: Renton Resi Counts/Tons | E147: 55
A148: 1 Can Monthly | D148: 1 Can Once-a-Month | G148: =+'RESI COUNTS'!$G$15 -> 0 | H148: =+'RESI COUNTS'!$G$32 -> 0 | I148: =+'RESI COUNTS'!$G$49 -> 0 | J148: =+'RESI COUNTS'!$G$66 -> 0 | K148: =+'RESI COUNTS'!$G$83 -> 0 | L148: =+'RESI COUNTS'!$G$100 -> 0 | M148: =+'RESI COUNTS'!$G$117 -> 0 | N148: =+'RESI COUNTS'!$G$134 -> 0 | O148: =+'RESI COUNTS'!$G$151 -> 0 | P148: =+'RESI COUNTS'!$G$168 -> 0 | Q148: =+'RESI COUNTS'!$G$185 -> 0 | R148: =+'RESI COUNTS'!$G$202 -> 0 | T148: =SUM(G148:R148) -> 0
A149: N/A | D149: 13 Gallon Can | G149: =+'RESI COUNTS'!$G$9 -> 758 | H149: =+'RESI COUNTS'!$G$26 -> 729 | I149: =+'RESI COUNTS'!$G$43 -> 852 | J149: =+'RESI COUNTS'!$G$60 -> 821 | K149: =+'RESI COUNTS'!$G$77 -> 883 | L149: =+'RESI COUNTS'!$G$94 -> 502 | M149: =+'RESI COUNTS'!$G$111 -> 710 | N149: =+'RESI COUNTS'!$G$128 -> 722 | O149: =+'RESI COUNTS'!$G$145 -> 491 | P149: =+'RESI COUNTS'!$G$162 -> 1167 | Q149: =+'RESI COUNTS'!$G$179 -> 1167 | R149: =+'RESI COUNTS'!$G$196 -> 910 | T149: 9712
A150: 20 Gallon Can | D150: 20 Gallon Can | G150: =+'RESI COUNTS'!$G$10 -> 3061 | H150: =+'RESI COUNTS'!$G$27 -> 3062 | I150: =+'RESI COUNTS'!$G$44 -> 3054 | J150: =+'RESI COUNTS'!$G$61 -> 3067 | K150: =+'RESI COUNTS'!$G$78 -> 3127 | L150: =+'RESI COUNTS'!$G$95 -> 3223 | M150: =+'RESI COUNTS'!$G$112 -> 3476 | N150: =+'RESI COUNTS'!$G$129 -> 3521 | O150: =+'RESI COUNTS'!$G$146 -> 3549 | P150: =+'RESI COUNTS'!$G$163 -> 3327 | Q150: =+'RESI COUNTS'!$G$180 -> 3327 | R150: =+'RESI COUNTS'!$G$197 -> 3373 | T150: 39167
A151: 1 Can | D151: 1 Can | G151: =+'RESI COUNTS'!$G$4 -> 0 | H151: =+'RESI COUNTS'!$G$21 -> 0 | I151: =+'RESI COUNTS'!$G$38 -> 0 | J151: =+'RESI COUNTS'!$G$55 -> 0 | K151: =+'RESI COUNTS'!$G$72 -> 0 | L151: =+'RESI COUNTS'!$G$89 -> 0 | M151: =+'RESI COUNTS'!$G$106 -> 0 | N151: =+'RESI COUNTS'!$G$123 -> 0 | O151: =+'RESI COUNTS'!$G$140 -> 0 | P151: =+'RESI COUNTS'!$G$157 -> 0 | Q151: =+'RESI COUNTS'!$G$174 -> 0 | R151: =+'RESI COUNTS'!$G$191 -> 0 | T151: 0
A152: 2 Can | D152: 2 Can | G152: =+'RESI COUNTS'!$G$5 -> 0 | H152: =+'RESI COUNTS'!$G$22 -> 0 | I152: =+'RESI COUNTS'!$G$39 -> 0 | J152: =+'RESI COUNTS'!$G$56 -> 0 | K152: =+'RESI COUNTS'!$G$73 -> 0 | L152: =+'RESI COUNTS'!$G$90 -> 0 | M152: =+'RESI COUNTS'!$G$107 -> 0 | N152: =+'RESI COUNTS'!$G$124 -> 0 | O152: =+'RESI COUNTS'!$G$141 -> 0 | P152: =+'RESI COUNTS'!$G$158 -> 0 | Q152: =+'RESI COUNTS'!$G$175 -> 0 | R152: =+'RESI COUNTS'!$G$192 -> 0 | T152: 0
A153: 3 Can | D153: 3 Can | G153: =+'RESI COUNTS'!$G$6 -> 0 | H153: =+'RESI COUNTS'!$G$23 -> 0 | I153: =+'RESI COUNTS'!$G$40 -> 0 | J153: =+'RESI COUNTS'!$G$57 -> 0 | K153: =+'RESI COUNTS'!$G$74 -> 0 | L153: =+'RESI COUNTS'!$G$91 -> 0 | M153: =+'RESI COUNTS'!$G$108 -> 0 | N153: =+'RESI COUNTS'!$G$125 -> 0 | O153: =+'RESI COUNTS'!$G$142 -> 0 | P153: =+'RESI COUNTS'!$G$159 -> 0 | Q153: =+'RESI COUNTS'!$G$176 -> 0 | R153: =+'RESI COUNTS'!$G$193 -> 0 | T153: 0
A154: 4 Can | D154: 4 Can | G154: 0 | H154: 0 | I154: 0 | J154: 0 | K154: 0 | L154: 0 | M154: 0 | N154: 0 | O154: 0 | P154: 0 | Q154: 0 | R154: 0 | T154: 0
A155: 5 Can | D155: 5 Can | G155: 0 | H155: 0 | I155: 0 | J155: 0 | K155: 0 | L155: 0 | M155: 0 | N155: 0 | O155: 0 | P155: 0 | Q155: 0 | R155: 0 | T155: 0
A156: 6 Can | D156: 6 Can | T156: 0
A157: 32 Gal Toter | D157: 32 Gallon Toter | G157: =+'RESI COUNTS'!$G$11 -> 11252 | H157: =+'RESI COUNTS'!$G$28 -> 11262 | I157: =+'RESI COUNTS'!$G$45 -> 11161 | J157: =+'RESI COUNTS'!$G$62 -> 11150 | K157: =+'RESI COUNTS'!$G$79 -> 11098 | L157: =+'RESI COUNTS'!$G$96 -> 11254 | M157: =+'RESI COUNTS'!$G$113 -> 11178 | N157: =+'RESI COUNTS'!$G$130 -> 11148 | O157: =+'RESI COUNTS'!$G$147 -> 11217 | P157: =+'RESI COUNTS'!$G$164 -> 10984 | Q157: =+'RESI COUNTS'!$G$181 -> 10984 | R157: =+'RESI COUNTS'!$G$198 -> 11067 | T157: 133755
A158: N/A | D158: 48 Gallon Toter | G158: =+'RESI COUNTS'!$G$12 -> 2318 | H158: =+'RESI COUNTS'!$G$29 -> 2351 | I158: =+'RESI COUNTS'!$G$46 -> 2366 | J158: =+'RESI COUNTS'!$G$63 -> 2394 | K158: =+'RESI COUNTS'!$G$80 -> 2426 | L158: =+'RESI COUNTS'!$G$97 -> 2506 | M158: =+'RESI COUNTS'!$G$114 -> 2490 | N158: =+'RESI COUNTS'!$G$131 -> 2498 | O158: =+'RESI COUNTS'!$G$148 -> 2549 | P158: =+'RESI COUNTS'!$G$165 -> 2507 | Q158: =+'RESI COUNTS'!$G$182 -> 2507 | R158: =+'RESI COUNTS'!$G$199 -> 2566 | T158: 29478
A159: 64 Gal Toter | D159: 64 Gallon Toter | G159: =+'RESI COUNTS'!$G$13 -> 4679 | H159: =+'RESI COUNTS'!$G$30 -> 4670 | I159: =+'RESI COUNTS'!$G$47 -> 4653 | J159: =+'RESI COUNTS'!$G$64 -> 4672 | K159: =+'RESI COUNTS'!$G$81 -> 4679 | L159: =+'RESI COUNTS'!$G$98 -> 4781 | M159: =+'RESI COUNTS'!$G$115 -> 4730 | N159: =+'RESI COUNTS'!$G$132 -> 4737 | O159: =+'RESI COUNTS'!$G$149 -> 4803 | P159: =+'RESI COUNTS'!$G$166 -> 4686 | Q159: =+'RESI COUNTS'!$G$183 -> 4686 | R159: =+'RESI COUNTS'!$G$200 -> 4738 | T159: 56514
A160: 96 Gal Toter | D160: 96 Gallon Toter | G160: =+'RESI COUNTS'!$G$14 -> 1165 | H160: =+'RESI COUNTS'!$G$31 -> 1171 | I160: =+'RESI COUNTS'!$G$48 -> 1169 | J160: =+'RESI COUNTS'!$G$65 -> 1176 | K160: =+'RESI COUNTS'!$G$82 -> 1177 | L160: =+'RESI COUNTS'!$G$99 -> 1219 | M160: =+'RESI COUNTS'!$G$116 -> 1206 | N160: =+'RESI COUNTS'!$G$133 -> 1207 | O160: =+'RESI COUNTS'!$G$150 -> 1230 | P160: =+'RESI COUNTS'!$G$167 -> 1183 | Q160: =+'RESI COUNTS'!$G$184 -> 1183 | R160: =+'RESI COUNTS'!$G$201 -> 1214 | T160: 14300
D161: Total MSW Customers | G161: =SUM(G148:G160) -> 23233 | H161: 23245 | I161: 23255 | J161: 23280 | K161: 23390 | L161: 23485 | M161: 23790 | N161: 23833 | O161: 23839 | P161: 23854 | Q161: 23854 | R161: 23868 | T161: 282926
D163: Total Recycle Customers | G163: =G236 -> 23235 | H163: =H236 -> 23247 | I163: =I236 -> 23254 | J163: 23281 | K163: 23386 | L163: 23480 | M163: 23790 | N163: 23838 | O163: 23842 | P163: 23857 | Q163: 23857 | R163: 23869 | T163: =SUM(G163:R163) -> 282936
D164: Total Yardwaste Customers | G164: =G212 -> 23029 | H164: =H212 -> 23037 | I164: 23045 | J164: 23070 | K164: 23172 | L164: 23259 | M164: 23565 | N164: 23611 | O164: 23612 | P164: 23625 | Q164: 23625 | R164: 23631 | T164: =SUM(G164:R164) -> 280281
D166: Total Recycle Tonnage | G166: ='Recycle Tons'!D44 -> 773.6547858 | H166: ='Recycle Tons'!E44 -> 567.72 | I166: ='Recycle Tons'!F44 -> 624.6659525 | J166: ='Recycle Tons'!G44 -> 610.2866379 | K166: ='Recycle Tons'!H44 -> 697.6392963 | L166: ='Recycle Tons'!I44 -> 664.1064669 | M166: ='Recycle Tons'!J44 -> 647.3075122 | N166: ='Recycle Tons'!K44 -> 644.2375249 | O166: ='Recycle Tons'!L44 -> 572.9731843 | P166: ='Recycle Tons'!M44 -> 649.036274 | Q166: ='Recycle Tons'!N44 -> 682.4095369 | R166: ='Recycle Tons'!O44 -> 657.188664 | T166: =SUM(G166:R166) -> 7791.225836
D167: Total Yardwaste Tonnage | G167: ='YW Tons'!D44 -> 709.9694372 | H167: ='YW Tons'!E44 -> 613.94 | I167: ='YW Tons'!F44 -> 1022.922041 | J167: ='YW Tons'!G44 -> 1322.679403 | K167: ='YW Tons'!H44 -> 1959.184478 | L167: ='YW Tons'!I44 -> 1339.22311 | M167: ='YW Tons'!J44 -> 1092.462752 | N167: ='YW Tons'!K44 -> 951.852103 | O167: ='YW Tons'!L44 -> 913.5652682 | P167: ='YW Tons'!M44 -> 1135.666337 | Q167: ='YW Tons'!N44 -> 1343.939226 | R167: ='YW Tons'!O44 -> 707.383213 | T167: =SUM(G167:R167) -> 13112.78737
D168: Total Residential MSW Tonnage | G168: ='MSW Tons'!D44 -> 906.3716198 | H168: ='MSW Tons'!E44 -> 715.8 | I168: ='MSW Tons'!F44 -> 792.011114 | J168: ='MSW Tons'!G44 -> 776.2319056 | K168: ='MSW Tons'!H44 -> 882.4517419 | L168: ='MSW Tons'!I44 -> 812.29396 | M168: ='MSW Tons'!J44 -> 821.7491548 | N168: ='MSW Tons'!K44 -> 896.0409822 | O168: ='MSW Tons'!L44 -> 890.0356011 | P168: ='MSW Tons'!M44 -> 890.0356011 | Q168: ='MSW Tons'!N44 -> 861.7622497 | R168: ='MSW Tons'!O44 -> 813.3678155 | T168: =SUM(G168:R168) -> 10058.15175 | V168: =T168*2000 -> 20116303.49
V169: =SUM(T196:T199) -> 84385
E170: =+E$49 -> District | F170: =+F$49 -> Code | G170: 2018-01-01 | H170: =+H$2 -> 2018-02-01 | I170: 2018-03-01 | J170: 2018-04-01 | K170: 2018-05-01 | L170: 2018-06-01 | M170: 2018-07-01 | N170: 2018-08-01 | O170: 2018-09-01 | P170: 2018-10-01 | Q170: 2018-11-01 | R170: 2018-12-01 | T170: =+T$2 -> Total | V170: =V168/V169 -> 238.3871955
D171: Out of Area | V171: =V170/4.33 -> 55.05477956
D172: 1 Can Once-a-Month | T172: =SUM(G172:R172) -> 0
D173: 13 Gallon Can | T173: 0
D174: 20 Gallon Can | T174: 0
D175: 1 Can | T175: 0
D176: 2 Can | T176: 0
D177: 3 Can | T177: 0
D178: 4 Can | T178: 0
D179: 5 Can | T179: 0
D180: 6 Can | T180: 0
D181: 32 Gallon Toter | T181: 0
D182: 48 Gallon Toter | T182: 0
D183: 64 Gallon Toter | T183: 0
D184: 96 Gallon Toter | T184: 0
D185: Total MSW Customers | G185: =SUM(G172:G184) -> 0 | H185: 0 | I185: 0 | J185: 0 | K185: 0 | L185: 0 | M185: 0 | N185: 0 | O185: 0 | P185: 0 | Q185: 0 | R185: 0 | T185: 0
D187: Total Recycle Customers | G187: =G261 -> 0 | H187: 0 | I187: 0 | J187: 0 | K187: 0 | L187: 0 | M187: 0 | N187: 0 | O187: 0 | P187: 0 | Q187: 0 | R187: 0 | T187: =SUM(G187:R187) -> 0
D188: Total Yardwaste Customers
D190: Total Recycle Tonnage | G190: ='Recycle Tons'!D42 -> 0 | H190: ='Recycle Tons'!E42 -> 0 | I190: ='Recycle Tons'!F42 -> 0 | J190: ='Recycle Tons'!G42 -> 0 | K190: ='Recycle Tons'!H42 -> 0 | L190: ='Recycle Tons'!I42 -> 0 | M190: ='Recycle Tons'!J42 -> 0 | N190: ='Recycle Tons'!K42 -> 0 | O190: ='Recycle Tons'!L42 -> 0 | P190: ='Recycle Tons'!M42 -> 0 | Q190: ='Recycle Tons'!N42 -> 0 | R190: ='Recycle Tons'!O42 -> 0 | T190: =SUM(G190:R190) -> 0
D191: Total Yardwaste Tonnage | G191: ='YW Tons'!D42 -> 0 | H191: ='YW Tons'!E42 -> 0 | I191: ='YW Tons'!F42 -> 0 | J191: ='YW Tons'!G42 -> 0 | K191: ='YW Tons'!H42 -> 0 | L191: ='YW Tons'!I42 -> 0 | M191: ='YW Tons'!J42 -> 0 | N191: ='YW Tons'!K42 -> 0 | O191: ='YW Tons'!L42 -> 0 | P191: ='YW Tons'!M42 -> 0 | Q191: ='YW Tons'!N42 -> 0 | R191: ='YW Tons'!O42 -> 0 | T191: =SUM(G191:R191) -> 0
D192: Total Residential MSW Tonnage | G192: ='MSW Tons'!D42 -> 0 | H192: ='MSW Tons'!E42 -> 0 | I192: ='MSW Tons'!F42 -> 0 | J192: ='MSW Tons'!G42 -> 0 | K192: ='MSW Tons'!H42 -> 0 | L192: ='MSW Tons'!I42 -> 0 | M192: ='MSW Tons'!J42 -> 0 | N192: ='MSW Tons'!K42 -> 0 | O192: ='MSW Tons'!L42 -> 0 | P192: ='MSW Tons'!M42 -> 0 | Q192: ='MSW Tons'!N42 -> 0 | R192: ='MSW Tons'!O42 -> 0 | T192: =SUM(G192:R192) -> 0
V194: =SUM(T196:T199) -> 84385 | W194: =V194/T203 -> 0.2297371982
D195: Residential MSW Customers | E195: =+E$49 -> District | F195: =+F$49 -> Code | G195: =+G$2 -> 2018-01-01 | H195: 2018-02-01 | I195: 2018-03-01 | J195: 2018-04-01 | K195: 2018-05-01 | L195: 2018-06-01 | M195: 2018-07-01 | N195: 2018-08-01 | O195: 2018-09-01 | P195: 2018-10-01 | Q195: 2018-11-01 | R195: 2018-12-01 | T195: =+T$2 -> Total
B196: Regulated | D196: Auburn | E196: 8 | G196: =G64 -> 915 | H196: 913 | I196: 918 | J196: 919 | K196: 915 | L196: 913 | M196: 915 | N196: 913 | O196: 915 | P196: 913 | Q196: 913 | R196: 920 | T196: =SUM(G196:R196) -> 10982 | V196: 1 | W196: =SUMPRODUCT($G$1:$R$1,$G196:$R196)/5*V196 -> 47770.4 | X196: =+W196 -> 47770.4
B197: Regulated | D197: County | E197: 1 | G197: =+G88 -> 3004 | H197: =+H88 -> 2981 | I197: 3025 | J197: 3015 | K197: 3022 | L197: 3056 | M197: 3061 | N197: 3002 | O197: 3052 | P197: 3024 | Q197: 3024 | R197: 3059 | T197: 36325 | V197: 1 | W197: =SUMPRODUCT($G$1:$R$1,$G197:$R197)/5*V197 -> 158001.2 | Y197: =+W197 -> 158001.2
B198: Regulated | D198: Petro | E198: 20 | G198: =+G137 -> 1892 | H198: =+H137 -> 1897 | I198: 1899 | J198: 1888 | K198: 1891 | L198: 1904 | M198: 1905 | N198: 1892 | O198: 1913 | P198: 1903 | Q198: 1903 | R198: 1938 | T198: 22825 | V198: 1 | W198: 99275.6 | Y198: =+W198 -> 99275.6
B199: Regulated | D199: Normandy Park | E199: 13 & 90 | G199: =+G112 -> 2024 | H199: =+H112 -> 2022 | I199: 2034 | J199: 2034 | K199: 2038 | L199: 2054 | M199: 2047 | N199: 0 | O199: 0 | P199: 0 | Q199: 0 | R199: 0 | T199: 14253 | V199: 1 | W199: 61899.2 | X199: =+W199 -> 61899.2
D200: Renton | E200: 55 | G200: =+G161 -> 23233 | H200: =+H161 -> 23245 | I200: 23255 | J200: 23280 | K200: 23390 | L200: 23485 | M200: 23790 | N200: 23833 | O200: 23839 | P200: 23854 | Q200: 23854 | R200: =+R161 -> 23868 | T200: 282926 | V200: 1 | W200: 1230776.2 | X200: =+W200 -> 1230776.2
D201: OoA | G201: =+G185 -> 0 | H201: =+H185 -> 0 | I201: 0 | J201: 0 | K201: 0 | L201: 0 | M201: 0 | N201: 0 | O201: 0 | P201: 0 | Q201: 0 | R201: 0 | T201: 0 | V201: 1 | W201: 0 | X201: =+W201 -> 0
T202: 0 | V202: 1 | W202: 0 | Y202: =+W202 -> 0
D203: Total Residential MSW Customers | G203: =SUM(G196:G202) -> 31068 | H203: 31058 | I203: 31131 | J203: 31136 | K203: 31256 | L203: 31412 | M203: 31718 | N203: 29640 | O203: 29719 | P203: 29694 | Q203: 29694 | R203: 29785 | T203: =SUM(T196:T202) -> 367311 | W203: =SUM(W196:W202) -> 1597722.6 | X203: =SUM(X196:X202) -> 1340445.8 | Y203: =SUM(Y196:Y202) -> 257276.8
X204: =+X203/W203 -> 0.8389727979 | Y204: =+Y203/W203 -> 0.1610272021
D206: Residential Yardwaste Customers | E206: =+E$49 -> District | F206: =+F$49 -> Code | G206: =+G$2 -> 2018-01-01 | H206: 2018-02-01 | I206: 2018-03-01 | J206: 2018-04-01 | K206: 2018-05-01 | L206: 2018-06-01 | M206: 2018-07-01 | N206: 2018-08-01 | O206: 2018-09-01 | P206: 2018-10-01 | Q206: 2018-11-01 | R206: 2018-12-01 | T206: =+T$2 -> Total
A207: Yardwaste 96 Gal Toter | B207: Regulated | C207: Appendix A | D207: Auburn | E207: 8 | G207: =+'RESI COUNTS'!$C$17 -> 551 | H207: =+'RESI COUNTS'!$C$34 -> 545 | I207: =+'RESI COUNTS'!$C$51 -> 553 | J207: =+'RESI COUNTS'!$C$68 -> 560 | K207: =+'RESI COUNTS'!$C$85 -> 566 | L207: =+'RESI COUNTS'!$C$102 -> 568 | M207: =+'RESI COUNTS'!$C$119 -> 572 | N207: =+'RESI COUNTS'!$C$136 -> 568 | O207: =+'RESI COUNTS'!$C$153 -> 565 | P207: =+'RESI COUNTS'!$C$170 -> 560 | Q207: =+'RESI COUNTS'!$C$187 -> 560 | R207: =+'RESI COUNTS'!$C$204 -> 547 | T207: =SUM(G207:R207) -> 6715 | V207: 0.5 | W207: =SUMPRODUCT($G$1:$R$1,$G207:$R207)/5*V207 -> 14608 | X207: =+W207 -> 14608
A208: Yardwaste 96 Gal Toter | B208: Regulated | C208: Appendix A | D208: County | E208: 1 | G208: =+'RESI COUNTS'!$D$17 -> 1528 | H208: =+'RESI COUNTS'!$D$34 -> 1511 | I208: =+'RESI COUNTS'!$D$51 -> 1545 | J208: =+'RESI COUNTS'!$D$68 -> 1563 | K208: =+'RESI COUNTS'!$D$85 -> 1606 | L208: =+'RESI COUNTS'!$D$102 -> 1640 | M208: =+'RESI COUNTS'!$D$119 -> 1647 | N208: =+'RESI COUNTS'!$D$136 -> 1622 | O208: =+'RESI COUNTS'!$D$153 -> 1648 | P208: =+'RESI COUNTS'!$D$170 -> 1618 | Q208: =+'RESI COUNTS'!$D$187 -> 1618 | R208: =+'RESI COUNTS'!$D$204 -> 1587 | T208: 19133 | V208: 0.5 | W208: =SUMPRODUCT($G$1:$R$1,$G208:$R208)/5*V208 -> 41619.2 | Y208: =+W208 -> 41619.2
A209: Yardwaste 96 Gal Toter | B209: Regulated | C209: Appendix B | D209: Petro | E209: 20 | G209: =+'RESI COUNTS'!$F$17 -> 1214 | H209: =+'RESI COUNTS'!$F$34 -> 1202 | I209: =+'RESI COUNTS'!$F$51 -> 1208 | J209: =+'RESI COUNTS'!$F$68 -> 1219 | K209: =+'RESI COUNTS'!$F$85 -> 1228 | L209: =+'RESI COUNTS'!$F$102 -> 1236 | M209: =+'RESI COUNTS'!$F$119 -> 1238 | N209: =+'RESI COUNTS'!$F$136 -> 1230 | O209: =+'RESI COUNTS'!$F$153 -> 1242 | P209: =+'RESI COUNTS'!$F$170 -> 1238 | Q209: =+'RESI COUNTS'!$F$187 -> 1238 | R209: =+'RESI COUNTS'!$F$204 -> 1232 | T209: 14725 | V209: 0.5 | W209: 32028.5 | Y209: =+W209 -> 32028.5
A210: Yardwaste 96 Gal Toter | B210: Regulated | C210: Appendix B N | D210: Normandy Park Non-Senior | E210: 13 | G210: =+'RESI COUNTS'!$E$17 -> 1392 | H210: =+'RESI COUNTS'!$E$34 -> 1394 | I210: =+'RESI COUNTS'!$E$51 -> 1407 | J210: =+'RESI COUNTS'!$E$68 -> 1412 | K210: =+'RESI COUNTS'!$E$85 -> 1421 | L210: =+'RESI COUNTS'!$E$102 -> 1441 | M210: =+'RESI COUNTS'!$E$119 -> 1437 | N210: =+'RESI COUNTS'!$E$136 -> 0 | O210: =+'RESI COUNTS'!$E$153 -> 0 | P210: =+'RESI COUNTS'!$E$170 -> 0 | Q210: =+'RESI COUNTS'!$E$187 -> 0 | R210: =+'RESI COUNTS'!$E$204 -> 0 | T210: 9904 | V210: 0.5 | W210: 21506 | X210: =+W210 -> 21506
A211: N/A | D211: Normandy Park Senior | E211: 90 | T211: 0 | V211: 0.5 | W211: 0 | X211: =+W211 -> 0
A212: Yardwaste 96 Gal Toter | D212: Renton | E212: 55 | G212: =+'RESI COUNTS'!$G$17 -> 23029 | H212: =+'RESI COUNTS'!$G$34 -> 23037 | I212: =+'RESI COUNTS'!$G$51 -> 23045 | J212: =+'RESI COUNTS'!$G$68 -> 23070 | K212: =+'RESI COUNTS'!$G$85 -> 23172 | L212: =+'RESI COUNTS'!$G$102 -> 23259 | M212: =+'RESI COUNTS'!$G$119 -> 23565 | N212: =+'RESI COUNTS'!$G$136 -> 23611 | O212: =+'RESI COUNTS'!$G$153 -> 23612 | P212: =+'RESI COUNTS'!$G$170 -> 23625 | Q212: =+'RESI COUNTS'!$G$187 -> 23625 | R212: =+'RESI COUNTS'!$G$204 -> 23631 | T212: 280281 | V212: 0.5 | W212: 609636.1 | X212: =+W212 -> 609636.1
A213: N/A | D213: OoA | T213: 0 | V213: 0.5 | W213: 0 | Y213: =+W213 -> 0
A214: N/A
A215: Yardwaste 64 Gal Toter | D215: Total Yardwaste Customers | G215: =SUM(G207:G213) -> 27714 | H215: 27689 | I215: 27758 | J215: 27824 | K215: 27993 | L215: 28144 | M215: 28459 | N215: 27031 | O215: 27067 | P215: 27041 | Q215: 27041 | R215: 26997 | T215: 330758 | W215: =SUM(W207:W213) -> 719397.8 | X215: =SUM(X207:X213) -> 645750.1 | Y215: =SUM(Y207:Y213) -> 73647.7
X216: =+X215/W215 -> 0.8976259032 | Y216: =+Y215/X215 -> 0.1140498468
D218: Yardwaste Only Customers (included above): | E218: =+E$49 -> District | F218: =+F$49 -> Code | G218: =+G$2 -> 2018-01-01 | H218: 2018-02-01 | I218: 2018-03-01 | J218: 2018-04-01 | K218: 2018-05-01 | L218: 2018-06-01 | M218: 2018-07-01 | N218: 2018-08-01 | O218: 2018-09-01 | P218: 2018-10-01 | Q218: 2018-11-01 | R218: 2018-12-01 | T218: =+T$2 -> Total
A219: Yardwaste Only | B219: Regulated | C219: Appendix A | D219: Auburn | E219: 8 | G219: =+'Comm Counts'!$C$11 -> 0 | H219: =+'Comm Counts'!$C$29 -> 0 | I219: =+'Comm Counts'!$C$47 -> 0 | J219: =+'Comm Counts'!$C$65 -> 0 | K219: =+'Comm Counts'!$C$83 -> 0 | L219: =+'Comm Counts'!$C$101 -> 0 | M219: =+'Comm Counts'!$C$119 -> 0 | N219: =+'Comm Counts'!$C$137 -> 0 | O219: =+'Comm Counts'!$C$155 -> 0 | P219: =+'Comm Counts'!$C$173 -> 0 | Q219: =+'Comm Counts'!$C$191 -> 0 | R219: =+'Comm Counts'!$C$209 -> 0 | T219: =SUM(G219:R219) -> 0
A220: Yardwaste Only | B220: Regulated | C220: Appendix A | D220: County | E220: 1 | G220: =+'Comm Counts'!$D$11 -> 0 | H220: =+'Comm Counts'!$D$29 -> 0 | I220: =+'Comm Counts'!$D$47 -> 0 | J220: =+'Comm Counts'!$D$65 -> 0 | K220: =+'Comm Counts'!$D$83 -> 0 | L220: =+'Comm Counts'!$D$101 -> 0 | M220: =+'Comm Counts'!$D$119 -> 0 | N220: =+'Comm Counts'!$D$137 -> 0 | O220: =+'Comm Counts'!$D$155 -> 0 | P220: =+'Comm Counts'!$D$173 -> 0 | Q220: =+'Comm Counts'!$D$191 -> 0 | R220: =+'Comm Counts'!$D$209 -> 0 | T220: 0
A221: Yardwaste Only (96 Gal) | B221: Regulated | C221: Appendix B | D221: Petro | E221: 20 | G221: =+'Comm Counts'!$G$11 -> 0 | H221: =+'Comm Counts'!$G$29 -> 0 | I221: =+'Comm Counts'!$G$47 -> 0 | J221: =+'Comm Counts'!$G$65 -> 0 | K221: =+'Comm Counts'!$G$83 -> 0 | L221: =+'Comm Counts'!$G$101 -> 0 | M221: =+'Comm Counts'!$G$119 -> 0 | N221: =+'Comm Counts'!$G$137 -> 0 | O221: =+'Comm Counts'!$G$155 -> 0 | P221: =+'Comm Counts'!$G$173 -> 0 | Q221: =+'Comm Counts'!$G$191 -> 0 | R221: =+'Comm Counts'!$G$209 -> 0 | T221: 0
A222: N/A | D222: Normandy Park Non-Senior | E222: 13 | G222: =+'Comm Counts'!$E$11 -> 0 | H222: =+'Comm Counts'!$E$29 -> 0 | I222: =+'Comm Counts'!$E$47 -> 0 | J222: =+'Comm Counts'!$E$65 -> 0 | K222: =+'Comm Counts'!$E$83 -> 0 | L222: =+'Comm Counts'!$E$101 -> 0 | M222: =+'Comm Counts'!$E$119 -> 0 | N222: =+'Comm Counts'!$E$137 -> 0 | O222: =+'Comm Counts'!$E$155 -> 0 | P222: =+'Comm Counts'!$E$173 -> 0 | Q222: =+'Comm Counts'!$E$191 -> 0 | R222: =+'Comm Counts'!$E$209 -> 0 | T222: 0
A223: N/A | D223: Normandy Park Senior | E223: 90 | T223: 0
A224: Yardwaste Only (96 Gal) | D224: Renton | E224: 55 | G224: =+'Comm Counts'!$H$11 -> 1 | H224: =+'Comm Counts'!$H$29 -> 1 | I224: =+'Comm Counts'!$H$47 -> 1 | J224: =+'Comm Counts'!$H$65 -> 1 | K224: =+'Comm Counts'!$H$83 -> 2 | L224: =+'Comm Counts'!$H$101 -> 2 | M224: =+'Comm Counts'!$H$119 -> 2 | N224: =+'Comm Counts'!$H$137 -> 2 | O224: =+'Comm Counts'!$H$155 -> 2 | P224: =+'Comm Counts'!$H$173 -> 2 | Q224: =+'Comm Counts'!$H$191 -> 2 | R224: =+'Comm Counts'!$H$209 -> 2 | T224: 20
A225: N/A | D225: OoA
A226: N/A
A227: Yardwaste Only (64 Gal) | D227: Total Yardwaste Only Customers | G227: =SUM(G219:G224) -> 1 | H227: 1 | I227: 1 | J227: 1 | K227: 2 | L227: 2 | M227: 2 | N227: 2 | O227: 2 | P227: 2 | Q227: 2 | R227: 2 | T227: =SUM(T219:T224) -> 20
D230: Recycle Customers | E230: =+E$49 -> District | F230: =+F$49 -> Code | G230: =+G$2 -> 2018-01-01 | H230: 2018-02-01 | I230: 2018-03-01 | J230: 2018-04-01 | K230: 2018-05-01 | L230: 2018-06-01 | M230: 2018-07-01 | N230: 2018-08-01 | O230: 2018-09-01 | P230: 2018-10-01 | Q230: 2018-11-01 | R230: 2018-12-01 | T230: =+T$2 -> Total
... 20 more rows

Sheet Com Lifts
A1: Total Annual Yards (Compaction not applied) | B1: Monthly Lifts | C1: Container'Type | D1: Container Size | E1: Compactor Y/N | F1: Special Handling Flag | G1: Container Qty Order | H1: Total Lifts | I1: Period Length | J1: Period Unit | K1: Rev Dist Code | L1: Account Type | M1: # of Containers | N1: # of Customers
A2: =IF('Com Lifts'!E2="Y",'Comm (+MF) Price Out'!$F$116*(B2*'Comm (+MF) Price Out'!$I$5*D2),(B2*'Comm (+MF) Price Out'!$I$5*D2)) -> 4.41966 | B2: =IF(J2="",G2*N2,G2/I2*N2*'Comm (+MF) Price Out'!$I$2) -> 2.1665 | C2: BB | D2: 0.17 | E2: N | F2: U | G2: 1 | H2: 1 | I2: 2 | J2: W | K2: 70 | L2: P | M2: 1 | N2: 1
A3: =IF('Com Lifts'!E3="Y",'Comm (+MF) Price Out'!$F$116*(B3*'Comm (+MF) Price Out'!$I$5*D3),(B3*'Comm (+MF) Price Out'!$I$5*D3)) -> 371.25144 | B3: =IF(J3="",G3*N3,G3/I3*N3*'Comm (+MF) Price Out'!$I$2) -> 181.986 | C3: BB | D3: 0.17 | E3: N | F3: U | G3: 84 | H3: 84 | I3: 2 | J3: W | K3: 70 | L3: P | M3: 84 | N3: 1
A4: =IF('Com Lifts'!E4="Y",'Comm (+MF) Price Out'!$F$116*(B4*'Comm (+MF) Price Out'!$I$5*D4),(B4*'Comm (+MF) Price Out'!$I$5*D4)) -> 8.31936 | B4: =IF(J4="",G4*N4,G4/I4*N4*'Comm (+MF) Price Out'!$I$2) -> 4.333 | C4: CA | D4: 0.16 | E4: N | F4: U | G4: 1 | H4: 1 | I4: 1 | J4: W | K4: 10 | L4: P | M4: 1 | N4: 1
A5: =IF('Com Lifts'!E5="Y",'Comm (+MF) Price Out'!$F$116*(B5*'Comm (+MF) Price Out'!$I$5*D5),(B5*'Comm (+MF) Price Out'!$I$5*D5)) -> 15.5988 | B5: =IF(J5="",G5*N5,G5/I5*N5*'Comm (+MF) Price Out'!$I$2) -> 4.333 | C5: CA | D5: 0.3 | E5: N | F5: N | G5: 1 | H5: 1 | I5: 1 | J5: W | K5: 10 | L5: P | M5: 1 | N5: 1
A6: =IF('Com Lifts'!E6="Y",'Comm (+MF) Price Out'!$F$116*(B6*'Comm (+MF) Price Out'!$I$5*D6),(B6*'Comm (+MF) Price Out'!$I$5*D6)) -> 31.1976 | B6: =IF(J6="",G6*N6,G6/I6*N6*'Comm (+MF) Price Out'!$I$2) -> 8.666 | C6: CA | D6: 0.3 | E6: N | F6: N | G6: 2 | H6: 2 | I6: 1 | J6: W | K6: 10 | L6: P | M6: 2 | N6: 1
A7: =IF('Com Lifts'!E7="Y",'Comm (+MF) Price Out'!$F$116*(B7*'Comm (+MF) Price Out'!$I$5*D7),(B7*'Comm (+MF) Price Out'!$I$5*D7)) -> 15.5988 | B7: =IF(J7="",G7*N7,G7/I7*N7*'Comm (+MF) Price Out'!$I$2) -> 4.333 | C7: CA | D7: 0.3 | E7: N | F7: U | G7: 1 | H7: 1 | I7: 1 | J7: W | K7: 10 | L7: P | M7: 1 | N7: 1
A8: =IF('Com Lifts'!E8="Y",'Comm (+MF) Price Out'!$F$116*(B8*'Comm (+MF) Price Out'!$I$5*D8),(B8*'Comm (+MF) Price Out'!$I$5*D8)) -> 2542.6044 | B8: =IF(J8="",G8*N8,G8/I8*N8*'Comm (+MF) Price Out'!$I$2) -> 706.279 | C8: CA | D8: 0.3 | E8: N | F8: U | G8: 163 | H8: 163 | I8: 1 | J8: W | K8: 10 | L8: P | M8: 163 | N8: 1
A9: =IF('Com Lifts'!E9="Y",'Comm (+MF) Price Out'!$F$116*(B9*'Comm (+MF) Price Out'!$I$5*D9),(B9*'Comm (+MF) Price Out'!$I$5*D9)) -> 46.7964 | B9: =IF(J9="",G9*N9,G9/I9*N9*'Comm (+MF) Price Out'!$I$2) -> 8.666 | C9: CA | D9: 0.45 | E9: N | F9: N | G9: 1 | H9: 1 | I9: 1 | J9: W | K9: 10 | L9: P | M9: 2 | N9: 2
A10: =IF('Com Lifts'!E10="Y",'Comm (+MF) Price Out'!$F$116*(B10*'Comm (+MF) Price Out'!$I$5*D10),(B10*'Comm (+MF) Price Out'!$I$5*D10)) -> 259.98 | B10: =IF(J10="",G10*N10,G10/I10*N10*'Comm (+MF) Price Out'!$I$2) -> 21.665 | C10: FL | D10: 1 | E10: N | F10: N | G10: 1 | H10: 1 | I10: 1 | J10: W | K10: 10 | L10: P | M10: 5 | N10: 5
A11: =IF('Com Lifts'!E11="Y",'Comm (+MF) Price Out'!$F$116*(B11*'Comm (+MF) Price Out'!$I$5*D11),(B11*'Comm (+MF) Price Out'!$I$5*D11)) -> 25.998 | B11: =IF(J11="",G11*N11,G11/I11*N11*'Comm (+MF) Price Out'!$I$2) -> 2.1665 | C11: FL | D11: 1 | E11: N | F11: N | G11: 1 | H11: 1 | I11: 2 | J11: W | K11: 10 | L11: P | M11: 1 | N11: 1
A12: =IF('Com Lifts'!E12="Y",'Comm (+MF) Price Out'!$F$116*(B12*'Comm (+MF) Price Out'!$I$5*D12),(B12*'Comm (+MF) Price Out'!$I$5*D12)) -> 38.997 | B12: =IF(J12="",G12*N12,G12/I12*N12*'Comm (+MF) Price Out'!$I$2) -> 2.1665 | C12: FL | D12: 1.5 | E12: N | F12: N | G12: 1 | H12: 1 | I12: 2 | J12: W | K12: 10 | L12: P | M12: 1 | N12: 1
A13: =IF('Com Lifts'!E13="Y",'Comm (+MF) Price Out'!$F$116*(B13*'Comm (+MF) Price Out'!$I$5*D13),(B13*'Comm (+MF) Price Out'!$I$5*D13)) -> 727.944 | B13: =IF(J13="",G13*N13,G13/I13*N13*'Comm (+MF) Price Out'!$I$2) -> 30.331 | C13: FL | D13: 2 | E13: N | F13: N | G13: 1 | H13: 1 | I13: 1 | J13: W | K13: 10 | L13: P | M13: 7 | N13: 7
A14: =IF('Com Lifts'!E14="Y",'Comm (+MF) Price Out'!$F$116*(B14*'Comm (+MF) Price Out'!$I$5*D14),(B14*'Comm (+MF) Price Out'!$I$5*D14)) -> 25.998 | B14: =IF(J14="",G14*N14,G14/I14*N14*'Comm (+MF) Price Out'!$I$2) -> 1.08325 | C14: FL | D14: 2 | E14: N | F14: N | G14: 1 | H14: 1 | I14: 4 | J14: W | K14: 10 | L14: P | M14: 1 | N14: 1
A15: =IF('Com Lifts'!E15="Y",'Comm (+MF) Price Out'!$F$116*(B15*'Comm (+MF) Price Out'!$I$5*D15),(B15*'Comm (+MF) Price Out'!$I$5*D15)) -> 311.976 | B15: =IF(J15="",G15*N15,G15/I15*N15*'Comm (+MF) Price Out'!$I$2) -> 8.666 | C15: FL | D15: 3 | E15: N | F15: N | G15: 1 | H15: 1 | I15: 1 | J15: W | K15: 10 | L15: P | M15: 2 | N15: 2
A16: =IF('Com Lifts'!E16="Y",'Comm (+MF) Price Out'!$F$116*(B16*'Comm (+MF) Price Out'!$I$5*D16),(B16*'Comm (+MF) Price Out'!$I$5*D16)) -> 36 | B16: =IF(J16="",G16*N16,G16/I16*N16*'Comm (+MF) Price Out'!$I$2) -> 1 | C16: FL | D16: 3 | E16: N | F16: U | G16: 1 | H16: 0 | I16: 0 | K16: 10 | L16: T | M16: 1 | N16: 1
A17: =IF('Com Lifts'!E17="Y",'Comm (+MF) Price Out'!$F$116*(B17*'Comm (+MF) Price Out'!$I$5*D17),(B17*'Comm (+MF) Price Out'!$I$5*D17)) -> 1663.872 | B17: =IF(J17="",G17*N17,G17/I17*N17*'Comm (+MF) Price Out'!$I$2) -> 34.664 | C17: FL | D17: 4 | E17: N | F17: N | G17: 1 | H17: 1 | I17: 1 | J17: W | K17: 10 | L17: P | M17: 8 | N17: 8
A18: =IF('Com Lifts'!E18="Y",'Comm (+MF) Price Out'!$F$116*(B18*'Comm (+MF) Price Out'!$I$5*D18),(B18*'Comm (+MF) Price Out'!$I$5*D18)) -> 103.992 | B18: =IF(J18="",G18*N18,G18/I18*N18*'Comm (+MF) Price Out'!$I$2) -> 2.1665 | C18: FL | D18: 4 | E18: N | F18: N | G18: 1 | H18: 1 | I18: 2 | J18: W | K18: 10 | L18: P | M18: 1 | N18: 1
A19: =IF('Com Lifts'!E19="Y",'Comm (+MF) Price Out'!$F$116*(B19*'Comm (+MF) Price Out'!$I$5*D19),(B19*'Comm (+MF) Price Out'!$I$5*D19)) -> 1455.888 | B19: =IF(J19="",G19*N19,G19/I19*N19*'Comm (+MF) Price Out'!$I$2) -> 30.331 | C19: FL | D19: 4 | E19: N | F19: U | G19: 7 | H19: 14 | I19: 1 | J19: W | K19: 10 | L19: P | M19: 7 | N19: 1
A20: =IF('Com Lifts'!E20="Y",'Comm (+MF) Price Out'!$F$116*(B20*'Comm (+MF) Price Out'!$I$5*D20),(B20*'Comm (+MF) Price Out'!$I$5*D20)) -> 1247.904 | B20: =IF(J20="",G20*N20,G20/I20*N20*'Comm (+MF) Price Out'!$I$2) -> 17.332 | C20: FL | D20: 6 | E20: N | F20: N | G20: 1 | H20: 1 | I20: 1 | J20: W | K20: 10 | L20: P | M20: 4 | N20: 4
A21: =IF('Com Lifts'!E21="Y",'Comm (+MF) Price Out'!$F$116*(B21*'Comm (+MF) Price Out'!$I$5*D21),(B21*'Comm (+MF) Price Out'!$I$5*D21)) -> 311.976 | B21: =IF(J21="",G21*N21,G21/I21*N21*'Comm (+MF) Price Out'!$I$2) -> 4.333 | C21: FL | D21: 6 | E21: N | F21: N | G21: 1 | H21: 2 | I21: 1 | J21: W | K21: 10 | L21: P | M21: 1 | N21: 1
A22: =IF('Com Lifts'!E22="Y",'Comm (+MF) Price Out'!$F$116*(B22*'Comm (+MF) Price Out'!$I$5*D22),(B22*'Comm (+MF) Price Out'!$I$5*D22)) -> 623.952 | B22: =IF(J22="",G22*N22,G22/I22*N22*'Comm (+MF) Price Out'!$I$2) -> 8.666 | C22: FL | D22: 6 | E22: N | F22: N | G22: 2 | H22: 2 | I22: 1 | J22: W | K22: 10 | L22: P | M22: 2 | N22: 1
A23: =IF('Com Lifts'!E23="Y",'Comm (+MF) Price Out'!$F$116*(B23*'Comm (+MF) Price Out'!$I$5*D23),(B23*'Comm (+MF) Price Out'!$I$5*D23)) -> 623.952 | B23: =IF(J23="",G23*N23,G23/I23*N23*'Comm (+MF) Price Out'!$I$2) -> 8.666 | C23: FL | D23: 6 | E23: N | F23: U | G23: 2 | H23: 2 | I23: 1 | J23: W | K23: 10 | L23: P | M23: 2 | N23: 1
A24: =IF('Com Lifts'!E24="Y",'Comm (+MF) Price Out'!$F$116*(B24*'Comm (+MF) Price Out'!$I$5*D24),(B24*'Comm (+MF) Price Out'!$I$5*D24)) -> 96 | B24: =IF(J24="",G24*N24,G24/I24*N24*'Comm (+MF) Price Out'!$I$2) -> 1 | C24: FL | D24: 8 | E24: N | F24: N | G24: 1 | H24: 0 | I24: 0 | K24: 10 | L24: P | M24: 1 | N24: 1
A25: =IF('Com Lifts'!E25="Y",'Comm (+MF) Price Out'!$F$116*(B25*'Comm (+MF) Price Out'!$I$5*D25),(B25*'Comm (+MF) Price Out'!$I$5*D25)) -> 96 | B25: =IF(J25="",G25*N25,G25/I25*N25*'Comm (+MF) Price Out'!$I$2) -> 1 | C25: FL | D25: 8 | E25: N | F25: N | G25: 1 | H25: 0 | I25: 0 | K25: 10 | L25: T | M25: 1 | N25: 1
A26: =IF('Com Lifts'!E26="Y",'Comm (+MF) Price Out'!$F$116*(B26*'Comm (+MF) Price Out'!$I$5*D26),(B26*'Comm (+MF) Price Out'!$I$5*D26)) -> 2495.808 | B26: =IF(J26="",G26*N26,G26/I26*N26*'Comm (+MF) Price Out'!$I$2) -> 25.998 | C26: FL | D26: 8 | E26: N | F26: N | G26: 1 | H26: 1 | I26: 1 | J26: W | K26: 10 | L26: P | M26: 6 | N26: 6
A27: =IF('Com Lifts'!E27="Y",'Comm (+MF) Price Out'!$F$116*(B27*'Comm (+MF) Price Out'!$I$5*D27),(B27*'Comm (+MF) Price Out'!$I$5*D27)) -> 415.968 | B27: =IF(J27="",G27*N27,G27/I27*N27*'Comm (+MF) Price Out'!$I$2) -> 4.333 | C27: FL | D27: 8 | E27: N | F27: N | G27: 1 | H27: 2 | I27: 1 | J27: W | K27: 10 | L27: P | M27: 1 | N27: 1
A28: =IF('Com Lifts'!E28="Y",'Comm (+MF) Price Out'!$F$116*(B28*'Comm (+MF) Price Out'!$I$5*D28),(B28*'Comm (+MF) Price Out'!$I$5*D28)) -> 25.998 | B28: =IF(J28="",G28*N28,G28/I28*N28*'Comm (+MF) Price Out'!$I$2) -> 2.1665 | C28: FR | D28: 1 | E28: N | F28: R | G28: 1 | H28: 1 | I28: 2 | J28: W | K28: 70 | L28: P | M28: 1 | N28: 1
A29: =IF('Com Lifts'!E29="Y",'Comm (+MF) Price Out'!$F$116*(B29*'Comm (+MF) Price Out'!$I$5*D29),(B29*'Comm (+MF) Price Out'!$I$5*D29)) -> 38.997 | B29: =IF(J29="",G29*N29,G29/I29*N29*'Comm (+MF) Price Out'!$I$2) -> 2.1665 | C29: FR | D29: 1.5 | E29: N | F29: R | G29: 1 | H29: 1 | I29: 2 | J29: W | K29: 70 | L29: P | M29: 1 | N29: 1
A30: =IF('Com Lifts'!E30="Y",'Comm (+MF) Price Out'!$F$116*(B30*'Comm (+MF) Price Out'!$I$5*D30),(B30*'Comm (+MF) Price Out'!$I$5*D30)) -> 207.984 | B30: =IF(J30="",G30*N30,G30/I30*N30*'Comm (+MF) Price Out'!$I$2) -> 8.666 | C30: FR | D30: 2 | E30: N | F30: C | G30: 2 | H30: 2 | I30: 1 | J30: W | K30: 70 | L30: P | M30: 2 | N30: 1
A31: =IF('Com Lifts'!E31="Y",'Comm (+MF) Price Out'!$F$116*(B31*'Comm (+MF) Price Out'!$I$5*D31),(B31*'Comm (+MF) Price Out'!$I$5*D31)) -> 311.976 | B31: =IF(J31="",G31*N31,G31/I31*N31*'Comm (+MF) Price Out'!$I$2) -> 12.999 | C31: FR | D31: 2 | E31: N | F31: R | G31: 1 | H31: 1 | I31: 1 | J31: W | K31: 70 | L31: P | M31: 3 | N31: 3
A32: =IF('Com Lifts'!E32="Y",'Comm (+MF) Price Out'!$F$116*(B32*'Comm (+MF) Price Out'!$I$5*D32),(B32*'Comm (+MF) Price Out'!$I$5*D32)) -> 103.992 | B32: =IF(J32="",G32*N32,G32/I32*N32*'Comm (+MF) Price Out'!$I$2) -> 4.333 | C32: FR | D32: 2 | E32: N | F32: R | G32: 1 | H32: 1 | I32: 2 | J32: W | K32: 70 | L32: P | M32: 2 | N32: 2
A33: =IF('Com Lifts'!E33="Y",'Comm (+MF) Price Out'!$F$116*(B33*'Comm (+MF) Price Out'!$I$5*D33),(B33*'Comm (+MF) Price Out'!$I$5*D33)) -> 77.994 | B33: =IF(J33="",G33*N33,G33/I33*N33*'Comm (+MF) Price Out'!$I$2) -> 2.1665 | C33: FR | D33: 3 | E33: N | F33: C | G33: 1 | H33: 1 | I33: 2 | J33: W | K33: 70 | L33: P | M33: 1 | N33: 1
A34: =IF('Com Lifts'!E34="Y",'Comm (+MF) Price Out'!$F$116*(B34*'Comm (+MF) Price Out'!$I$5*D34),(B34*'Comm (+MF) Price Out'!$I$5*D34)) -> 311.976 | B34: =IF(J34="",G34*N34,G34/I34*N34*'Comm (+MF) Price Out'!$I$2) -> 8.666 | C34: FR | D34: 3 | E34: N | F34: R | G34: 1 | H34: 1 | I34: 1 | J34: W | K34: 70 | L34: P | M34: 2 | N34: 2
A35: =IF('Com Lifts'!E35="Y",'Comm (+MF) Price Out'!$F$116*(B35*'Comm (+MF) Price Out'!$I$5*D35),(B35*'Comm (+MF) Price Out'!$I$5*D35)) -> 623.952 | B35: =IF(J35="",G35*N35,G35/I35*N35*'Comm (+MF) Price Out'!$I$2) -> 12.999 | C35: FR | D35: 4 | E35: N | F35: C | G35: 1 | H35: 1 | I35: 1 | J35: W | K35: 70 | L35: P | M35: 3 | N35: 3
A36: =IF('Com Lifts'!E36="Y",'Comm (+MF) Price Out'!$F$116*(B36*'Comm (+MF) Price Out'!$I$5*D36),(B36*'Comm (+MF) Price Out'!$I$5*D36)) -> 207.984 | B36: =IF(J36="",G36*N36,G36/I36*N36*'Comm (+MF) Price Out'!$I$2) -> 4.333 | C36: FR | D36: 4 | E36: N | F36: C | G36: 1 | H36: 2 | I36: 1 | J36: W | K36: 70 | L36: P | M36: 1 | N36: 1
A37: =IF('Com Lifts'!E37="Y",'Comm (+MF) Price Out'!$F$116*(B37*'Comm (+MF) Price Out'!$I$5*D37),(B37*'Comm (+MF) Price Out'!$I$5*D37)) -> 1039.92 | B37: =IF(J37="",G37*N37,G37/I37*N37*'Comm (+MF) Price Out'!$I$2) -> 21.665 | C37: FR | D37: 4 | E37: N | F37: R | G37: 1 | H37: 1 | I37: 1 | J37: W | K37: 70 | L37: P | M37: 5 | N37: 5
A38: =IF('Com Lifts'!E38="Y",'Comm (+MF) Price Out'!$F$116*(B38*'Comm (+MF) Price Out'!$I$5*D38),(B38*'Comm (+MF) Price Out'!$I$5*D38)) -> 623.952 | B38: =IF(J38="",G38*N38,G38/I38*N38*'Comm (+MF) Price Out'!$I$2) -> 12.999 | C38: FR | D38: 4 | E38: N | F38: R | G38: 1 | H38: 2 | I38: 1 | J38: W | K38: 70 | L38: P | M38: 3 | N38: 3
A39: =IF('Com Lifts'!E39="Y",'Comm (+MF) Price Out'!$F$116*(B39*'Comm (+MF) Price Out'!$I$5*D39),(B39*'Comm (+MF) Price Out'!$I$5*D39)) -> 415.968 | B39: =IF(J39="",G39*N39,G39/I39*N39*'Comm (+MF) Price Out'!$I$2) -> 8.666 | C39: FR | D39: 4 | E39: N | F39: U | G39: 2 | H39: 4 | I39: 1 | J39: W | K39: 70 | L39: P | M39: 2 | N39: 1
A40: =IF('Com Lifts'!E40="Y",'Comm (+MF) Price Out'!$F$116*(B40*'Comm (+MF) Price Out'!$I$5*D40),(B40*'Comm (+MF) Price Out'!$I$5*D40)) -> 1455.888 | B40: =IF(J40="",G40*N40,G40/I40*N40*'Comm (+MF) Price Out'!$I$2) -> 30.331 | C40: FR | D40: 4 | E40: N | F40: U | G40: 7 | H40: 28 | I40: 1 | J40: W | K40: 70 | L40: P | M40: 7 | N40: 1
A41: =IF('Com Lifts'!E41="Y",'Comm (+MF) Price Out'!$F$116*(B41*'Comm (+MF) Price Out'!$I$5*D41),(B41*'Comm (+MF) Price Out'!$I$5*D41)) -> 311.976 | B41: =IF(J41="",G41*N41,G41/I41*N41*'Comm (+MF) Price Out'!$I$2) -> 4.333 | C41: FR | D41: 6 | E41: N | F41: C | G41: 1 | H41: 1 | I41: 1 | J41: W | K41: 70 | L41: P | M41: 1 | N41: 1
A42: =IF('Com Lifts'!E42="Y",'Comm (+MF) Price Out'!$F$116*(B42*'Comm (+MF) Price Out'!$I$5*D42),(B42*'Comm (+MF) Price Out'!$I$5*D42)) -> 1247.904 | B42: =IF(J42="",G42*N42,G42/I42*N42*'Comm (+MF) Price Out'!$I$2) -> 17.332 | C42: FR | D42: 6 | E42: N | F42: R | G42: 1 | H42: 1 | I42: 1 | J42: W | K42: 70 | L42: P | M42: 4 | N42: 4
A43: =IF('Com Lifts'!E43="Y",'Comm (+MF) Price Out'!$F$116*(B43*'Comm (+MF) Price Out'!$I$5*D43),(B43*'Comm (+MF) Price Out'!$I$5*D43)) -> 311.976 | B43: =IF(J43="",G43*N43,G43/I43*N43*'Comm (+MF) Price Out'!$I$2) -> 4.333 | C43: FR | D43: 6 | E43: N | F43: R | G43: 1 | H43: 3 | I43: 1 | J43: W | K43: 70 | L43: P | M43: 1 | N43: 1
A44: =IF('Com Lifts'!E44="Y",'Comm (+MF) Price Out'!$F$116*(B44*'Comm (+MF) Price Out'!$I$5*D44),(B44*'Comm (+MF) Price Out'!$I$5*D44)) -> 311.976 | B44: =IF(J44="",G44*N44,G44/I44*N44*'Comm (+MF) Price Out'!$I$2) -> 4.333 | C44: FR | D44: 6 | E44: N | F44: U | G44: 1 | H44: 5 | I44: 1 | J44: W | K44: 70 | L44: P | M44: 1 | N44: 1
A45: =IF('Com Lifts'!E45="Y",'Comm (+MF) Price Out'!$F$116*(B45*'Comm (+MF) Price Out'!$I$5*D45),(B45*'Comm (+MF) Price Out'!$I$5*D45)) -> 96 | B45: =IF(J45="",G45*N45,G45/I45*N45*'Comm (+MF) Price Out'!$I$2) -> 1 | C45: FR | D45: 8 | E45: N | F45: R | G45: 1 | H45: 0 | I45: 0 | K45: 70 | L45: P | M45: 1 | N45: 1
A46: =IF('Com Lifts'!E46="Y",'Comm (+MF) Price Out'!$F$116*(B46*'Comm (+MF) Price Out'!$I$5*D46),(B46*'Comm (+MF) Price Out'!$I$5*D46)) -> 2079.84 | B46: =IF(J46="",G46*N46,G46/I46*N46*'Comm (+MF) Price Out'!$I$2) -> 21.665 | C46: FR | D46: 8 | E46: N | F46: R | G46: 1 | H46: 1 | I46: 1 | J46: W | K46: 70 | L46: P | M46: 5 | N46: 5
A47: =IF('Com Lifts'!E47="Y",'Comm (+MF) Price Out'!$F$116*(B47*'Comm (+MF) Price Out'!$I$5*D47),(B47*'Comm (+MF) Price Out'!$I$5*D47)) -> 415.968 | B47: =IF(J47="",G47*N47,G47/I47*N47*'Comm (+MF) Price Out'!$I$2) -> 4.333 | C47: FR | D47: 8 | E47: N | F47: R | G47: 1 | H47: 2 | I47: 1 | J47: W | K47: 70 | L47: P | M47: 1 | N47: 1
A48: =IF('Com Lifts'!E48="Y",'Comm (+MF) Price Out'!$F$116*(B48*'Comm (+MF) Price Out'!$I$5*D48),(B48*'Comm (+MF) Price Out'!$I$5*D48)) -> 415.968 | B48: =IF(J48="",G48*N48,G48/I48*N48*'Comm (+MF) Price Out'!$I$2) -> 4.333 | C48: FR | D48: 8 | E48: N | F48: U | G48: 1 | H48: 1 | I48: 1 | J48: W | K48: 70 | L48: P | M48: 1 | N48: 1
A49: =IF('Com Lifts'!E49="Y",'Comm (+MF) Price Out'!$F$116*(B49*'Comm (+MF) Price Out'!$I$5*D49),(B49*'Comm (+MF) Price Out'!$I$5*D49)) -> 11.6991 | B49: =IF(J49="",G49*N49,G49/I49*N49*'Comm (+MF) Price Out'!$I$2) -> 2.1665 | C49: RC | D49: 0.45 | E49: N | F49: R | G49: 1 | H49: 1 | I49: 2 | J49: W | K49: 70 | L49: P | M49: 1 | N49: 1
A50: =IF('Com Lifts'!E50="Y",'Comm (+MF) Price Out'!$F$116*(B50*'Comm (+MF) Price Out'!$I$5*D50),(B50*'Comm (+MF) Price Out'!$I$5*D50)) -> 10.8 | B50: =IF(J50="",G50*N50,G50/I50*N50*'Comm (+MF) Price Out'!$I$2) -> 2 | C50: RC | D50: 0.45 | E50: N | F50: R | G50: 2 | H50: 0 | I50: 0 | K50: 70 | L50: P | M50: 2 | N50: 1
A51: =IF('Com Lifts'!E51="Y",'Comm (+MF) Price Out'!$F$116*(B51*'Comm (+MF) Price Out'!$I$5*D51),(B51*'Comm (+MF) Price Out'!$I$5*D51)) -> 23.3982 | B51: =IF(J51="",G51*N51,G51/I51*N51*'Comm (+MF) Price Out'!$I$2) -> 4.333 | C51: RC | D51: 0.45 | E51: N | F51: U | G51: 1 | H51: 1 | I51: 1 | J51: W | K51: 70 | L51: P | M51: 1 | N51: 1
A52: =IF('Com Lifts'!E52="Y",'Comm (+MF) Price Out'!$F$116*(B52*'Comm (+MF) Price Out'!$I$5*D52),(B52*'Comm (+MF) Price Out'!$I$5*D52)) -> 23.3982 | B52: =IF(J52="",G52*N52,G52/I52*N52*'Comm (+MF) Price Out'!$I$2) -> 4.333 | C52: RC | D52: 0.45 | E52: N | F52: U | G52: 2 | H52: 2 | I52: 2 | J52: W | K52: 70 | L52: P | M52: 2 | N52: 1
A53: =IF('Com Lifts'!E53="Y",'Comm (+MF) Price Out'!$F$116*(B53*'Comm (+MF) Price Out'!$I$5*D53),(B53*'Comm (+MF) Price Out'!$I$5*D53)) -> 935.928 | B53: =IF(J53="",G53*N53,G53/I53*N53*'Comm (+MF) Price Out'!$I$2) -> 173.32 | C53: RC | D53: 0.45 | E53: N | F53: U | G53: 80 | H53: 80 | I53: 2 | J53: W | K53: 70 | L53: P | M53: 80 | N53: 1
A54: =IF('Com Lifts'!E54="Y",'Comm (+MF) Price Out'!$F$116*(B54*'Comm (+MF) Price Out'!$I$5*D54),(B54*'Comm (+MF) Price Out'!$I$5*D54)) -> 12.47904 | B54: =IF(J54="",G54*N54,G54/I54*N54*'Comm (+MF) Price Out'!$I$2) -> 2.1665 | C54: RC | D54: 0.48 | E54: N | F54: R | G54: 1 | H54: 1 | I54: 2 | J54: W | K54: 70 | L54: P | M54: 1 | N54: 1
A55: =IF('Com Lifts'!E55="Y",'Comm (+MF) Price Out'!$F$116*(B55*'Comm (+MF) Price Out'!$I$5*D55),(B55*'Comm (+MF) Price Out'!$I$5*D55)) -> 0 | B55: =IF(J55="",G55*N55,G55/I55*N55*'Comm (+MF) Price Out'!$I$2) -> 28 | C55: UN | D55: 0 | E55: N | F55: U | G55: 28 | H55: 0 | I55: 0 | K55: 70 | L55: P | M55: 28 | N55: 1
A56: =IF('Com Lifts'!E56="Y",'Comm (+MF) Price Out'!$F$116*(B56*'Comm (+MF) Price Out'!$I$5*D56),(B56*'Comm (+MF) Price Out'!$I$5*D56)) -> 0 | B56: =IF(J56="",G56*N56,G56/I56*N56*'Comm (+MF) Price Out'!$I$2) -> 44 | C56: UN | D56: 0 | E56: N | F56: U | G56: 44 | H56: 0 | I56: 0 | K56: 70 | L56: P | M56: 44 | N56: 1
A57: =IF('Com Lifts'!E57="Y",'Comm (+MF) Price Out'!$F$116*(B57*'Comm (+MF) Price Out'!$I$5*D57),(B57*'Comm (+MF) Price Out'!$I$5*D57)) -> 0 | B57: =IF(J57="",G57*N57,G57/I57*N57*'Comm (+MF) Price Out'!$I$2) -> 72 | C57: UN | D57: 0 | E57: N | F57: U | G57: 72 | H57: 0 | I57: 0 | K57: 70 | L57: P | M57: 72 | N57: 1
A58: =IF('Com Lifts'!E58="Y",'Comm (+MF) Price Out'!$F$116*(B58*'Comm (+MF) Price Out'!$I$5*D58),(B58*'Comm (+MF) Price Out'!$I$5*D58)) -> 0 | B58: =IF(J58="",G58*N58,G58/I58*N58*'Comm (+MF) Price Out'!$I$2) -> 96 | C58: UN | D58: 0 | E58: N | F58: U | G58: 96 | H58: 0 | I58: 0 | K58: 70 | L58: P | M58: 96 | N58: 1
A59: =IF('Com Lifts'!E59="Y",'Comm (+MF) Price Out'!$F$116*(B59*'Comm (+MF) Price Out'!$I$5*D59),(B59*'Comm (+MF) Price Out'!$I$5*D59)) -> 0 | B59: =IF(J59="",G59*N59,G59/I59*N59*'Comm (+MF) Price Out'!$I$2) -> 288 | C59: UN | D59: 0 | E59: N | F59: U | G59: 288 | H59: 0 | I59: 0 | K59: 70 | L59: P | M59: 288 | N59: 1

Sheet IND Data
A1: Type of Haul (ref table on calc tab) | B1: Customer Account # | H1: Location District | I1: Container Group | K1: IR = Recycle, RO = MSW | L1: Container Size in Yards | M1: If Compactor, then "C" | N1: Special Flag | O1: Travel Time | P1: Travel Distance | Q1: Service Time | R1: Service Distance | S1: Disposal Time | T1: Dispsoal Weight | U1: # of Services | V1: Total Hours (Calculated) | W1: Total Weight (Calculated) | X1: Temp or Perm Account
H2: REV | I2: CONT | L2: CONT | O2: TR | P2: AVEL | Q2: SER | R2: VICE | S2: DISP | U2: # OF
A3: SERVICE CODE | B3: ACCOUNT | C3: SITE | D3: SITE NAME | E3: SITE ADDRESS | F3: CITY | G3: ZIP | H3: DIST | I3: GRP | J3: QTY | K3: TP | L3: /SIZE | M3: C | N3: S | O3: TIME | P3: DIST | Q3: TIME | R3: DIST | S3: TIME | T3: WEIGHT | U3: SERV | V3: Total Hours | W3: Total Weight | X3: T / P
A4: CGB | B4: 18551 | C4: 1 | D4: CASCADE GASKET | E4: 1820 W VALLEY HWY N | F4: AUBURN | G4: 98001 | H4: 7E | I4: 1 | J4: 1 | K4: IR | L4: 20 | N4: 5 | O4: 0.02152777778 | P4: 16 | Q4: 0.03611111111 | R4: 26 | S4: 0.004166666667 | T4: 7.60975 | U4: 1 | V4: =(O4+Q4+S4)*U4 -> 0.06180555556 | W4: =+T4*U4 -> 7.60975 | X4: T
A5: CMP | B5: 7818351 | C5: 1 | D5: STONEBROOK APARTMENT | E5: 12210 SE PETROVITSKY | F5: RENTON | G5: 98058 | H5: 25 | I5: 1 | J5: 1 | K5: RO | L5: 30 | M5: C | N5: U | O5: 0.00625 | P5: 3 | Q5: 0.006944444444 | R5: 0 | S5: 0 | T5: 0 | U5: 1 | V5: =(O5+Q5+S5)*U5 -> 0.01319444444 | W5: =+T5*U5 -> 0 | X5: P
A6: CRE | B6: 7917 | C6: 2 | D6: CLARK CONSTRUCTION G | E6: 17900 INTERNATIONAL | F6: SEATAC | G6: 98188 | H6: 7D | I6: 2 | J6: 1 | K6: IR | L6: 20 | N6: 5 | O6: 0.02430555556 | P6: 5 | Q6: 0.04513888889 | R6: 12 | S6: 0 | T6: 0 | U6: 1 | V6: 0.06944444444 | W6: 0 | X6: T
A7: CRE | B7: 7917 | C7: 3 | D7: CLARK CONSTRUCTION G | E7: 2529 S 194TH ST | F7: SEATAC | G7: 98188 | H7: 7D | I7: 5 | J7: 1 | K7: IR | L7: 20 | N7: 5 | O7: 0.009027777778 | P7: 4 | Q7: 0.02291666667 | R7: 9 | S7: 0 | T7: 0 | U7: 2 | V7: 0.06388888889 | W7: 0 | X7: T
A8: CRE | B8: 7917 | C8: 3 | D8: CLARK CONSTRUCTION G | E8: 2529 S 194TH ST | F8: SEATAC | G8: 98188 | H8: 7D | I8: 7 | J8: 1 | K8: IR | L8: 30 | N8: 5 | O8: 0 | P8: 0 | Q8: 0.04930555556 | R8: 12 | S8: 0 | T8: 0 | U8: 1 | V8: 0.04930555556 | W8: 0 | X8: T
A9: CRE | B9: 7917 | C9: 3 | D9: CLARK CONSTRUCTION G | E9: 2529 S 194TH ST | F9: SEATAC | G9: 98188 | H9: 7D | I9: 12 | J9: 1 | K9: IR | L9: 30 | N9: 5 | O9: 0 | P9: 0 | Q9: 0.01458333333 | R9: 6 | S9: 0 | T9: 0 | U9: 1 | V9: 0.01458333333 | W9: 0 | X9: T
A10: CRE | B10: 10813 | C10: 1 | D10: PCL CONSTRUCTION SER | E10: 17801 INTERNATIONAL | F10: SEATAC | G10: 98158 | H10: 7D | I10: 5 | J10: 1 | K10: IR | L10: 30 | N10: 5 | O10: 0.004861111111 | P10: 0 | Q10: 0.03541666667 | R10: 17 | S10: 0 | T10: 0 | U10: 3 | V10: 0.1208333333 | W10: 0 | X10: T
A11: CRE | B11: 12045 | C11: 1 | D11: LEGACY GROUP | E11: 1600 SW 43RD ST | F11: RENTON | G11: 98057 | H11: 7B | I11: 2 | J11: 1 | K11: IR | L11: 40 | N11: 5 | O11: 0.004861111111 | P11: 1 | Q11: 0.02708333333 | R11: 6 | S11: 0 | T11: 0 | U11: 1 | V11: 0.03194444444 | W11: 0 | X11: P
A12: CRE | B12: 13133 | C12: 1 | D12: THE BOEING COMPANY L | E12: 6 LOGAN AVE S | F12: RENTON | G12: 99210 | H12: 72 | I12: 1 | J12: 3 | K12: IR | L12: 40 | N12: 5 | O12: 0.004166666667 | P12: 0 | Q12: 0.02083333333 | R12: 8 | S12: 0 | T12: 0 | U12: 1 | V12: 0.025 | W12: 0 | X12: P
A13: CRE | B13: 13133 | C13: 2 | D13: THE BOEING COMPANY L | E13: 6 LOGAN AVE S | F13: RENTON | G13: 99210 | H13: 72 | I13: 4 | J13: 4 | K13: IR | L13: 25 | N13: 5 | O13: 0.003472222222 | P13: 0 | Q13: 0.04166666667 | R13: 8 | S13: 0 | T13: 0 | U13: 1 | V13: 0.04513888889 | W13: 0 | X13: P
A14: CRE | B14: 19754 | C14: 1 | D14: ALLIANCE PACIFIC NW | E14: 415 BAKER BLVD | F14: TUKWILA | G14: 98188 | H14: 7C | I14: 3 | J14: 1 | K14: IR | L14: 30 | N14: 5 | O14: 0.03055555556 | P14: 14 | Q14: 0.04444444444 | R14: 10 | S14: 0 | T14: 0 | U14: 1 | V14: 0.075 | W14: 0 | X14: T
A15: CRE | B15: 871940 | C15: 2 | D15: HARTUNG GLASS | E15: 17830 W VALLEY HWY | F15: TUKWILA | G15: 98188 | H15: 7C | I15: 1 | J15: 1 | K15: IR | L15: 30 | N15: R | O15: 0 | P15: 0 | Q15: 0 | R15: 11 | S15: 0 | T15: 0 | U15: 1 | V15: 0 | W15: 0 | X15: P
A16: CRE | B16: 871950 | C16: 2 | D16: BUSINESS INTERIORS N | E16: 10848 E MARGINAL WAY | F16: TUKWILA | G16: 98168 | H16: 7C | I16: 1 | J16: 1 | K16: IR | L16: 40 | N16: R | O16: 0.01736111111 | P16: 7 | Q16: 0.01736111111 | R16: 10 | S16: 0 | T16: 0 | U16: 1 | V16: 0.03472222222 | W16: 0 | X16: P
A17: CRE | B17: 875194 | C17: 6 | D17: TRIUMPH EVENTS NETWO | E17: 12610 INTERURBAN AVE | F17: TUKWILA | G17: 98168 | H17: 7C | I17: 1 | J17: 1 | K17: IR | L17: 30 | N17: R | O17: 0.009027777778 | P17: 0 | Q17: 0.04166666667 | R17: 16 | S17: 0 | T17: 0 | U17: 1 | V17: 0.05069444444 | W17: 0 | X17: T
A18: CRE | B18: 966168 | C18: 1 | D18: LAKE WA WINDOWS AND | E18: 327 WILLIAMS AVE S | F18: RENTON | G18: 98057 | H18: 7B | I18: 1 | J18: 1 | K18: IR | L18: 30 | N18: 5 | O18: 0.005555555556 | P18: 4 | Q18: 0.01041666667 | R18: 0 | S18: 0 | T18: 0 | U18: 2 | V18: 0.03194444444 | W18: 0 | X18: T
A19: CRE | B19: 6666666 | C19: 2 | D19: KC TRANSFER RCYCL-EN | E19: ENUMCLAW TRANSFER ST | F19: SEATTLE | G19: 98134 | H19: 72 | I19: 6 | J19: 1 | K19: IR | L19: 30 | M19: C | N19: C | O19: 0.01041666667 | P19: 23 | Q19: 0.04583333333 | R19: 28 | S19: 0 | T19: 0 | U19: 1 | V19: 0.05625 | W19: 0 | X19: P
A20: CRE | B20: 7817309 | C20: 1 | D20: AIM AVIATION | E20: 849 SENECA AVE SW | F20: RENTON | G20: 98055 | H20: 25 | I20: 1 | J20: 1 | K20: RO | L20: 40 | N20: N | O20: 0.01388888889 | P20: 7 | Q20: 0.01041666667 | R20: 0 | S20: 0 | T20: 0 | U20: 1 | V20: 0.02430555556 | W20: 0 | X20: P
A21: CRE | B21: 7817432 | C21: 2 | D21: BOEING | E21: 6 LOGAN AVE S | F21: RENTON | G21: 99210 | H21: 25 | I21: 2 | J21: 1 | K21: RO | L21: 40 | N21: N | O21: 0.03263888889 | P21: 3 | Q21: 0.03263888889 | R21: 8 | S21: 0 | T21: 0 | U21: 1 | V21: 0.06527777778 | W21: 0 | X21: P
A22: CRE | B22: 7817864 | C22: 1 | D22: CUTTER & BUCK | E22: 4001 OAKESDALE AVE S | F22: RENTON | G22: 98057 | H22: 25 | I22: 1 | J22: 1 | K22: RO | L22: 20 | N22: N | O22: 0.003472222222 | P22: 1 | Q22: 0.04166666667 | R22: 3 | S22: 0 | T22: 0 | U22: 1 | V22: 0.04513888889 | W22: 0 | X22: P
A23: CRE | B23: 7818050 | C23: 1 | D23: GOODWILL | E23: 3210 NE SUNSET BLVD | F23: RENTON | G23: 98056 | H23: 25 | I23: 1 | J23: 1 | K23: RO | L23: 40 | N23: N | O23: 0.009027777778 | P23: 2 | Q23: 0.07222222222 | R23: 21 | S23: 0 | T23: 0 | U23: 1 | V23: 0.08125 | W23: 0 | X23: P
A24: CRE | B24: 7818137 | C24: 1 | D24: TRITON TOWERS ACQ PT | E24: 555 S RENTON VILLAGE | F24: RENTON | G24: 98057 | H24: 25 | I24: 1 | J24: 1 | K24: RO | L24: 20 | N24: N | O24: 0.004166666667 | P24: 2 | Q24: 0.002777777778 | R24: 0 | S24: 0 | T24: 0 | U24: 1 | V24: 0.006944444444 | W24: 0 | X24: P
A25: CRE | B25: 7818426 | C25: 1 | D25: PROVIDENCE HEALTH SY | E25: 1801 LIND AVE SW | F25: RENTON | G25: 98057 | H25: 25 | I25: 1 | J25: 1 | K25: RO | L25: 20 | N25: N | O25: 0 | P25: 5 | Q25: 0 | R25: 0 | S25: 0 | T25: 0 | U25: 1 | V25: 0 | W25: 0 | X25: P
A26: CRE | B26: 7818465 | C26: 1 | D26: MCKNIGHT MIDDLE SCHO | E26: 1200 EDMONDS AVE NE | F26: RENTON | G26: 98056 | H26: 25 | I26: 1 | J26: 1 | K26: RO | L26: 20 | N26: N | O26: 0.01527777778 | P26: 3 | Q26: 0.09097222222 | R26: 20 | S26: 0 | T26: 0 | U26: 1 | V26: 0.10625 | W26: 0 | X26: P
A27: CRE | B27: 7818783 | C27: 1 | D27: NW CENTER INDUSTRIES | E27: 501 SW 7TH ST | F27: RENTON | G27: 98057 | H27: 25 | I27: 1 | J27: 1 | K27: RO | L27: 30 | N27: N | O27: 0.01388888889 | P27: 8 | Q27: 0.01736111111 | R27: 6 | S27: 0 | T27: 0 | U27: 1 | V27: 0.03125 | W27: 0 | X27: P
A28: DEL | B28: 7782 | C28: 4 | D28: ALDRICH ASSOCIATES | E28: 17816 108TH AVE SE | F28: RENTON | G28: 98055 | H28: 7B | I28: 1 | J28: 1 | K28: IR | L28: 30 | N28: 5 | O28: 0.001388888889 | P28: 0 | Q28: 0.02222222222 | R28: 4 | S28: 0 | T28: 0 | U28: 1 | V28: 0.02361111111 | W28: 0 | X28: T
A29: DEL | B29: 7917 | C29: 2 | D29: CLARK CONSTRUCTION G | E29: 17900 INTERNATIONAL | F29: SEATAC | G29: 98188 | H29: 7D | I29: 4 | J29: 1 | K29: IR | L29: 20 | N29: 5 | O29: 0.06458333333 | P29: 14 | Q29: 0.009027777778 | R29: 6 | S29: 0 | T29: 0 | U29: 1 | V29: 0.07361111111 | W29: 0 | X29: T
A30: DEL | B30: 7917 | C30: 2 | D30: CLARK CONSTRUCTION G | E30: 17900 INTERNATIONAL | F30: SEATAC | G30: 98188 | H30: 7D | I30: 6 | J30: 1 | K30: IR | L30: 10 | N30: 2 | O30: 0.006944444444 | P30: 1 | Q30: 0.01944444444 | R30: 7 | S30: 0 | T30: 0 | U30: 1 | V30: 0.02638888889 | W30: 0 | X30: T
A31: DEL | B31: 7917 | C31: 3 | D31: CLARK CONSTRUCTION G | E31: 2529 S 194TH ST | F31: SEATAC | G31: 98188 | H31: 7D | I31: 5 | J31: 1 | K31: IR | L31: 20 | N31: 5 | O31: 0.01388888889 | P31: 2 | Q31: 0.01736111111 | R31: 6 | S31: 0 | T31: 0 | U31: 1 | V31: 0.03125 | W31: 0 | X31: T
A32: DEL | B32: 7917 | C32: 3 | D32: CLARK CONSTRUCTION G | E32: 2529 S 194TH ST | F32: SEATAC | G32: 98188 | H32: 7D | I32: 6 | J32: 1 | K32: IR | L32: 30 | N32: 5 | O32: 0.006944444444 | P32: 6 | Q32: 0.03611111111 | R32: 6 | S32: 0 | T32: 0 | U32: 1 | V32: 0.04305555556 | W32: 0 | X32: T
A33: DEL | B33: 7917 | C33: 3 | D33: CLARK CONSTRUCTION G | E33: 2529 S 194TH ST | F33: SEATAC | G33: 98188 | H33: 7D | I33: 8 | J33: 2 | K33: IR | L33: 20 | N33: 5 | O33: 0.01944444444 | P33: 3391 | Q33: 0.01041666667 | R33: 1 | S33: 0 | T33: 0 | U33: 2 | V33: 0.05972222222 | W33: 0 | X33: T
A34: DEL | B34: 7917 | C34: 3 | D34: CLARK CONSTRUCTION G | E34: 2529 S 194TH ST | F34: SEATAC | G34: 98188 | H34: 7D | I34: 9 | J34: 1 | K34: IR | L34: 20 | N34: 5 | O34: 0 | P34: 4 | Q34: 0 | R34: 3 | S34: 0 | T34: 0 | U34: 1 | V34: 0 | W34: 0 | X34: T
A35: DEL | B35: 7917 | C35: 3 | D35: CLARK CONSTRUCTION G | E35: 2529 S 194TH ST | F35: SEATAC | G35: 98188 | H35: 7D | I35: 10 | J35: 1 | K35: IR | L35: 30 | N35: 5 | O35: 0.03125 | P35: 4 | Q35: 0.05902777778 | R35: 8 | S35: 0 | T35: 0 | U35: 1 | V35: 0.09027777778 | W35: 0 | X35: T
A36: DEL | B36: 7917 | C36: 3 | D36: CLARK CONSTRUCTION G | E36: 2529 S 194TH ST | F36: SEATAC | G36: 98188 | H36: 7D | I36: 11 | J36: 1 | K36: IR | L36: 20 | N36: 5 | O36: 0.02986111111 | P36: 7 | Q36: 0.02083333333 | R36: 6 | S36: 0 | T36: 0 | U36: 1 | V36: 0.05069444444 | W36: 0 | X36: T
A37: DEL | B37: 7917 | C37: 3 | D37: CLARK CONSTRUCTION G | E37: 2529 S 194TH ST | F37: SEATAC | G37: 98188 | H37: 7D | I37: 12 | J37: 1 | K37: IR | L37: 30 | N37: 5 | O37: 0.004861111111 | P37: 0 | Q37: 0.02013888889 | R37: 7 | S37: 0 | T37: 0 | U37: 1 | V37: 0.025 | W37: 0 | X37: T
A38: DEL | B38: 7917 | C38: 4 | D38: CLARK GROUP TRANSACT | E38: 15601 AIR CARGO RD | F38: SEATAC | G38: 98158 | H38: 72 | I38: 1 | J38: 1 | K38: IR | L38: 30 | N38: 5 | O38: 0.01875 | P38: 5 | Q38: 0.06041666667 | R38: 9 | S38: 0 | T38: 0 | U38: 1 | V38: 0.07916666667 | W38: 0 | X38: T
A39: DEL | B39: 10813 | C39: 1 | D39: PCL CONSTRUCTION SER | E39: 17801 INTERNATIONAL | F39: SEATAC | G39: 98158 | H39: 7D | I39: 3 | J39: 1 | K39: IR | L39: 30 | N39: 5 | O39: 0.01527777778 | P39: 7 | Q39: 0.03194444444 | R39: 7 | S39: 0 | T39: 0 | U39: 1 | V39: 0.04722222222 | W39: 0 | X39: T
A40: DEL | B40: 10813 | C40: 1 | D40: PCL CONSTRUCTION SER | E40: 17801 INTERNATIONAL | F40: SEATAC | G40: 98158 | H40: 7D | I40: 5 | J40: 1 | K40: IR | L40: 30 | N40: 5 | O40: 0.02916666667 | P40: 5 | Q40: 0.02986111111 | R40: 8 | S40: 0 | T40: 0 | U40: 4 | V40: 0.2361111111 | W40: 0 | X40: T
A41: DEL | B41: 10813 | C41: 1 | D41: PCL CONSTRUCTION SER | E41: 17801 INTERNATIONAL | F41: SEATAC | G41: 98158 | H41: 7D | I41: 6 | J41: 1 | K41: IR | L41: 40 | N41: 5 | O41: 0.01944444444 | P41: 2 | Q41: 0.01041666667 | R41: 7 | S41: 0 | T41: 0 | U41: 1 | V41: 0.02986111111 | W41: 0 | X41: T
A42: DEL | B42: 10912 | C42: 1 | D42: SAC WIRELESS | E42: 1037 THOMAS AVE SW | F42: RENTON | G42: 98057 | H42: 7B | I42: 6 | J42: 1 | K42: IR | L42: 20 | N42: R | O42: 0.006944444444 | P42: 1 | Q42: 0.04861111111 | R42: 2 | S42: 0 | T42: 0 | U42: 1 | V42: 0.05555555556 | W42: 0 | X42: P
A43: DEL | B43: 11321 | C43: 1 | D43: WONDERLAND ESTATES | E43: 15259 MAPLE DR | F43: RENTON | G43: 98058 | H43: 25 | I43: 2 | J43: 1 | K43: RO | L43: 30 | N43: N | O43: 0.01041666667 | P43: 5 | Q43: 0.03263888889 | R43: 6 | S43: 0 | T43: 0 | U43: 1 | V43: 0.04305555556 | W43: 0 | X43: T
A44: DEL | B44: 11460 | C44: 1 | D44: GRAYBAR ELECTRIC | E44: 300 SW 27TH ST | F44: RENTON | G44: 98057 | H44: 7B | I44: 3 | J44: 1 | K44: IR | L44: 30 | N44: 5 | O44: 0 | P44: 1 | Q44: 0.01388888889 | R44: 8 | S44: 0 | T44: 0 | U44: 1 | V44: 0.01388888889 | W44: 0 | X44: T
A45: DEL | B45: 12045 | C45: 1 | D45: LEGACY GROUP | E45: 1600 SW 43RD ST | F45: RENTON | G45: 98057 | H45: 7B | I45: 2 | J45: 1 | K45: IR | L45: 40 | N45: 5 | O45: 0.005555555556 | P45: 2 | Q45: 0.006944444444 | R45: 0 | S45: 0 | T45: 0 | U45: 1 | V45: 0.0125 | W45: 0 | X45: P
A46: DEL | B46: 12343 | C46: 1 | D46: ATKINSON CONSTRUCTIO | E46: 555 S RENTON VILLAGE | F46: RENTON | G46: 98057 | H46: 7B | I46: 4 | J46: 1 | K46: IR | L46: 20 | N46: 2 | O46: 0.001388888889 | P46: 0 | Q46: 0.01944444444 | R46: 3 | S46: 0 | T46: 0 | U46: 1 | V46: 0.02083333333 | W46: 0 | X46: T
A47: DEL | B47: 12343 | C47: 1 | D47: ATKINSON CONSTRUCTIO | E47: 555 S RENTON VILLAGE | F47: RENTON | G47: 98057 | H47: 7B | I47: 5 | J47: 1 | K47: IR | L47: 10 | N47: @ | O47: 0 | P47: 0 | Q47: 0.01041666667 | R47: 1 | S47: 0 | T47: 0 | U47: 1 | V47: 0.01041666667 | W47: 0 | X47: T
A48: DEL | B48: 12343 | C48: 1 | D48: ATKINSON CONSTRUCTIO | E48: 555 S RENTON VILLAGE | F48: RENTON | G48: 98057 | H48: 7B | I48: 8 | J48: 1 | K48: IR | L48: 20 | N48: 5 | O48: 0.008333333333 | P48: 3 | Q48: 0.03680555556 | R48: 2 | S48: 0 | T48: 0 | U48: 1 | V48: 0.04513888889 | W48: 0 | X48: T
A49: DEL | B49: 12554 | C49: 1 | D49: CITY OF RENTON/MEMOR | E49: S PARKING LOT 405 LO | F49: RENTON | G49: 98056 | H49: 25 | I49: 2 | J49: 2 | K49: RO | L49: 30 | N49: N | O49: 0.0125 | P49: 4 | Q49: 0.009722222222 | R49: 3 | S49: 0 | T49: 0 | U49: 3 | V49: 0.06666666667 | W49: 0 | X49: T
A50: DEL | B50: 12569 | C50: 1 | D50: KENNETH WILLIAMS *PA | E50: 271 THOMAS AVE | F50: RENTON | G50: 98057 | H50: 25 | I50: 3 | J50: 1 | K50: RO | L50: 40 | N50: N | O50: 0.03819444444 | P50: 16 | Q50: 0.04861111111 | R50: 8 | S50: 0 | T50: 0 | U50: 1 | V50: 0.08680555556 | W50: 0 | X50: T
A51: DEL | B51: 12657 | C51: 1 | D51: CAREAGE INC | E51: 17420 106TH PL SE | F51: RENTON | G51: 98055 | H51: 7B | I51: 2 | J51: 1 | K51: IR | L51: 15 | N51: 5 | O51: 0.02569444444 | P51: 6 | Q51: 0.03472222222 | R51: 5 | S51: 0 | T51: 0 | U51: 1 | V51: 0.06041666667 | W51: 0 | X51: T
A52: DEL | B52: 12869 | C52: 1 | D52: EVANS ROBINSON | E52: 12612 SE 158TH ST | F52: RENTON | G52: 98058 | H52: 15 | I52: 4 | J52: 1 | K52: RO | L52: 30 | N52: N | O52: 0.002083333333 | P52: 7 | Q52: 0.04652777778 | R52: 5 | S52: 0 | T52: 0 | U52: 1 | V52: 0.04861111111 | W52: 0 | X52: T
A53: DEL | B53: 12869 | C53: 1 | D53: EVANS ROBINSON | E53: 12612 SE 158TH ST | F53: RENTON | G53: 98058 | H53: 7B | I53: 5 | J53: 1 | K53: IR | L53: 30 | N53: 5 | O53: 0.004861111111 | P53: 0 | Q53: 0.02430555556 | R53: 6 | S53: 0 | T53: 0 | U53: 1 | V53: 0.02916666667 | W53: 0 | X53: T
A54: DEL | B54: 13133 | C54: 1 | D54: THE BOEING COMPANY L | E54: 6 LOGAN AVE S | F54: RENTON | G54: 99210 | H54: 72 | I54: 1 | J54: 3 | K54: IR | L54: 40 | N54: 5 | O54: 0 | P54: 0 | Q54: 0.03055555556 | R54: 44 | S54: 0 | T54: 0 | U54: 1 | V54: 0.03055555556 | W54: 0 | X54: P
A55: DEL | B55: 13263 | C55: 1 | D55: KEN CHU | E55: 16930 114TH AVE SE | F55: RENTON | G55: 98055 | H55: 15 | I55: 4 | J55: 1 | K55: RO | L55: 40 | N55: N | O55: 0.01041666667 | P55: 1 | Q55: 0.01388888889 | R55: 5 | S55: 0 | T55: 0 | U55: 1 | V55: 0.02430555556 | W55: 0 | X55: T
A56: DEL | B56: 13270 | C56: 2 | D56: FAA | E56: 1601 E VALLEY RD | F56: RENTON | G56: 98057 | H56: 15 | I56: 2 | J56: 1 | K56: RO | L56: 20 | N56: N | O56: 0.004166666667 | P56: 3 | Q56: 0.01388888889 | R56: 2 | S56: 0 | T56: 0 | U56: 1 | V56: 0.01805555556 | W56: 0 | X56: P
A57: DEL | B57: 13325 | C57: 1 | D57: MARSHALLS *TEMP RO 3 | E57: 825 N LANDING WAY | F57: RENTON | G57: 98057 | H57: 15 | I57: 2 | J57: 1 | K57: RO | L57: 40 | N57: N | O57: 0.0006944444444 | P57: 0 | Q57: 0.02569444444 | R57: 8 | S57: 0 | T57: 0 | U57: 1 | V57: 0.02638888889 | W57: 0 | X57: T
A58: DEL | B58: 13641 | C58: 1 | D58: LADDER PROPERTIES LL | E58: 31443 12TH AVE SW | F58: FEDERAL WAY | G58: 98023 | H58: 72 | I58: 2 | J58: 1 | K58: IR | L58: 40 | N58: 5 | O58: 0.01388888889 | P58: 6 | Q58: 0.02430555556 | R58: 18 | S58: 0 | T58: 0 | U58: 1 | V58: 0.03819444444 | W58: 0 | X58: T
A59: DEL | B59: 13651 | C59: 1 | D59: ATKINSON CONSTRUCTIO | E59: N 167 & N 405 ON RAM | F59: RENTON | G59: 98056 | H59: 7B | I59: 8 | J59: 1 | K59: IR | L59: 10 | N59: @ | O59: 0.006944444444 | P59: 0 | Q59: 0.01736111111 | R59: 4 | S59: 0 | T59: 0 | U59: 1 | V59: 0.02430555556 | W59: 0 | X59: T
A60: DEL | B60: 13651 | C60: 1 | D60: ATKINSON CONSTRUCTIO | E60: N 167 & N 405 ON RAM | F60: RENTON | G60: 98056 | H60: 7B | I60: 9 | J60: 1 | K60: IR | L60: 20 | N60: 2 | O60: 0.005555555556 | P60: 1 | Q60: 0.0125 | R60: 3 | S60: 0 | T60: 0 | U60: 2 | V60: 0.03611111111 | W60: 0 | X60: T
A61: DEL | B61: 13651 | C61: 1 | D61: ATKINSON CONSTRUCTIO | E61: N 167 & N 405 ON RAM | F61: RENTON | G61: 98056 | H61: 7B | I61: 11 | J61: 1 | K61: IR | L61: 40 | N61: 5 | O61: 0.01875 | P61: 5 | Q61: 0.01527777778 | R61: 3 | S61: 0 | T61: 0 | U61: 1 | V61: 0.03402777778 | W61: 0 | X61: T
A62: DEL | B62: 13651 | C62: 1 | D62: ATKINSON CONSTRUCTIO | E62: N 167 & N 405 ON RAM | F62: RENTON | G62: 98056 | H62: 7B | I62: 12 | J62: 1 | K62: IR | L62: 40 | N62: 5 | O62: 0.005555555556 | P62: 3 | Q62: 0.01180555556 | R62: 5 | S62: 0 | T62: 0 | U62: 2 | V62: 0.03472222222 | W62: 0 | X62: T
A63: DEL | B63: 13651 | C63: 1 | D63: ATKINSON CONSTRUCTIO | E63: N 167 & N 405 ON RAM | F63: RENTON | G63: 98056 | H63: 7B | I63: 13 | J63: 1 | K63: IR | L63: 40 | N63: 5 | O63: 0.008333333333 | P63: 3 | Q63: 0.02291666667 | R63: 6 | S63: 0 | T63: 0 | U63: 1 | V63: 0.03125 | W63: 0 | X63: T
A64: DEL | B64: 13651 | C64: 3 | D64: ATKINSON CONSTRUCTIO | E64: 1400 SHATTUCK AVE S | F64: RENTON | G64: 98055 | H64: 7B | I64: 1 | J64: 2 | K64: IR | L64: 10 | N64: @ | O64: 0.01527777778 | P64: 6 | Q64: 0.01944444444 | R64: 5 | S64: 0 | T64: 0 | U64: 2 | V64: 0.06944444444 | W64: 0 | X64: T
A65: DEL | B65: 13651 | C65: 4 | D65: ATKINSON CONSTRUCTIO | E65: HWY 167 MEDIAN | F65: RENTON | G65: 98057 | H65: 7B | I65: 1 | J65: 1 | K65: IR | L65: 40 | N65: 5 | O65: 0.01736111111 | P65: 8 | Q65: 0.02013888889 | R65: 7 | S65: 0 | T65: 0 | U65: 1 | V65: 0.0375 | W65: 0 | X65: T
A66: DEL | B66: 13651 | C66: 4 | D66: ATKINSON CONSTRUCTIO | E66: HWY 167 MEDIAN | F66: RENTON | G66: 98057 | H66: 7B | I66: 2 | J66: 1 | K66: IR | L66: 20 | N66: 5 | O66: 0.0006944444444 | P66: 0 | Q66: 0.009722222222 | R66: 5 | S66: 0 | T66: 0 | U66: 1 | V66: 0.01041666667 | W66: 0 | X66: T
A67: DEL | B67: 13651 | C67: 4 | D67: ATKINSON CONSTRUCTIO | E67: HWY 167 MEDIAN | F67: RENTON | G67: 98057 | H67: 7B | I67: 4 | J67: 1 | K67: IR | L67: 40 | N67: 5 | O67: 0.01736111111 | P67: 3 | Q67: 0.03402777778 | R67: 6 | S67: 0 | T67: 0 | U67: 1 | V67: 0.05138888889 | W67: 0 | X67: T
A68: DEL | B68: 13651 | C68: 4 | D68: ATKINSON CONSTRUCTIO | E68: HWY 167 MEDIAN | F68: RENTON | G68: 98057 | H68: 7B | I68: 6 | J68: 1 | K68: IR | L68: 20 | N68: 5 | O68: 0.007638888889 | P68: 4 | Q68: 0.02152777778 | R68: 5 | S68: 0 | T68: 0 | U68: 2 | V68: 0.05833333333 | W68: 0 | X68: T
A69: DEL | B69: 13651 | C69: 4 | D69: ATKINSON CONSTRUCTIO | E69: HWY 167 MEDIAN | F69: RENTON | G69: 98057 | H69: 7B | I69: 7 | J69: 1 | K69: IR | L69: 40 | N69: 5 | O69: 0.02916666667 | P69: 13 | Q69: 0.01041666667 | R69: 5 | S69: 0 | T69: 0 | U69: 1 | V69: =(O69+Q69+S69)*U69 -> 0.03958333333 | W69: =+T69*U69 -> 0 | X69: T
A70: DEL | B70: 13651 | C70: 4 | D70: ATKINSON CONSTRUCTIO | E70: HWY 167 MEDIAN | F70: RENTON | G70: 98057 | H70: 7B | I70: 8 | J70: 1 | K70: IR | L70: 20 | N70: 5 | O70: 0.001388888889 | P70: 0 | Q70: 0.00625 | R70: 6 | S70: 0 | T70: 0 | U70: 1 | V70: 0.007638888889 | W70: 0 | X70: T
A71: DEL | B71: 13651 | C71: 4 | D71: ATKINSON CONSTRUCTIO | E71: HWY 167 MEDIAN | F71: RENTON | G71: 98057 | H71: 7B | I71: 9 | J71: 1 | K71: IR | L71: 40 | N71: 5 | O71: 0.006944444444 | P71: 3 | Q71: 0.07777777778 | R71: 15 | S71: 0 | T71: 0 | U71: 1 | V71: 0.08472222222 | W71: 0 | X71: T
A72: DEL | B72: 13651 | C72: 5 | D72: ATKINSON CONSTRUCTIO | E72: I 405 MEDIAN | F72: RENTON | G72: 98057 | H72: 7B | I72: 2 | J72: 1 | K72: IR | L72: 20 | N72: 5 | O72: 0.02013888889 | P72: 2 | Q72: 0.03194444444 | R72: 4 | S72: 0 | T72: 0 | U72: 1 | V72: 0.05208333333 | W72: 0 | X72: T
A73: DEL | B73: 13651 | C73: 5 | D73: ATKINSON CONSTRUCTIO | E73: I 405 MEDIAN | F73: RENTON | G73: 98057 | H73: 7B | I73: 3 | J73: 1 | K73: IR | L73: 20 | N73: 5 | O73: 0.01041666667 | P73: 6 | Q73: 0.01319444444 | R73: 6 | S73: 0 | T73: 0 | U73: 1 | V73: 0.02361111111 | W73: 0 | X73: T
A74: DEL | B74: 13651 | C74: 5 | D74: ATKINSON CONSTRUCTIO | E74: I 405 MEDIAN | F74: RENTON | G74: 98057 | H74: 7B | I74: 4 | J74: 1 | K74: IR | L74: 30 | N74: 5 | O74: 0.00625 | P74: 3 | Q74: 0.02638888889 | R74: 9 | S74: 0 | T74: 0 | U74: 2 | V74: 0.06527777778 | W74: 0 | X74: T
A75: DEL | B75: 13651 | C75: 5 | D75: ATKINSON CONSTRUCTIO | E75: I 405 MEDIAN | F75: RENTON | G75: 98057 | H75: 7B | I75: 5 | J75: 1 | K75: IR | L75: 40 | N75: 5 | O75: 0.01180555556 | P75: 8 | Q75: 0.009027777778 | R75: 4 | S75: 0 | T75: 0 | U75: 1 | V75: 0.02083333333 | W75: 0 | X75: T
A76: DEL | B76: 13651 | C76: 5 | D76: ATKINSON CONSTRUCTIO | E76: I 405 MEDIAN | F76: RENTON | G76: 98057 | H76: 7B | I76: 6 | J76: 1 | K76: IR | L76: 40 | N76: 5 | O76: 0.01111111111 | P76: 8 | Q76: 0.01041666667 | R76: 4 | S76: 0 | T76: 0 | U76: 1 | V76: 0.02152777778 | W76: 0 | X76: T
A77: DEL | B77: 13651 | C77: 5 | D77: ATKINSON CONSTRUCTIO | E77: I 405 MEDIAN | F77: RENTON | G77: 98057 | H77: 7B | I77: 7 | J77: 1 | K77: IR | L77: 40 | N77: 5 | O77: 0 | P77: 0 | Q77: 0.01736111111 | R77: 4 | S77: 0 | T77: 0 | U77: 1 | V77: 0.01736111111 | W77: 0 | X77: T
A78: DEL | B78: 14143 | C78: 1 | D78: HARJO CONSTRUCTION | E78: 12207 47TH AVE S | F78: TUKWILA | G78: 98178 | H78: 7C | I78: 7 | J78: 1 | K78: IR | L78: 20 | N78: 5 | O78: 0.025 | P78: 5 | Q78: 0.01597222222 | R78: 2 | S78: 0 | T78: 0 | U78: 1 | V78: 0.04097222222 | W78: 0 | X78: T
A79: DEL | B79: 14553 | C79: 1 | D79: CITY OF RENTON FALL | E79: NE 6TH PL & MONROE A | F79: RENTON | G79: 98056 | H79: 7B | I79: 4 | J79: 6 | K79: IR | L79: 40 | N79: Y | O79: 0.0125 | P79: 5 | Q79: 0.008333333333 | R79: 6 | S79: 0 | T79: 0 | U79: 1 | V79: 0.02083333333 | W79: 0 | X79: T
A80: DEL | B80: 14553 | C80: 1 | D80: CITY OF RENTON FALL | E80: NE 6TH PL & MONROE A | F80: RENTON | G80: 98056 | H80: 7B | I80: 9 | J80: 9 | K80: IR | L80: 10 | N80: @ | O80: 0.0125 | P80: 6 | Q80: 0.01666666667 | R80: 10 | S80: 0 | T80: 0 | U80: 9 | V80: 0.2625 | W80: 0 | X80: T
A81: DEL | B81: 14553 | C81: 1 | D81: CITY OF RENTON FALL | E81: NE 6TH PL & MONROE A | F81: RENTON | G81: 98056 | H81: 7B | I81: 11 | J81: 3 | K81: IR | L81: 40 | N81: 2 | O81: 0.01388888889 | P81: 9 | Q81: 0.01736111111 | R81: 9 | S81: 0 | T81: 0 | U81: 2 | V81: 0.0625 | W81: 0 | X81: T
A82: DEL | B82: 14553 | C82: 1 | D82: CITY OF RENTON FALL | E82: NE 6TH PL & MONROE A | F82: RENTON | G82: 98056 | H82: 7B | I82: 12 | J82: 1 | K82: IR | L82: 10 | N82: N | O82: 0 | P82: 0 | Q82: 0.01388888889 | R82: 9 | S82: 0 | T82: 0 | U82: 1 | V82: 0.01388888889 | W82: 0 | X82: T
A83: DEL | B83: 14553 | C83: 1 | D83: CITY OF RENTON FALL | E83: NE 6TH PL & MONROE A | F83: RENTON | G83: 98056 | H83: 7B | I83: 13 | J83: 1 | K83: IR | L83: 20 | N83: N | O83: 0.002083333333 | P83: 0 | Q83: 0.03611111111 | R83: 16 | S83: 0 | T83: 0 | U83: 1 | V83: 0.03819444444 | W83: 0 | X83: T
A84: DEL | B84: 14553 | C84: 1 | D84: CITY OF RENTON FALL | E84: NE 6TH PL & MONROE A | F84: RENTON | G84: 98056 | H84: 7B | I84: 14 | J84: 2 | K84: IR | L84: 30 | N84: V | O84: 0.04861111111 | P84: 9 | Q84: 0.01388888889 | R84: 9 | S84: 0 | T84: 0 | U84: 1 | V84: 0.0625 | W84: 0 | X84: T
A85: DEL | B85: 14553 | C85: 2 | D85: CITY OF RENTON SPRIN | E85: NE 6TH PL & MONROE A | F85: RENTON | G85: 98056 | H85: 7B | I85: 1 | J85: 7 | K85: IR | L85: 10 | N85: @ | O85: 0.009027777778 | P85: 3 | Q85: 0.01666666667 | R85: 6 | S85: 0 | T85: 0 | U85: 5 | V85: 0.1284722222 | W85: 0 | X85: T
A86: DEL | B86: 14553 | C86: 2 | D86: CITY OF RENTON SPRIN | E86: NE 6TH PL & MONROE A | F86: RENTON | G86: 98056 | H86: 7B | I86: 2 | J86: 3 | K86: IR | L86: 40 | N86: 2 | O86: 0.01180555556 | P86: 3 | Q86: 0.02361111111 | R86: 5 | S86: 0 | T86: 0 | U86: 3 | V86: 0.10625 | W86: 0 | X86: T
A87: DEL | B87: 14553 | C87: 2 | D87: CITY OF RENTON SPRIN | E87: NE 6TH PL & MONROE A | F87: RENTON | G87: 98056 | H87: 7B | I87: 3 | J87: 1 | K87: IR | L87: 10 | N87: N | O87: 0.03611111111 | P87: 4 | Q87: 0.01736111111 | R87: 6 | S87: 0 | T87: 0 | U87: 3 | V87: 0.1604166667 | W87: 0 | X87: T
A88: DEL | B88: 14553 | C88: 2 | D88: CITY OF RENTON SPRIN | E88: NE 6TH PL & MONROE A | F88: RENTON | G88: 98056 | H88: 7B | I88: 5 | J88: 2 | K88: IR | L88: 30 | N88: V | O88: 0.009722222222 | P88: 3 | Q88: 0.01111111111 | R88: 3 | S88: 0 | T88: 0 | U88: 2 | V88: 0.04166666667 | W88: 0 | X88: T
A89: DEL | B89: 14553 | C89: 2 | D89: CITY OF RENTON SPRIN | E89: NE 6TH PL & MONROE A | F89: RENTON | G89: 98056 | H89: 7B | I89: 6 | J89: 6 | K89: IR | L89: 40 | N89: Y | O89: 0.01388888889 | P89: 4 | Q89: 0.01875 | R89: 7 | S89: 0 | T89: 0 | U89: 4 | V89: 0.1305555556 | W89: 0 | X89: T
A90: DEL | B90: 14754 | C90: 1 | D90: STATEWIDE RESTORATIO | E90: 1073 SHELTON AVE NE | F90: RENTON | G90: 98056 | H90: 7B | I90: 3 | J90: 1 | K90: IR | L90: 15 | N90: 5 | O90: 0.003472222222 | P90: 0 | Q90: 0.01736111111 | R90: 7 | S90: 0 | T90: 0 | U90: 1 | V90: 0.02083333333 | W90: 0 | X90: T
A91: DEL | B91: 14912 | C91: 1 | D91: VIRK HOSPITALITY REN | E91: 1850 MAPLE VALLEY HW | F91: RENTON | G91: 98057 | H91: 25 | I91: 3 | J91: 1 | K91: RO | L91: 30 | N91: N | O91: 0.01527777778 | P91: 7 | Q91: 0.02083333333 | R91: 4 | S91: 0 | T91: 0 | U91: 1 | V91: 0.03611111111 | W91: 0 | X91: T
A92: DEL | B92: 15024 | C92: 1 | D92: METEORCOMM | E92: 1201 SW 7TH ST | F92: RENTON | G92: 98057 | H92: 7B | I92: 2 | J92: 1 | K92: IR | L92: 40 | N92: 5 | O92: 0.006944444444 | P92: 3 | Q92: 0.06666666667 | R92: 14 | S92: 0 | T92: 0 | U92: 1 | V92: 0.07361111111 | W92: 0 | X92: T
A93: DEL | B93: 15118 | C93: 1 | D93: AMAZON DSE5 | E93: 1101 SW 16TH ST | F93: RENTON | G93: 98057 | H93: 25 | I93: 3 | J93: 1 | K93: RO | L93: 30 | N93: N | O93: 0.0006944444444 | P93: 0 | Q93: 0.004861111111 | R93: 2 | S93: 0 | T93: 0 | U93: 1 | V93: 0.005555555556 | W93: 0 | X93: T
A94: DEL | B94: 15118 | C94: 1 | D94: AMAZON DSE5 | E94: 1101 SW 16TH ST | F94: RENTON | G94: 98057 | H94: 25 | I94: 4 | J94: 1 | K94: RO | L94: 30 | N94: N | O94: 0.01180555556 | P94: 2 | Q94: 0.03055555556 | R94: 2 | S94: 0 | T94: 0 | U94: 1 | V94: 0.04236111111 | W94: 0 | X94: T
A95: DEL | B95: 15118 | C95: 1 | D95: AMAZON DSE5 | E95: 1101 SW 16TH ST | F95: RENTON | G95: 98057 | H95: 75 | I95: 5 | J95: 1 | K95: IR | L95: 15 | N95: C | O95: 0.01736111111 | P95: 1 | Q95: 0.01041666667 | R95: 2 | S95: 0 | T95: 0 | U95: 1 | V95: 0.02777777778 | W95: 0 | X95: T
A96: DEL | B96: 15118 | C96: 1 | D96: AMAZON DSE5 | E96: 1101 SW 16TH ST | F96: RENTON | G96: 98057 | H96: 75 | I96: 6 | J96: 1 | K96: IR | L96: 20 | N96: C | O96: 0.007638888889 | P96: 2 | Q96: 0.009722222222 | R96: 2 | S96: 0 | T96: 0 | U96: 1 | V96: 0.01736111111 | W96: 0 | X96: T
A97: DEL | B97: 15118 | C97: 1 | D97: AMAZON DSE5 | E97: 1101 SW 16TH ST | F97: RENTON | G97: 98057 | H97: 7B | I97: 7 | J97: 1 | K97: IR | L97: 40 | N97: C | O97: 0.008333333333 | P97: 2 | Q97: 0.009027777778 | R97: 1 | S97: 0 | T97: 0 | U97: 1 | V97: 0.01736111111 | W97: 0 | X97: T
A98: DEL | B98: 15118 | C98: 1 | D98: AMAZON DSE5 | E98: 1101 SW 16TH ST | F98: RENTON | G98: 98057 | H98: 75 | I98: 9 | J98: 1 | K98: IR | L98: 40 | N98: C | O98: 0.02916666667 | P98: 6 | Q98: 0.01597222222 | R98: 2 | S98: 0 | T98: 0 | U98: 1 | V98: 0.04513888889 | W98: 0 | X98: T
A99: DEL | B99: 15220 | C99: 1 | D99: CONCO CONCRETE | E99: 18301 INTERNATIONAL | F99: SEATAC | G99: 98158 | H99: 7D | I99: 3 | J99: 1 | K99: IR | L99: 10 | N99: @ | O99: 0.005555555556 | P99: 2 | Q99: 0.02777777778 | R99: 8 | S99: 0 | T99: 0 | U99: 1 | V99: 0.03333333333 | W99: 0 | X99: T
A100: DEL | B100: 15220 | C100: 1 | D100: CONCO CONCRETE | E100: 18301 INTERNATIONAL | F100: SEATAC | G100: 98158 | H100: 7D | I100: 4 | J100: 1 | K100: IR | L100: 10 | N100: 2 | O100: 0.02222222222 | P100: 7 | Q100: 0.02083333333 | R100: 6 | S100: 0 | T100: 0 | U100: 1 | V100: 0.04305555556 | W100: 0 | X100: T
A101: DEL | B101: 15220 | C101: 1 | D101: CONCO CONCRETE | E101: 18301 INTERNATIONAL | F101: SEATAC | G101: 98158 | H101: 7D | I101: 5 | J101: 1 | K101: IR | L101: 10 | N101: 2 | O101: 0.0006944444444 | P101: 0 | Q101: 0.02222222222 | R101: 6 | S101: 0 | T101: 0 | U101: 1 | V101: 0.02291666667 | W101: 0 | X101: T
A102: DEL | B102: 15220 | C102: 1 | D102: CONCO CONCRETE | E102: 18301 INTERNATIONAL | F102: SEATAC | G102: 98158 | H102: 7D | I102: 6 | J102: 1 | K102: IR | L102: 10 | N102: @ | O102: 0.01111111111 | P102: 6 | Q102: 0.025 | R102: 7 | S102: 0 | T102: 0 | U102: 1 | V102: 0.03611111111 | W102: 0 | X102: T
A103: DEL | B103: 15672 | C103: 1 | D103: KATEY WELCH | E103: 17046 123RD AVE SE | F103: RENTON | G103: 98058 | H103: 7B | I103: 1 | J103: 1 | K103: IR | L103: 20 | N103: 5 | O103: 0.01527777778 | P103: 8 | Q103: 0.02083333333 | R103: 6 | S103: 0 | T103: 0 | U103: 1 | V103: 0.03611111111 | W103: 0 | X103: T
A104: DEL | B104: 15765 | C104: 1 | D104: WESTERN VENTURES | E104: 27010 15TH AVE S | F104: DES MOINES | G104: 98198 | H104: 74 | I104: 2 | J104: 1 | K104: IR | L104: 10 | N104: @ | O104: 0.0006944444444 | P104: 0 | Q104: 0.02430555556 | R104: 12 | S104: 0 | T104: 0 | U104: 1 | V104: 0.025 | W104: 0 | X104: T
A105: DEL | B105: 15870 | C105: 1 | D105: COBRA BEC LLC | E105: 615 S 200TH ST | F105: DES MOINES | G105: 98198 | H105: 74 | I105: 2 | J105: 1 | K105: IR | L105: 40 | N105: 5 | O105: 0.01736111111 | P105: 10 | Q105: 0.01736111111 | R105: 8 | S105: 0 | T105: 0 | U105: 1 | V105: 0.03472222222 | W105: 0 | X105: T
A106: DEL | B106: 16513 | C106: 1 | D106: ALCOPRA CONSTRUCTION | E106: 12830 37TH AVE S | F106: TUKWILA | G106: 98168 | H106: 7C | I106: 2 | J106: 1 | K106: IR | L106: 15 | N106: 5 | O106: 0.0006944444444 | P106: 0 | Q106: 0.03055555556 | R106: 8 | S106: 0 | T106: 0 | U106: 1 | V106: 0.03125 | W106: 0 | X106: T
A107: DEL | B107: 16661 | C107: 1 | D107: JOHNSON DEVELOPMENT | E107: 301 BAKER BLVD | F107: TUKWILA | G107: 98188 | H107: 7C | I107: 2 | J107: 1 | K107: IR | L107: 20 | N107: 5 | O107: 0.01597222222 | P107: 5 | Q107: 0.01805555556 | R107: 4 | S107: 0 | T107: 0 | U107: 1 | V107: 0.03402777778 | W107: 0 | X107: T
A108: DEL | B108: 16785 | C108: 1 | D108: CHIKEVIE ESIONA | E108: 13604 MACADAM RD S | F108: TUKWILA | G108: 98168 | H108: 26 | I108: 1 | J108: 1 | K108: IR | L108: 30 | N108: 5 | O108: 0.03402777778 | P108: 9176 | Q108: 0.02291666667 | R108: 8 | S108: 0 | T108: 0 | U108: 1 | V108: 0.05694444444 | W108: 0 | X108: T
A109: DEL | B109: 16787 | C109: 1 | D109: TAUN BUI | E109: 321 POWELL AVE SW | F109: RENTON | G109: 98057 | H109: 15 | I109: 1 | J109: 1 | K109: RO | L109: 20 | N109: N | O109: 0 | P109: 0 | Q109: 0.01944444444 | R109: 7 | S109: 0 | T109: 0 | U109: 1 | V109: 0.01944444444 | W109: 0 | X109: T
A110: DEL | B110: 16789 | C110: 1 | D110: COLVOS CONSTRUCTION | E110: 15455 53RD AVE S | F110: TUKWILA | G110: 98188 | H110: 7C | I110: 1 | J110: 1 | K110: IR | L110: 20 | N110: 5 | O110: 0.02430555556 | P110: 9 | Q110: 0.02777777778 | R110: 3 | S110: 0 | T110: 0 | U110: 1 | V110: 0.05208333333 | W110: =+T110*U110 -> 0 | X110: T
A111: DEL | B111: 16794 | C111: 1 | D111: NEW AGE PROCESSORS | E111: 200 SW 34TH ST | F111: RENTON | G111: 98057 | H111: 7B | I111: 1 | J111: 1 | K111: IR | L111: 30 | N111: 5 | O111: 0.01041666667 | P111: 4 | Q111: 0.01597222222 | R111: 4 | S111: 0 | T111: 0 | U111: 1 | V111: 0.02638888889 | W111: 0 | X111: T
A112: DEL | B112: 16806 | C112: 1 | D112: RYAN GRANGER | E112: 1625 JONES DR SE | F112: RENTON | G112: 98055 | H112: 7B | I112: 1 | J112: 1 | K112: IR | L112: 20 | N112: 5 | O112: 0.01111111111 | P112: 1 | Q112: 0.002083333333 | R112: 3 | S112: 0 | T112: 0 | U112: 1 | V112: 0.01319444444 | W112: 0 | X112: T
A113: DEL | B113: 16844 | C113: 1 | D113: JEFF DANG | E113: 2117 NE 16TH ST | F113: RENTON | G113: 98056 | H113: 15 | I113: 1 | J113: 1 | K113: RO | L113: 20 | N113: N | O113: 0.007638888889 | P113: 3 | Q113: 0.02013888889 | R113: 6 | S113: 0 | T113: 0 | U113: 1 | V113: 0.02777777778 | W113: 0 | X113: T
A114: DEL | B114: 16852 | C114: 2 | D114: VERONICA DANIELS | E114: 2709 LAKE YOUNGS CT | F114: RENTON | G114: 98058 | H114: 7B | I114: 1 | J114: 1 | K114: IR | L114: 20 | N114: 5 | O114: 0 | P114: 5 | Q114: 0 | R114: 5 | S114: 0 | T114: 0 | U114: 1 | V114: 0 | W114: 0 | X114: T
A115: DEL | B115: 16859 | C115: 1 | D115: LADDER PROPERTIES LL | E115: 13232 MILITARY RD S | F115: TUKWILA | G115: 98168 | H115: 72 | I115: 1 | J115: 1 | K115: IR | L115: 40 | N115: 5 | O115: 0.01527777778 | P115: 6 | Q115: 0.02222222222 | R115: 6 | S115: 0 | T115: 0 | U115: 1 | V115: 0.0375 | W115: 0 | X115: T
A116: DEL | B116: 16923 | C116: 1 | D116: LADDER PROPERTIES LL | E116: 31834 44TH AVE S | F116: AUBURN | G116: 98001 | H116: 72 | I116: 1 | J116: 1 | K116: IR | L116: 40 | N116: 5 | O116: 0.01388888889 | P116: 6 | Q116: 0.05208333333 | R116: 17 | S116: 0 | T116: 0 | U116: 1 | V116: 0.06597222222 | W116: 0 | X116: T
A117: DEL | B117: 16970 | C117: 1 | D117: VAL KHARIK | E117: 35645 9TH AVE SW | F117: FEDERAL WAY | G117: 98023 | H117: 72 | I117: 1 | J117: 1 | K117: IR | L117: 30 | N117: 5 | O117: 0.0006944444444 | P117: 0 | Q117: 0.03472222222 | R117: 13 | S117: 0 | T117: 0 | U117: 1 | V117: 0.03541666667 | W117: 0 | X117: T
A118: DEL | B118: 16971 | C118: 1 | D118: JANICE LYNESS | E118: 523 S 17TH ST | F118: RENTON | G118: 98055 | H118: 25 | I118: 1 | J118: 1 | K118: RO | L118: 20 | N118: N | O118: 0.02430555556 | P118: 4 | Q118: 0.02777777778 | R118: 11 | S118: 0 | T118: 0 | U118: 1 | V118: 0.05208333333 | W118: 0 | X118: T
A119: DEL | B119: 16983 | C119: 1 | D119: EQUIPMENT MANAGEMENT | E119: 2800 SOUTHCENTER MAL | F119: TUKWILA | G119: 98188 | H119: 7C | I119: 1 | J119: 2 | K119: IR | L119: 30 | N119: 5 | O119: 0.01527777778 | P119: 4 | Q119: 0.01041666667 | R119: 3 | S119: 0 | T119: 0 | U119: 2 | V119: 0.05138888889 | W119: 0 | X119: T
A120: DEL | B120: 16986 | C120: 1 | D120: SPARTAN CONSTRUCTION | E120: 16915 31ST AVE S | F120: SEATAC | G120: 98188 | H120: 7D | I120: 1 | J120: 1 | K120: IR | L120: 40 | N120: 5 | O120: 0.01805555556 | P120: 10 | Q120: 0.01388888889 | R120: 5 | S120: 0 | T120: 0 | U120: 1 | V120: 0.03194444444 | W120: 0 | X120: T
A121: DEL | B121: 16987 | C121: 1 | D121: MCR CONSTRUCTION | E121: 5016 SE 2ND ST | F121: RENTON | G121: 98059 | H121: 7B | I121: 1 | J121: 1 | K121: IR | L121: 40 | N121: 5 | O121: 0.009027777778 | P121: 1 | Q121: 0.025 | R121: 7 | S121: 0 | T121: 0 | U121: 1 | V121: 0.03402777778 | W121: 0 | X121: T
A122: DEL | B122: 16987 | C122: 1 | D122: MCR CONSTRUCTION | E122: 5016 SE 2ND ST | F122: RENTON | G122: 98059 | H122: 7B | I122: 2 | J122: 1 | K122: IR | L122: 20 | N122: 5 | O122: 0.006944444444 | P122: 4 | Q122: 0.01736111111 | R122: 7 | S122: 0 | T122: 0 | U122: 1 | V122: 0.02430555556 | W122: 0 | X122: T
A123: DEL | B123: 16996 | C123: 1 | D123: JEREMY NATION | E123: 18516 129TH PL SE | F123: RENTON | G123: 98058 | H123: 20 | I123: 1 | J123: 1 | K123: RO | L123: 20 | N123: N | O123: 0.02777777778 | P123: 11 | Q123: 0.02083333333 | R123: 6 | S123: 0 | T123: 0 | U123: 1 | V123: 0.04861111111 | W123: 0 | X123: T
A124: DEL | B124: 17061 | C124: 1 | D124: INTERWEST CONSTRUCTI | E124: 12 SEAHAWKS WAY | F124: RENTON | G124: 98056 | H124: 7B | I124: 1 | J124: 1 | K124: IR | L124: 10 | N124: 5 | O124: 0.01111111111 | P124: 0 | Q124: 0.02083333333 | R124: 7 | S124: 0 | T124: 0 | U124: 1 | V124: 0.03194444444 | W124: 0 | X124: T
A125: DEL | B125: 17067 | C125: 1 | D125: ELITE COMMERCIAL CON | E125: 17615 140TH AVE SE | F125: RENTON | G125: 98058 | H125: 72 | I125: 1 | J125: 1 | K125: IR | L125: 30 | N125: 5 | O125: 0.002083333333 | P125: 0 | Q125: 0.02430555556 | R125: 8 | S125: 0 | T125: 0 | U125: 1 | V125: 0.02638888889 | W125: 0 | X125: T
A126: DEL | B126: 17067 | C126: 1 | D126: ELITE COMMERCIAL CON | E126: 17615 140TH AVE SE | F126: RENTON | G126: 98058 | H126: 72 | I126: 2 | J126: 1 | K126: IR | L126: 30 | N126: 5 | O126: 0.01388888889 | P126: 6 | Q126: 0.02361111111 | R126: 7 | S126: 0 | T126: 0 | U126: 1 | V126: 0.0375 | W126: 0 | X126: T
A127: DEL | B127: 17069 | C127: 1 | D127: KENNYDALE BEACH COND | E127: 740 N 32ND ST | F127: RENTON | G127: 98056 | H127: 7B | I127: 2 | J127: 1 | K127: IR | L127: 30 | N127: 5 | O127: 0.008333333333 | P127: 6 | Q127: 0.01944444444 | R127: 5 | S127: 0 | T127: 0 | U127: 1 | V127: 0.02777777778 | W127: 0 | X127: T
A128: DEL | B128: 17130 | C128: 1 | D128: RYAN SWARICK | E128: 15448 139TH AVE SE | F128: RENTON | G128: 98058 | H128: 7B | I128: 2 | J128: 1 | K128: IR | L128: 15 | N128: 5 | O128: 0.0006944444444 | P128: 0 | Q128: 0.02361111111 | R128: 7 | S128: 0 | T128: 0 | U128: 1 | V128: 0.02430555556 | W128: 0 | X128: T
A129: DEL | B129: 17143 | C129: 1 | D129: KENNY BEAN | E129: 12713 SE 172ND ST | F129: RENTON | G129: 98058 | H129: 15 | I129: 1 | J129: 1 | K129: RO | L129: 20 | N129: N | O129: 0.005555555556 | P129: 4 | Q129: 0.02430555556 | R129: 7 | S129: 0 | T129: 0 | U129: 1 | V129: 0.02986111111 | W129: 0 | X129: T
A130: DEL | B130: 17150 | C130: 1 | D130: ATKINSON CONSTRUCTIO | E130: 3000 E VALLEY RD | F130: RENTON | G130: 98057 | H130: 7B | I130: 3 | J130: 1 | K130: IR | L130: 20 | N130: 2 | O130: 0.003472222222 | P130: 0 | Q130: 0.01041666667 | R130: 4 | S130: 0 | T130: 0 | U130: 1 | V130: 0.01388888889 | W130: 0 | X130: T
A131: DEL | B131: 17150 | C131: 1 | D131: ATKINSON CONSTRUCTIO | E131: 3000 E VALLEY RD | F131: RENTON | G131: 98057 | H131: 7B | I131: 4 | J131: 1 | K131: IR | L131: 10 | N131: @ | O131: 0.006944444444 | P131: 2 | Q131: 0.01736111111 | R131: 3 | S131: 0 | T131: 0 | U131: 1 | V131: 0.02430555556 | W131: 0 | X131: T
A132: DEL | B132: 17153 | C132: 1 | D132: AMERICAN HOME BUILDE | E132: 11670 DES MOINES MEM | F132: BURIEN | G132: 98168 | H132: 72 | I132: 1 | J132: 1 | K132: IR | L132: 30 | N132: 5 | O132: 0.03194444444 | P132: 15 | Q132: 0.02083333333 | R132: 6 | S132: 0 | T132: 0 | U132: 1 | V132: 0.05277777778 | W132: 0 | X132: T
A133: DEL | B133: 17153 | C133: 1 | D133: AMERICAN HOME BUILDE | E133: 11670 DES MOINES MEM | F133: BURIEN | G133: 98168 | H133: 72 | I133: 2 | J133: 1 | K133: IR | L133: 30 | N133: 5 | O133: 0 | P133: 2 | Q133: 0.02916666667 | R133: 5 | S133: 0 | T133: 0 | U133: 1 | V133: =(O133+Q133+S133)*U133 -> 0.02916666667 | W133: =+T133*U133 -> 0 | X133: T
A134: DEL | B134: 17166 | C134: 1 | D134: ATKINSON CONSTRUCTIO | E134: 27701 W VALLEY HWY S | F134: AUBURN | G134: 98001 | H134: 72 | I134: 1 | J134: 1 | K134: IR | L134: 20 | N134: 2 | O134: 0.009722222222 | P134: 0 | Q134: 0.06736111111 | R134: 7 | S134: 0 | T134: 0 | U134: 1 | V134: 0.07708333333 | W134: 0 | X134: T
A135: DEL | B135: 17168 | C135: 1 | D135: EVERGREEN MARKET | E135: 409 RAINIER AVE N | F135: RENTON | G135: 98057 | H135: 7B | I135: 1 | J135: 1 | K135: IR | L135: 15 | N135: 5 | O135: 0.007638888889 | P135: 1 | Q135: 0.01875 | R135: 3 | S135: 0 | T135: 0 | U135: 1 | V135: 0.02638888889 | W135: 0 | X135: T
A136: DEL | B136: 17191 | C136: 1 | D136: ERIN HO | E136: 2612 WHITWORTH CT S | F136: RENTON | G136: 98055 | H136: 15 | I136: 1 | J136: 1 | K136: RO | L136: 30 | N136: N | O136: 0.04583333333 | P136: 13 | Q136: 0.03333333333 | R136: 13 | S136: 0 | T136: 0 | U136: 1 | V136: 0.07916666667 | W136: 0 | X136: T
A137: DEL | B137: 17223 | C137: 1 | D137: WALMART-SAMS CLUB WA | E137: 901 S GRADY WAY | F137: RENTON | G137: 98057 | H137: 25 | I137: 1 | J137: 1 | K137: RO | L137: 30 | N137: N | O137: 0.025 | P137: 6 | Q137: 0.01527777778 | R137: 3 | S137: 0 | T137: 0 | U137: 1 | V137: 0.04027777778 | W137: 0 | X137: T
A138: DEL | B138: 17223 | C138: 1 | D138: WALMART-SAMS CLUB WA | E138: 901 S GRADY WAY | F138: RENTON | G138: 98057 | H138: 25 | I138: 2 | J138: 1 | K138: RO | L138: 30 | N138: N | O138: 0 | P138: 0 | Q138: 0.01736111111 | R138: 6 | S138: 0 | T138: 0 | U138: 1 | V138: 0.01736111111 | W138: 0 | X138: T
A139: DEL | B139: 17223 | C139: 1 | D139: WALMART-SAMS CLUB WA | E139: 901 S GRADY WAY | F139: RENTON | G139: 98057 | H139: 25 | I139: 3 | J139: 1 | K139: RO | L139: 30 | N139: N | O139: 0.002777777778 | P139: 1 | Q139: 0.009027777778 | R139: 2 | S139: 0 | T139: 0 | U139: 1 | V139: 0.01180555556 | W139: 0 | X139: T
A140: DEL | B140: 17227 | C140: 1 | D140: BING MAYTON | E140: 106 SW VICTORIA ST | F140: RENTON | G140: 98057 | H140: 15 | I140: 1 | J140: 1 | K140: RO | L140: 30 | N140: N | O140: 0.02430555556 | P140: 8 | Q140: 0.03125 | R140: 10 | S140: 0 | T140: 0 | U140: 1 | V140: 0.05555555556 | W140: 0 | X140: T
A141: DEL | B141: 17243 | C141: 1 | D141: JEFF WILSON | E141: 995 SHELTON AVE SE | F141: RENTON | G141: 98058 | H141: 15 | I141: 1 | J141: 1 | K141: RO | L141: 30 | N141: N | O141: 0.004166666667 | P141: 0 | Q141: 0.01875 | R141: 6 | S141: 0 | T141: 0 | U141: 1 | V141: 0.02291666667 | W141: 0 | X141: T
A142: DEL | B142: 17278 | C142: 1 | D142: EQUIPMENT MANAGEMENT | E142: 17364 SOUTHCENTER PK | F142: TUKWILA | G142: 98188 | H142: 7C | I142: 1 | J142: 1 | K142: IR | L142: 30 | N142: 5 | O142: 0.01388888889 | P142: 3 | Q142: 0.01180555556 | R142: 5 | S142: 0 | T142: 0 | U142: 1 | V142: 0.02569444444 | W142: 0 | X142: T
A143: DEL | B143: 17302 | C143: 1 | D143: OCEAN BEAUTY | E143: 600 POWELL AVE SW | F143: RENTON | G143: 98057 | H143: 15 | I143: 5 | J143: 1 | K143: RO | L143: 30 | N143: N | O143: 0.01875 | P143: 6 | Q143: 0.01041666667 | R143: 1 | S143: 0 | T143: 0 | U143: 1 | V143: 0.02916666667 | W143: 0 | X143: T
A144: DEL | B144: 17302 | C144: 1 | D144: OCEAN BEAUTY | E144: 600 POWELL AVE SW | F144: RENTON | G144: 98057 | H144: 25 | I144: 8 | J144: 1 | K144: RO | L144: 40 | N144: N | O144: 0.01180555556 | P144: 0 | Q144: 0.004166666667 | R144: 1 | S144: 0 | T144: 0 | U144: 1 | V144: 0.01597222222 | W144: 0 | X144: T
A145: DEL | B145: 17313 | C145: 1 | D145: EQUIPMENT MANAGEMENT | E145: 17601 SOUTHCENTER PK | F145: TUKWILA | G145: 98188 | H145: 7C | I145: 1 | J145: 1 | K145: IR | L145: 30 | N145: 5 | O145: 0.0006944444444 | P145: 0 | Q145: 0.01041666667 | R145: 4 | S145: 0 | T145: 0 | U145: 1 | V145: 0.01111111111 | W145: 0 | X145: T
A146: DEL | B146: 17313 | C146: 1 | D146: EQUIPMENT MANAGEMENT | E146: 17601 SOUTHCENTER PK | F146: TUKWILA | G146: 98188 | H146: 7C | I146: 2 | J146: 1 | K146: IR | L146: 20 | N146: 5 | O146: 0.01666666667 | P146: 0 | Q146: 0.04166666667 | R146: 4 | S146: 0 | T146: 0 | U146: 1 | V146: 0.05833333333 | W146: 0 | X146: T
A147: DEL | B147: 17410 | C147: 1 | D147: NEESER CONSTRUCTION | E147: 4009 TALBOT RD | F147: RENTON | G147: 98055 | H147: 7B | I147: 1 | J147: 1 | K147: IR | L147: 40 | N147: 5 | O147: 0.0006944444444 | P147: 0 | Q147: 0.006944444444 | R147: 0 | S147: 0 | T147: 0 | U147: 1 | V147: 0.007638888889 | W147: 0 | X147: T
A148: DEL | B148: 17410 | C148: 1 | D148: NEESER CONSTRUCTION | E148: 4009 TALBOT RD | F148: RENTON | G148: 98055 | H148: 7B | I148: 2 | J148: 1 | K148: IR | L148: 10 | N148: @ | O148: 0.009722222222 | P148: 3 | Q148: 0.025 | R148: 5 | S148: 0 | T148: 0 | U148: 1 | V148: 0.03472222222 | W148: 0 | X148: T
A149: DEL | B149: 17410 | C149: 2 | D149: NEESER CONSTRUCTION | E149: 400 S 43RD ST | F149: RENTON | G149: 98055 | H149: 7B | I149: 1 | J149: 1 | K149: IR | L149: 20 | N149: 5 | O149: 0.003472222222 | P149: 2 | Q149: 0.01944444444 | R149: 2 | S149: 0 | T149: 0 | U149: 1 | V149: 0.02291666667 | W149: 0 | X149: T
A150: DEL | B150: 17410 | C150: 3 | D150: NEESER CONSTRUCTION | E150: 4009 TALBOT RD S | F150: RENTON | G150: 98055 | H150: 15 | I150: 1 | J150: 1 | K150: RO | L150: 20 | N150: N | O150: 0.01388888889 | P150: 2 | Q150: 0.03402777778 | R150: 4 | S150: 0 | T150: 0 | U150: 1 | V150: 0.04791666667 | W150: 0 | X150: T
A151: DEL | B151: 17418 | C151: 1 | D151: ATKINSON CONSTRUCTIO | E151: 1400 SHATTUCK AVE S | F151: RENTON | G151: 98055 | H151: 7B | I151: 2 | J151: 1 | K151: IR | L151: 10 | N151: @ | O151: 0.0006944444444 | P151: 0 | Q151: 0.00625 | R151: 3 | S151: 0 | T151: 0 | U151: 1 | V151: 0.006944444444 | W151: 0 | X151: T
A152: DEL | B152: 17425 | C152: 1 | D152: EQUIPMENT MANAGEMENT | E152: 31601 PACIFIC HWY S | F152: FEDERAL WAY | G152: 98003 | H152: 72 | I152: 1 | J152: 1 | K152: IR | L152: 30 | N152: 5 | O152: 0.0006944444444 | P152: 0 | Q152: 0.02013888889 | R152: 17 | S152: 0 | T152: 0 | U152: 1 | V152: 0.02083333333 | W152: 0 | X152: T
A153: DEL | B153: 17436 | C153: 1 | D153: WEST COAST HOME SERV | E153: 14435 31ST AVE S | F153: SEATAC | G153: 98168 | H153: 7D | I153: 1 | J153: 1 | K153: IR | L153: 25 | N153: 5 | O153: 0.03194444444 | P153: 11 | Q153: 0.03055555556 | R153: 4 | S153: 0 | T153: 0 | U153: 1 | V153: 0.0625 | W153: 0 | X153: T
A154: DEL | B154: 17441 | C154: 1 | D154: CHRYSOLITE CONSTRUCT | E154: 227 UNION AVE SE | F154: RENTON | G154: 98059 | H154: 7B | I154: 1 | J154: 1 | K154: IR | L154: 30 | N154: 5 | O154: 0.001388888889 | P154: 0 | Q154: 0.02291666667 | R154: 0 | S154: 0 | T154: 0 | U154: 1 | V154: 0.02430555556 | W154: 0 | X154: T
A155: DEL | B155: 17474 | C155: 1 | D155: SERVICE MASTER OF SE | E155: 11422 DES MOINES MEM | F155: BURIEN | G155: 98168 | H155: 72 | I155: 1 | J155: 1 | K155: IR | L155: 10 | N155: 5 | O155: 0.006944444444 | P155: 3 | Q155: 0.01527777778 | R155: 6 | S155: 0 | T155: 0 | U155: 1 | V155: 0.02222222222 | W155: 0 | X155: T
A156: DEL | B156: 17519 | C156: 1 | D156: G&B INSULATION | E156: 17801 108TH AVE SE | F156: RENTON | G156: 98055 | H156: 7B | I156: 1 | J156: 1 | K156: IR | L156: 30 | N156: 5 | O156: 0.01736111111 | P156: 7 | Q156: 0.03125 | R156: 5 | S156: 0 | T156: 0 | U156: 1 | V156: 0.04861111111 | W156: 0 | X156: T
A157: DEL | B157: 17540 | C157: 1 | D157: WEST SIDE FIX IT | E157: 12556 50TH PL S | F157: TUKWILA | G157: 98178 | H157: 7C | I157: 1 | J157: 1 | K157: IR | L157: 40 | N157: 5 | O157: 0.02638888889 | P157: 12 | Q157: 0.02708333333 | R157: 9 | S157: 0 | T157: 0 | U157: 1 | V157: 0.05347222222 | W157: 0 | X157: T
A158: DEL | B158: 17546 | C158: 1 | D158: SOLEX CONTRACTING LE | E158: 1101 OUTLET COLLECTI | F158: AUBURN | G158: 98001 | H158: 7E | I158: 1 | J158: 1 | K158: IR | L158: 30 | N158: 5 | O158: 0.02430555556 | P158: 4 | Q158: 0.02291666667 | R158: 10 | S158: 0 | T158: 0 | U158: 1 | V158: 0.04722222222 | W158: 0 | X158: T
A159: DEL | B159: 17546 | C159: 1 | D159: SOLEX CONTRACTING LE | E159: 1101 OUTLET COLLECTI | F159: AUBURN | G159: 98001 | H159: 7E | I159: 2 | J159: 1 | K159: IR | L159: 30 | N159: 5 | O159: 0 | P159: 0 | Q159: 0.01944444444 | R159: 15 | S159: 0 | T159: 0 | U159: 1 | V159: 0.01944444444 | W159: 0 | X159: T
A160: DEL | B160: 17546 | C160: 1 | D160: SOLEX CONTRACTING LE | E160: 1101 OUTLET COLLECTI | F160: AUBURN | G160: 98001 | H160: 7E | I160: 3 | J160: 1 | K160: IR | L160: 30 | N160: 5 | O160: 0.01597222222 | P160: 4 | Q160: 0.02013888889 | R160: 18 | S160: 0 | T160: 0 | U160: 1 | V160: 0.03611111111 | W160: 0 | X160: T
A161: DEL | B161: 17625 | C161: 1 | D161: RICARDO BELTRAN | E161: 2108 BLAINE AVE SE | F161: RENTON | G161: 98055 | H161: 15 | I161: 1 | J161: 1 | K161: RO | L161: 40 | N161: N | O161: 0.006944444444 | P161: 2 | Q161: 0.03472222222 | R161: 4 | S161: 0 | T161: 0 | U161: 1 | V161: 0.04166666667 | W161: 0 | X161: T
A162: DEL | B162: 17625 | C162: 1 | D162: RICARDO BELTRAN | E162: 2108 BLAINE AVE SE | F162: RENTON | G162: 98055 | H162: 15 | I162: 2 | J162: 1 | K162: RO | L162: 40 | N162: N | O162: 0.06805555556 | P162: 16 | Q162: 0.02291666667 | R162: 7 | S162: 0 | T162: 0 | U162: 1 | V162: 0.09097222222 | W162: 0 | X162: T
A163: DEL | B163: 17625 | C163: 1 | D163: RICARDO BELTRAN | E163: 2108 BLAINE AVE SE | F163: RENTON | G163: 98055 | H163: 15 | I163: 3 | J163: 1 | K163: RO | L163: 40 | N163: N | O163: 0.006944444444 | P163: 3 | Q163: 0.01944444444 | R163: 4 | S163: 0 | T163: 0 | U163: 1 | V163: 0.02638888889 | W163: 0 | X163: T
A164: DEL | B164: 17646 | C164: 1 | D164: SB CAPITAL LLC | E164: 601 RAINIER AVE N | F164: RENTON | G164: 98057 | H164: 15 | I164: 1 | J164: 1 | K164: RO | L164: 40 | N164: N | O164: 0.004861111111 | P164: 1 | Q164: 0.009722222222 | R164: 4 | S164: 0 | T164: 0 | U164: 1 | V164: 0.01458333333 | W164: 0 | X164: T
A165: DEL | B165: 17670 | C165: 1 | D165: WEST COAST HOME SERV | E165: 32019 26TH AVE SW | F165: FEDERAL WAY | G165: 98023 | H165: 72 | I165: 1 | J165: 1 | K165: IR | L165: 30 | N165: 5 | O165: 0.025 | P165: 1 | Q165: 0.02916666667 | R165: 17 | S165: 0 | T165: 0 | U165: 1 | V165: 0.05416666667 | W165: 0 | X165: T
A166: DEL | B166: 17688 | C166: 1 | D166: MATTHEW JOHNSON | E166: 1908 BLAINE AVE NE | F166: RENTON | G166: 98056 | H166: 15 | I166: 1 | J166: 1 | K166: RO | L166: 30 | N166: N | O166: 0.005555555556 | P166: 2 | Q166: 0.02430555556 | R166: 6 | S166: 0 | T166: 0 | U166: 1 | V166: 0.02986111111 | W166: 0 | X166: T
A167: DEL | B167: 17692 | C167: 1 | D167: KEVIN NEWELL | E167: 18015 SE RENTON MAPL | F167: RENTON | G167: 98058 | H167: 15 | I167: 1 | J167: 1 | K167: RO | L167: 30 | N167: N | O167: 0.003472222222 | P167: 5 | Q167: 0.01944444444 | R167: 8 | S167: 0 | T167: 0 | U167: 1 | V167: 0.02291666667 | W167: 0 | X167: T
A168: DEL | B168: 17710 | C168: 1 | D168: HAMIN CONTRACTING | E168: 300 VUEMONT PL NE | F168: RENTON | G168: 98056 | H168: 7B | I168: 2 | J168: 1 | K168: IR | L168: 30 | N168: 5 | O168: 0.0125 | P168: 5 | Q168: 0.04513888889 | R168: 4 | S168: 0 | T168: 0 | U168: 1 | V168: 0.05763888889 | W168: 0 | X168: T
A169: DEL | B169: 17715 | C169: 1 | D169: MARK JARVIS | E169: 3011 NE 16TH ST | F169: RENTON | G169: 98056 | H169: 7B | I169: 1 | J169: 1 | K169: IR | L169: 40 | N169: 5 | O169: 0.006944444444 | P169: 4 | Q169: 0.02638888889 | R169: 7 | S169: 0 | T169: 0 | U169: 1 | V169: 0.03333333333 | W169: 0 | X169: T
A170: DEL | B170: 17721 | C170: 1 | D170: SAUNDERS COMMERCIAL | E170: 2501 E VALLEY RD | F170: RENTON | G170: 98057 | H170: 7B | I170: 1 | J170: 1 | K170: IR | L170: 30 | N170: 5 | O170: 0.001388888889 | P170: 6 | Q170: 0.02083333333 | R170: 0 | S170: 0 | T170: 0 | U170: 1 | V170: 0.02222222222 | W170: 0 | X170: T
A171: DEL | B171: 17721 | C171: 1 | D171: SAUNDERS COMMERCIAL | E171: 2501 E VALLEY RD | F171: RENTON | G171: 98057 | H171: 7B | I171: 2 | J171: 1 | K171: IR | L171: 30 | N171: 5 | O171: 0.01041666667 | P171: 5 | Q171: 0.03125 | R171: 3 | S171: 0 | T171: 0 | U171: 1 | V171: 0.04166666667 | W171: 0 | X171: T
A172: DEL | B172: 17758 | C172: 1 | D172: JR ABOTT CONSTRUCTIO | E172: 14901 4TH AVE SW | F172: BURIEN | G172: 98166 | H172: 72 | I172: 1 | J172: 1 | K172: IR | L172: 10 | N172: 5 | O172: 0.01388888889 | P172: 7 | Q172: 0.01736111111 | R172: 7 | S172: 0 | T172: 0 | U172: 1 | V172: 0.03125 | W172: 0 | X172: T
A173: DEL | B173: 17760 | C173: 1 | D173: RON DEANE | E173: 17419 129TH AVE SE | F173: RENTON | G173: 98058 | H173: 15 | I173: 1 | J173: 1 | K173: RO | L173: 25 | N173: N | O173: 0.006944444444 | P173: 4 | Q173: 0.02152777778 | R173: 6 | S173: 0 | T173: 0 | U173: 1 | V173: 0.02847222222 | W173: 0 | X173: T
A174: DEL | B174: 17789 | C174: 1 | D174: UNITED RENTALS H55 U | E174: 3400 LIND AVE SW | F174: RENTON | G174: 98057 | H174: 25 | I174: 1 | J174: 1 | K174: RO | L174: 30 | N174: N | O174: 0 | P174: 0 | Q174: 0.01319444444 | R174: 1 | S174: 0 | T174: 0 | U174: 1 | V174: 0.01319444444 | W174: 0 | X174: T
A175: DEL | B175: 17789 | C175: 1 | D175: UNITED RENTALS H55 U | E175: 3400 LIND AVE SW | F175: RENTON | G175: 98057 | H175: 25 | I175: 2 | J175: 1 | K175: RO | L175: 30 | N175: N | O175: 0.004166666667 | P175: 2 | Q175: 0.0125 | R175: 3 | S175: 0 | T175: 0 | U175: 1 | V175: 0.01666666667 | W175: 0 | X175: T
A176: DEL | B176: 17799 | C176: 1 | D176: BETTY COVEY | E176: 11004 SE 186TH ST | F176: RENTON | G176: 98055 | H176: 25 | I176: 1 | J176: 1 | K176: RO | L176: 20 | N176: N | O176: 0.01041666667 | P176: 0 | Q176: 0.02916666667 | R176: 4 | S176: 0 | T176: 0 | U176: 1 | V176: 0.03958333333 | W176: 0 | X176: T
A177: DEL | B177: 17804 | C177: 1 | D177: ALSIDE | E177: 17420 106TH PL SE | F177: RENTON | G177: 98055 | H177: 7B | I177: 1 | J177: 1 | K177: IR | L177: 20 | N177: 5 | O177: 0.002083333333 | P177: 1 | Q177: 0.02430555556 | R177: 4 | S177: 0 | T177: 0 | U177: 1 | V177: 0.02638888889 | W177: 0 | X177: T
A178: DEL | B178: 17839 | C178: 1 | D178: SPARK 9 LLC | E178: 14411 200TH AVE SE | F178: RENTON | G178: 98059 | H178: 72 | I178: 1 | J178: 1 | K178: IR | L178: 40 | N178: 5 | O178: 0.02638888889 | P178: 11 | Q178: 0.02777777778 | R178: 11 | S178: 0 | T178: 0 | U178: 1 | V178: 0.05416666667 | W178: 0 | X178: T
A179: DEL | B179: 17839 | C179: 1 | D179: SPARK 9 LLC | E179: 14411 200TH AVE SE | F179: RENTON | G179: 98059 | H179: 72 | I179: 2 | J179: 1 | K179: IR | L179: 10 | N179: @ | O179: 0.004861111111 | P179: 1 | Q179: 0.04444444444 | R179: 10 | S179: 0 | T179: 0 | U179: 1 | V179: 0.04930555556 | W179: 0 | X179: T
A180: DEL | B180: 17864 | C180: 1 | D180: STANLEY BROMILEY | E180: 83 MONTEREY PL NE | F180: RENTON | G180: 98056 | H180: 15 | I180: 1 | J180: 1 | K180: RO | L180: 40 | N180: N | O180: 0.0006944444444 | P180: 1 | Q180: 0.02013888889 | R180: 1 | S180: 0 | T180: 0 | U180: 1 | V180: 0.02083333333 | W180: 0 | X180: T
A181: DEL | B181: 17879 | C181: 1 | D181: EDWIN DASS | E181: 574 NEWPORT AVE NE | F181: RENTON | G181: 98056 | H181: 15 | I181: 1 | J181: 1 | K181: RO | L181: 30 | N181: N | O181: 0.01041666667 | P181: 0 | Q181: 0.03125 | R181: 1 | S181: 0 | T181: 0 | U181: 1 | V181: 0.04166666667 | W181: 0 | X181: T
A182: DEL | B182: 17879 | C182: 1 | D182: EDWIN DASS | E182: 574 NEWPORT AVE NE | F182: RENTON | G182: 98056 | H182: 15 | I182: 2 | J182: 1 | K182: RO | L182: 30 | N182: N | O182: 0.005555555556 | P182: 1 | Q182: 0.01388888889 | R182: 3 | S182: 0 | T182: 0 | U182: 1 | V182: 0.01944444444 | W182: 0 | X182: T
A183: DEL | B183: 17888 | C183: 1 | D183: RENT A CENTER 02365 | E183: 10725 SE CARR RD | F183: RENTON | G183: 98055 | H183: 20 | I183: 1 | J183: 1 | K183: RO | L183: 30 | N183: N | O183: 0.005555555556 | P183: 2 | Q183: 0.02777777778 | R183: 5 | S183: 0 | T183: 0 | U183: 1 | V183: 0.03333333333 | W183: 0 | X183: T
A184: DEL | B184: 18102 | C184: 1 | D184: TURNKEY PROPERTIES | E184: 13912 55TH AVE S | F184: TUKWILA | G184: 98168 | H184: 7C | I184: 1 | J184: 1 | K184: IR | L184: 30 | N184: 5 | O184: 0.006944444444 | P184: 0 | Q184: 0.02777777778 | R184: 4 | S184: 0 | T184: 0 | U184: 1 | V184: 0.03472222222 | W184: 0 | X184: T
A185: DEL | B185: 18102 | C185: 1 | D185: TURNKEY PROPERTIES | E185: 13912 55TH AVE S | F185: TUKWILA | G185: 98168 | H185: 7C | I185: 2 | J185: 1 | K185: IR | L185: 20 | N185: 5 | O185: 0.0125 | P185: 6 | Q185: 0.01527777778 | R185: 6 | S185: 0 | T185: 0 | U185: 1 | V185: 0.02777777778 | W185: 0 | X185: T
A186: DEL | B186: 18105 | C186: 1 | D186: CASIANA MATIAS | E186: 29912 50TH CT S | F186: AUBURN | G186: 98001 | H186: 20 | I186: 1 | J186: 1 | K186: RO | L186: 20 | N186: N | O186: 0.003472222222 | P186: 0 | Q186: 0.02708333333 | R186: 8 | S186: 0 | T186: 0 | U186: 1 | V186: 0.03055555556 | W186: 0 | X186: T
A187: DEL | B187: 18155 | C187: 1 | D187: HARKAWAL CHATHA | E187: 3425 MAIN AVE S | F187: RENTON | G187: 98055 | H187: 15 | I187: 1 | J187: 1 | K187: IR | L187: 30 | N187: 5 | O187: 0 | P187: 0 | Q187: 0.01388888889 | R187: 4 | S187: 0 | T187: 0 | U187: 1 | V187: 0.01388888889 | W187: 0 | X187: T
A188: DEL | B188: 18157 | C188: 1 | D188: AVALON PROJECTS INC | E188: 2800 NE SUNSET BLVD | F188: RENTON | G188: 98056 | H188: 7B | I188: 1 | J188: 1 | K188: IR | L188: 30 | N188: 5 | O188: 0.001388888889 | P188: 6 | Q188: 0.03541666667 | R188: 6 | S188: 0 | T188: 0 | U188: 1 | V188: 0.03680555556 | W188: 0 | X188: T
A189: DEL | B189: 18226 | C189: 1 | D189: LGL CONSULTANTS | E189: 6840 FORT DENT WAY | F189: TUKWILA | G189: 98188 | H189: 7C | I189: 1 | J189: 1 | K189: IR | L189: 30 | N189: 5 | O189: 0.01041666667 | P189: 6 | Q189: 0.02083333333 | R189: 4 | S189: 0 | T189: 0 | U189: 1 | V189: 0.03125 | W189: 0 | X189: T
A190: DEL | B190: 18267 | C190: 1 | D190: DOUGLAS HENDERSON | E190: 1536 VASHON AVE NE | F190: RENTON | G190: 98059 | H190: 15 | I190: 1 | J190: 1 | K190: RO | L190: 30 | N190: N | O190: 0.002777777778 | P190: 1 | Q190: 0.03958333333 | R190: 6 | S190: 0 | T190: 0 | U190: 1 | V190: 0.04236111111 | W190: 0 | X190: T
A191: DEL | B191: 18281 | C191: 1 | D191: FOREVERLAWN OF PUGET | E191: 242 OAKESDALE AVE SW | F191: RENTON | G191: 98057 | H191: 7B | I191: 1 | J191: 1 | K191: IR | L191: 10 | N191: 8 | O191: 0.01666666667 | P191: 17 | Q191: 0.01666666667 | R191: 3 | S191: 0 | T191: 0 | U191: 1 | V191: 0.03333333333 | W191: 0 | X191: T
A192: DEL | B192: 18282 | C192: 1 | D192: ANDERSEN CONSTRUCTIO | E192: 400 S 43RD ST | F192: RENTON | G192: 98055 | H192: 7B | I192: 1 | J192: 1 | K192: IR | L192: 10 | N192: @ | O192: 0.009722222222 | P192: 4 | Q192: 0.01666666667 | R192: 5 | S192: 0 | T192: 0 | U192: 1 | V192: 0.02638888889 | W192: 0 | X192: T
A193: DEL | B193: 18283 | C193: 1 | D193: RERACK | E193: 401 RAINIER AVE S | F193: RENTON | G193: 98057 | H193: 7B | I193: 1 | J193: 1 | K193: IR | L193: 40 | N193: 5 | O193: 0.007638888889 | P193: 2 | Q193: 0.02638888889 | R193: 3 | S193: 0 | T193: 0 | U193: 1 | V193: 0.03402777778 | W193: 0 | X193: T
